Workbook

Sheet Lâmina Individual
G1: Lâmina Individual de FII`s
B2: Dta. Últ. Cot.: | E2: =IF($E$3="",_xll.ECONOMATICA("IBOV","Date of Last Quote"),$E$3) -> 2024-09-27 | G2: ← Não Modificar
B3: Dta. Pref. Últ. Cot.: | G3: ← Para alterar a data da Célula E2, basta digitar na Célula E3
B5: FUNDO IMOBILIÁRIO
B7: HGRU11 | D7: ← Digitar ou Selecionar o Código | Z7: =_xll.ECONOMATICA(B7,"NAME")&" | Segmento: "&INDEX('FII Guide'!I:I,MATCH($B$7,'FII Guide'!C:C,0)) -> Patria Renda Urbana FII Resp Ltda-Unica | Segmento: Multicategoria
B9: DADOS GERAIS | H9: Selecionável → | I9: Thousands | L9: TABELA DE RENTABILIDADE
B10: Itens | E10: =E2 -> 2024-09-27 | G10: =IFERROR(DATE(YEAR($E$10)-1,12,31),"") -> 2023-12-31 | I10: =IFERROR(DATE(YEAR($E$10)-2,12,31),"") -> 2022-12-31 | L10: Itens | M10: =EOMONTH(N10,-1) -> 2024-03-31 | N10: 2024-04-30 | O10: 2024-05-31 | P10: 2024-06-30 | Q10: 2024-07-31 | R10: 2024-08-31 | S10: =E2 -> 2024-09-27 | T10: =DATE(YEAR($E$2)-2,12,31) -> 2022-12-31 | U10: =DATE(YEAR($E$2)-1,12,31) -> 2023-12-31 | V10: =E2 -> 2024-09-27 | W10: 12M | X10: 24M | Y10: 36M | Z10: do início
B11: Preço (R$) | E11: =IFERROR(_xll.ECONOMATICA($B$7,"close",,E$10,,,,,,,,{"tc.pers=3"}),"") -> 122.3 | G11: =IFERROR(_xll.ECONOMATICA($B$7,"close",,G$10,,,,,,,,{"tc.pers=3"}),"") -> 129.2361698 | I11: =IFERROR(_xll.ECONOMATICA($B$7,"close",,I$10,,,,,,,,{"tc.pers=3"}),"-") -> 102.6096074 | L11: FUNDO | M11: =IFERROR(_xll.ECONOMATICA($B$7,"return","MTD",M$10,,,,"decimal"),"") -> 0.003236484001 | N11: =IFERROR(_xll.ECONOMATICA($B$7,"return","MTD",N$10,,,,"decimal"),"") -> -0.0006640106258 | O11: =IFERROR(_xll.ECONOMATICA($B$7,"return","MTD",O$10,,,,"decimal"),"") -> -0.0352897474 | P11: =IFERROR(_xll.ECONOMATICA($B$7,"return","MTD",P$10,,,,"decimal"),"") -> 0.004961240309 | Q11: =IFERROR(_xll.ECONOMATICA($B$7,"return","MTD",Q$10,,,,"decimal"),"") -> 0.002362311339 | R11: =IFERROR(_xll.ECONOMATICA($B$7,"return","MTD",R$10,,,,"decimal"),"") -> 0.007024467244 | S11: =IFERROR(_xll.ECONOMATICA($B$7,"return","MTD",S$10,,,,"decimal"),"") -> -0.03503234969 | T11: =IFERROR(_xll.ECONOMATICA($B$7,"return","YTD",T$10,,,,"decimal"),"") -> 0.1243854151 | U11: =IFERROR(_xll.ECONOMATICA($B$7,"return","YTD",U$10,,,,"decimal"),"") -> 0.2594938524 | V11: =IFERROR(_xll.ECONOMATICA($B$7,"return","YTD",V$10,,,,"decimal"),"") -> -0.05367049944 | W11: =IFERROR(_xll.ECONOMATICA($B$7,"return",W$10,$E$2,,,,"decimal"),"") -> -0.006256705706 | X11: =IFERROR(_xll.ECONOMATICA($B$7,"return",X$10,$E$2,,,,"decimal"),"") -> 0.1609105483 | Y11: =IFERROR(_xll.ECONOMATICA($B$7,"return",Y$10,$E$2,,,,"decimal"),"") -> 0.4492254747 | Z11: =IFERROR(_xll.ECONOMATICA($B$7,"return","from start",$E$2,,,,"decimal"),"") -> 1.218844278
B12: Máximo (R$) | E12: =IFERROR(_xll.ECONOMATICA($B$7,"High","in the year",E$10),"") -> 131.3947986 | G12: =IFERROR(_xll.ECONOMATICA($B$7,"High","in the year",G$10),"") -> 129.2361698 | I12: =IFERROR(_xll.ECONOMATICA($B$7,"High","in the year",I$10),"") -> 106.9293069 | L12: vs IFIX | M12: =IFERROR(M11-M13,"") -> -0.01109387314 | N12: =IFERROR(N11-N13,"") -> 0.007070390736 | O12: =IFERROR(O11-O13,"") -> -0.03545238316 | P12: =IFERROR(P11-P13,"") -> 0.01531206252 | Q12: -0.002850798812 | R12: -0.001525868885 | S12: -0.01015574554 | T12: 0.1021591522 | U12: 0.1045305267 | V12: -0.05297593546 | W12: -0.04257820642 | X12: 0.0502741642 | Y12: 0.2289368061 | Z12: =IFERROR(Z11-Z13,"") -> 0.6774844506
B13: Mínimo (R$) | E13: =IFERROR(_xll.ECONOMATICA($B$7,"Low","in the year",E$10),"") -> 121.01 | G13: =IFERROR(_xll.ECONOMATICA($B$7,"Low","in the year",G$10),"") -> 96.11055134 | I13: =IFERROR(_xll.ECONOMATICA($B$7,"Low","in the year",I$10),"") -> 85.02458523 | L13: IFIX | M13: =IFERROR(_xll.ECONOMATICA("IFIX","return","MTD",M$10,,,,"decimal"),"") -> 0.01433035714 | N13: =IFERROR(_xll.ECONOMATICA("IFIX","return","MTD",N$10,,,,"decimal"),"") -> -0.007734401362 | O13: =IFERROR(_xll.ECONOMATICA("IFIX","return","MTD",O$10,,,,"decimal"),"") -> 0.0001626357643 | P13: =IFERROR(_xll.ECONOMATICA("IFIX","return","MTD",P$10,,,,"decimal"),"") -> -0.01035082221 | Q13: =IFERROR(_xll.ECONOMATICA("IFIX","return","MTD",Q$10,,,,"decimal"),"") -> 0.005213110151 | R13: =IFERROR(_xll.ECONOMATICA("IFIX","return","MTD",R$10,,,,"decimal"),"") -> 0.00855033613 | S13: =IFERROR(_xll.ECONOMATICA("IFIX","return","MTD",S$10,,,,"decimal"),"") -> -0.02487660415 | T13: =IFERROR(_xll.ECONOMATICA("IFIX","return","YTD",T$10,,,,"decimal"),"") -> 0.02222626293 | U13: =IFERROR(_xll.ECONOMATICA("IFIX","return","YTD",U$10,,,,"decimal"),"") -> 0.1549633257 | V13: =IFERROR(_xll.ECONOMATICA("IFIX","return","YTD",V$10,,,,"decimal"),"") -> -0.0006945639798 | W13: =IFERROR(_xll.ECONOMATICA("IFIX","return",W$10,$E$2,,,,"decimal"),"") -> 0.03632150071 | X13: =IFERROR(_xll.ECONOMATICA("IFIX","return",X$10,$E$2,,,,"decimal"),"") -> 0.1106363841 | Y13: =IFERROR(_xll.ECONOMATICA("IFIX","return",Y$10,$E$2,,,,"decimal"),"") -> 0.2202886686 | Z13: =IFERROR(_xll.ECONOMATICA("IFIX","return",'Base Gráfico Lâmina'!$C$4,$E$2,,,,"decimal"),"") -> 0.5413598275
B14: Retorno | E14: =IFERROR(_xll.ECONOMATICA($B$7,"return","in the year",E$10,,,,"decimal"),"") -> -0.05367049944 | G14: =IFERROR(_xll.ECONOMATICA($B$7,"return","in the year",G$10,,,,"decimal"),"") -> 0.2594938524 | I14: =IFERROR(_xll.ECONOMATICA($B$7,"return","in the year",I$10,,,,"decimal"),"") -> 0.1243854151 | L14: IBOV | M14: =IFERROR(_xll.ECONOMATICA("IBOV","return","MTD",M$10,,,,"decimal"),"") -> -0.007083551839 | N14: =IFERROR(_xll.ECONOMATICA("IBOV","return","MTD",N$10,,,,"decimal"),"") -> -0.0170320539 | O14: =IFERROR(_xll.ECONOMATICA("IBOV","return","MTD",O$10,,,,"decimal"),"") -> -0.03038415415 | P14: =IFERROR(_xll.ECONOMATICA("IBOV","return","MTD",P$10,,,,"decimal"),"") -> 0.01481153391 | Q14: =IFERROR(_xll.ECONOMATICA("IBOV","return","MTD",Q$10,,,,"decimal"),"") -> 0.03022648924 | R14: =IFERROR(_xll.ECONOMATICA("IBOV","return","MTD",R$10,,,,"decimal"),"") -> 0.0654295462 | S14: =IFERROR(_xll.ECONOMATICA("IBOV","return","MTD",S$10,,,,"decimal"),"") -> -0.02407024616 | T14: =IFERROR(_xll.ECONOMATICA("IBOV","return","YTD",T$10,,,,"decimal"),"") -> 0.04686172159 | U14: =IFERROR(_xll.ECONOMATICA("IBOV","return","YTD",U$10,,,,"decimal"),"") -> 0.22281614 | V14: =IFERROR(_xll.ECONOMATICA("IBOV","return","YTD",V$10,,,,"decimal"),"") -> -0.01084232513 | W14: =IFERROR(_xll.ECONOMATICA("IBOV","return",W$10,$E$2,,,,"decimal"),"") -> 0.1609707414 | X14: =IFERROR(_xll.ECONOMATICA("IBOV","return",X$10,$E$2,,,,"decimal"),"") -> 0.2247170162 | Y14: =IFERROR(_xll.ECONOMATICA("IBOV","return",Y$10,$E$2,,,,"decimal"),"") -> 0.1685758284 | Z14: =IFERROR(_xll.ECONOMATICA("IBOV","return",'Base Gráfico Lâmina'!$C$4,$E$2,,,,"decimal"),"") -> 0.6715545831
B15: Volume Méd. (R$) | E15: =IFERROR(_xll.ECONOMATICA($B$7,"Hist Average","in the year",$E$10,,,,$I$9,,,,{"std.tec.cals=7"}),"") -> 3325.619425 | G15: =IFERROR(_xll.ECONOMATICA($B$7,"Hist Average","in the year",$G$10,,,,$I$9,,,,{"std.tec.cals=7"}),"") -> 4427.413755 | I15: =IFERROR(_xll.ECONOMATICA($B$7,"Hist Average","in the year",$I$10,,,,$I$9,,,,{"std.tec.cals=7"}),"") -> 3965.414491 | L15: CDI | M15: =IFERROR(_xll.ECONOMATICA("CDI Acumulado","return","MTD",M$10,,,,"decimal"),"") -> 0.008316767158 | N15: =IFERROR(_xll.ECONOMATICA("CDI Acumulado","return","MTD",N$10,,,,"decimal"),"") -> 0.008874228419 | O15: =IFERROR(_xll.ECONOMATICA("CDI Acumulado","return","MTD",O$10,,,,"decimal"),"") -> 0.008324331297 | P15: =IFERROR(_xll.ECONOMATICA("CDI Acumulado","return","MTD",P$10,,,,"decimal"),"") -> 0.007883288397 | Q15: =IFERROR(_xll.ECONOMATICA("CDI Acumulado","return","MTD",Q$10,,,,"decimal"),"") -> 0.009071127501 | R15: =IFERROR(_xll.ECONOMATICA("CDI Acumulado","return","MTD",R$10,,,,"decimal"),"") -> 0.008675025852 | S15: =IFERROR(_xll.ECONOMATICA("CDI Acumulado","return","MTD",S$10,,,,"decimal"),"") -> 0.007946616881 | T15: =IFERROR(_xll.ECONOMATICA("CDI Acumulado","return","YTD",T$10,,,,"decimal"),"") -> 0.1239101924 | U15: =IFERROR(_xll.ECONOMATICA("CDI Acumulado","return","YTD",U$10,,,,"decimal"),"") -> 0.1303947493 | V15: =IFERROR(_xll.ECONOMATICA("CDI Acumulado","return","YTD",V$10,,,,"decimal"),"") -> 0.07943043633 | W15: =IFERROR(_xll.ECONOMATICA("CDI Acumulado","return",W$10,$E$2,,,,"decimal"),"") -> 0.1110759952 | X15: =IFERROR(_xll.ECONOMATICA("CDI Acumulado","return",X$10,$E$2,,,,"decimal"),"") -> 0.2611251238 | Y15: =IFERROR(_xll.ECONOMATICA("CDI Acumulado","return",Y$10,$E$2,,,,"decimal"),"") -> 0.3977793105 | Z15: =IFERROR(_xll.ECONOMATICA("CDI Acumulado","return",'Base Gráfico Lâmina'!$C$4,$E$2,,,,"decimal"),"") -> 0.600824497
B16: Presença (%) | E16: =IFERROR(_xll.ECONOMATICA($B$7,"Presence","in the year",E$10),"") -> 100 | G16: =IFERROR(_xll.ECONOMATICA($B$7,"Presence","in the year",G$10),"") -> 100 | I16: =IFERROR(_xll.ECONOMATICA($B$7,"Presence","in the year",I$10),"") -> 100 | L16: Volatilidade | M16: =IFERROR(_xll.ECONOMATICA($B$7,"Volatility","MTD",M$10,,,,"decimal"),"") -> 0.08538140665 | N16: =IFERROR(_xll.ECONOMATICA($B$7,"Volatility","MTD",N$10,,,,"decimal"),"") -> 0.09169681373 | O16: =IFERROR(_xll.ECONOMATICA($B$7,"Volatility","MTD",O$10,,,,"decimal"),"") -> 0.08927283686 | P16: =IFERROR(_xll.ECONOMATICA($B$7,"Volatility","MTD",P$10,,,,"decimal"),"") -> 0.07091842561 | Q16: =IFERROR(_xll.ECONOMATICA($B$7,"Volatility","MTD",Q$10,,,,"decimal"),"") -> 0.08290151239 | R16: =IFERROR(_xll.ECONOMATICA($B$7,"Volatility","MTD",R$10,,,,"decimal"),"") -> 0.02910319591 | S16: =IFERROR(_xll.ECONOMATICA($B$7,"Volatility","MTD",S$10,,,,"decimal"),"") -> 0.07853345959 | T16: =IFERROR(_xll.ECONOMATICA($B$7,"Volatility","YTD",T$10,,,,"decimal"),"") -> 0.1209355627 | U16: =IFERROR(_xll.ECONOMATICA($B$7,"Volatility","YTD",U$10,,,,"decimal"),"") -> 0.1408001957 | V16: =IFERROR(_xll.ECONOMATICA($B$7,"Volatility","YTD",V$10,,,,"decimal"),"") -> 0.08411025515 | W16: =IFERROR(_xll.ECONOMATICA($B$7,"Volatility",W$10,$E$2,,,,"decimal"),"") -> 0.1154989777 | X16: =IFERROR(_xll.ECONOMATICA($B$7,"Volatility",X$10,$E$2,,,,"decimal"),"") -> 0.1242713472 | Y16: =IFERROR(_xll.ECONOMATICA($B$7,"Volatility",Y$10,$E$2,,,,"decimal"),"") -> 0.1215927199 | Z16: =IFERROR(_xll.ECONOMATICA($B$7,"Volatility","from start",$E$2,,,,"decimal"),"") -> 0.1778411338
B17: Market Cap (R$) | E17: =IFERROR(_xll.ECONOMATICA($B$7,"MarketCapitaliz","in the year",E$10,,,,$I$9),"") -> 2251109.813 | G17: =IFERROR(_xll.ECONOMATICA($B$7,"MarketCapitaliz","in the year",G$10,,,,$I$9),"") -> 2534569.267 | I17: =IFERROR(_xll.ECONOMATICA($B$7,"MarketCapitaliz","in the year",I$10,,,,$I$9),"") -> 2212272.187 | L17: Sharpe | M17: =IFERROR(_xll.ECONOMATICA($B$7,"Sharpe","MTD",M$10,,,,"decimal"),"") -> -0.006817224651 | N17: =IFERROR(_xll.ECONOMATICA($B$7,"Sharpe","MTD",N$10,,,,"decimal"),"") -> -0.01084330368 | O17: =IFERROR(_xll.ECONOMATICA($B$7,"Sharpe","MTD",O$10,,,,"decimal"),"") -> -0.04595691553 | P17: =IFERROR(_xll.ECONOMATICA($B$7,"Sharpe","MTD",P$10,,,,"decimal"),"") -> -0.004726945481 | Q17: =IFERROR(_xll.ECONOMATICA($B$7,"Sharpe","MTD",Q$10,,,,"decimal"),"") -> -0.008130283397 | R17: =IFERROR(_xll.ECONOMATICA($B$7,"Sharpe","MTD",R$10,,,,"decimal"),"") -> -0.006244222073 | S17: =IFERROR(_xll.ECONOMATICA($B$7,"Sharpe","MTD",S$10,,,,"decimal"),"") -> -0.05403025783 | T17: =IFERROR(_xll.ECONOMATICA($B$7,"Sharpe","YTD",T$10,,,,"decimal"),"") -> 0.0006850870527 | U17: =IFERROR(_xll.ECONOMATICA($B$7,"Sharpe","YTD",U$10,,,,"decimal"),"") -> 0.009086106281 | V17: =IFERROR(_xll.ECONOMATICA($B$7,"Sharpe","YTD",V$10,,,,"decimal"),"") -> -0.01882589229 | W17: =IFERROR(_xll.ECONOMATICA($B$7,"Sharpe",W$10,$E$2,,,,"decimal"),"") -> -0.008648809452 | X17: =IFERROR(_xll.ECONOMATICA($B$7,"Sharpe",X$10,$E$2,,,,"decimal"),"") -> -0.0026511475 | Y17: =IFERROR(_xll.ECONOMATICA($B$7,"Sharpe",Y$10,$E$2,,,,"decimal"),"") -> 0.001667223809 | Z17: =IFERROR(_xll.ECONOMATICA($B$7,"Sharpe","from start",$E$2,,,,"decimal"),"") -> 0.003905432566
B18: Patrimônio Líquido (Últ.) | E18: =IFERROR(_xll.ECONOMATICA($B$7,"Stock Eq Par",,EOMONTH(E10,-1),,,,$I$9),"") -> 2311202.538 | G18: =IFERROR(_xll.ECONOMATICA($B$7,"Stock Eq Par",,G$10,,,,$I$9),"") -> 2336914.152 | I18: =IFERROR(_xll.ECONOMATICA($B$7,"Stock Eq Par",,I$10,,,,$I$9),"") -> 2262020.101
B19: P/VPA | E19: =IFERROR(_xll.ECONOMATICA($B$7,"P/BV",,E$10),"") -> 0.973999369 | G19: =IFERROR(_xll.ECONOMATICA($B$7,"P/BV",,G$10),"") -> 1.084579536 | I19: =IFERROR(_xll.ECONOMATICA($B$7,"P/BV",,I$10),"") -> 0.978007307 | L19: GRÁFICO BASE 100 | W19: Selecione os Meses ou Digite uma Data → | X19: Anos: | Y19: 12M
B20: QT cotas | E20: =IFERROR(_xll.ECONOMATICA($B$7,"Num of Shares",,E$10),"") -> 18406458 | G20: =IFERROR(_xll.ECONOMATICA($B$7,"Num of Shares",,G$10),"") -> 18406458 | I20: =IFERROR(_xll.ECONOMATICA($B$7,"Num of Shares",,I$10),"") -> 18406458
B21: Valor Patrimônio Cota R$ | E21: =IFERROR(_xll.ECONOMATICA($B$7,"BVperShare",,EOMONTH(E10,-1)),"") -> 125.5647631 | G21: =IFERROR(_xll.ECONOMATICA($B$7,"BVperShare",,G$10),"") -> 126.9616432 | I21: =IFERROR(_xll.ECONOMATICA($B$7,"BVperShare",,I$10),"") -> 122.8927424
B22: Divi. pagos por Cota 12M | E22: =IFERROR(_xll.ECONOMATICA($B$7,"Divid per Share","12M",E$10),"") -> 12.05 | G22: =IFERROR(_xll.ECONOMATICA($B$7,"Divid per Share","12M",G$10),"") -> 11.87 | I22: =IFERROR(_xll.ECONOMATICA($B$7,"Divid per Share","12M",I$10),"") -> 10.04
B23: Div. Yield Realizado 12M | E23: =IFERROR(_xll.ECONOMATICA($B$7,"Div Yld (start)","12M",E$10,,,,"decimal"),"") -> 0.08867466333 | G23: =IFERROR(_xll.ECONOMATICA($B$7,"Div Yld (start)","12M",G$10,,,,"decimal"),"") -> 0.0987602962 | I23: =IFERROR(_xll.ECONOMATICA($B$7,"Div Yld (start)","12M",I$10,,,,"decimal"),"") -> 0.08546135512
B24: Div. Yield projetado 12M | E24: =IFERROR(_xll.ECONOMATICA($B$7,"Div Yld (end)","12M",E$10,,,,"decimal"),"") -> 0.09852820932 | G24: =IFERROR(_xll.ECONOMATICA($B$7,"Div Yld (end)","12M",G$10,,,,"decimal"),"") -> 0.08620188816 | I24: =IFERROR(_xll.ECONOMATICA($B$7,"Div Yld (end)","12M",I$10,,,,"decimal"),"") -> 0.08353440386
B26: Beta IFIX (diário) | E26: =IFERROR(_xll.ECONOMATICA($B$7,"Beta","YTD",E$10,,,,,,,,{"jtc.per=0";"std.tec.stt.bmk=0:58141,1:2284,2:3543,3:2552,4:8107,5:0,6:0,7:0,8:0,9:0,10:18238,11:8845,12:0,13:0,14:0,15:0,16:0,17:0,18:0,19:0,20:0,21:0,22:0,23:0,24:0,25:0,26:0,27:0,28:0,29:0,30:0,31:0,";"std.tec.stt.bmk=32:0,33:0,34:0,35:0,36:0,37:0,38:0,39:0,40:0,41:0,42:0,43:0,44:0,45:0,46:0,47:0,48:0,49:0,50:0,51:0,52:0,53:0,54:0,55:0,56:0,57:0,58:0,59:0,60:0,61:0,62:0,63:0,64:0,65:0,66:0,67:0,68:0,69:0,70:0,71:0,72:0,73:0,74:0,75:0,76:0,77:0,78:0,79:0"}),"") -> 0.8582254831 | G26: =IFERROR(_xll.ECONOMATICA($B$7,"Beta","YTD",G$10,,,,,,,,{"jtc.per=0";"std.tec.stt.bmk=0:58141,1:2284,2:3543,3:2552,4:8107,5:0,6:0,7:0,8:0,9:0,10:18238,11:8845,12:0,13:0,14:0,15:0,16:0,17:0,18:0,19:0,20:0,21:0,22:0,23:0,24:0,25:0,26:0,27:0,28:0,29:0,30:0,31:0,";"std.tec.stt.bmk=32:0,33:0,34:0,35:0,36:0,37:0,38:0,39:0,40:0,41:0,42:0,43:0,44:0,45:0,46:0,47:0,48:0,49:0,50:0,51:0,52:0,53:0,54:0,55:0,56:0,57:0,58:0,59:0,60:0,61:0,62:0,63:0,64:0,65:0,66:0,67:0,68:0,69:0,70:0,71:0,72:0,73:0,74:0,75:0,76:0,77:0,78:0,79:0"}),"") -> 0.9781894091 | I26: =IFERROR(_xll.ECONOMATICA($B$7,"Beta","YTD",I$10,,,,,,,,{"jtc.per=0";"std.tec.stt.bmk=0:58141,1:2284,2:3543,3:2552,4:8107,5:0,6:0,7:0,8:0,9:0,10:18238,11:8845,12:0,13:0,14:0,15:0,16:0,17:0,18:0,19:0,20:0,21:0,22:0,23:0,24:0,25:0,26:0,27:0,28:0,29:0,30:0,31:0,";"std.tec.stt.bmk=32:0,33:0,34:0,35:0,36:0,37:0,38:0,39:0,40:0,41:0,42:0,43:0,44:0,45:0,46:0,47:0,48:0,49:0,50:0,51:0,52:0,53:0,54:0,55:0,56:0,57:0,58:0,59:0,60:0,61:0,62:0,63:0,64:0,65:0,66:0,67:0,68:0,69:0,70:0,71:0,72:0,73:0,74:0,75:0,76:0,77:0,78:0,79:0"}),"") -> 1.193164205
B27: Correlaçao IFIX (diário) | E27: =IFERROR(_xll.ECONOMATICA($B$7,"Correlation","YTD",E$10,,,,,,,,{"jtc.per=0";"std.tec.stt.bmk=0:58141,1:2284,2:3543,3:2552,4:8107,5:0,6:0,7:0,8:0,9:0,10:18238,11:8845,12:0,13:0,14:0,15:0,16:0,17:0,18:0,19:0,20:0,21:0,22:0,23:0,24:0,25:0,26:0,27:0,28:0,29:0,30:0,31:0,";"std.tec.stt.bmk=32:0,33:0,34:0,35:0,36:0,37:0,38:0,39:0,40:0,41:0,42:0,43:0,44:0,45:0,46:0,47:0,48:0,49:0,50:0,51:0,52:0,53:0,54:0,55:0,56:0,57:0,58:0,59:0,60:0,61:0,62:0,63:0,64:0,65:0,66:0,67:0,68:0,69:0,70:0,71:0,72:0,73:0,74:0,75:0,76:0,77:0,78:0,79:0"}),"") -> 0.4021085176 | G27: =IFERROR(_xll.ECONOMATICA($B$7,"Correlation","YTD",G$10,,,,,,,,{"jtc.per=0";"std.tec.stt.bmk=0:58141,1:2284,2:3543,3:2552,4:8107,5:0,6:0,7:0,8:0,9:0,10:18238,11:8845,12:0,13:0,14:0,15:0,16:0,17:0,18:0,19:0,20:0,21:0,22:0,23:0,24:0,25:0,26:0,27:0,28:0,29:0,30:0,31:0,";"std.tec.stt.bmk=32:0,33:0,34:0,35:0,36:0,37:0,38:0,39:0,40:0,41:0,42:0,43:0,44:0,45:0,46:0,47:0,48:0,49:0,50:0,51:0,52:0,53:0,54:0,55:0,56:0,57:0,58:0,59:0,60:0,61:0,62:0,63:0,64:0,65:0,66:0,67:0,68:0,69:0,70:0,71:0,72:0,73:0,74:0,75:0,76:0,77:0,78:0,79:0"}),"") -> 0.3177169004 | I27: =IFERROR(_xll.ECONOMATICA($B$7,"Correlation","YTD",I$10,,,,,,,,{"jtc.per=0";"std.tec.stt.bmk=0:58141,1:2284,2:3543,3:2552,4:8107,5:0,6:0,7:0,8:0,9:0,10:18238,11:8845,12:0,13:0,14:0,15:0,16:0,17:0,18:0,19:0,20:0,21:0,22:0,23:0,24:0,25:0,26:0,27:0,28:0,29:0,30:0,31:0,";"std.tec.stt.bmk=32:0,33:0,34:0,35:0,36:0,37:0,38:0,39:0,40:0,41:0,42:0,43:0,44:0,45:0,46:0,47:0,48:0,49:0,50:0,51:0,52:0,53:0,54:0,55:0,56:0,57:0,58:0,59:0,60:0,61:0,62:0,63:0,64:0,65:0,66:0,67:0,68:0,69:0,70:0,71:0,72:0,73:0,74:0,75:0,76:0,77:0,78:0,79:0"}),"") -> 0.5114768324
B29: Drawdown | E29: =IFERROR(_xll.ECONOMATICA($B$7,"MaxDrawdown","in the year",E$10,,,,"decimal"),"") -> -0.01635581062 | G29: =IFERROR(_xll.ECONOMATICA($B$7,"MaxDrawdown","in the year",G$10,,,,"decimal"),"") -> -0.0867573551 | I29: =IFERROR(_xll.ECONOMATICA($B$7,"MaxDrawdown","in the year",I$10,,,,"decimal"),"") -> -0.05525100985
B30: Perda Máxima | E30: =IFERROR(_xll.ECONOMATICA($B$7,"MaxLoss","in the year",E$10,,,,"decimal"),"") -> -0.07248992131 | G30: =IFERROR(_xll.ECONOMATICA($B$7,"MaxLoss","in the year",G$10,,,,"decimal"),"") -> -0.0867573551 | I30: =IFERROR(_xll.ECONOMATICA($B$7,"MaxLoss","in the year",I$10,,,,"decimal"),"") -> -0.07658773507
B32: GRÁFICOS DE DIVIDENDOS | G32: Ano e Período: | H32: =X37 -> 12M | J32: =Z37 -> M
L37: COMPARATIVO | U37: Selecione os Meses ou Digite uma Data e Selecionar um Período (M = Mês; Q = Trimestre; Y = Anos) → | W37: Ano e Período: | X37: 12M | Z37: M

Sheet Lâmina Geral
F1: Lâmina Geral de FII`s
C2: Data Base: | D2: ='Lâmina Individual'!$E$2 -> 2024-09-27 | F2: ← Não Modificar
C4: Total Geral | K4: =IF(OR($P$20="Volume Médio",P20="Mkt Cap",P20="Volume"),"Milhares","") -> 
C5: *Dividend Yield Atual R$ | E5: =SUMPRODUCT('FII Guide'!$M$8:$M$99,'FII Guide'!$CQ$8:$CQ$99) -> 0.08150050303
C6: Volume | E6: =SUM('FII Guide'!$T:$T) -> 362794.7197
C7: Volume Médio | E7: =SUM('FII Guide'!$U:$U) -> 270571.6542
C8: Mkt Cap | E8: =SUM('FII Guide'!$N:$N) -> 136996461.8
C9: *P/VPA Atual | E9: =SUMPRODUCT('FII Guide'!$M$8:$M$99,'FII Guide'!BZ8:$BZ$99) -> 0.950723914
C10: * Ponderado pelo % IFIX
C12: Retorno IFIX
C13: =IFERROR('FII Guide'!$C$3,"") -> 2024-09-27 | D13: =IFERROR(_xll.ECONOMATICA("IFIX","return","in the month",C13,,,,"decimal","false","false"),"") -> -0.02487660415 | E13: =IF(D13>0,"p","q") -> q
C14: =IFERROR('FII Guide'!$C$3,"") -> 2024-09-27 | D14: =IFERROR(_xll.ECONOMATICA("IFIX","return","in the year",C14,,,,"decimal","false","false"),"") -> -0.0006945639798 | E14: =IF(D14>0,"p","q") -> q
C15: 12M | D15: =IFERROR(_xll.ECONOMATICA("IFIX","return",C15,'FII Guide'!C3,,,,"decimal","false","false"),"") -> 0.03632150071 | E15: =IF(D15>0,"p","q") -> p
B20: ="20 Mairores em "&P20 -> 20 Mairores em Negócios Médio | O20: Selecione o Atributo Para Ser o Rankig → | P20: Negócios Médio
B21: Nº | C21: Ticker | D21: Segmento | E21: Participação no IFIX | F21: Mkt Cap (R$-Milhares) | G21: Volume (R$-Milhares) | H21: Volume Médio (R$) | I21: Negócios | J21: Negócios Médio | K21: Dividend Yield Atual % | L21: Dividendo pago Ação (R$) | M21: P/VPA Atual | N21: Retorno % Mês | O21: Retorno % Ano | P21: Retorno % 12M
B22: 1 | C22: ='Rankings Lâmina Geral'!G5 -> MXRF11 | D22: =IFERROR(INDEX('FII Guide'!I:I,MATCH($C22&"<xbsp>",'FII Guide'!$B:$B,0)),"") -> TVM | E22: =IFERROR(INDEX('FII Guide'!M:M,MATCH($C22&"<xbsp>",'FII Guide'!$B:$B,0)),"") -> 0.03092 | F22: =IFERROR(INDEX('FII Guide'!N:N,MATCH($C22&"<xbsp>",'FII Guide'!$B:$B,0)),"") -> 4368879.717 | G22: =IFERROR(INDEX('FII Guide'!T:T,MATCH($C22&"<xbsp>",'FII Guide'!$B:$B,0)),"") -> 14815.40299 | H22: =IFERROR(INDEX('FII Guide'!U:U,MATCH($C22&"<xbsp>",'FII Guide'!$B:$B,0)),"") -> 11778.34346 | I22: =IFERROR(INDEX('FII Guide'!W:W,MATCH($C22&"<xbsp>",'FII Guide'!$B:$B,0)),"") -> 42904 | J22: =IFERROR(INDEX('FII Guide'!X:X,MATCH($C22&"<xbsp>",'FII Guide'!$B:$B,0)),"") -> 34848.251 | K22: =IFERROR(INDEX('FII Guide'!CQ:CQ,MATCH($C22&"<xbsp>",'FII Guide'!$B:$B,0)),"") -> 0.1125343092 | L22: =IFERROR(INDEX('FII Guide'!CR:CR,MATCH($C22&"<xbsp>",'FII Guide'!$B:$B,0)),"") -> 1.23 | M22: =IFERROR(INDEX('FII Guide'!BZ:BZ,MATCH($C22&"<xbsp>",'FII Guide'!$B:$B,0)),"") -> 1.026235478 | N22: =IFERROR(INDEX('FII Guide'!AC:AC,MATCH($C22&"<xbsp>",'FII Guide'!$B:$B,0)),"") -> -0.005970149254 | O22: =IFERROR(INDEX('FII Guide'!AE:AE,MATCH($C22&"<xbsp>",'FII Guide'!$B:$B,0)),"") -> 0.03269010131 | P22: =IFERROR(INDEX('FII Guide'!AM:AM,MATCH($C22&"<xbsp>",'FII Guide'!$B:$B,0)),"") -> 0.0374973048
B23: =B22+1 -> 2 | C23: ='Rankings Lâmina Geral'!G6 -> CPTS11 | D23: =IFERROR(INDEX('FII Guide'!I:I,MATCH($C23&"<xbsp>",'FII Guide'!$B:$B,0)),"") -> TVM | E23: =IFERROR(INDEX('FII Guide'!M:M,MATCH(C23&"<xbsp>",'FII Guide'!$B:B,0)),"") -> 0.01768 | F23: =IFERROR(INDEX('FII Guide'!N:N,MATCH($C23&"<xbsp>",'FII Guide'!$B:$B,0)),"") -> 2498129.18 | G23: =IFERROR(INDEX('FII Guide'!T:T,MATCH($C23&"<xbsp>",'FII Guide'!$B:$B,0)),"") -> 15128.32449 | H23: =IFERROR(INDEX('FII Guide'!U:U,MATCH($C23&"<xbsp>",'FII Guide'!$B:$B,0)),"") -> 7732.225914 | I23: =IFERROR(INDEX('FII Guide'!W:W,MATCH($C23&"<xbsp>",'FII Guide'!$B:$B,0)),"") -> 30957 | J23: =IFERROR(INDEX('FII Guide'!X:X,MATCH($C23&"<xbsp>",'FII Guide'!$B:$B,0)),"") -> 30824.41833 | K23: =IFERROR(INDEX('FII Guide'!CQ:CQ,MATCH($C23&"<xbsp>",'FII Guide'!$B:$B,0)),"") -> 0.09874141876 | L23: =IFERROR(INDEX('FII Guide'!CR:CR,MATCH($C23&"<xbsp>",'FII Guide'!$B:$B,0)),"") -> 0.863 | M23: =IFERROR(INDEX('FII Guide'!BZ:BZ,MATCH($C23&"<xbsp>",'FII Guide'!$B:$B,0)),"") -> 0.8835379191 | N23: =IFERROR(INDEX('FII Guide'!AC:AC,MATCH($C23&"<xbsp>",'FII Guide'!$B:$B,0)),"") -> -0.03309140116 | O23: =IFERROR(INDEX('FII Guide'!AE:AE,MATCH($C23&"<xbsp>",'FII Guide'!$B:$B,0)),"") -> 0.005060104577 | P23: =IFERROR(INDEX('FII Guide'!AM:AM,MATCH($C23&"<xbsp>",'FII Guide'!$B:$B,0)),"") -> -0.002305813619
B24: 3 | C24: ='Rankings Lâmina Geral'!G7 -> GARE11 | D24: =IFERROR(INDEX('FII Guide'!I:I,MATCH($C24&"<xbsp>",'FII Guide'!$B:$B,0)),"") -> Híbrido | E24: =IFERROR(INDEX('FII Guide'!M:M,MATCH(C24&"<xbsp>",'FII Guide'!$B:B,0)),"") -> 0.00805 | F24: =IFERROR(INDEX('FII Guide'!N:N,MATCH($C24&"<xbsp>",'FII Guide'!$B:$B,0)),"") -> 1136570.386 | G24: =IFERROR(INDEX('FII Guide'!T:T,MATCH($C24&"<xbsp>",'FII Guide'!$B:$B,0)),"") -> 7432.48125 | H24: =IFERROR(INDEX('FII Guide'!U:U,MATCH($C24&"<xbsp>",'FII Guide'!$B:$B,0)),"") -> 4172.451668 | I24: =IFERROR(INDEX('FII Guide'!W:W,MATCH($C24&"<xbsp>",'FII Guide'!$B:$B,0)),"") -> 31288 | J24: =IFERROR(INDEX('FII Guide'!X:X,MATCH($C24&"<xbsp>",'FII Guide'!$B:$B,0)),"") -> 20543.21116 | K24: =IFERROR(INDEX('FII Guide'!CQ:CQ,MATCH($C24&"<xbsp>",'FII Guide'!$B:$B,0)),"") -> 0.1118607182 | L24: =IFERROR(INDEX('FII Guide'!CR:CR,MATCH($C24&"<xbsp>",'FII Guide'!$B:$B,0)),"") -> 1.028 | M24: =IFERROR(INDEX('FII Guide'!BZ:BZ,MATCH($C24&"<xbsp>",'FII Guide'!$B:$B,0)),"") -> 0.9819183579 | N24: =IFERROR(INDEX('FII Guide'!AC:AC,MATCH($C24&"<xbsp>",'FII Guide'!$B:$B,0)),"") -> -0.004739336493 | O24: =IFERROR(INDEX('FII Guide'!AE:AE,MATCH($C24&"<xbsp>",'FII Guide'!$B:$B,0)),"") -> 0.0529372164 | P24: =IFERROR(INDEX('FII Guide'!AM:AM,MATCH($C24&"<xbsp>",'FII Guide'!$B:$B,0)),"") -> 0.1099863225
B25: 4 | C25: ='Rankings Lâmina Geral'!G8 -> VGIR11 | D25: =IFERROR(INDEX('FII Guide'!I:I,MATCH($C25&"<xbsp>",'FII Guide'!$B:$B,0)),"") -> Não se aplica | E25: =IFERROR(INDEX('FII Guide'!M:M,MATCH(C25&"<xbsp>",'FII Guide'!$B:B,0)),"") -> 0.01088 | F25: =IFERROR(INDEX('FII Guide'!N:N,MATCH($C25&"<xbsp>",'FII Guide'!$B:$B,0)),"") -> 1439097.677 | G25: =IFERROR(INDEX('FII Guide'!T:T,MATCH($C25&"<xbsp>",'FII Guide'!$B:$B,0)),"") -> 4585.72933 | H25: =IFERROR(INDEX('FII Guide'!U:U,MATCH($C25&"<xbsp>",'FII Guide'!$B:$B,0)),"") -> 4098.829569 | I25: =IFERROR(INDEX('FII Guide'!W:W,MATCH($C25&"<xbsp>",'FII Guide'!$B:$B,0)),"") -> 32056 | J25: =IFERROR(INDEX('FII Guide'!X:X,MATCH($C25&"<xbsp>",'FII Guide'!$B:$B,0)),"") -> 20213.23506 | K25: =IFERROR(INDEX('FII Guide'!CQ:CQ,MATCH($C25&"<xbsp>",'FII Guide'!$B:$B,0)),"") -> 0.1348547718 | L25: =IFERROR(INDEX('FII Guide'!CR:CR,MATCH($C25&"<xbsp>",'FII Guide'!$B:$B,0)),"") -> 1.3 | M25: =IFERROR(INDEX('FII Guide'!BZ:BZ,MATCH($C25&"<xbsp>",'FII Guide'!$B:$B,0)),"") -> 1.013875242 | N25: =IFERROR(INDEX('FII Guide'!AC:AC,MATCH($C25&"<xbsp>",'FII Guide'!$B:$B,0)),"") -> -0.01391520802 | O25: =IFERROR(INDEX('FII Guide'!AE:AE,MATCH($C25&"<xbsp>",'FII Guide'!$B:$B,0)),"") -> 0.1067659459 | P25: =IFERROR(INDEX('FII Guide'!AM:AM,MATCH($C25&"<xbsp>",'FII Guide'!$B:$B,0)),"") -> 0.1708070935
B26: 5 | C26: ='Rankings Lâmina Geral'!G9 -> VGHF11 | D26: =IFERROR(INDEX('FII Guide'!I:I,MATCH($C26&"<xbsp>",'FII Guide'!$B:$B,0)),"") -> TVM | E26: =IFERROR(INDEX('FII Guide'!M:M,MATCH(C26&"<xbsp>",'FII Guide'!$B:B,0)),"") -> 0.00992 | F26: =IFERROR(INDEX('FII Guide'!N:N,MATCH($C26&"<xbsp>",'FII Guide'!$B:$B,0)),"") -> 1401781.522 | G26: =IFERROR(INDEX('FII Guide'!T:T,MATCH($C26&"<xbsp>",'FII Guide'!$B:$B,0)),"") -> 4568.49937 | H26: =IFERROR(INDEX('FII Guide'!U:U,MATCH($C26&"<xbsp>",'FII Guide'!$B:$B,0)),"") -> 4148.692822 | I26: =IFERROR(INDEX('FII Guide'!W:W,MATCH($C26&"<xbsp>",'FII Guide'!$B:$B,0)),"") -> 19029 | J26: =IFERROR(INDEX('FII Guide'!X:X,MATCH($C26&"<xbsp>",'FII Guide'!$B:$B,0)),"") -> 18017.54582 | K26: =IFERROR(INDEX('FII Guide'!CQ:CQ,MATCH($C26&"<xbsp>",'FII Guide'!$B:$B,0)),"") -> 0.1178903826 | L26: =IFERROR(INDEX('FII Guide'!CR:CR,MATCH($C26&"<xbsp>",'FII Guide'!$B:$B,0)),"") -> 1.14 | M26: =IFERROR(INDEX('FII Guide'!BZ:BZ,MATCH($C26&"<xbsp>",'FII Guide'!$B:$B,0)),"") -> 0.9476082857 | N26: =IFERROR(INDEX('FII Guide'!AC:AC,MATCH($C26&"<xbsp>",'FII Guide'!$B:$B,0)),"") -> -0.04274465692 | O26: =IFERROR(INDEX('FII Guide'!AE:AE,MATCH($C26&"<xbsp>",'FII Guide'!$B:$B,0)),"") -> -0.02516343921 | P26: =IFERROR(INDEX('FII Guide'!AM:AM,MATCH($C26&"<xbsp>",'FII Guide'!$B:$B,0)),"") -> -0.004047080936
B27: 6 | C27: ='Rankings Lâmina Geral'!G10 -> XPML11 | E27: =IFERROR(INDEX('FII Guide'!M:M,MATCH(C27&"<xbsp>",'FII Guide'!$B:B,0)),"") -> 0.04221 | F27: =IFERROR(INDEX('FII Guide'!N:N,MATCH($C27&"<xbsp>",'FII Guide'!$B:$B,0)),"") -> 5965176.196 | G27: =IFERROR(INDEX('FII Guide'!T:T,MATCH($C27&"<xbsp>",'FII Guide'!$B:$B,0)),"") -> 59114.18758 | H27: =IFERROR(INDEX('FII Guide'!U:U,MATCH($C27&"<xbsp>",'FII Guide'!$B:$B,0)),"") -> 13870.82689 | I27: =IFERROR(INDEX('FII Guide'!W:W,MATCH($C27&"<xbsp>",'FII Guide'!$B:$B,0)),"") -> 29968 | J27: =IFERROR(INDEX('FII Guide'!X:X,MATCH($C27&"<xbsp>",'FII Guide'!$B:$B,0)),"") -> 17460.76096 | K27: =IFERROR(INDEX('FII Guide'!CQ:CQ,MATCH($C27&"<xbsp>",'FII Guide'!$B:$B,0)),"") -> 0.09816896302 | L27: =IFERROR(INDEX('FII Guide'!CR:CR,MATCH($C27&"<xbsp>",'FII Guide'!$B:$B,0)),"") -> 10.83 | M27: =IFERROR(INDEX('FII Guide'!BZ:BZ,MATCH($C27&"<xbsp>",'FII Guide'!$B:$B,0)),"") -> 0.9047024219 | N27: =IFERROR(INDEX('FII Guide'!AC:AC,MATCH($C27&"<xbsp>",'FII Guide'!$B:$B,0)),"") -> -0.02925460139 | O27: =IFERROR(INDEX('FII Guide'!AE:AE,MATCH($C27&"<xbsp>",'FII Guide'!$B:$B,0)),"") -> -0.007038466082 | P27: =IFERROR(INDEX('FII Guide'!AM:AM,MATCH($C27&"<xbsp>",'FII Guide'!$B:$B,0)),"") -> 0.07891049865
B28: 7 | C28: ='Rankings Lâmina Geral'!G11 -> KNCR11 | D28: =IFERROR(INDEX('FII Guide'!I:I,MATCH($C28&"<xbsp>",'FII Guide'!$B:$B,0)),"") -> TVM | E28: =IFERROR(INDEX('FII Guide'!M:M,MATCH(C28&"<xbsp>",'FII Guide'!$B:B,0)),"") -> 0.05237 | F28: =IFERROR(INDEX('FII Guide'!N:N,MATCH($C28&"<xbsp>",'FII Guide'!$B:$B,0)),"") -> 7401302.574 | G28: =IFERROR(INDEX('FII Guide'!T:T,MATCH($C28&"<xbsp>",'FII Guide'!$B:$B,0)),"") -> 12505.83523 | H28: =IFERROR(INDEX('FII Guide'!U:U,MATCH($C28&"<xbsp>",'FII Guide'!$B:$B,0)),"") -> 11612.43336 | I28: =IFERROR(INDEX('FII Guide'!W:W,MATCH($C28&"<xbsp>",'FII Guide'!$B:$B,0)),"") -> 18377 | J28: =IFERROR(INDEX('FII Guide'!X:X,MATCH($C28&"<xbsp>",'FII Guide'!$B:$B,0)),"") -> 14774.1753 | K28: =IFERROR(INDEX('FII Guide'!CQ:CQ,MATCH($C28&"<xbsp>",'FII Guide'!$B:$B,0)),"") -> 0.1203980099 | L28: =IFERROR(INDEX('FII Guide'!CR:CR,MATCH($C28&"<xbsp>",'FII Guide'!$B:$B,0)),"") -> 12.1 | M28: =IFERROR(INDEX('FII Guide'!BZ:BZ,MATCH($C28&"<xbsp>",'FII Guide'!$B:$B,0)),"") -> 1.050234382 | N28: =IFERROR(INDEX('FII Guide'!AC:AC,MATCH($C28&"<xbsp>",'FII Guide'!$B:$B,0)),"") -> 0.020113016 | O28: =IFERROR(INDEX('FII Guide'!AE:AE,MATCH($C28&"<xbsp>",'FII Guide'!$B:$B,0)),"") -> 0.1133424438 | P28: =IFERROR(INDEX('FII Guide'!AM:AM,MATCH($C28&"<xbsp>",'FII Guide'!$B:$B,0)),"") -> 0.1933833262
B29: 8 | C29: ='Rankings Lâmina Geral'!G12 -> KNSC11 | D29: =IFERROR(INDEX('FII Guide'!I:I,MATCH($C29&"<xbsp>",'FII Guide'!$B:$B,0)),"") -> Não se aplica | E29: =IFERROR(INDEX('FII Guide'!M:M,MATCH(C29&"<xbsp>",'FII Guide'!$B:B,0)),"") -> 0.01231 | F29: =IFERROR(INDEX('FII Guide'!N:N,MATCH($C29&"<xbsp>",'FII Guide'!$B:$B,0)),"") -> 1226683.366 | G29: =IFERROR(INDEX('FII Guide'!T:T,MATCH($C29&"<xbsp>",'FII Guide'!$B:$B,0)),"") -> 5110.28388 | H29: =IFERROR(INDEX('FII Guide'!U:U,MATCH($C29&"<xbsp>",'FII Guide'!$B:$B,0)),"") -> 3429.643034 | I29: =IFERROR(INDEX('FII Guide'!W:W,MATCH($C29&"<xbsp>",'FII Guide'!$B:$B,0)),"") -> 11734 | J29: =IFERROR(INDEX('FII Guide'!X:X,MATCH($C29&"<xbsp>",'FII Guide'!$B:$B,0)),"") -> 14116.37849 | K29: =IFERROR(INDEX('FII Guide'!CQ:CQ,MATCH($C29&"<xbsp>",'FII Guide'!$B:$B,0)),"") -> 0.1088277538 | L29: =IFERROR(INDEX('FII Guide'!CR:CR,MATCH($C29&"<xbsp>",'FII Guide'!$B:$B,0)),"") -> 0.985 | M29: =IFERROR(INDEX('FII Guide'!BZ:BZ,MATCH($C29&"<xbsp>",'FII Guide'!$B:$B,0)),"") -> 1.027226498 | N29: =IFERROR(INDEX('FII Guide'!AC:AC,MATCH($C29&"<xbsp>",'FII Guide'!$B:$B,0)),"") -> 0.007633587787 | O29: =IFERROR(INDEX('FII Guide'!AE:AE,MATCH($C29&"<xbsp>",'FII Guide'!$B:$B,0)),"") -> 0.1021197588 | P29: =IFERROR(INDEX('FII Guide'!AM:AM,MATCH($C29&"<xbsp>",'FII Guide'!$B:$B,0)),"") -> 0.1402265186
B30: 9 | C30: ='Rankings Lâmina Geral'!G13 -> BTLG11 | D30: =IFERROR(INDEX('FII Guide'!I:I,MATCH($C30&"<xbsp>",'FII Guide'!$B:$B,0)),"") -> Híbrido | E30: =IFERROR(INDEX('FII Guide'!M:M,MATCH(C30&"<xbsp>",'FII Guide'!$B:B,0)),"") -> 0.03035 | F30: =IFERROR(INDEX('FII Guide'!N:N,MATCH($C30&"<xbsp>",'FII Guide'!$B:$B,0)),"") -> 4288153.322 | G30: =IFERROR(INDEX('FII Guide'!T:T,MATCH($C30&"<xbsp>",'FII Guide'!$B:$B,0)),"") -> 7783.57333 | H30: =IFERROR(INDEX('FII Guide'!U:U,MATCH($C30&"<xbsp>",'FII Guide'!$B:$B,0)),"") -> 10192.34176 | I30: =IFERROR(INDEX('FII Guide'!W:W,MATCH($C30&"<xbsp>",'FII Guide'!$B:$B,0)),"") -> 18251 | J30: =IFERROR(INDEX('FII Guide'!X:X,MATCH($C30&"<xbsp>",'FII Guide'!$B:$B,0)),"") -> 13393.15139 | K30: =IFERROR(INDEX('FII Guide'!CQ:CQ,MATCH($C30&"<xbsp>",'FII Guide'!$B:$B,0)),"") -> 0.09176962934 | L30: =IFERROR(INDEX('FII Guide'!CR:CR,MATCH($C30&"<xbsp>",'FII Guide'!$B:$B,0)),"") -> 9.21 | M30: =IFERROR(INDEX('FII Guide'!BZ:BZ,MATCH($C30&"<xbsp>",'FII Guide'!$B:$B,0)),"") -> 0.9481287313 | N30: =IFERROR(INDEX('FII Guide'!AC:AC,MATCH($C30&"<xbsp>",'FII Guide'!$B:$B,0)),"") -> -0.02679173324 | O30: =IFERROR(INDEX('FII Guide'!AE:AE,MATCH($C30&"<xbsp>",'FII Guide'!$B:$B,0)),"") -> 0.02392455859 | P30: =IFERROR(INDEX('FII Guide'!AM:AM,MATCH($C30&"<xbsp>",'FII Guide'!$B:$B,0)),"") -> 0.08412220425
B31: 10 | C31: ='Rankings Lâmina Geral'!G14 -> RBRF11 | D31: =IFERROR(INDEX('FII Guide'!I:I,MATCH($C31&"<xbsp>",'FII Guide'!$B:$B,0)),"") -> TVM | E31: =IFERROR(INDEX('FII Guide'!M:M,MATCH(C31&"<xbsp>",'FII Guide'!$B:B,0)),"") -> 0.0068 | F31: =IFERROR(INDEX('FII Guide'!N:N,MATCH($C31&"<xbsp>",'FII Guide'!$B:$B,0)),"") -> 960390.054 | G31: =IFERROR(INDEX('FII Guide'!T:T,MATCH($C31&"<xbsp>",'FII Guide'!$B:$B,0)),"") -> 2667.55617 | H31: =IFERROR(INDEX('FII Guide'!U:U,MATCH($C31&"<xbsp>",'FII Guide'!$B:$B,0)),"") -> 2895.484076 | I31: =IFERROR(INDEX('FII Guide'!W:W,MATCH($C31&"<xbsp>",'FII Guide'!$B:$B,0)),"") -> 23579 | J31: =IFERROR(INDEX('FII Guide'!X:X,MATCH($C31&"<xbsp>",'FII Guide'!$B:$B,0)),"") -> 13015.00398 | K31: =IFERROR(INDEX('FII Guide'!CQ:CQ,MATCH($C31&"<xbsp>",'FII Guide'!$B:$B,0)),"") -> 0.08351321176 | L31: =IFERROR(INDEX('FII Guide'!CR:CR,MATCH($C31&"<xbsp>",'FII Guide'!$B:$B,0)),"") -> 0.6732 | M31: =IFERROR(INDEX('FII Guide'!BZ:BZ,MATCH($C31&"<xbsp>",'FII Guide'!$B:$B,0)),"") -> 0.8091276906 | N31: =IFERROR(INDEX('FII Guide'!AC:AC,MATCH($C31&"<xbsp>",'FII Guide'!$B:$B,0)),"") -> -0.0583593387 | O31: =IFERROR(INDEX('FII Guide'!AE:AE,MATCH($C31&"<xbsp>",'FII Guide'!$B:$B,0)),"") -> -0.0819450964 | P31: =IFERROR(INDEX('FII Guide'!AM:AM,MATCH($C31&"<xbsp>",'FII Guide'!$B:$B,0)),"") -> -0.05111938213
B32: 11 | C32: ='Rankings Lâmina Geral'!G15 -> BTCI11 | D32: =IFERROR(INDEX('FII Guide'!I:I,MATCH($C32&"<xbsp>",'FII Guide'!$B:$B,0)),"") -> TVM | E32: =IFERROR(INDEX('FII Guide'!M:M,MATCH(C32&"<xbsp>",'FII Guide'!$B:B,0)),"") -> 0.00704 | F32: =IFERROR(INDEX('FII Guide'!N:N,MATCH($C32&"<xbsp>",'FII Guide'!$B:$B,0)),"") -> 995211.72 | G32: =IFERROR(INDEX('FII Guide'!T:T,MATCH($C32&"<xbsp>",'FII Guide'!$B:$B,0)),"") -> 1564.16024 | H32: =IFERROR(INDEX('FII Guide'!U:U,MATCH($C32&"<xbsp>",'FII Guide'!$B:$B,0)),"") -> 2135.204627 | I32: =IFERROR(INDEX('FII Guide'!W:W,MATCH($C32&"<xbsp>",'FII Guide'!$B:$B,0)),"") -> 11252 | J32: =IFERROR(INDEX('FII Guide'!X:X,MATCH($C32&"<xbsp>",'FII Guide'!$B:$B,0)),"") -> 12519.17131 | K32: =IFERROR(INDEX('FII Guide'!CQ:CQ,MATCH($C32&"<xbsp>",'FII Guide'!$B:$B,0)),"") -> 0.1155419223 | L32: =IFERROR(INDEX('FII Guide'!CR:CR,MATCH($C32&"<xbsp>",'FII Guide'!$B:$B,0)),"") -> 1.13 | M32: =IFERROR(INDEX('FII Guide'!BZ:BZ,MATCH($C32&"<xbsp>",'FII Guide'!$B:$B,0)),"") -> 0.9962492285 | N32: =IFERROR(INDEX('FII Guide'!AC:AC,MATCH($C32&"<xbsp>",'FII Guide'!$B:$B,0)),"") -> 0.009266720386 | O32: =IFERROR(INDEX('FII Guide'!AE:AE,MATCH($C32&"<xbsp>",'FII Guide'!$B:$B,0)),"") -> 0.09398805086 | P32: =IFERROR(INDEX('FII Guide'!AM:AM,MATCH($C32&"<xbsp>",'FII Guide'!$B:$B,0)),"") -> 0.1448397788
B33: 12 | C33: ='Rankings Lâmina Geral'!G16 -> KNIP11 | D33: =IFERROR(INDEX('FII Guide'!I:I,MATCH($C33&"<xbsp>",'FII Guide'!$B:$B,0)),"") -> Não se aplica | E33: =IFERROR(INDEX('FII Guide'!M:M,MATCH(C33&"<xbsp>",'FII Guide'!$B:B,0)),"") -> 0.0531 | F33: =IFERROR(INDEX('FII Guide'!N:N,MATCH($C33&"<xbsp>",'FII Guide'!$B:$B,0)),"") -> 7503326.028 | G33: =IFERROR(INDEX('FII Guide'!T:T,MATCH($C33&"<xbsp>",'FII Guide'!$B:$B,0)),"") -> 8778.25343 | H33: =IFERROR(INDEX('FII Guide'!U:U,MATCH($C33&"<xbsp>",'FII Guide'!$B:$B,0)),"") -> 9528.630074 | I33: =IFERROR(INDEX('FII Guide'!W:W,MATCH($C33&"<xbsp>",'FII Guide'!$B:$B,0)),"") -> 9909 | J33: =IFERROR(INDEX('FII Guide'!X:X,MATCH($C33&"<xbsp>",'FII Guide'!$B:$B,0)),"") -> 11688.06773 | K33: =IFERROR(INDEX('FII Guide'!CQ:CQ,MATCH($C33&"<xbsp>",'FII Guide'!$B:$B,0)),"") -> 0.1063101604 | L33: =IFERROR(INDEX('FII Guide'!CR:CR,MATCH($C33&"<xbsp>",'FII Guide'!$B:$B,0)),"") -> 9.94 | M33: =IFERROR(INDEX('FII Guide'!BZ:BZ,MATCH($C33&"<xbsp>",'FII Guide'!$B:$B,0)),"") -> 0.9800437632 | N33: =IFERROR(INDEX('FII Guide'!AC:AC,MATCH($C33&"<xbsp>",'FII Guide'!$B:$B,0)),"") -> -0.02130770838 | O33: =IFERROR(INDEX('FII Guide'!AE:AE,MATCH($C33&"<xbsp>",'FII Guide'!$B:$B,0)),"") -> 0.06471101928 | P33: =IFERROR(INDEX('FII Guide'!AM:AM,MATCH($C33&"<xbsp>",'FII Guide'!$B:$B,0)),"") -> 0.1121435773
B34: 13 | C34: ='Rankings Lâmina Geral'!G17 -> VISC11 | D34: =IFERROR(INDEX('FII Guide'!I:I,MATCH($C34&"<xbsp>",'FII Guide'!$B:$B,0)),"") -> Híbrido | E34: =IFERROR(INDEX('FII Guide'!M:M,MATCH(C34&"<xbsp>",'FII Guide'!$B:B,0)),"") -> 0.02224 | F34: =IFERROR(INDEX('FII Guide'!N:N,MATCH($C34&"<xbsp>",'FII Guide'!$B:$B,0)),"") -> 3142321.76 | G34: =IFERROR(INDEX('FII Guide'!T:T,MATCH($C34&"<xbsp>",'FII Guide'!$B:$B,0)),"") -> 5385.44833 | H34: =IFERROR(INDEX('FII Guide'!U:U,MATCH($C34&"<xbsp>",'FII Guide'!$B:$B,0)),"") -> 7847.210134 | I34: =IFERROR(INDEX('FII Guide'!W:W,MATCH($C34&"<xbsp>",'FII Guide'!$B:$B,0)),"") -> 12034 | J34: =IFERROR(INDEX('FII Guide'!X:X,MATCH($C34&"<xbsp>",'FII Guide'!$B:$B,0)),"") -> 11682.40637 | K34: =IFERROR(INDEX('FII Guide'!CQ:CQ,MATCH($C34&"<xbsp>",'FII Guide'!$B:$B,0)),"") -> 0.09621848739 | L34: =IFERROR(INDEX('FII Guide'!CR:CR,MATCH($C34&"<xbsp>",'FII Guide'!$B:$B,0)),"") -> 11.45 | M34: =IFERROR(INDEX('FII Guide'!BZ:BZ,MATCH($C34&"<xbsp>",'FII Guide'!$B:$B,0)),"") -> 0.8601467978 | N34: =IFERROR(INDEX('FII Guide'!AC:AC,MATCH($C34&"<xbsp>",'FII Guide'!$B:$B,0)),"") -> -0.02609006433 | O34: =IFERROR(INDEX('FII Guide'!AE:AE,MATCH($C34&"<xbsp>",'FII Guide'!$B:$B,0)),"") -> -0.05428482613 | P34: =IFERROR(INDEX('FII Guide'!AM:AM,MATCH($C34&"<xbsp>",'FII Guide'!$B:$B,0)),"") -> 0.01122521441
B35: 14 | C35: ='Rankings Lâmina Geral'!G18 -> MCHY11 | D35: =IFERROR(INDEX('FII Guide'!I:I,MATCH($C35&"<xbsp>",'FII Guide'!$B:$B,0)),"") -> Não se aplica | E35: =IFERROR(INDEX('FII Guide'!M:M,MATCH(C35&"<xbsp>",'FII Guide'!$B:B,0)),"") -> 0.007 | F35: =IFERROR(INDEX('FII Guide'!N:N,MATCH($C35&"<xbsp>",'FII Guide'!$B:$B,0)),"") -> 989882.4293 | G35: =IFERROR(INDEX('FII Guide'!T:T,MATCH($C35&"<xbsp>",'FII Guide'!$B:$B,0)),"") -> 6752.68695 | H35: =IFERROR(INDEX('FII Guide'!U:U,MATCH($C35&"<xbsp>",'FII Guide'!$B:$B,0)),"") -> 2438.449436 | I35: =IFERROR(INDEX('FII Guide'!W:W,MATCH($C35&"<xbsp>",'FII Guide'!$B:$B,0)),"") -> 31791 | J35: =IFERROR(INDEX('FII Guide'!X:X,MATCH($C35&"<xbsp>",'FII Guide'!$B:$B,0)),"") -> 11559.9243 | K35: =IFERROR(INDEX('FII Guide'!CQ:CQ,MATCH($C35&"<xbsp>",'FII Guide'!$B:$B,0)),"") -> 0.1254773595 | L35: =IFERROR(INDEX('FII Guide'!CR:CR,MATCH($C35&"<xbsp>",'FII Guide'!$B:$B,0)),"") -> 1.38 | M35: =IFERROR(INDEX('FII Guide'!BZ:BZ,MATCH($C35&"<xbsp>",'FII Guide'!$B:$B,0)),"") -> 0.9145670431 | N35: =IFERROR(INDEX('FII Guide'!AC:AC,MATCH($C35&"<xbsp>",'FII Guide'!$B:$B,0)),"") -> -0.04513270452 | O35: =IFERROR(INDEX('FII Guide'!AE:AE,MATCH($C35&"<xbsp>",'FII Guide'!$B:$B,0)),"") -> -0.126211595 | P35: =IFERROR(INDEX('FII Guide'!AM:AM,MATCH($C35&"<xbsp>",'FII Guide'!$B:$B,0)),"") -> -0.07998183424
B36: 15 | C36: ='Rankings Lâmina Geral'!G19 -> PVBI11 | D36: =IFERROR(INDEX('FII Guide'!I:I,MATCH($C36&"<xbsp>",'FII Guide'!$B:$B,0)),"") -> Lajes Corporativas | E36: =IFERROR(INDEX('FII Guide'!M:M,MATCH(C36&"<xbsp>",'FII Guide'!$B:B,0)),"") -> 0.01641 | F36: =IFERROR(INDEX('FII Guide'!N:N,MATCH($C36&"<xbsp>",'FII Guide'!$B:$B,0)),"") -> 2319620.729 | G36: =IFERROR(INDEX('FII Guide'!T:T,MATCH($C36&"<xbsp>",'FII Guide'!$B:$B,0)),"") -> 6129.33419 | H36: =IFERROR(INDEX('FII Guide'!U:U,MATCH($C36&"<xbsp>",'FII Guide'!$B:$B,0)),"") -> 5752.587264 | I36: =IFERROR(INDEX('FII Guide'!W:W,MATCH($C36&"<xbsp>",'FII Guide'!$B:$B,0)),"") -> 18994 | J36: =IFERROR(INDEX('FII Guide'!X:X,MATCH($C36&"<xbsp>",'FII Guide'!$B:$B,0)),"") -> 11281.76892 | K36: =IFERROR(INDEX('FII Guide'!CQ:CQ,MATCH($C36&"<xbsp>",'FII Guide'!$B:$B,0)),"") -> 0.07633949739 | L36: =IFERROR(INDEX('FII Guide'!CR:CR,MATCH($C36&"<xbsp>",'FII Guide'!$B:$B,0)),"") -> 8.05 | M36: =IFERROR(INDEX('FII Guide'!BZ:BZ,MATCH($C36&"<xbsp>",'FII Guide'!$B:$B,0)),"") -> 0.8134117383 | N36: =IFERROR(INDEX('FII Guide'!AC:AC,MATCH($C36&"<xbsp>",'FII Guide'!$B:$B,0)),"") -> -0.08104041272 | O36: =IFERROR(INDEX('FII Guide'!AE:AE,MATCH($C36&"<xbsp>",'FII Guide'!$B:$B,0)),"") -> -0.1198025292 | P36: =IFERROR(INDEX('FII Guide'!AM:AM,MATCH($C36&"<xbsp>",'FII Guide'!$B:$B,0)),"") -> -0.1180311313
B37: 16 | C37: ='Rankings Lâmina Geral'!G20 -> TGAR11 | D37: =IFERROR(INDEX('FII Guide'!I:I,MATCH($C37&"<xbsp>",'FII Guide'!$B:$B,0)),"") -> Híbrido | E37: =IFERROR(INDEX('FII Guide'!M:M,MATCH(C37&"<xbsp>",'FII Guide'!$B:B,0)),"") -> 0.01884 | F37: =IFERROR(INDEX('FII Guide'!N:N,MATCH($C37&"<xbsp>",'FII Guide'!$B:$B,0)),"") -> 2661766.347 | G37: =IFERROR(INDEX('FII Guide'!T:T,MATCH($C37&"<xbsp>",'FII Guide'!$B:$B,0)),"") -> 11575.06318 | H37: =IFERROR(INDEX('FII Guide'!U:U,MATCH($C37&"<xbsp>",'FII Guide'!$B:$B,0)),"") -> 7572.445695 | I37: =IFERROR(INDEX('FII Guide'!W:W,MATCH($C37&"<xbsp>",'FII Guide'!$B:$B,0)),"") -> 21024 | J37: =IFERROR(INDEX('FII Guide'!X:X,MATCH($C37&"<xbsp>",'FII Guide'!$B:$B,0)),"") -> 11136.76892 | K37: =IFERROR(INDEX('FII Guide'!CQ:CQ,MATCH($C37&"<xbsp>",'FII Guide'!$B:$B,0)),"") -> 0.1269980119 | L37: =IFERROR(INDEX('FII Guide'!CR:CR,MATCH($C37&"<xbsp>",'FII Guide'!$B:$B,0)),"") -> 15.97 | M37: =IFERROR(INDEX('FII Guide'!BZ:BZ,MATCH($C37&"<xbsp>",'FII Guide'!$B:$B,0)),"") -> 0.9937835815 | N37: =IFERROR(INDEX('FII Guide'!AC:AC,MATCH($C37&"<xbsp>",'FII Guide'!$B:$B,0)),"") -> -0.05116357221 | O37: =IFERROR(INDEX('FII Guide'!AE:AE,MATCH($C37&"<xbsp>",'FII Guide'!$B:$B,0)),"") -> 0.02041612544 | P37: =IFERROR(INDEX('FII Guide'!AM:AM,MATCH($C37&"<xbsp>",'FII Guide'!$B:$B,0)),"") -> 0.03218913811
B38: 17 | C38: ='Rankings Lâmina Geral'!G21 -> HGLG11 | D38: =IFERROR(INDEX('FII Guide'!I:I,MATCH($C38&"<xbsp>",'FII Guide'!$B:$B,0)),"") -> Logistica | E38: =IFERROR(INDEX('FII Guide'!M:M,MATCH(C38&"<xbsp>",'FII Guide'!$B:B,0)),"") -> 0.03791 | F38: =IFERROR(INDEX('FII Guide'!N:N,MATCH($C38&"<xbsp>",'FII Guide'!$B:$B,0)),"") -> 5357020.016 | G38: =IFERROR(INDEX('FII Guide'!T:T,MATCH($C38&"<xbsp>",'FII Guide'!$B:$B,0)),"") -> 8831.15261 | H38: =IFERROR(INDEX('FII Guide'!U:U,MATCH($C38&"<xbsp>",'FII Guide'!$B:$B,0)),"") -> 8585.43775 | I38: =IFERROR(INDEX('FII Guide'!W:W,MATCH($C38&"<xbsp>",'FII Guide'!$B:$B,0)),"") -> 15066 | J38: =IFERROR(INDEX('FII Guide'!X:X,MATCH($C38&"<xbsp>",'FII Guide'!$B:$B,0)),"") -> 9950.418327 | K38: =IFERROR(INDEX('FII Guide'!CQ:CQ,MATCH($C38&"<xbsp>",'FII Guide'!$B:$B,0)),"") -> 0.08224299065 | L38: =IFERROR(INDEX('FII Guide'!CR:CR,MATCH($C38&"<xbsp>",'FII Guide'!$B:$B,0)),"") -> 13.2 | M38: =IFERROR(INDEX('FII Guide'!BZ:BZ,MATCH($C38&"<xbsp>",'FII Guide'!$B:$B,0)),"") -> 1.004113641 | N38: =IFERROR(INDEX('FII Guide'!AC:AC,MATCH($C38&"<xbsp>",'FII Guide'!$B:$B,0)),"") -> -0.009681449093 | O38: =IFERROR(INDEX('FII Guide'!AE:AE,MATCH($C38&"<xbsp>",'FII Guide'!$B:$B,0)),"") -> 0.03973239502 | P38: =IFERROR(INDEX('FII Guide'!AM:AM,MATCH($C38&"<xbsp>",'FII Guide'!$B:$B,0)),"") -> 0.071290928
B39: 18 | C39: ='Rankings Lâmina Geral'!G22 -> BCFF11 | D39: =IFERROR(INDEX('FII Guide'!I:I,MATCH($C39&"<xbsp>",'FII Guide'!$B:$B,0)),"") -> TVM | E39: =IFERROR(INDEX('FII Guide'!M:M,MATCH(C39&"<xbsp>",'FII Guide'!$B:B,0)),"") -> 0.01144 | F39: =IFERROR(INDEX('FII Guide'!N:N,MATCH($C39&"<xbsp>",'FII Guide'!$B:$B,0)),"") -> 1615958.012 | G39: =IFERROR(INDEX('FII Guide'!T:T,MATCH($C39&"<xbsp>",'FII Guide'!$B:$B,0)),"") -> 4098.17623 | H39: =IFERROR(INDEX('FII Guide'!U:U,MATCH($C39&"<xbsp>",'FII Guide'!$B:$B,0)),"") -> 2863.858961 | I39: =IFERROR(INDEX('FII Guide'!W:W,MATCH($C39&"<xbsp>",'FII Guide'!$B:$B,0)),"") -> 8081 | J39: =IFERROR(INDEX('FII Guide'!X:X,MATCH($C39&"<xbsp>",'FII Guide'!$B:$B,0)),"") -> 9588.593625 | K39: =IFERROR(INDEX('FII Guide'!CQ:CQ,MATCH($C39&"<xbsp>",'FII Guide'!$B:$B,0)),"") -> 0.09445448228 | L39: =IFERROR(INDEX('FII Guide'!CR:CR,MATCH($C39&"<xbsp>",'FII Guide'!$B:$B,0)),"") -> 0.8495 | M39: =IFERROR(INDEX('FII Guide'!BZ:BZ,MATCH($C39&"<xbsp>",'FII Guide'!$B:$B,0)),"") -> 0.8592887354 | N39: =IFERROR(INDEX('FII Guide'!AC:AC,MATCH($C39&"<xbsp>",'FII Guide'!$B:$B,0)),"") -> -0.04525683774 | O39: =IFERROR(INDEX('FII Guide'!AE:AE,MATCH($C39&"<xbsp>",'FII Guide'!$B:$B,0)),"") -> -0.0796689277 | P39: =IFERROR(INDEX('FII Guide'!AM:AM,MATCH($C39&"<xbsp>",'FII Guide'!$B:$B,0)),"") -> -0.01842958565
B40: 19 | C40: ='Rankings Lâmina Geral'!G23 -> RZTR11 | D40: =IFERROR(INDEX('FII Guide'!I:I,MATCH($C40&"<xbsp>",'FII Guide'!$B:$B,0)),"") -> Híbrido | E40: =IFERROR(INDEX('FII Guide'!M:M,MATCH(C40&"<xbsp>",'FII Guide'!$B:B,0)),"") -> 0.01202 | F40: =IFERROR(INDEX('FII Guide'!N:N,MATCH($C40&"<xbsp>",'FII Guide'!$B:$B,0)),"") -> 1698728.489 | G40: =IFERROR(INDEX('FII Guide'!T:T,MATCH($C40&"<xbsp>",'FII Guide'!$B:$B,0)),"") -> 5156.26896 | H40: =IFERROR(INDEX('FII Guide'!U:U,MATCH($C40&"<xbsp>",'FII Guide'!$B:$B,0)),"") -> 4093.436819 | I40: =IFERROR(INDEX('FII Guide'!W:W,MATCH($C40&"<xbsp>",'FII Guide'!$B:$B,0)),"") -> 8668 | J40: =IFERROR(INDEX('FII Guide'!X:X,MATCH($C40&"<xbsp>",'FII Guide'!$B:$B,0)),"") -> 8075.302789 | K40: =IFERROR(INDEX('FII Guide'!CQ:CQ,MATCH($C40&"<xbsp>",'FII Guide'!$B:$B,0)),"") -> 0.1246394726 | L40: =IFERROR(INDEX('FII Guide'!CR:CR,MATCH($C40&"<xbsp>",'FII Guide'!$B:$B,0)),"") -> 12.1 | M40: =IFERROR(INDEX('FII Guide'!BZ:BZ,MATCH($C40&"<xbsp>",'FII Guide'!$B:$B,0)),"") -> 0.9075448047 | N40: =IFERROR(INDEX('FII Guide'!AC:AC,MATCH($C40&"<xbsp>",'FII Guide'!$B:$B,0)),"") -> -0.0397485081 | O40: =IFERROR(INDEX('FII Guide'!AE:AE,MATCH($C40&"<xbsp>",'FII Guide'!$B:$B,0)),"") -> -0.09442966896 | P40: =IFERROR(INDEX('FII Guide'!AM:AM,MATCH($C40&"<xbsp>",'FII Guide'!$B:$B,0)),"") -> 0.05090526987
B41: =B40+1 -> 20 | C41: ='Rankings Lâmina Geral'!G24 -> RBRR11 | D41: =IFERROR(INDEX('FII Guide'!I:I,MATCH($C41&"<xbsp>",'FII Guide'!$B:$B,0)),"") -> TVM | E41: =IFERROR(INDEX('FII Guide'!M:M,MATCH(C41&"<xbsp>",'FII Guide'!$B:B,0)),"") -> 0.00958 | F41: =IFERROR(INDEX('FII Guide'!N:N,MATCH($C41&"<xbsp>",'FII Guide'!$B:$B,0)),"") -> 1353190.654 | G41: =IFERROR(INDEX('FII Guide'!T:T,MATCH($C41&"<xbsp>",'FII Guide'!$B:$B,0)),"") -> 4172.15377 | H41: =IFERROR(INDEX('FII Guide'!U:U,MATCH($C41&"<xbsp>",'FII Guide'!$B:$B,0)),"") -> 3214.677866 | I41: =IFERROR(INDEX('FII Guide'!W:W,MATCH($C41&"<xbsp>",'FII Guide'!$B:$B,0)),"") -> 16268 | J41: =IFERROR(INDEX('FII Guide'!X:X,MATCH($C41&"<xbsp>",'FII Guide'!$B:$B,0)),"") -> 7884.856574 | K41: =IFERROR(INDEX('FII Guide'!CQ:CQ,MATCH($C41&"<xbsp>",'FII Guide'!$B:$B,0)),"") -> 0.1084782609 | L41: =IFERROR(INDEX('FII Guide'!CR:CR,MATCH($C41&"<xbsp>",'FII Guide'!$B:$B,0)),"") -> 9.481 | M41: =IFERROR(INDEX('FII Guide'!BZ:BZ,MATCH($C41&"<xbsp>",'FII Guide'!$B:$B,0)),"") -> 0.9538804355 | N41: =IFERROR(INDEX('FII Guide'!AC:AC,MATCH($C41&"<xbsp>",'FII Guide'!$B:$B,0)),"") -> -0.00568874072 | O41: =IFERROR(INDEX('FII Guide'!AE:AE,MATCH($C41&"<xbsp>",'FII Guide'!$B:$B,0)),"") -> 0.09510806204 | P41: =IFERROR(INDEX('FII Guide'!AM:AM,MATCH($C41&"<xbsp>",'FII Guide'!$B:$B,0)),"") -> 0.1418301855

Sheet FII Guide
B3: Data Base: | C3: ='Lâmina Individual'!$E$2 -> 2024-09-27 | E3: ← Não Modificar
B4: Benchmark: | C4: IBXX - Índice Brasil 100 | E4: ← Selecionável Um Benchmark | N4: COTAÇÕES | AA4: RETORNOS | AY4: ESTATÍSTICAS | BO4: PREÇO / VALOR PATRIMONIAL | CE4: DIVIDENDOS PAGOS e DIVIDEND YIELD [destaque para o primeiro quartil (25%)]
N5: ↓ Escolha a Janela de Período (Ex.: 1D = 1Dia, 1W = 1Semana, 1M = 1Mês, 1Q = 1Trimestre, 1Y = 1Ano) | AA5: =_xll.ECONOMATICA($AB$5,"RETURN","1D",$C$3,,,,"DECIMAL") -> -0.001734266052 | AB5: =LEFT(C4,4)&"<XBSP>" -> IBXX<XBSP> | AC5: =_xll.ECONOMATICA($AB$5,"RETURN","IN THE MONTH",$C$3,,,,"DECIMAL") -> -0.02310966195 | AD5: =$AB$5 -> IBXX<XBSP> | AE5: =_xll.ECONOMATICA($AB$5,"RETURN","IN THE YEAR",$C$3,,,,"DECIMAL") -> -0.00559543182 | AF5: =$AB$5 -> IBXX<XBSP> | AG5: =_xll.ECONOMATICA($AB$5,"RETURN",AG6,$C$3,,,,"DECIMAL") -> -0.02795704734 | AH5: =$AB$5 -> IBXX<XBSP> | AI5: =_xll.ECONOMATICA($AB$5,"RETURN",AI6,$C$3,,,,"DECIMAL") -> 0.06827297161 | AJ5: =$AB$5 -> IBXX<XBSP> | AK5: =_xll.ECONOMATICA($AB$5,"RETURN",AK6,$C$3,,,,"DECIMAL") -> 0.04259726588 | AL5: =$AB$5 -> IBXX<XBSP> | AM5: =_xll.ECONOMATICA($AB$5,"RETURN",AM6,$C$3,,,,"DECIMAL") -> 0.1653116216 | AN5: =$AB$5 -> IBXX<XBSP> | AO5: =_xll.ECONOMATICA($AB$5,"RETURN",AO6,$C$3,,,,"DECIMAL") -> 0.2188666971 | AP5: =$AB$5 -> IBXX<XBSP> | AQ5: =_xll.ECONOMATICA($AB$5,"RETURN",AQ6,$C$3,,,,"DECIMAL") -> 0.1578261059 | AR5: =$AB$5 -> IBXX<XBSP> | AS5: =_xll.ECONOMATICA($AB$5,"RETURN",AS6,$C$3,,,,"DECIMAL") -> 0.3619271155 | AT5: =$AB$5 -> IBXX<XBSP> | AU5: =_xll.ECONOMATICA($AB$5,"RETURN",AU6,$C$3,,,,"DECIMAL") -> 0.2735345351 | AV5: =$AB$5 -> IBXX<XBSP> | AW5: =_xll.ECONOMATICA($AB$5,"VOLATILITY",AW6,$C$3,,,,"DECIMAL") -> 0.1266554499 | AY5: ↓ Escolha a Janela de Período (Ex.: 1D = 1Dia, 1W = 1Semana, 1M = 1Mês, 1Q = 1Trimestre, 1Y = 1Ano)
N6: 12M | AA6: NO DIA | AC6: NO MÊS | AE6: NO ANO | AG6: 1M | AI6: 3M | AK6: 6M | AM6: 12M | AO6: 24M | AQ6: 36M | AS6: 48M | AU6: 60M | AW6: 12M | AY6: 12M | BO6: =EOMONTH(BP6,-6) -> 2018-12-31 | BP6: 2019-06-30 | BQ6: 2019-12-31 | BR6: 2020-06-30 | BS6: 2020-12-31 | BT6: 2021-06-30 | BU6: 2021-12-31 | BV6: 2022-06-30 | BW6: 2022-12-31 | BX6: 2023-06-30 | BY6: =DATE(YEAR($C$3)-1,12,31) -> 2023-12-31 | BZ6: Atual | CA6: Máximo | CB6: % Máx | CE6: =EOMONTH(CG6,-12) -> 2018-12-31 | CG6: =EOMONTH(CI6,-12) -> 2019-12-31 | CI6: =EOMONTH(CK6,-12) -> 2020-12-31 | CK6: =EOMONTH(CM6,-12) -> 2021-12-31 | CM6: =EOMONTH(CO6,-12) -> 2022-12-31 | CO6: =DATE(YEAR($C$3)-1,12,31) -> 2023-12-31 | CQ6: Atual | CS6: Média | CT6: Máximo | CU6: Mínimo
B7: =_xll.ECOSECURITIES(,"active",,"BRA","XBSP",,"Código B3",'Base Gráfico Lâmina'!H3:H4) -> Código B3 | C7: =_xll.ECONOMATICA($B$8:$B$200,"ticker") -> Código | D7: =_xll.ECONOMATICA($B$8:$B$200,"Name (according to B3)") -> Nome (conforme B3) | E7: Código Anbima | F7: =_xll.ECONOMATICA($E$8:$E$200,"ticker") -> Código | G7: =_xll.ECONOMATICA($B$8:$B$200,"Complete name",,,,,,,,,"Nome (Conforme Anbima)") -> Nome (Conforme Anbima) | H7: =_xll.ECONOMATICA($B$8:$B$200,"Employer ID Number",,,,,,,,,"CNPJ") -> CNPJ | I7: =_xll.ECONOMATICA($B$8:$B$200,"Fund focus",,,,,,,,,"Segmento") -> Segmento | J7: =_xll.ECONOMATICA($B$8:$B$200,"Fund manager") -> Empresa gestora | K7: =_xll.ECONOMATICA($B$8:$B$200,"Administrator") -> Administradora | L7: =_xll.ECONOMATICA($E$8:$E$200,"Tot Invest",,"LATEST",,,,,,,"Qtd. Cotistas") -> Qtd. Cotistas | M7: =_xll.ECONOMATICA($B$8:$B$200,"Partic in IFIX",,,,,,"decimal",,,"Participação IFIX %") -> Participação IFIX % | N7: =_xll.ECONOMATICA($B$8:$B$200,"MarketCapitaliz",,$C$3,,,,"thousands",,,"Mkt Cap (R$ Milhares)") -> Mkt Cap (R$ Milhares) | O7: =_xll.ECONOMATICA($B$8:$B$200,"date of last quote",,,,,,,,,"Última Cotação") -> Última Cotação | P7: =_xll.ECONOMATICA($B$8:$B$200,"Close",,$C$3,,,,,,,"Fechamento (R$)") -> Fechamento (R$) | Q7: =_xll.ECONOMATICA($B$8:$B$200,"Max of the Serie",$N$6,$C$3,,,,,,,"Máximo (R$)",) -> Máximo (R$) | R7: % do Máximo | S7: =_xll.ECONOMATICA($B$8:$B$200,"Max of the Serie",$N$6,$C$3,,,,,,,"Data do Máximo",{"std.tec.cals=0";"std.tec.dtovlr=true"}) -> Data do Máximo | T7: =_xll.ECONOMATICA($B$8:$B$200,"Volume$","1d",$C$3,,,,"thousands",,,"Volume (R$-Milhares)") -> Volume (R$-Milhares) | U7: =_xll.ECONOMATICA($B$8:$B$200,"Hist Average",$N$6,$C$3,,,,"thousands",,,"Volume Médio (R$-Milhares)",{"std.tec.cals=7"}) -> Volume Médio (R$-Milhares) | V7: % da Média | W7: =_xll.ECONOMATICA($B$8:$B$200,"#Trades","1d",$C$3,,,,,,,"Negócios") -> Negócios | X7: =_xll.ECONOMATICA($B$8:$B$200,"Hist Average",$N$6,$C$3,,,,,,,"Negócios Médio",{"std.tec.cals=5"}) -> Negócios Médio | Y7: % da Média | AA7: =_xll.ECONOMATICA($B$8:$B$200,"RETURN","1D",$C$3,,,,"DECIMAL",,,"% dia") -> % dia | AB7: Δ BMK | AC7: =_xll.ECONOMATICA($B$8:$B$200,"RETURN","in the month",$C$3,,,,"DECIMAL",,,"% Mês") -> % Mês | AD7: Δ BMK | AE7: =_xll.ECONOMATICA($B$8:$B$200,"RETURN","in the year",$C$3,,,,"DECIMAL",,,"% Ano") -> % Ano | AF7: Δ BMK | AG7: =_xll.ECONOMATICA($B$8:$B$200,"RETURN",AG6,$C$3,,,,"DECIMAL",,,"% 1M") -> % 1M | AH7: Δ BMK | AI7: =_xll.ECONOMATICA($B$8:$B$200,"RETURN",AI6,$C$3,,,,"DECIMAL",,,"% 3M") -> % 3M | AJ7: Δ BMK | AK7: =_xll.ECONOMATICA($B$8:$B$200,"RETURN",AK6,$C$3,,,,"DECIMAL",,,"% 6M") -> % 6M | AL7: Δ BMK | AM7: =_xll.ECONOMATICA($B$8:$B$200,"RETURN",AM6,$C$3,,,,"DECIMAL",,,"% 12M") -> % 12M | AN7: Δ BMK | AO7: =_xll.ECONOMATICA($B$8:$B$200,"RETURN",AO6,$C$3,,,,"DECIMAL",,,"% 24M") -> % 24M | AP7: Δ BMK | AQ7: =_xll.ECONOMATICA($B$8:$B$200,"RETURN",AQ6,$C$3,,,,"DECIMAL",,,"% 36M") -> % 36M | AR7: Δ BMK | AS7: =_xll.ECONOMATICA($B$8:$B$200,"RETURN",AS6,$C$3,,,,"DECIMAL",,,"% 48M") -> % 48M | AT7: Δ BMK | AU7: =_xll.ECONOMATICA($B$8:$B$200,"RETURN",AU6,$C$3,,,,"DECIMAL",,,"% 60M") -> % 60M | AV7: Δ BMK | AW7: =_xll.ECONOMATICA($B$8:$B$200,"volatility",$AW$6,$C$3,,,,"decimal",,,"Volatilidade") -> Volatilidade | AY7: =_xll.ECONOMATICA($B$8:$B$200,"Return M",$AY$6,$C$3,,,,"decimal",,,"Maior Retorno Diário",{"jtc.per=0";"std.tec.dret.per=0"}) -> Maior Retorno Diário | AZ7: =_xll.ECONOMATICA($B$8:$B$200,"Return M",$AY$6,$C$3,,,,"decimal",,,"Menor Retorno Diário",{"jtc.per=0";"std.tec.dret.per=0";"std.tec.dret.mom=true"}) -> Menor Retorno Diário | BA7: =_xll.ECONOMATICA($B$8:$B$200,"Return M",$AY$6,$C$3,,,,"decimal",,,"Maior Retorno Mensal",) -> Maior Retorno Mensal | BB7: =_xll.ECONOMATICA($B$8:$B$200,"Return M",$AY$6,$C$3,,,,"decimal",,,"Menor Retorno Mensal",{"std.tec.dret.mom=true"}) -> Menor Retorno Mensal | BC7: =_xll.ECONOMATICA($B$8:$B$200,"Number Return",$AY$6,$C$3,,,,,,,"Meses Positivos",{"std.tec.dret.noprc=true"}) -> Meses Positivos | BD7: =_xll.ECONOMATICA($B$8:$B$200,"Number Return",$AY$6,$C$3,,,,,,,"Meses Negativos",{"std.tec.dret.cmp=-1";"std.tec.dret.noprc=true"}) -> Meses Negativos | BE7: =_xll.ECONOMATICA($B$8:$B$200,"Number Premium",$AY$6,$C$3,,,,,,,"Meses Acima IFIX",{"std.tec.stt.bmk=0:58141,1:0,2:79083,3:0,4:0,5:0,6:0,7:0,8:0,9:0,10:0,11:0,12:0,13:0,14:0,15:0,16:0,17:0,18:0,19:0,20:0,21:0,22:0,23:0,24:0,25:0,26:0,27:0,28:0,29:0,30:0,31:0,";"std.tec.stt.bmk=32:0,33:0,34:0,35:0,36:0,37:0,38:0,39:0,40:0,41:0,42:0,43:0,44:0,45:0,46:0,47:0,48:0,49:0,50:0,51:0,52:0,53:0,54:0,55:0,56:0,57:0,58:0,59:0,60:0,61:0,62:0,63:0,64:0,65:0,66:0,67:0,68:0,69:0,70:0,71:0,72:0,73:0,74:0,75:0,76:0,77:0,78:0,79:0";"std.tec.dret.noprc=true"}) -> Meses Acima IFIX | BF7: =_xll.ECONOMATICA($B$8:$B$200,"Number Premium",$AY$6,$C$3,,,,,,,"Meses Abaixo IFIX",{"std.tec.stt.bmk=0:58141,1:0,2:79083,3:0,4:0,5:0,6:0,7:0,8:0,9:0,10:0,11:0,12:0,13:0,14:0,15:0,16:0,17:0,18:0,19:0,20:0,21:0,22:0,23:0,24:0,25:0,26:0,27:0,28:0,29:0,30:0,31:0,";"std.tec.stt.bmk=32:0,33:0,34:0,35:0,36:0,37:0,38:0,39:0,40:0,41:0,42:0,43:0,44:0,45:0,46:0,47:0,48:0,49:0,50:0,51:0,52:0,53:0,54:0,55:0,56:0,57:0,58:0,59:0,60:0,61:0,62:0,63:0,64:0,65:0,66:0,67:0,68:0,69:0,70:0,71:0,72:0,73:0,74:0,75:0,76:0,77:0,78:0,79:0";"std.tec.dret.cmp=-1";"std.tec.dret.noprc=true"}) -> Meses Abaixo IFIX | BG7: =_xll.ECONOMATICA($B$8:$B$200,"Sharpe",$AY$6,$C$3,,,,,,,"Sharpe") -> Sharpe | BH7: =_xll.ECONOMATICA($B$8:$B$200,"VAR %",$AY$6,$C$3,,,,"decimal",,,"VaR 95%") -> VaR 95% | BI7: =_xll.ECONOMATICA($B$8:$B$200,"MaxLoss",$AY$6,$C$3,,,,"decimal",,,"Perda Máxima") -> Perda Máxima | BJ7: =_xll.ECONOMATICA($B$8:$B$200,"MaxLoss",$AY$6,$C$3,,,,,,,"Pico",{"std.tec.tpmdd=2"}) -> Pico | BK7: =_xll.ECONOMATICA($B$8:$B$200,"MaxLoss",$AY$6,$C$3,,,,,,,"Fundo",{"std.tec.tpmdd=3"}) -> Fundo | BL7: =_xll.ECONOMATICA($B$8:$B$200,"MaxLoss",$AY$6,$C$3,,,,,,,"Dias de Recuperação",{"std.tec.tpmdd=1"}) -> Dias de Recuperação | BM7: =_xll.ECONOMATICA($B$8:$B$200,"MaxLoss",$AY$6,$C$3,,,,,,,"Recuperação",{"std.tec.tpmdd=4"}) -> Recuperação | BO7: =_xll.ECONOMATICA($B$8:$B$200,"P/BV",,BO6,,,,,,,"P/VPA") -> P/VPA | BP7: =_xll.ECONOMATICA($B$8:$B$200,"P/BV",,BP6,,,,,,,"P/VPA") -> P/VPA | BQ7: =_xll.ECONOMATICA($B$8:$B$200,"P/BV",,BQ6,,,,,,,"P/VPA") -> P/VPA | BR7: =_xll.ECONOMATICA($B$8:$B$200,"P/BV",,BR6,,,,,,,"P/VPA") -> P/VPA | BS7: =_xll.ECONOMATICA($B$8:$B$200,"P/BV",,BS6,,,,,,,"P/VPA") -> P/VPA | BT7: =_xll.ECONOMATICA($B$8:$B$200,"P/BV",,BT6,,,,,,,"P/VPA") -> P/VPA | BU7: =_xll.ECONOMATICA($B$8:$B$200,"P/BV",,BU6,,,,,,,"P/VPA") -> P/VPA | BV7: =_xll.ECONOMATICA($B$8:$B$200,"P/BV",,BV6,,,,,,,"P/VPA") -> P/VPA | BW7: =_xll.ECONOMATICA($B$8:$B$200,"P/BV",,BW6,,,,,,,"P/VPA") -> P/VPA | BX7: =_xll.ECONOMATICA($B$8:$B$200,"P/BV",,BX6,,,,,,,"P/VPA") -> P/VPA | BY7: =_xll.ECONOMATICA($B$8:$B$200,"P/BV",,BY6,,,,,,,"P/VPA") -> P/VPA | BZ7: =_xll.ECONOMATICA($B$8:$B$200,"P/BV",,C3,,,,,,,"P/VPA Atual") -> P/VPA Atual | CE7: =_xll.ECONOMATICA($B$8:$B$200,"Div Yld (start)","12m",CE6,,,,"DECIMAL",,,"Dividend Yield %") -> Dividend Yield % | CF7: =_xll.ECONOMATICA($B$8:$B$200,"Divid per Share","12m",CE6,,,,,,,"Dividendo por Ação (R$)") -> Dividendo por Ação (R$) | CG7: =_xll.ECONOMATICA($B$8:$B$200,"Div Yld (start)","12m",CG6,,,,"DECIMAL",,,"Dividend Yield %") -> Dividend Yield % | CH7: =_xll.ECONOMATICA($B$8:$B$200,"Divid per Share","12m",CG6,,,,,,,"Dividendo por Ação (R$)") -> Dividendo por Ação (R$) | CI7: =_xll.ECONOMATICA($B$8:$B$200,"Div Yld (start)","12m",CI6,,,,"DECIMAL",,,"Dividend Yield %") -> Dividend Yield % | CJ7: =_xll.ECONOMATICA($B$8:$B$200,"Divid per Share","12m",CI6,,,,,,,"Dividendo por Ação (R$)") -> Dividendo por Ação (R$) | CK7: =_xll.ECONOMATICA($B$8:$B$200,"Div Yld (start)","12m",CK6,,,,"DECIMAL",,,"Dividend Yield %") -> Dividend Yield % | CL7: =_xll.ECONOMATICA($B$8:$B$200,"Divid per Share","12m",CK6,,,,,,,"Dividendo por Ação (R$)") -> Dividendo por Ação (R$) | CM7: =_xll.ECONOMATICA($B$8:$B$200,"Div Yld (start)","12m",CM6,,,,"DECIMAL",,,"Dividend Yield %") -> Dividend Yield % | CN7: =_xll.ECONOMATICA($B$8:$B$200,"Divid per Share","12m",CM6,,,,,,,"Dividendo por Ação (R$)") -> Dividendo por Ação (R$) | CO7: =_xll.ECONOMATICA($B$8:$B$200,"Div Yld (start)","12m",CO6,,,,"DECIMAL",,,"Dividend Yield %") -> Dividend Yield % | CP7: =_xll.ECONOMATICA($B$8:$B$200,"Divid per Share","12m",CO6,,,,,,,"Dividendo por Ação (R$)") -> Dividendo por Ação (R$) | CQ7: =_xll.ECONOMATICA($B$8:$B$200,"Div Yld (start)","12m",$C$3,,,,"DECIMAL",,,"Dividend Yield %") -> Dividend Yield % | CR7: =_xll.ECONOMATICA($B$8:$B$200,"Divid per Share","12m",$C$3,,,,,,,"Dividendo por Ação (R$)") -> Dividendo por Ação (R$)
B8: AFHI11<XBSP> | C8: AFHI11 | D8: FII Afhi Cri | E8: =IFERROR(IF(H8="","",VLOOKUP(H8,'Base Gráfico Lâmina'!$H:$I,2,0)),"Carregando") -> 583146<BraNa> | F8: 583146 | G8: Af Invest Cri FII Rec Imob-Unica | H8: 36642293000158 | I8: TVM | J8: Af Invest Real Estate Adm de Rec Ltda | K8: BTG Pactual Servicos Financeiros SA Dtvm | L8: 40791 | M8: 0.00313 | N8: 441894.946 | O8: 2024-09-27 | P8: 97 | Q8: 97.2 | R8: =IFERROR(P8/Q8,"") -> 0.9979423868 | S8: 2024-09-18 | T8: 1030.63767 | U8: 1222.495637 | V8: =IFERROR(T8/U8,"") -> 0.8430604074 | W8: 4808 | X8: 2317.549801 | Y8: =IFERROR(W8/X8,"") -> 2.074604825 | AA8: 0.002583979329 | AB8: =IF(AA8="","",AA8-AA$5) -> 0.004318245381 | AC8: 0.00931019089 | AD8: =IF(AC8="","",AC8-AC$5) -> 0.03241985284 | AE8: 0.06230561999 | AF8: =IF(AE8="","",AE8-AE$5) -> 0.06790105181 | AG8: 0.01097726667 | AH8: =IF(AG8="","",AG8-AG$5) -> 0.03893431401 | AI8: 0.03065731312 | AJ8: =IF(AI8="","",AI8-AI$5) -> -0.0376156585 | AK8: 0.05459696625 | AL8: =IF(AK8="","",AK8-AK$5) -> 0.01199970037 | AM8: 0.1359944939 | AN8: =IF(AM8="","",AM8-AM$5) -> -0.02931712775 | AO8: 0.2903179455 | AP8: =IF(AO8="","",AO8-AO$5) -> 0.0714512484 | AQ8: 0.6153744033 | AR8: =IF(AQ8="","",AQ8-AQ$5) -> 0.4575482974 | AT8: =IF(AS8="","",AS8-AS$5) ->  | AV8: =IF(AU8="","",AU8-AU$5) ->  | AW8: 0.05287620324 | AY8: 0.02176356391 | AZ8: -0.01232604374 | BA8: 0.0603097297 | BB8: -0.003000000001 | BC8: 11 | BD8: 1 | BE8: 8 | BF8: 4 | BG8: 0.4608157439 | BH8: 0.005472886294 | BI8: -0.02381930185 | BJ8: 2023-10-16 | BK8: 2023-11-01 | BL8: 1900-02-06 | BM8: 2023-12-08 | BT8: 0.9333236871 | BU8: 0.9976639713 | BV8: 1.039025237 | BW8: 1.000263556 | BX8: 1.008605459 | BY8: 1.041327764 | BZ8: 1.008265001 | CA8: =IF(B8="","",IF(MAX(BO8:BZ8)=0,"-x-",MAX(BV8:BZ8))) -> 1.041327764 | CB8: =IF(B8="","",IFERROR(BZ8/CA8,"-x-")) -> 0.9682494183 | CC8: =IF(B8="","",IFERROR(BZ8/CA8,"-x-")) -> 0.9682494183 | CM8: 0.150305499 | CN8: 14.76 | CO8: 0.1334736842 | CP8: 12.68 | CQ8: 0.1208039785 | CR8: 11.66 | CS8: =IFERROR(AVERAGE(CE8,CG8,CI8,CK8,CM8,CO8,CQ8),"") -> 0.1348610539 | CT8: =IF(MAX(CE8,CG8,CI8,CK8,CM8,CO8,CQ8)=0,"",MAX(CE8,CG8,CI8,CK8,CM8,CO8,CQ8)) -> 0.150305499 | CU8: =IF(SUM(CE8:CR8)<>0,MIN(CE8,CG8,CI8,CK8,CM8,CO8,CQ8),"") -> 0.1208039785
B9: AJFI11<XBSP> | C9: AJFI11 | D9: FII Aj Malls | E9: =IFERROR(IF(H9="","",VLOOKUP(H9,'Base Gráfico Lâmina'!$H:$I,2,0)),"Carregando") -> 729698<BraNa> | F9: 729698 | G9: Aj Malls FII-Unica | H9: 51472985000199 | I9: Shoppings | J9: Capitania Capital | K9: Xp Investimentos Cctvm | L9: 13501 | M9: 0.00173 | N9: 243836.2904 | O9: 2024-09-27 | P9: 7.71 | T9: 679.35766 | W9: 2674 | AA9: -0.001295336788 | AB9: =IF(AA9="","",AA9-AA$5) -> 0.0004389292645 | AC9: -0.06889468711 | AD9: -0.04578502516 | AE9: -0.1464324029 | AF9: -0.140836971 | AG9: -0.0755375312 | AH9: -0.04758048386 | AI9: -0.03359396275 | AJ9: -0.1018669344 | AK9: -0.1758410154 | AL9: -0.2184382813 | AY9: 0.04825090471 | AZ9: -0.0333716916 | BA9: 0.05679357633 | BB9: -0.1032577187 | BI9: -0.189907986 | BJ9: 2024-03-22 | BK9: 2024-09-27 | BY9: 1.008622546 | BZ9: 0.6290951099 | CA9: 1.008622546 | CB9: 0.6237170808 | CC9: 0.6237170808 | CS9: =IFERROR(AVERAGE(CE9,CG9,CI9,CK9,CM9,CO9,CQ9),"") ->  | CT9: =IF(MAX(CE9,CG9,CI9,CK9,CM9,CO9,CQ9)=0,"",MAX(CE9,CG9,CI9,CK9,CM9,CO9,CQ9)) ->  | CU9: =IF(SUM(CE9:CR9)<>0,MIN(CE9,CG9,CI9,CK9,CM9,CO9,CQ9),"") -> 
B10: ALZR11<XBSP> | C10: ALZR11 | D10: FII Alianza | E10: =IFERROR(IF(H10="","",VLOOKUP(H10,'Base Gráfico Lâmina'!$H:$I,2,0)),"Carregando") -> 464988<BraNa> | F10: 464988 | G10: Alianza Trust Renda Imobiliaria - Fundo de Investimento Imob | H10: 28737771000185 | I10: Híbrido | J10: Alianza Gestao de Recursos | K10: BTG Pactual Servicos Financeiros SA Dtvm | L10: 153681 | M10: 0.00905 | N10: 1279516.306 | O10: 2024-09-27 | P10: 104.65 | Q10: 111.8334229 | R10: 0.9357667621 | S10: 2024-04-02 | T10: 1611.17162 | U10: 1817.920105 | V10: 0.8862719629 | W10: 3337 | X10: 2406.549801 | Y10: 1.386632431 | AA10: 0.0005736686107 | AB10: 0.002307934663 | AC10: -0.0216023699 | AD10: 0.001507292058 | AE10: -0.04022529911 | AF10: -0.03462986729 | AG10: -0.01978226455 | AH10: 0.008174782794 | AI10: -0.01457549231 | AJ10: -0.08284846393 | AK10: -0.05350674127 | AL10: -0.09610400715 | AM10: -0.001256243327 | AN10: -0.1665678649 | AO10: 0.09063425315 | AP10: -0.1282324439 | AQ10: 0.268368808 | AR10: 0.1105427021 | AS10: 0.2232818936 | AT10: -0.1386452219 | AU10: 0.6649952022 | AV10: 0.3914606671 | AW10: 0.0801113142 | AY10: 0.02944028206 | AZ10: -0.02687986171 | BA10: 0.03659582635 | BB10: -0.03694508722 | BC10: 6 | BD10: 6 | BE10: 6 | BF10: 6 | BG10: -1.22765894 | BH10: 0.008269862742 | BI10: -0.06602161207 | BJ10: 2024-04-02 | BK10: 2024-09-25 | BO10: 1.016447945 | BP10: 1.090940856 | BQ10: 1.530872333 | BR10: 1.331783663 | BS10: 1.254976193 | BT10: 1.083263207 | BU10: 1.04889716 | BV10: 1.110999253 | BW10: 1.038568627 | BX10: 1.081284302 | BY10: 1.116250905 | BZ10: 0.9861902548 | CA10: 1.116250905 | CB10: 0.8834843942 | CC10: 0.8834843942 | CG10: 0.06980733891 | CH10: 6.910926552 | CI10: 0.04432115323 | CJ10: 6.421691892 | CK10: 0.0571654452 | CL10: 7.357192797 | CM10: 0.1236819024 | CN10: 14.07871096 | CO10: 0.08830070929 | CP10: 9.802261738 | CQ10: 0.08068392716 | CR10: 9.318993587 | CS10: 0.07732674604 | CT10: 0.1236819024 | CU10: 0.04432115323
B11: AIEC11<XBSP> | C11: AIEC11 | D11: FII Autonomy | E11: =IFERROR(IF(H11="","",VLOOKUP(H11,'Base Gráfico Lâmina'!$H:$I,2,0)),"Carregando") -> 552836<BraNa> | F11: 552836 | G11: Autonomy Edifícios Corporativos Fundo de Investimento Imobil | H11: 35765826000126 | I11: Lajes Corporativas | J11: Autonomy Investimentos Ai Real Estate | K11: Maf Dtvm | L11: 18019 | M11: 0.00183 | N11: 258136.8045 | O11: 2024-09-27 | P11: 53.5 | Q11: 55.96518082 | R11: 0.9559515258 | S11: 2023-09-29 | T11: 522.1682 | U11: 536.1617854 | V11: 0.9739004424 | W11: 708 | X11: 818.4262948 | Y11: 0.8650748448 | AA11: 0.002060310919 | AB11: 0.003794576971 | AC11: -0.02532337402 | AD11: -0.002213712068 | AE11: 0.05042114093 | AF11: 0.05601657275 | AG11: -0.02409515865 | AH11: 0.003861888692 | AI11: 0.02454449907 | AJ11: -0.04372847254 | AK11: 0.1150117941 | AL11: 0.07241452821 | AM11: -0.03449483812 | AN11: -0.1998064597 | AO11: -0.0943699121 | AP11: -0.3132366092 | AQ11: 0.005873605671 | AR11: -0.1519525002 | AW11: 0.1231256434 | AY11: 0.03263032232 | AZ11: -0.03753127606 | BA11: 0.06277755349 | BB11: -0.1113506854 | BC11: 7 | BD11: 5 | BE11: 6 | BF11: 6 | BG11: -1.011020836 | BH11: 0.01271964569 | BI11: -0.1867885124 | BJ11: 2023-09-29 | BK11: 2024-02-27 | BS11: 0.942355221 | BT11: 0.8198911051 | BU11: 0.7160944124 | BV11: 0.7557262748 | BW11: 0.7285707777 | BX11: 0.748901021 | BY11: 0.6914467114 | BZ11: 0.6325308604 | CA11: 0.7557262748 | CB11: 0.8369840794 | CC11: 0.8369840794 | CK11: 0.07448611994 | CL11: 7.03 | CM11: 0.1251200439 | CN11: 9.12 | CO11: 0.1344488478 | CP11: 9.16 | CQ11: 0.1360701107 | CR11: 8.85 | CS11: 0.1175312806 | CT11: 0.1360701107 | CU11: 0.07448611994
B12: BCRI11<XBSP> | C12: BCRI11 | D12: FII Bees Cri | E12: =IFERROR(IF(H12="","",VLOOKUP(H12,'Base Gráfico Lâmina'!$H:$I,2,0)),"Carregando") -> 404421<BraNa> | F12: 404421 | G12: Banestes Recebíveis Imobiliários Fundo de Investimento Imobi | H12: 22219335000138 | I12: TVM | J12: Banestes Dtvm | K12: Brl Dtvm | L12: 44300 | M12: 0.003 | N12: 424283.7894 | O12: 2024-09-27 | P12: 67.8 | Q12: 70.3790521 | R12: 0.9633548332 | S12: 2024-02-28 | T12: 386.0813 | U12: 549.7120405 | V12: 0.7023337158 | W12: 409 | X12: 986.1633466 | Y12: 0.4147385942 | AA12: 0.01088415089 | AB12: 0.01261841694 | AC12: -0.02432004605 | AD12: -0.001210384098 | AE12: 0.00134899174 | AF12: 0.00694442356 | AG12: -0.005216812722 | AH12: 0.02274023462 | AI12: 0.05205756191 | AJ12: -0.0162154097 | AK12: -0.03302431575 | AL12: -0.07562158163 | AM12: 0.1089216911 | AN12: -0.0563899305 | AO12: -0.1644496787 | AP12: -0.3833163758 | AQ12: -0.08200597069 | AR12: -0.2398320766 | AS12: 0.08257084048 | AT12: -0.279356275 | AU12: 0.06414663609 | AV12: -0.2093878991 | AW12: 0.1137665643 | AY12: 0.02968003475 | AZ12: -0.01904761905 | BA12: 0.08610909091 | BB12: -0.05255316267 | BC12: 8 | BD12: 4 | BE12: 8 | BF12: 4 | BG12: 0.04371339159 | BH12: 0.01178912382 | BI12: -0.09446652091 | BJ12: 2024-02-27 | BK12: 2024-06-24 | BO12: 1.081591108 | BP12: 1.250320648 | BQ12: 1.166492976 | BR12: 1.008223925 | BS12: 1.098935948 | BT12: 1.064772595 | BU12: 1.00117725 | BV12: 1.02480787 | BW12: 0.9341922009 | BX12: 0.8026096241 | BY12: 0.7635777141 | BZ12: 0.7793351627 | CA12: 1.02480787 | CB12: 0.7604695331 | CC12: 0.7604695331 | CE12: 0.09115943405 | CF12: 9.6 | CG12: 0.09316827144 | CH12: 10.16 | CI12: 0.0826114854 | CJ12: 10.3 | CK12: 0.1222779122 | CL12: 14.15 | CM12: 0.1415456674 | CN12: 15.11 | CO12: 0.1020473109 | CP12: 9.62 | CQ12: 0.1313218391 | CR12: 9.14 | CS12: 0.1091617029 | CT12: 0.1415456674 | CU12: 0.0826114854
B13: BLMG11<XBSP> | C13: BLMG11 | D13: FII Blue Log | E13: =IFERROR(IF(H13="","",VLOOKUP(H13,'Base Gráfico Lâmina'!$H:$I,2,0)),"Carregando") -> 565245<BraNa> | F13: 565245 | G13: Bluemacaw Logística Fundo de Investimento Imobiliário | H13: 34081637000171 | I13: Híbrido | J13: Bluemacaw Gestora de Recursos Ltda | K13: Vortx Dtvm Ltda | L13: 14165 | M13: 0.00118 | N13: 166995.7298 | O13: 2024-09-27 | P13: 39.12 | Q13: 51.69579866 | R13: 0.7567346092 | S13: 2023-10-04 | T13: 570.29375 | U13: 554.432488 | V13: 1.028608103 | W13: 505 | X13: 986.501992 | Y13: 0.511909762 | AA13: -0.003058103976 | AB13: -0.001323837923 | AC13: -0.06497780149 | AD13: -0.04186813954 | AE13: 0.06390110549 | AF13: 0.06949653731 | AG13: -0.02153139187 | AH13: 0.00642565547 | AI13: 0.0442294489 | AJ13: -0.02404352271 | AK13: 0.07693281962 | AL13: 0.03433555374 | AM13: -0.2236901378 | AN13: -0.3890017594 | AO13: -0.4070789516 | AP13: -0.6259456486 | AQ13: -0.4120545613 | AR13: -0.5698806672 | AW13: 0.187815238 | AY13: 0.03289473684 | AZ13: -0.1032806804 | BA13: 0.1258355274 | BB13: -0.1850729872 | BC13: 4 | BD13: 8 | BE13: 5 | BF13: 7 | BG13: -1.57318504 | BH13: 0.01902481819 | BI13: -0.3104670992 | BJ13: 2023-10-04 | BK13: 2024-02-08 | BT13: 1.005469502 | BU13: 0.906163851 | BV13: 0.8536622848 | BW13: 0.7766541977 | BX13: 0.7837402365 | BY13: 0.508917596 | BZ13: 0.5467559647 | CA13: 0.8536622848 | CB13: 0.6404827464 | CC13: 0.6404827464 | CM13: 0.1036324786 | CN13: 9.7 | CO13: 0.1119312844 | CP13: 8.34 | CQ13: 0.09201388889 | CR13: 5.3 | CS13: 0.102525884 | CT13: 0.1119312844 | CU13: 0.09201388889
B14: BCIA11<XBSP> | C14: BCIA11 | D14: FII Bcia | E14: =IFERROR(IF(H14="","",VLOOKUP(H14,'Base Gráfico Lâmina'!$H:$I,2,0)),"Carregando") -> 397482<BraNa> | F14: 397482 | G14: Bradesco Carteira Imobiliária Ativa - Fundo de FII | H14: 20216935000117 | I14: TVM | J14: Bram Bradesco Asset Management SA Dtvm | K14: Bradesco | L14: 28735 | M14: 0.0025 | N14: 352787.9447 | O14: 2024-09-27 | P14: 94.86 | Q14: 104.4246847 | R14: 0.9084059029 | S14: 2024-05-22 | T14: 904.04564 | U14: 818.8015666 | V14: 1.104108342 | W14: 1010 | X14: 1099.593625 | Y14: 0.9185211487 | AA14: 0.008290816328 | AB14: 0.01002508238 | AC14: -0.07145653876 | AD14: -0.04834687681 | AE14: -0.01701420736 | AF14: -0.01141877554 | AG14: -0.07145653876 | AH14: -0.04349949142 | AI14: -0.05857911358 | AJ14: -0.1268520852 | AK14: -0.0648591658 | AL14: -0.1074564317 | AM14: 0.03232462329 | AN14: -0.1329869983 | AO14: 0.2504084143 | AP14: 0.03154171718 | AQ14: 0.462304992 | AR14: 0.3044788861 | AS14: 0.1053571398 | AT14: -0.2565699756 | AU14: 0.2798548276 | AV14: 0.00632029242 | AW14: 0.1287969738 | AY14: 0.03691749042 | AZ14: -0.03691175007 | BA14: 0.0602269421 | BB14: -0.07145653876 | BC14: 6 | BD14: 6 | BE14: 5 | BF14: 7 | BG14: -0.4905272932 | BH14: 0.01327944829 | BI14: -0.09906359535 | BJ14: 2024-05-22 | BK14: 2024-09-26 | BO14: 0.8715322807 | BP14: 0.9573290685 | BQ14: 1.478093028 | BR14: 1.597154958 | BS14: 0.9742358934 | BT14: 0.8772771676 | BU14: 0.8038515886 | BV14: 0.8043303324 | BW14: 0.8401347835 | BX14: 0.9058773409 | BY14: 0.9321247985 | BZ14: 0.9010370186 | CA14: 0.9321247985 | CB14: 0.9666484789 | CC14: 0.9666484789 | CE14: 0.071460616 | CF14: 8.283 | CG14: 0.1115813775 | CH14: 11.6 | CI14: 0.05591497227 | CJ14: 12.1 | CK14: 0.06777884531 | CL14: 7.76 | CM14: 0.1006679948 | CN14: 8.59 | CO14: 0.1146859789 | CP14: 9.66 | CQ14: 0.1018418201 | CR14: 10.34 | CS14: 0.08913308641 | CT14: 0.1146859789 | CU14: 0.05591497227
B15: FATN11<XBSP> | C15: FATN11 | D15: FII Athena I | E15: =IFERROR(IF(H15="","",VLOOKUP(H15,'Base Gráfico Lâmina'!$H:$I,2,0)),"Carregando") -> 542547<BraNa> | F15: 542547 | G15: Brc Renda Corporativa FI Imobiliário | H15: 30567216000102 | I15: Híbrido | J15: - | K15: - | L15: 2979 | M15: 0.00221 | N15: 311848.712 | O15: 2024-09-27 | P15: 90.85 | Q15: 94.47694088 | R15: 0.9616103056 | S15: 2024-05-27 | T15: 1034.28712 | U15: 931.7998064 | V15: 1.109988554 | W15: 924 | X15: 927.5258964 | Y15: 0.9961986006 | AA15: 0.005534034311 | AB15: 0.007268300364 | AC15: -0.002879920335 | AD15: 0.02022974162 | AE15: 0.07170249582 | AF15: 0.07729792764 | AG15: 0.001038892206 | AH15: 0.02899593955 | AI15: 0.01304760835 | AJ15: -0.05522536326 | AK15: -0.01012108296 | AL15: -0.05271834884 | AM15: 0.1286417974 | AN15: -0.03666982426 | AO15: 0.1455639552 | AP15: -0.07330274188 | AQ15: 0.2211216784 | AR15: 0.06329557257 | AS15: 0.3311022992 | AT15: -0.03082481623 | AW15: 0.08259620273 | AY15: 0.01518960821 | AZ15: -0.02631016043 | BA15: 0.04756553141 | BB15: -0.04026096566 | BC15: 8 | BD15: 4 | BE15: 7 | BF15: 5 | BG15: 0.2401152933 | BH15: 0.008519945799 | BI15: -0.05509836319 | BJ15: 2024-05-27 | BK15: 2024-07-02 | BR15: 1.000023035 | BS15: 1.034637746 | BT15: 0.9370614632 | BU15: 0.9730224761 | BV15: 0.9710272508 | BW15: 0.9489537687 | BX15: 0.9612405946 | BY15: 0.8858696719 | BZ15: 0.8848002032 | CA15: 0.9710272508 | CB15: 0.9112001774 | CC15: 0.9112001774 | CK15: 0.07821878025 | CL15: 8.08 | CM15: 0.100253936 | CN15: 9.87 | CO15: 0.1077054065 | CP15: 10.12 | CQ15: 0.1135730988 | CR15: 10.2 | CS15: 0.09993780539 | CT15: 0.1135730988 | CU15: 0.07821878025
B16: BRCO11<XBSP> | C16: BRCO11 | D16: FII Bresco | E16: =IFERROR(IF(H16="","",VLOOKUP(H16,'Base Gráfico Lâmina'!$H:$I,2,0)),"Carregando") -> 425680<BraNa> | F16: 425680 | G16: Bresco Logística Fundo de Investimento Imobiliário Responsab | H16: 20748515000181 | I16: Logística | J16: Bresco Investimentos e Gestao Ltda | K16: Oliveira Trust Dtvm | L16: 124021 | M16: 0.01272 | N16: 1797280.029 | O16: 2024-09-27 | P16: 113 | Q16: 119.7628055 | R16: 0.9435316714 | S16: 2024-02-07 | T16: 2088.62116 | U16: 2950.424652 | V16: 0.7079052701 | W16: 2967 | X16: 5288.350598 | Y16: 0.5610444968 | AA16: 0.01801801802 | AB16: 0.01975228407 | AC16: -0.01085434174 | AD16: 0.01225532022 | AE16: -0.02058280782 | AF16: -0.014987376 | AG16: -0.01248433025 | AH16: 0.0154727171 | AI16: 0.02201139954 | AJ16: -0.04626157207 | AK16: -0.03581406403 | AL16: -0.07841132991 | AM16: -0.00670712451 | AN16: -0.1720187461 | AO16: 0.2360146224 | AP16: 0.01714792527 | AQ16: 0.4763572937 | AR16: 0.3185311879 | AS16: 0.2042176999 | AT16: -0.1577094156 | AW16: 0.125360952 | AY16: 0.03190131859 | AZ16: -0.04129600914 | BA16: 0.04968098682 | BB16: -0.02227722772 | BC16: 5 | BD16: 7 | BE16: 5 | BF16: 7 | BG16: -0.7909974747 | BH16: 0.01293203637 | BI16: -0.1031529353 | BJ16: 2024-02-07 | BK16: 2024-06-14 | BQ16: 1.558224041 | BR16: 1.3111149 | BS16: 1.059895595 | BT16: 0.9243764126 | BU16: 0.8647250797 | BV16: 0.8285719654 | BW16: 0.8039683921 | BX16: 0.971015413 | BY16: 1.018985271 | BZ16: 0.9505843028 | CA16: 1.018985271 | CB16: 0.9328734474 | CC16: 0.9328734474 | CI16: 0.04073556936 | CJ16: 6.08996762 | CK16: 0.05811222271 | CL16: 6.68 | CM16: 0.07812956649 | CN16: 8.02 | CO16: 0.1009521859 | CP16: 9.86 | CQ16: 0.08575102467 | CR16: 10.67 | CS16: 0.07273611383 | CT16: 0.1009521859 | CU16: 0.04073556936
B17: BROF11<XBSP> | C17: BROF11 | D17: FII Brof | E17: =IFERROR(IF(H17="","",VLOOKUP(H17,'Base Gráfico Lâmina'!$H:$I,2,0)),"Carregando") -> 687995<BraNa> | F17: 687995 | G17: Brpr Corporate Offices Fundo de Investimento Imobiliário | H17: 48978859000104 | I17: Híbrido | J17: BTG Pactual Servicos Financeiros SA Dtvm | K17: BTG Pactual Servicos Financeiros SA Dtvm | L17: 10336 | M17: 0.00382 | N17: 539322.2174 | O17: 2024-09-27 | P17: 46.45 | Q17: 60.88820453 | R17: 0.7628735378 | S17: 2023-10-13 | T17: 532.49083 | U17: 958.5509847 | V17: 0.5555164394 | W17: 1015 | X17: 1244.430279 | Y17: 0.8156342844 | AA17: -0.01797040169 | AB17: -0.01623613564 | AC17: -0.01323032148 | AD17: 0.009879340477 | AE17: -0.1786506881 | AF17: -0.1730552563 | AG17: -0.01323032148 | AH17: 0.01472672587 | AI17: -0.08713462301 | AJ17: -0.1554075946 | AK17: -0.1499496148 | AL17: -0.1925468807 | AM17: -0.2255090986 | AN17: -0.3908207203 | AW17: 0.2188898294 | AY17: 0.04201680672 | AZ17: -0.05498059508 | BA17: 0.09355318247 | BB17: -0.08146718475 | BC17: 3 | BD17: 9 | BE17: 4 | BF17: 8 | BG17: -1.315221012 | BH17: 0.02253374318 | BI17: -0.2426856303 | BJ17: 2023-10-05 | BK17: 2024-09-09 | BX17: 0.6593104908 | BY17: 0.5756988443 | BZ17: 0.4279426162 | CA17: 0.6593104908 | CB17: 0.649076 | CC17: 0.649076 | CQ17: 0.09263494007 | CR17: 6.204688286 | CS17: 0.09263494007 | CT17: 0.09263494007 | CU17: 0.09263494007
B18: BRCR11<XBSP> | C18: BRCR11 | D18: FII Bc Fund | E18: =IFERROR(IF(H18="","",VLOOKUP(H18,'Base Gráfico Lâmina'!$H:$I,2,0)),"Carregando") -> 310328<BraNa> | F18: 310328 | G18: Fundo de Investimento Imobiliário FII BTG Pactual Corporat | H18: 8924783000101 | I18: Híbrido | J18: BTG Pactual Gestora de Recursos Ltda | K18: BTG Pactual Servicos Financeiros SA Dtvm | L18: 137495 | M18: 0.00898 | N18: 1269310.325 | O18: 2024-09-27 | P18: 47.65 | Q18: 54.52080864 | R18: 0.873978233 | S18: 2024-05-09 | T18: 1155.21746 | U18: 1733.633337 | V18: 0.6663562792 | W18: 3337 | X18: 6021.203187 | Y18: 0.5542081701 | AA18: 0.007399577167 | AB18: 0.009133843219 | AC18: -0.04120308739 | AD18: -0.01809342544 | AE18: -0.07571027621 | AF18: -0.07011484439 | AG18: -0.04443905076 | AH18: -0.01648200342 | AI18: -0.02571422924 | AJ18: -0.09398720086 | AK18: -0.05364242701 | AL18: -0.09623969289 | AM18: -0.06535870421 | AN18: -0.2306703258 | AO18: -0.1011027149 | AP18: -0.319969412 | AQ18: -0.1000754306 | AR18: -0.2579015365 | AS18: -0.2085480213 | AT18: -0.5704751368 | AU18: -0.1565187149 | AV18: -0.4300532501 | AW18: 0.1866882827 | AY18: 0.06538090638 | AZ18: -0.045 | BA18: 0.1194167746 | BB18: -0.08690183619 | BC18: 5 | BD18: 7 | BE18: 5 | BF18: 7 | BG18: -0.7681917385 | BH18: 0.01939615675 | BI18: -0.1324413343 | BJ18: 2024-05-09 | BK18: 2024-09-26 | BO18: 0.8211481946 | BP18: 0.8717181515 | BQ18: 1.063834413 | BR18: 0.8406668648 | BS18: 0.8232821878 | BT18: 0.7512820491 | BU18: 0.6865246722 | BV18: 0.6119947497 | BW18: 0.5918583679 | BX18: 0.6637095285 | BY18: 0.60172788 | BZ18: 0.5334557111 | CA18: 0.6637095285 | CB18: 0.8037487609 | CC18: 0.8037487609 | CE18: 0.0411961675 | CF18: 4.366793755 | CG18: 0.1589559202 | CH18: 16.4376317 | CI18: 0.0495867341 | CJ18: 5.836358603 | CK18: 0.06367204649 | CL18: 5.650257406 | CM18: 0.08006603384 | CN18: 5.82 | CO18: 0.08949679162 | CP18: 5.3 | CQ18: 0.09113670506 | CR18: 5.46 | CS18: 0.08201577125 | CT18: 0.1589559202 | CU18: 0.0411961675
B19: BTLG11<XBSP> | C19: BTLG11 | D19: FII Btlg | E19: =IFERROR(IF(H19="","",VLOOKUP(H19,'Base Gráfico Lâmina'!$H:$I,2,0)),"Carregando") -> 362719<BraNa> | F19: 362719 | G19: BTG Pactual Logística Fundo de Investimento Imobiliário | H19: 11839593000109 | I19: Híbrido | J19: BTG Pactual Gestora de Recursos Ltda | K19: BTG Pactual Servicos Financeiros SA Dtvm | L19: 345561 | M19: 0.03035 | N19: 4288153.322 | O19: 2024-09-27 | P19: 99.15 | Q19: 102.4279997 | R19: 0.9679970348 | S19: 2024-04-05 | T19: 7783.57333 | U19: 10192.34176 | V19: 0.7636687933 | W19: 18251 | X19: 13393.15139 | Y19: 1.362711394 | AA19: 0.009776963032 | AB19: 0.01151122908 | AC19: -0.02679173324 | AD19: -0.003682071285 | AE19: 0.02392455859 | AF19: 0.02951999041 | AG19: -0.0203990907 | AH19: 0.00755795664 | AI19: 0.02713259632 | AJ19: -0.0411403753 | AK19: -0.02591150273 | AL19: -0.0685087686 | AM19: 0.08412220425 | AN19: -0.08118941736 | AO19: 0.1583559686 | AP19: -0.06051072852 | AQ19: 0.2404546587 | AR19: 0.0826285528 | AS19: 0.3708215079 | AT19: 0.00889439242 | AU19: 0.5888833378 | AV19: 0.3153488027 | AW19: 0.08751569454 | AY19: 0.01848171701 | AZ19: -0.02370295015 | BA19: 0.0386874847 | BB19: -0.03657549968 | BC19: 7 | BD19: 5 | BE19: 8 | BF19: 4 | BG19: -0.2308947572 | BH19: 0.009036116757 | BI19: -0.08401178317 | BJ19: 2024-04-05 | BK19: 2024-06-21 | BO19: 0.7506627285 | BP19: 1.069960578 | BQ19: 1.224577339 | BR19: 1.043614422 | BS19: 1.103278048 | BT19: 1.047577945 | BU19: 1.069846597 | BV19: 1.011993813 | BW19: 1.016498116 | BX19: 1.045053689 | BY19: 1.058077862 | BZ19: 0.9481287313 | CA19: 1.058077862 | CB19: 0.8960859739 | CC19: 0.8960859739 | CE19: 0.05145211177 | CF19: 4.013264718 | CG19: 0.06253746761 | CH19: 4.752847539 | CI19: 0.05363956563 | CJ19: 6.568164812 | CK19: 0.0730941704 | CL19: 8.15 | CM19: 0.08959132142 | CN19: 9.58 | CO19: 0.08964143426 | CP19: 9 | CQ19: 0.09176962934 | CR19: 9.21 | CS19: 0.07310367149 | CT19: 0.09176962934 | CU19: 0.05145211177
B20: CPTS11<XBSP> | C20: CPTS11 | D20: FII Capi Sec | E20: =IFERROR(IF(H20="","",VLOOKUP(H20,'Base Gráfico Lâmina'!$H:$I,2,0)),"Carregando") -> 399302<BraNa> | F20: 399302 | G20: Capitânia Securities II Fundo de Investimento Imobiliário | H20: 18979895000113 | I20: TVM | J20: Capitania Investimentos | K20: BTG Pactual Servicos Financeiros SA Dtvm | L20: 387928 | M20: 0.01768 | N20: 2498129.18 | O20: 2024-09-27 | P20: 7.86 | Q20: 8.313295488 | R20: 0.9454734301 | S20: 2024-07-19 | T20: 15128.32449 | U20: 7732.225914 | V20: 1.956529033 | W20: 30957 | X20: 30824.41833 | Y20: 1.00430119 | AA20: 0.001273885351 | AB20: 0.003008151403 | AC20: -0.03309140116 | AD20: -0.009981739204 | AE20: 0.005060104577 | AF20: 0.0106555364 | AG20: -0.0401064575 | AH20: -0.01214941016 | AI20: -0.01429960134 | AJ20: -0.08257257295 | AK20: -0.02431042538 | AL20: -0.06690769125 | AM20: -0.002305813619 | AN20: -0.1676174352 | AO20: 0.07201857297 | AP20: -0.1468481241 | AQ20: 0.1476242099 | AR20: -0.01020189601 | AS20: 0.342836475 | AT20: -0.01909064043 | AU20: 0.3727734825 | AV20: 0.0992389474 | AW20: 0.1225799151 | AY20: 0.04079110012 | AZ20: -0.02570379437 | BA20: 0.08300385097 | BB20: -0.09639039241 | BC20: 8 | BD20: 4 | BE20: 7 | BF20: 5 | BG20: -0.7748013039 | BH20: 0.0127039871 | BI20: -0.1025654011 | BJ20: 2023-10-03 | BK20: 2023-10-31 | BL20: 1900-03-03 | BM20: 2024-01-08 | BO20: 1.04844537 | BP20: 1.069710988 | BQ20: 1.160445711 | BR20: 1.106891102 | BS20: 1.104919875 | BT20: 1.051074421 | BU20: 1.014327968 | BV20: 0.9995605807 | BW20: 0.9248381456 | BX20: 0.9373756591 | BY20: 0.9276059563 | BZ20: 0.8835379191 | CA20: 0.9995605807 | CB20: 0.8839263333 | CC20: 0.8839263333 | CE20: 0.09383268879 | CF20: 0.922 | CG20: 0.08728352301 | CH20: 0.882 | CI20: 0.07569027088 | CJ20: 0.869 | CK20: 0.1169371099 | CL20: 1.2179 | CM20: 0.1268236765 | CN20: 1.217 | CO20: 0.1069557802 | CP20: 0.878 | CQ20: 0.09874141876 | CR20: 0.863 | CS20: 0.100894924 | CT20: 0.1268236765 | CU20: 0.07569027088
B21: CPSH11<XBSP> | C21: CPSH11 | D21: FII Cpsh | E21: =IFERROR(IF(H21="","",VLOOKUP(H21,'Base Gráfico Lâmina'!$H:$I,2,0)),"Carregando") -> 715451<BraNa> | F21: 715451 | G21: Capitania Shoppings FII-Unica | H21: 47896665000199 | I21: Shoppings | J21: Capitania Capital | K21: BTG Pactual Servicos Financeiros SA Dtvm | L21: 3656 | M21: 0.0047 | N21: 828878.1072 | O21: 2024-09-27 | P21: 10.4 | Q21: 10.91028435 | R21: 0.953229051 | S21: 2024-07-19 | T21: 311.7941 | U21: 2485.570685 | V21: 0.1254416548 | W21: 1790 | X21: 2067.61753 | Y21: 0.8657307138 | AA21: 0.002892960463 | AB21: 0.004627226515 | AC21: -0.009424882416 | AD21: 0.01368477954 | AE21: 0.02458418499 | AF21: 0.03017961681 | AG21: -0.004730213613 | AH21: 0.02322683373 | AI21: 0.01338022222 | AJ21: -0.05489274939 | AK21: 0.01780031517 | AL21: -0.02479695071 | AM21: -2.844558003e-05 | AN21: -0.1653400672 | AW21: 0.1192773817 | AY21: 0.03793774319 | AZ21: -0.05181481162 | BA21: 0.03929505585 | BB21: -0.02365324304 | BC21: 6 | BD21: 6 | BE21: 5 | BF21: 7 | BG21: -0.8215917158 | BH21: 0.01229869516 | BI21: -0.05688073394 | BJ21: 2024-06-24 | BK21: 2024-07-03 | BL21: 1900-01-09 | BM21: 2024-07-05 | BY21: 0.9458295034 | BZ21: 0.9175223277 | CA21: 0.9458295034 | CB21: 0.9700715873 | CC21: 0.9700715873 | CQ21: 0.1007845504 | CR21: 1.169 | CS21: 0.1007845504 | CT21: 0.1007845504 | CU21: 0.1007845504
B22: CACR11<XBSP> | C22: CACR11 | D22: Cartesia FII | E22: =IFERROR(IF(H22="","",VLOOKUP(H22,'Base Gráfico Lâmina'!$H:$I,2,0)),"Carregando") -> 537977<BraNa> | F22: 537977 | G22: Cartesia Recebíveis Imobiliários - Fundo de Investimento Imo | H22: 32065364000146 | I22: Híbrido | J22: - | K22: - | L22: 1 | M22: 0.00366 | N22: 517003.0356 | O22: 2024-09-27 | P22: 106.9 | Q22: 107.01 | R22: 0.9989720587 | S22: 2024-09-24 | T22: 1212.88335 | U22: 1340.198237 | V22: 0.905002944 | W22: 2734 | X22: 1754.003984 | Y22: 1.558719379 | AA22: -0.0005609573664 | AB22: 0.001173308686 | AC22: 0.01144857602 | AD22: 0.03455823798 | AE22: 0.1794776329 | AF22: 0.1850730648 | AG22: 0.01343756564 | AH22: 0.04139461298 | AI22: 0.05901436094 | AJ22: -0.009258610675 | AK22: 0.120720897 | AL22: 0.07812363111 | AM22: 0.1914574842 | AN22: 0.02614586262 | AO22: 0.5185290411 | AP22: 0.299662344 | AQ22: 0.7159347189 | AR22: 0.5581086131 | AS22: 0.8990192791 | AT22: 0.5370921636 | AW22: 0.06664020952 | AY22: 0.01282306163 | AZ22: -0.02420346034 | BA22: 0.03591940037 | BB22: -0.0134744947 | BC22: 11 | BD22: 1 | BE22: 9 | BF22: 3 | BG22: 1.133597215 | BH22: 0.006879643324 | BI22: -0.03279002876 | BJ22: 2023-11-03 | BK22: 2023-11-28 | BL22: 1900-02-06 | BM22: 2023-12-28 | BR22: 0.9886255502 | BS22: 1.051132686 | BT22: 1.084218833 | BU22: 1.077563663 | BV22: 1.009487932 | BW22: 0.9874600374 | BX22: 1.014738069 | BY22: 1.005279854 | BZ22: 1.083892158 | CA22: 1.083892158 | CB22: 1 | CC22: 1 | CK22: 0.1270743559 | CL22: 13.86 | CM22: 0.1624384012 | CN22: 17.8 | CO22: 0.1707913528 | CP22: 17.46 | CQ22: 0.1568590528 | CR22: 16.66 | CS22: 0.1542907907 | CT22: 0.1707913528 | CU22: 0.1270743559
B23: CLIN11<XBSP> | C23: CLIN11 | D23: FII Clave In | E23: =IFERROR(IF(H23="","",VLOOKUP(H23,'Base Gráfico Lâmina'!$H:$I,2,0)),"Carregando") -> 719250<BraNa> | F23: 719250 | G23: Clave Índices de Preços Fundo de Investimento Imobiliário | H23: 49005348000160 | I23: - | J23: Clave Alternativos Gestora de Rec Ltda | K23: BTG Pactual Servicos Financeiros SA Dtvm | L23: 10997 | M23: 0.00291 | N23: 411551.5208 | O23: 2024-09-27 | P23: 94.68 | T23: 893.24754 | W23: 1304 | AA23: 0.008843899841 | AB23: 0.01057816589 | AC23: -0.01433780455 | AD23: 0.0087718574 | AE23: 0.03919687196 | AF23: 0.04479230378 | AG23: 0.009172449396 | AH23: 0.03712949674 | AI23: 0.02236894925 | AJ23: -0.04590402236 | AK23: 0.04573861358 | AL23: 0.003141347701 | AW23: 0.1475982903 | AY23: 0.05374077977 | AZ23: -0.03486609399 | BA23: 0.03455580178 | BB23: -0.03990106305 | BG23: -0.4530154625 | BH23: 0.01529751587 | BI23: -0.08859177329 | BJ23: 2023-11-03 | BK23: 2024-02-19 | BL23: 1900-05-04 | BM23: 2024-05-08 | BY23: 1.002711481 | BZ23: 0.9645425324 | CA23: 1.002711481 | CB23: 0.9619342658 | CC23: 0.9619342658
B24: CYCR11<XBSP> | C24: CYCR11 | D24: FII Cyrela | E24: =IFERROR(IF(H24="","",VLOOKUP(H24,'Base Gráfico Lâmina'!$H:$I,2,0)),"Carregando") -> 598321<BraNa> | F24: 598321 | G24: Cyrela Crédito - Fundo de Investimento Imobiliário | H24: 36501233000115 | I24: TVM | J24: Cy.Capital Gestora de Recursos Ltda. | K24: Banco Genial S.A. | L24: 1 | M24: 0.00112 | N24: 158916.2816 | O24: 2024-09-27 | P24: 9.74 | Q24: 9.86 | R24: 0.9878296146 | S24: 2024-08-30 | T24: 308.14257 | U24: 420.0270026 | V24: 0.7336256195 | W24: 1568 | X24: 1678.035857 | Y24: 0.9344258014 | AA24: -0.003070624361 | AB24: -0.001336358308 | AC24: -0.0121703854 | AD24: 0.01093927656 | AE24: 0.101789189 | AF24: 0.1073846208 | AG24: -0.001138785638 | AH24: 0.0268182617 | AI24: 0.02480740104 | AJ24: -0.04346557057 | AK24: 0.08717078243 | AL24: 0.04457351655 | AM24: 0.167619291 | AN24: 0.00230766937 | AO24: 0.4644654348 | AP24: 0.2455987377 | AW24: 0.08778375754 | AY24: 0.02408376963 | AZ24: -0.01637666326 | BA24: 0.05958829903 | BB24: -0.01798941799 | BC24: 9 | BD24: 3 | BE24: 10 | BF24: 2 | BG24: 0.6323757211 | BH24: 0.009090674841 | BI24: -0.02644964395 | BJ24: 2024-04-15 | BK24: 2024-04-26 | BL24: 1900-01-21 | BM24: 2024-05-15 | BU24: 1.070303127 | BV24: 1.05762241 | BW24: 0.9228522864 | BX24: 0.9164575419 | BY24: 0.9733550964 | BZ24: 1.02499007 | CA24: 1.05762241 | CB24: 0.9691455669 | CC24: 0.9691455669 | CM24: 0.1386560931 | CN24: 1.404027751 | CO24: 0.1393602879 | CP24: 1.22681447 | CQ24: 0.1343126967 | CR24: 1.28 | CS24: 0.1374430259 | CT24: 0.1393602879 | CU24: 0.1343126967
B25: DEVA11<XBSP> | C25: DEVA11 | D25: FII Devant | E25: =IFERROR(IF(H25="","",VLOOKUP(H25,'Base Gráfico Lâmina'!$H:$I,2,0)),"Carregando") -> 552119<BraNa> | F25: 552119 | G25: Devant Recebíveis Imobiliários Fundo de Investimento Imobili | H25: 37087810000137 | I25: TVM | J25: Devant Asset Investimentos Ltda | K25: Vortx Dtvm Ltda | L25: 109764 | M25: 0.00367 | N25: 518397.5543 | O25: 2024-09-27 | P25: 36.91 | Q25: 46.81002981 | R25: 0.7885062272 | S25: 2024-05-03 | T25: 777.13121 | U25: 1362.935839 | V25: 0.570189137 | W25: 1210 | X25: 2604.832669 | Y25: 0.464521201 | AA25: -0.001082543979 | AB25: 0.0006517220728 | AC25: -0.06292248275 | AD25: -0.0398128208 | AE25: -0.0448275559 | AF25: -0.03923212408 | AG25: -0.008166293162 | AH25: 0.01979075418 | AI25: -0.0261954149 | AJ25: -0.09446838652 | AK25: -0.0560188203 | AL25: -0.09861608617 | AM25: 0.08763314589 | AN25: -0.07767847572 | AO25: -0.4892741243 | AP25: -0.7081408214 | AQ25: -0.4432842048 | AR25: -0.6011103107 | AW25: 0.2570744687 | AY25: 0.09473946647 | AZ25: -0.07561761547 | BA25: 0.145982562 | BB25: -0.1590464311 | BC25: 8 | BD25: 4 | BE25: 7 | BF25: 5 | BG25: 0.04726438681 | BH25: 0.02660845755 | BI25: -0.2114937728 | BJ25: 2024-05-03 | BK25: 2024-09-27 | BS25: 1.183185742 | BT25: 1.050587179 | BU25: 1.074122253 | BV25: 1.009094329 | BW25: 0.8612610472 | BX25: 0.6394234951 | BY25: 0.4309656159 | BZ25: 0.3712374577 | CA25: 1.009094329 | CB25: 0.3678917294 | CC25: 0.3678917294 | CK25: 0.1501822188 | CL25: 17.72 | CM25: 0.1325626204 | CN25: 13.76 | CO25: 0.09512893983 | CP25: 8.3 | CQ25: 0.1595419847 | CR25: 6.27 | CS25: 0.134353941 | CT25: 0.1595419847 | CU25: 0.09512893983
B26: VRTA11<XBSP> | C26: VRTA11 | D26: FII Fator Ve | E26: =IFERROR(IF(H26="","",VLOOKUP(H26,'Base Gráfico Lâmina'!$H:$I,2,0)),"Carregando") -> 253308<BraNa> | F26: 253308 | G26: Fator Verita Fundo de Investimento Imobiliário | H26: 11664201000100 | I26: TVM | J26: Fator Adm | K26: Banco Fator | L26: 121394 | M26: 0.00955 | N26: 1349680.221 | O26: 2024-09-27 | P26: 86.56 | Q26: 89.19508105 | R26: 0.9704571035 | S26: 2024-08-29 | T26: 1230.01426 | U26: 1905.165296 | V26: 0.6456207567 | W26: 1915 | X26: 2905.589641 | Y26: 0.6590744862 | AA26: 0.009917162526 | AB26: 0.01165142858 | AC26: -0.02357586012 | AD26: -0.000466198169 | AE26: 0.06118524182 | AF26: 0.06678067364 | AG26: -0.02748981949 | AH26: 0.000467227855 | AI26: 0.01813431029 | AJ26: -0.05013866132 | AK26: 0.0270249447 | AL26: -0.01557232118 | AM26: 0.08570650619 | AN26: -0.07960511542 | AO26: 0.13888462 | AP26: -0.07998207707 | AQ26: 0.1659184683 | AR26: 0.0080923624 | AS26: 0.3419376458 | AT26: -0.01998946968 | AU26: 0.2835012959 | AV26: 0.00996676078 | AW26: 0.08577934732 | AY26: 0.02614832813 | AZ26: -0.01629762842 | BA26: 0.03140041256 | BB26: -0.02357586012 | BC26: 7 | BD26: 5 | BE26: 8 | BF26: 4 | BG26: -0.2200083092 | BH26: 0.008872081408 | BI26: -0.0403058219 | BJ26: 2024-08-16 | BK26: 2024-09-25 | BO26: 1.165467143 | BP26: 1.436107417 | BQ26: 1.328738461 | BR26: 1.036861409 | BS26: 1.125686527 | BT26: 1.092196651 | BU26: 1.068791266 | BV26: 1.024147733 | BW26: 0.9650046359 | BX26: 0.9808433898 | BY26: 0.9378684135 | BZ26: 0.9476880161 | CA26: 1.024147733 | CB26: 0.9253430783 | CC26: 0.9253430783 | CE26: 0.09066183137 | CF26: 10 | CG26: 0.09215967592 | CH26: 10.92 | CI26: 0.06102791254 | CJ26: 8.68 | CK26: 0.1047169811 | CL26: 12.21 | CM26: 0.1310663166 | CN26: 13.59255308 | CO26: 0.1150261423 | CP26: 10.12 | CQ26: 0.110013471 | CR26: 9.8 | CS26: 0.1006674758 | CT26: 0.1310663166 | CU26: 0.06102791254
B27: BPFF11<XBSP> | C27: BPFF11 | D27: FII Absoluto | E27: =IFERROR(IF(H27="","",VLOOKUP(H27,'Base Gráfico Lâmina'!$H:$I,2,0)),"Carregando") -> 335355<BraNa> | F27: 335355 | G27: FI Imobiliário - FII Brasil Plural Absoluto Fundo de Fundos | H27: 17324357000128 | I27: TVM | J27: Plural | K27: Genial Investimentos Corr de Val Mob | L27: 21168 | M27: 0.00211 | N27: 298335.3697 | O27: 2024-09-27 | P27: 66.41 | Q27: 70.09807722 | R27: 0.9473868989 | S27: 2024-04-08 | T27: 255.83716 | U27: 385.6144168 | V27: 0.6634533069 | W27: 1320 | X27: 738.7051793 | Y27: 1.786910444 | AA27: 0.00302069174 | AB27: 0.004754957792 | AC27: -0.03767569917 | AD27: -0.01456603722 | AE27: 0.007261074854 | AF27: 0.01285650667 | AG27: -0.02137226425 | AH27: 0.006584783089 | AI27: -0.02651277392 | AJ27: -0.09478574553 | AK27: -0.04599282135 | AL27: -0.08859008723 | AM27: 0.05149961411 | AN27: -0.1138120075 | AO27: 0.1822710043 | AP27: -0.03659569283 | AQ27: 0.3460467653 | AR27: 0.1882206594 | AS27: 0.2367882514 | AT27: -0.1251388641 | AU27: 0.07902623391 | AV27: -0.1945083012 | AW27: 0.110289328 | AY27: 0.04093402729 | AZ27: -0.02298539751 | BA27: 0.04003961517 | BB27: -0.03767569917 | BC27: 6 | BD27: 6 | BE27: 5 | BF27: 7 | BG27: -0.431139463 | BH27: 0.01142000887 | BI27: -0.05546624642 | BJ27: 2024-04-08 | BK27: 2024-09-26 | BO27: 0.9641978892 | BP27: 0.959598208 | BQ27: 1.142033644 | BR27: 1.009043596 | BS27: 0.9211231048 | BT27: 0.9428064513 | BU27: 0.8883748212 | BV27: 0.8328047815 | BW27: 0.864929853 | BX27: 0.9002999325 | BY27: 0.9056039211 | BZ27: 0.8817268716 | CA27: 0.9056039211 | CB27: 0.9736341143 | CC27: 0.9736341143 | CE27: 0.08078196111 | CF27: 7.81 | CG27: 0.08914728682 | CH27: 8.05 | CI27: 0.06017214398 | CJ27: 7.69 | CK27: 0.08509309009 | CL27: 6.81 | CM27: 0.1124401914 | CN27: 7.99 | CO27: 0.1170547514 | CP27: 7.44 | CQ27: 0.1060584462 | CR27: 7.44 | CS27: 0.09296398157 | CT27: 0.1170547514 | CU27: 0.06017214398
B28: GARE11<XBSP> | C28: GARE11 | D28: FII Guardian | E28: =IFERROR(IF(H28="","",VLOOKUP(H28,'Base Gráfico Lâmina'!$H:$I,2,0)),"Carregando") -> 563757<BraNa> | F28: 563757 | G28: FI Imobiliário Guardian Real Estate | H28: 37295919000160 | I28: Híbrido | J28: - | K28: - | L28: 1 | M28: 0.00805 | N28: 1136570.386 | O28: 2024-09-27 | P28: 9.03 | Q28: 9.22 | R28: 0.9793926247 | S28: 2024-09-09 | T28: 7432.48125 | U28: 4172.451668 | V28: 1.781322311 | W28: 31288 | X28: 20543.21116 | Y28: 1.523033559 | AA28: 0 | AB28: 0.001734266052 | AC28: -0.004739336493 | AD28: 0.01837032546 | AE28: 0.0529372164 | AF28: 0.05853264822 | AG28: 0.001822821727 | AH28: 0.02977986907 | AI28: 0.03038033284 | AJ28: -0.03789263877 | AK28: 0.04649554789 | AL28: 0.003898282015 | AM28: 0.1099863225 | AN28: -0.05532529914 | AO28: 0.1731739995 | AP28: -0.04569269763 | AQ28: 0.2286855231 | AR28: 0.07085941727 | AW28: 0.0657957267 | AY28: 0.01436464088 | AZ28: -0.01189189189 | BA28: 0.02853516005 | BB28: -0.01685393258 | BC28: 9 | BD28: 3 | BE28: 9 | BF28: 3 | BG28: 0.02461999732 | BH28: 0.006803557846 | BI28: -0.02682403433 | BJ28: 2024-01-02 | BK28: 2024-01-26 | BL28: 60 | BM28: 2024-03-28 | BT28: 1.001098696 | BU28: 1.024943287 | BV28: 0.911961741 | BW28: 0.9995047327 | BX28: 1.012201804 | BY28: 0.93068811 | BZ28: 0.9819183579 | CA28: 1.012201804 | CB28: 0.9700816125 | CC28: 0.9700816125 | CM28: 0.09660983735 | CN28: 0.986 | CO28: 0.1064675548 | CP28: 0.991 | CQ28: 0.1118607182 | CR28: 1.028 | CS28: 0.1049793701 | CT28: 0.1118607182 | CU28: 0.09660983735
B29: RCRB11<XBSP> | C29: RCRB11 | D29: FII Riob Rc | E29: =IFERROR(IF(H29="","",VLOOKUP(H29,'Base Gráfico Lâmina'!$H:$I,2,0)),"Carregando") -> 362190<BraNa> | F29: 362190 | G29: Fundo de Investimento Imobiliario Rio Bravo Renda Corporativ | H29: 3683056000186 | I29: Lajes Corporativas | J29: Rio Bravo Investimentos Dtvm | K29: Rio Bravo Investimentos Dtvm | L29: 35009 | M29: 0.00341 | N29: 481635.6975 | O29: 2024-09-27 | P29: 130.5 | Q29: 158.788442 | R29: 0.8218482298 | S29: 2023-12-22 | T29: 784.97098 | U29: 983.8707145 | V29: 0.7978395621 | W29: 3452 | X29: 1373.334661 | Y29: 2.513589802 | AA29: 0.004386977604 | AB29: 0.006121243656 | AC29: -0.009064306904 | AD29: 0.01404535505 | AE29: -0.1429297032 | AF29: -0.1373342714 | AG29: -0.0266075388 | AH29: 0.001349508538 | AI29: -0.07649323896 | AJ29: -0.1447662106 | AK29: -0.1587418483 | AL29: -0.2013391142 | AM29: -0.05927321902 | AN29: -0.2245848406 | AO29: 0.02233795309 | AP29: -0.196528744 | AQ29: 0.105211028 | AR29: -0.05261507792 | AS29: -0.01367809859 | AT29: -0.375605214 | AU29: 0.05093037269 | AV29: -0.2226041624 | AW29: 0.1815892054 | AY29: 0.05750456635 | AZ29: -0.05598570578 | BA29: 0.0864644975 | BB29: -0.05743125319 | BC29: 3 | BD29: 9 | BE29: 3 | BF29: 9 | BG29: -0.766631591 | BH29: 0.01879844408 | BI29: -0.191439891 | BJ29: 2023-12-22 | BK29: 2024-09-24 | BO29: 0.9224339394 | BP29: 0.9978775541 | BQ29: 1.361339488 | BR29: 0.9041975724 | BS29: 0.8395024411 | BT29: 0.7018600985 | BU29: 0.7064412797 | BV29: 0.6481196047 | BW29: 0.6130058949 | BX29: 0.691088481 | BY29: 0.7829809186 | BZ29: 0.636788728 | CA29: 0.7829809186 | CB29: 0.8132876712 | CC29: 0.8132876712 | CE29: 0.04800611791 | CF29: 8.6315 | CG29: 0.04468956823 | CH29: 7.09 | CI29: 0.03829487797 | CJ29: 10.34 | CK29: 0.06077015644 | CL29: 10.1 | CM29: 0.0573381295 | CN29: 7.97 | CO29: 0.07136113297 | CP29: 9.07 | CQ29: 0.0722099188 | CR29: 10.76 | CS29: 0.05609570026 | CT29: 0.0722099188 | CU29: 0.03829487797
B30: RBVA11<XBSP> | C30: RBVA11 | D30: FII Riob Va | E30: =IFERROR(IF(H30="","",VLOOKUP(H30,'Base Gráfico Lâmina'!$H:$I,2,0)),"Carregando") -> 362050<BraNa> | F30: 362050 | G30: Fundo de Investimento Imobiliário Agências Caixa - FII | H30: 15576907000170 | I30: Agências | J30: Rio Bravo Investimentos Dtvm | K30: Rio Bravo Investimentos Dtvm | L30: 63287 | M30: 0.009 | N30: 1272130.681 | O30: 2024-09-27 | P30: 101.89 | Q30: 107.9197333 | R30: 0.944127611 | S30: 2024-04-29 | T30: 2096.32298 | U30: 1424.470952 | V30: 1.471650213 | W30: 6848 | X30: 2257.681275 | Y30: 3.033200512 | AA30: 0.003150536577 | AB30: 0.004884802629 | AC30: -0.04766800636 | AD30: -0.0245583444 | AE30: -0.02658016628 | AF30: -0.02098473446 | AG30: -0.02933145829 | AH30: -0.001374410952 | AI30: -0.02657184166 | AJ30: -0.09484481327 | AK30: -0.0462783517 | AL30: -0.08887561758 | AM30: 0.01256213507 | AN30: -0.1527494865 | AO30: 0.3236834617 | AP30: 0.1048167646 | AQ30: 0.3751736323 | AR30: 0.2173475265 | AS30: 0.345716148 | AT30: -0.01621096746 | AU30: 0.3625473124 | AV30: 0.0890127773 | AW30: 0.1094788576 | AY30: 0.04425925926 | AZ30: -0.02435410686 | BA30: 0.06739355202 | BB30: -0.04766800636 | BC30: 5 | BD30: 7 | BE30: 6 | BF30: 6 | BG30: -0.7567030306 | BH30: 0.01135319917 | BI30: -0.06041280053 | BJ30: 2024-04-29 | BK30: 2024-09-25 | BO30: 1.117376557 | BP30: 1.229289081 | BQ30: 1.327066369 | BR30: 1.290485172 | BS30: 1.024504928 | BT30: 0.9922217174 | BU30: 0.9689904393 | BV30: 0.8778370036 | BW30: 0.8333141058 | BX30: 0.9832384462 | BY30: 1.022900463 | BZ30: 0.9438565244 | CA30: 1.022900463 | CB30: 0.9227256789 | CC30: 0.9227256789 | CE30: 0.07029943394 | CF30: 8.743 | CG30: 0.0912832463 | CH30: 10.89 | CI30: 0.0650993496 | CJ30: 10.91 | CK30: 0.09406236651 | CL30: 11.01 | CM30: 0.1165583776 | CN30: 11.84 | CO30: 0.1296763576 | CP30: 11.82 | CQ30: 0.1068090788 | CR30: 12 | CS30: 0.09625545863 | CT30: 0.1296763576 | CU30: 0.0650993496
B31: BPML11<XBSP> | C31: BPML11 | D31: FII BTG Shop | E31: =IFERROR(IF(H31="","",VLOOKUP(H31,'Base Gráfico Lâmina'!$H:$I,2,0)),"Carregando") -> 521892<BraNa> | F31: 521892 | G31: Fundo de Investimento Imobiliário BTG Pactual Shoppings | H31: 33046142000149 | I31: Híbrido | J31: BTG Pactual Gestora de Recursos Ltda | K31: BTG Pactual Servicos Financeiros SA Dtvm | L31: 6333 | M31: 0.00467 | N31: 660008.364 | O31: 2024-09-27 | P31: 88.69 | Q31: 98.13940263 | R31: 0.903714488 | S31: 2024-04-19 | T31: 517.03908 | U31: 855.3610816 | V31: 0.6044687923 | W31: 693 | X31: 876.1434263 | Y31: 0.7909663866 | AA31: -0.00135119919 | AB31: 0.0003830668621 | AC31: 0.0106137497 | AD31: 0.03372341165 | AE31: 0.01919319911 | AF31: 0.02478863093 | AG31: 0.04025841968 | AH31: 0.06821546703 | AI31: -0.01149548699 | AJ31: -0.0797684586 | AK31: -0.02107901349 | AL31: -0.06367627936 | AM31: 0.2260970816 | AN31: 0.06078546003 | AO31: 0.4938197028 | AP31: 0.2749530057 | AQ31: 0.2687282874 | AR31: 0.1109021816 | AS31: 0.09820803661 | AT31: -0.2637190789 | AW31: 0.1956236987 | AY31: 0.05124835743 | AZ31: -0.06286195641 | BA31: 0.08777969019 | BB31: -0.06582749437 | BC31: 7 | BD31: 5 | BE31: 7 | BF31: 5 | BG31: 0.6425284191 | BH31: 0.02023738424 | BI31: -0.1525251878 | BJ31: 2024-04-19 | BK31: 2024-08-09 | BQ31: 1.165273707 | BR31: 0.7012115467 | BS31: 0.7173075803 | BT31: 0.6556699904 | BU31: 0.552015629 | BV31: 0.4962475532 | BW31: 0.5058778895 | BX31: 0.4647721203 | BY31: 0.717226618 | BZ31: 0.6843218933 | CA31: 0.717226618 | CB31: 0.954122276 | CC31: 0.954122276 | CI31: 0.01427964255 | CJ31: 1.697135517 | CK31: 0.02956299103 | CL31: 2.926440482 | CM31: 0.0399420502 | CN31: 2.958507658 | CO31: 0.008571210379 | CP31: 0.540929087 | CQ31: 0.1140350877 | CR31: 9.1 | CS31: 0.04127819637 | CT31: 0.1140350877 | CU31: 0.008571210379
B32: BCFF11<XBSP> | C32: BCFF11 | D32: FII Bc Ffii | E32: =IFERROR(IF(H32="","",VLOOKUP(H32,'Base Gráfico Lâmina'!$H:$I,2,0)),"Carregando") -> 310360<BraNa> | F32: 310360 | G32: Fundo de Investimento Imobiliário - FII BTG Pactual Fundo de | H32: 11026627000138 | I32: TVM | J32: BTG Pactual Gestora de Recursos Ltda | K32: BTG Pactual Servicos Financeiros SA Dtvm | L32: 356388 | M32: 0.01144 | N32: 1615958.012 | O32: 2024-09-27 | P32: 8.02 | Q32: 8.881239958 | R32: 0.9030270591 | S32: 2024-04-05 | T32: 4098.17623 | U32: 2863.858961 | V32: 1.430997925 | W32: 8081 | X32: 9588.593625 | Y32: 0.8427721849 | AA32: 0.02426564495 | AB32: 0.02599991101 | AC32: -0.04525683774 | AD32: -0.02214717579 | AE32: -0.0796689277 | AF32: -0.07407349588 | AG32: -0.03958734153 | AH32: -0.01163029419 | AI32: -0.003091134254 | AJ32: -0.07136410587 | AK32: -0.07617955469 | AL32: -0.1187768206 | AM32: -0.01842958565 | AN32: -0.1837412073 | AO32: 0.08003882227 | AP32: -0.1388278748 | AQ32: 0.1977959045 | AR32: 0.0399697986 | AS32: 0.02250887522 | AT32: -0.3394182402 | AU32: 0.1890269322 | AV32: -0.08450760295 | AW32: 0.1570597639 | AY32: 0.05908584169 | AZ32: -0.03805496829 | BA32: 0.05915925614 | BB32: -0.04865313839 | BC32: 4 | BD32: 8 | BE32: 4 | BF32: 8 | BG32: -0.6696175266 | BH32: 0.01630160218 | BI32: -0.1205242414 | BJ32: 2024-04-05 | BK32: 2024-06-20 | BO32: 1.012407379 | BP32: 1.016168326 | BQ32: 1.106719567 | BR32: 1.056865144 | BS32: 1.090558406 | BT32: 0.9532517808 | BU32: 0.8945897687 | BV32: 0.8221957134 | BW32: 0.8966578646 | BX32: 0.9432217716 | BY32: 0.9496601085 | BZ32: 0.8592887354 | CA32: 0.9496601085 | CB32: 0.9048381918 | CC32: 0.9048381918 | CE32: 0.07933528987 | CF32: 0.7779816863 | CG32: 0.0753201397 | CH32: 0.80875 | CI32: 0.05376580632 | CJ32: 0.7325591111 | CK32: 0.06597072751 | CL32: 0.76625 | CM32: 0.09394517336 | CN32: 0.830357901 | CO32: 0.1014186538 | CP32: 0.84 | CQ32: 0.09445448228 | CR32: 0.8495 | CS32: 0.08060146754 | CT32: 0.1014186538 | CU32: 0.05376580632
B33: BTAL11<XBSP> | C33: BTAL11 | D33: FII BTG Agro | E33: =IFERROR(IF(H33="","",VLOOKUP(H33,'Base Gráfico Lâmina'!$H:$I,2,0)),"Carregando") -> 581372<BraNa> | F33: 581372 | G33: Fundo de Investimento Imobiliário BTG Pactual Agro Logística | H33: 36642244000115 | I33: Outros | J33: BTG Pactual Gestora de Recursos Ltda | K33: BTG Pactual Servicos Financeiros SA Dtvm | L33: 42565 | M33: 0.00312 | N33: 441525.9168 | O33: 2024-09-27 | P33: 73.8 | Q33: 78.23011259 | R33: 0.9433707502 | S33: 2024-08-23 | T33: 1124.70062 | U33: 793.2490092 | V33: 1.417840561 | W33: 2056 | X33: 1740.334661 | Y33: 1.181381975 | AA33: -0.003241491086 | AB33: -0.001507225033 | AC33: -0.03240260799 | AD33: -0.009292946036 | AE33: 0.01722188692 | AF33: 0.02281731875 | AG33: -0.0484469525 | AH33: -0.02048990516 | AI33: 0.01636187936 | AJ33: -0.05191109225 | AK33: 0.1202058268 | AL33: 0.0776085609 | AM33: -0.02482099814 | AN33: -0.1901326197 | AO33: -0.08586933073 | AP33: -0.3047360278 | AQ33: 0.08884743298 | AR33: -0.0689786729 | AW33: 0.1589384188 | AY33: 0.04940820259 | AZ33: -0.03112449799 | BA33: 0.1057504914 | BB33: -0.09887516189 | BC33: 7 | BD33: 5 | BE33: 6 | BF33: 6 | BG33: -0.6976681074 | BH33: 0.01646842521 | BI33: -0.1570735072 | BJ33: 2023-10-02 | BK33: 2023-12-04 | BL33: 1900-07-17 | BM33: 2024-07-22 | BT33: 0.9526133477 | BU33: 0.9568382349 | BV33: 0.8832488316 | BW33: 0.9042759645 | BX33: 0.8732876915 | BY33: 0.7599264122 | BZ33: 0.655015284 | CA33: 0.9042759645 | CB33: 0.7243533055 | CC33: 0.7243533055 | CM33: 0.1 | CN33: 9.9 | CO33: 0.09557894737 | CP33: 9.08 | CQ33: 0.1038701329 | CR33: 8.83 | CS33: 0.0998163601 | CT33: 0.1038701329 | CU33: 0.09557894737
B34: BTCI11<XBSP> | C34: BTCI11 | D34: FII BTG Cri | E34: =IFERROR(IF(H34="","",VLOOKUP(H34,'Base Gráfico Lâmina'!$H:$I,2,0)),"Carregando") -> 311006<BraNa> | F34: 311006 | G34: Fundo de Investimento Imobiliário - BTG Pactual Crédito Imob | H34: 9552812000114 | I34: TVM | J34: BTG Pactual Gestora de Recursos Ltda | K34: BTG Pactual Servicos Financeiros SA Dtvm | L34: 179240 | M34: 0.00704 | N34: 995211.72 | O34: 2024-09-27 | P34: 10 | Q34: 10 | R34: 1 | S34: 2024-09-27 | T34: 1564.16024 | U34: 2135.204627 | V34: 0.7325575356 | W34: 11252 | X34: 12519.17131 | Y34: 0.8987815342 | AA34: 0.006036217304 | AB34: 0.007770483357 | AC34: 0.009266720386 | AD34: 0.03237638234 | AE34: 0.09398805086 | AF34: 0.09958348268 | AG34: 0.01433841245 | AH34: 0.04229545979 | AI34: 0.02355155986 | AJ34: -0.04472141175 | AK34: 0.03619094344 | AL34: -0.006406322433 | AM34: 0.1448397788 | AN34: -0.02047184279 | AO34: 0.3326165903 | AP34: 0.1137498932 | AQ34: 0.5471746023 | AR34: 0.3893484964 | AS34: 0.4491480222 | AT34: 0.08722090676 | AU34: 0.4170166772 | AV34: 0.143482142 | AW34: 0.09779813413 | AY34: 0.01782178218 | AZ34: -0.02541544477 | BA34: 0.03198906056 | BB34: -0.003515219318 | BC34: 10 | BD34: 2 | BE34: 9 | BF34: 3 | BG34: 0.3672082984 | BH34: 0.01010626786 | BI34: -0.02921129503 | BJ34: 2024-02-08 | BK34: 2024-02-14 | BL34: 1900-01-08 | BM34: 2024-02-22 | BO34: 1.062224742 | BP34: 1.17879868 | BQ34: 1.13486813 | BR34: 1.081868038 | BS34: 0.9660812586 | BT34: 0.9779571087 | BU34: 0.950679138 | BV34: 0.933505713 | BW34: 0.893161082 | BX34: 0.8874448731 | BY34: 0.9714885334 | BZ34: 0.9962492285 | CA34: 0.9962492285 | CB34: 1 | CC34: 1 | CE34: 0.1033760801 | CF34: 1.145751554 | CG34: 0.0772568891 | CH34: 0.9184985704 | CI34: 0.07322855387 | CJ34: 0.9266666667 | CK34: 0.09780100256 | CL34: 1.039298654 | CM34: 0.1351916979 | CN34: 1.33689568 | CO34: 0.1372481147 | CP34: 1.233555556 | CQ34: 0.1155419223 | CR34: 1.13 | CS34: 0.1056634658 | CT34: 0.1372481147 | CU34: 0.07322855387
B35: BTRA11<XBSP> | C35: BTRA11 | D35: FII BTG Tagr | E35: =IFERROR(IF(H35="","",VLOOKUP(H35,'Base Gráfico Lâmina'!$H:$I,2,0)),"Carregando") -> 604410<BraNa> | F35: 604410 | G35: Fundo de Investimento Imobiliário BTG Pactual Terras Agrícol | H35: 41076607000132 | I35: Outros | J35: BTG Pactual Gestora de Recursos Ltda | K35: BTG Pactual Servicos Financeiros SA Dtvm | L35: 15694 | M35: 0.00094 | N35: 132227.1687 | O35: 2024-09-27 | P35: 39.3 | Q35: 62.29903849 | R35: 0.6308283555 | S35: 2023-10-02 | T35: 403.77381 | U35: 496.5375296 | V35: 0.8131788352 | W35: 361 | X35: 998.3027888 | Y35: 0.3616137349 | AA35: -0.01281085154 | AB35: -0.01107658549 | AC35: -0.1405894897 | AD35: -0.1174798277 | AE35: -0.3041241335 | AF35: -0.2985287016 | AG35: -0.1448605445 | AH35: -0.1169034971 | AI35: -0.2111208602 | AJ35: -0.2793938318 | AK35: -0.3050255257 | AL35: -0.3476227916 | AM35: -0.3306617739 | AN35: -0.4959733955 | AO35: -0.4229239093 | AP35: -0.6417906064 | AQ35: -0.3985452225 | AR35: -0.5563713283 | AW35: 0.282462268 | AY35: 0.06685181512 | AZ35: -0.05028462998 | BA35: 0.1864157013 | BB35: -0.1699572545 | BC35: 6 | BD35: 6 | BE35: 3 | BF35: 9 | BG35: -1.318176638 | BH35: 0.02931745777 | BI35: -0.3691716445 | BJ35: 2023-10-02 | BK35: 2024-09-27 | BU35: 0.9653468698 | BV35: 0.8108950355 | BW35: 0.6214269296 | BX35: 0.6723604328 | BY35: 0.5487856629 | BZ35: 0.3552737324 | CA35: 0.8108950355 | CB35: 0.4381254254 | CC35: 0.4381254254 | CM35: 0.09976993626 | CN35: 9.951053443 | CO35: 0.09960552268 | CP35: 8.585 | CQ35: 0.0682374541 | CR35: 4.46 | CS35: 0.08920430435 | CT35: 0.09976993626 | CU35: 0.0682374541
B36: RECR11<XBSP> | C36: RECR11 | D36: FII Rec Rece | E36: =IFERROR(IF(H36="","",VLOOKUP(H36,'Base Gráfico Lâmina'!$H:$I,2,0)),"Carregando") -> 469556<BraNa> | F36: 469556 | G36: Fundo de Investimento Imobiliário - FII Rec Recebíveis Imobi | H36: 28152272000126 | I36: TVM | J36: Brl Dtvm | K36: Brl Dtvm | L36: 174697 | M36: 0.01548 | N36: 2188046.538 | O36: 2024-09-27 | P36: 82.75 | Q36: 86.22479439 | R36: 0.9597007518 | S36: 2024-05-31 | T36: 3007.39318 | U36: 2762.297137 | V36: 1.088729065 | W36: 5018 | X36: 3934.972112 | Y36: 1.275231401 | AA36: 0.00730371272 | AB36: 0.009037978773 | AC36: -0.0154274373 | AD36: 0.007682224649 | AE36: 0.03073134909 | AF36: 0.03632678091 | AG36: -0.01426501397 | AH36: 0.01369203337 | AI36: 0.0004367681649 | AJ36: -0.06783620345 | AK36: 0.007898828564 | AL36: -0.03469843731 | AM36: 0.07304225646 | AN36: -0.09226936515 | AO36: 0.1659449501 | AP36: -0.05292174698 | AQ36: 0.2034061406 | AR36: 0.04558003468 | AS36: 0.5108817192 | AT36: 0.1489546038 | AU36: 0.5291647622 | AV36: 0.255630227 | AW36: 0.09035757534 | AY36: 0.01979961832 | AZ36: -0.01915618756 | BA36: 0.05332896343 | BB36: -0.03429371537 | BC36: 8 | BD36: 4 | BE36: 7 | BF36: 5 | BG36: -0.3319255877 | BH36: 0.009337551286 | BI36: -0.05630392542 | BJ36: 2024-05-31 | BK36: 2024-09-12 | BO36: 1.094736127 | BP36: 1.131626541 | BQ36: 1.110960551 | BR36: 1.046771223 | BS36: 1.172863175 | BT36: 1.075362354 | BU36: 1.049099898 | BV36: 1.047674741 | BW36: 0.9207829877 | BX36: 0.9300611154 | BY36: 0.9141836007 | BZ36: 0.8868861579 | CA36: 1.047674741 | CB36: 0.8465281477 | CC36: 0.8465281477 | CE36: 0.1095695152 | CF36: 11.71736395 | CG36: 0.08209415646 | CH36: 8.7832538 | CI36: 0.1035166667 | CJ36: 11.1798 | CK36: 0.127147482 | CL36: 14.1388 | CM36: 0.1304320864 | CN36: 13.0406 | CO36: 0.1234404192 | CP36: 10.8356 | CQ36: 0.1170728614 | CR36: 10.1549 | CS36: 0.1133247411 | CT36: 0.1304320864 | CU36: 0.08209415646
B37: RECT11<XBSP> | C37: RECT11 | D37: FII Rec Rend | E37: =IFERROR(IF(H37="","",VLOOKUP(H37,'Base Gráfico Lâmina'!$H:$I,2,0)),"Carregando") -> 520985<BraNa> | F37: 520985 | G37: Fundo de Investimento Imobiliário - FII Rec Renda Imobiliári | H37: 32274163000159 | I37: Híbrido | J37: Brl Dtvm | K37: Brl Dtvm | L37: 58949 | M37: 0.00195 | N37: 275356.7794 | O37: 2024-09-27 | P37: 32.23 | Q37: 43.99347104 | R37: 0.7326087084 | S37: 2024-01-03 | T37: 416.48602 | U37: 430.2141809 | V37: 0.9680899387 | W37: 559 | X37: 833.3426295 | Y37: 0.6707925171 | AA37: -0.0003101736975 | AB37: 0.001424092355 | AC37: -0.06728356969 | AD37: -0.04417390774 | AE37: -0.2603025241 | AF37: -0.2547070923 | AG37: -0.06028685094 | AH37: -0.03232980359 | AI37: -0.02818330354 | AJ37: -0.09645627515 | AK37: -0.1921567621 | AL37: -0.2347540279 | AM37: -0.1968126802 | AN37: -0.3621243018 | AO37: -0.3468052136 | AP37: -0.5656719107 | AQ37: -0.3385381462 | AR37: -0.4963642521 | AS37: -0.4918843588 | AT37: -0.8538114743 | AU37: -0.4272640466 | AV37: -0.7007985817 | AW37: 0.114572438 | AY37: 0.03005464481 | AZ37: -0.03039647577 | BA37: 0.1081347011 | BB37: -0.1158191634 | BC37: 6 | BD37: 6 | BE37: 5 | BF37: 7 | BG37: -2.383813225 | BH37: 0.01183640501 | BI37: -0.2673912916 | BJ37: 2024-01-03 | BK37: 2024-09-27 | BP37: 1.015423377 | BQ37: 1.196233807 | BR37: 1.055534912 | BS37: 1.012985553 | BT37: 0.8276955564 | BU37: 0.750870051 | BV37: 0.5962153643 | BW37: 0.575266708 | BX37: 0.5611134981 | BY37: 0.5163513777 | BZ37: 0.3505102969 | CA37: 0.5962153643 | CB37: 0.5878920905 | CC37: 0.5878920905 | CI37: 0.07837574039 | CJ37: 9.3949 | CK37: 0.07327880658 | CL37: 7.1227 | CM37: 0.08274656509 | CN37: 6.0827 | CO37: 0.1013564669 | CP37: 5.4621 | CQ37: 0.1020755556 | CR37: 4.5934 | CS37: 0.0875666269 | CT37: 0.1020755556 | CU37: 0.07327880658
B38: GTWR11<XBSP> | C38: GTWR11 | D38: FII G Towers | E38: =IFERROR(IF(H38="","",VLOOKUP(H38,'Base Gráfico Lâmina'!$H:$I,2,0)),"Carregando") -> 445827<BraNa> | F38: 445827 | G38: Fundo de Investimento Imobiliário Green Towers | H38: 23740527000158 | I38: Lajes Corporativas | J38: BV Dtvm | K38: BV Dtvm | L38: 13 | M38: 0.00679 | N38: 960000 | O38: 2024-09-27 | P38: 80 | Q38: 83.71567168 | R38: 0.9556155783 | S38: 2024-06-07 | T38: 630.15184 | U38: 1097.150636 | V38: 0.5743530737 | W38: 1957 | X38: 2354.589641 | Y38: 0.8311427034 | AA38: 0.004520341538 | AB38: 0.00625460759 | AC38: -0.01948768231 | AD38: 0.00362197964 | AE38: -0.0005132255201 | AF38: 0.0050822063 | AG38: -0.01542412566 | AH38: 0.01253292168 | AI38: -0.009906409298 | AJ38: -0.07817938091 | AK38: 0.002297518917 | AL38: -0.04029974696 | AM38: 0.07302311579 | AN38: -0.09228850582 | AO38: 0.2372806722 | AP38: 0.0184139751 | AQ38: 0.2434641094 | AR38: 0.08563800348 | AS38: 0.03276042791 | AT38: -0.3291666875 | AU38: 0.2523486256 | AV38: -0.0211859095 | AW38: 0.1145132412 | AY38: 0.03337306317 | AZ38: -0.02054556007 | BA38: 0.06858895705 | BB38: -0.02644230769 | BC38: 7 | BD38: 5 | BE38: 7 | BF38: 5 | BG38: -0.2404071564 | BH38: 0.01186391478 | BI38: -0.05587121212 | BJ38: 2023-10-06 | BK38: 2023-10-25 | BL38: 1900-02-22 | BM38: 2023-12-26 | BP38: 0.9855884224 | BQ38: 1.183187096 | BR38: 1.219736331 | BS38: 1.100367149 | BT38: 0.9989714189 | BU38: 0.9009150962 | BV38: 0.7270516904 | BW38: 0.8311430775 | BX38: 0.8470462067 | BY38: 0.8536883338 | BZ38: 0.7891403822 | CA38: 0.8536883338 | CB38: 0.9243893245 | CC38: 0.9243893245 | CI38: 0.07058161624 | CJ38: 8.208806 | CK38: 0.07273629041 | CL38: 8.075352 | CM38: 0.100078891 | CN38: 8.88 | CO38: 0.1204421293 | CP38: 9.48 | CQ38: 0.1135329341 | CR38: 9.48 | CS38: 0.09547437222 | CT38: 0.1204421293 | CU38: 0.07058161624
B39: RBRY11<XBSP> | C39: RBRY11 | D39: FII Rbr Pcri | E39: =IFERROR(IF(H39="","",VLOOKUP(H39,'Base Gráfico Lâmina'!$H:$I,2,0)),"Carregando") -> 467693<BraNa> | F39: 467693 | G39: Fundo de Investimento Imobiliário Rbr Crédito Imobiliário Es | H39: 30166700000111 | I39: TVM | J39: - | K39: - | L39: 59987 | M39: 0.00867 | N39: 1225873.152 | O39: 2024-09-27 | P39: 96 | Q39: 97.17 | R39: 0.9879592467 | S39: 2024-09-23 | T39: 2985.38707 | U39: 3708.885996 | V39: 0.804928238 | W39: 8633 | X39: 7349.219124 | Y39: 1.174682623 | AA39: 0.005235602095 | AB39: 0.006969868147 | AC39: 0.01058551368 | AD39: 0.03369517563 | AE39: 0.05393477146 | AF39: 0.05953020328 | AG39: 0.009953897736 | AH39: 0.03791094508 | AI39: 0.01636751872 | AJ39: -0.05190545289 | AK39: 0.009315389887 | AL39: -0.03328187599 | AM39: 0.09106179382 | AN39: -0.07424982779 | AO39: 0.2705806808 | AP39: 0.05171398366 | AQ39: 0.443587423 | AR39: 0.2857613171 | AS39: 0.5626255189 | AT39: 0.2006984034 | AW39: 0.07621948468 | AY39: 0.01607237892 | AZ39: -0.01987676406 | BA39: 0.01899265433 | BB39: -0.01109575498 | BC39: 10 | BD39: 2 | BE39: 8 | BF39: 4 | BG39: -0.1943218659 | BH39: 0.00787178709 | BI39: -0.03093864401 | BJ39: 2024-05-10 | BK39: 2024-06-13 | BL39: 1900-03-24 | BM39: 2024-09-06 | BP39: 1.068455026 | BQ39: 1.168601643 | BR39: 0.9690288142 | BS39: 0.9914202827 | BT39: 0.9804050707 | BU39: 1.001014893 | BV39: 0.9902262362 | BW39: 0.9847745653 | BX39: 0.9827112579 | BY39: 1.019456318 | BZ39: 0.9818567598 | CA39: 1.019456318 | CB39: 0.9631180293 | CC39: 0.9631180293 | CI39: 0.06489959839 | CJ39: 8.08 | CK39: 0.09785087688 | CL39: 10.21661006 | CM39: 0.1376708084 | CN39: 14.40036656 | CO39: 0.142828098 | CP39: 14.05 | CQ39: 0.1217085427 | CR39: 12.11 | CS39: 0.1129915849 | CT39: 0.142828098 | CU39: 0.06489959839
B40: RBRX11<XBSP> | C40: RBRX11 | D40: FII Rbr Mult | E40: =IFERROR(IF(H40="","",VLOOKUP(H40,'Base Gráfico Lâmina'!$H:$I,2,0)),"Carregando") -> 602264<BraNa> | F40: 602264 | G40: Rbr Plus Multiestratégia Real Estate Fundo de Investimento I | H40: 41088458000121 | I40: Híbrido | J40: Rbr Asset Management | K40: BTG Pactual Servicos Financeiros SA Dtvm | L40: 13832 | M40: 0.00175 | N40: 246947.3624 | O40: 2024-09-27 | P40: 8.38 | Q40: 9.265152123 | R40: 0.9044643724 | S40: 2024-05-17 | T40: 659.38014 | U40: 885.3793947 | V40: 0.7447430378 | W40: 7840 | X40: 5455.386454 | Y40: 1.437111755 | AA40: 0.007211538461 | AB40: 0.008945804513 | AC40: -0.06985821624 | AD40: -0.04674855429 | AE40: -0.01823138346 | AF40: -0.01263595164 | AG40: -0.07088035008 | AH40: -0.04292330273 | AI40: -0.03658600392 | AJ40: -0.1048589755 | AK40: -0.08508857166 | AL40: -0.1276858375 | AM40: 0.02608720325 | AN40: -0.1392244184 | AO40: 0.1872134749 | AP40: -0.03165322219 | AW40: 0.1078033581 | AY40: 0.03174603175 | AZ40: -0.02127659574 | BA40: 0.0413685336 | BB40: -0.06985821624 | BC40: 8 | BD40: 4 | BE40: 7 | BF40: 5 | BG40: -0.6579751621 | BH40: 0.01115392474 | BI40: -0.1063287585 | BJ40: 2024-05-17 | BK40: 2024-09-25 | BW40: 0.9555231795 | BX40: 0.9394687041 | BY40: 0.9689666082 | BZ40: 0.8709571613 | CA40: =IF(B40="","",IF(MAX(BO40:BZ40)=0,"-x-",MAX(BV40:BZ40))) -> 0.9689666082 | CB40: =IF(B40="","",IFERROR(BZ40/CA40,"-x-")) -> 0.8988515744 | CC40: =IF(B40="","",IFERROR(BZ40/CA40,"-x-")) -> 0.8988515744 | CO40: 0.1522277228 | CP40: 1.353 | CQ40: 0.1277352592 | CR40: 1.185 | CS40: 0.139981491 | CT40: 0.1522277228 | CU40: 0.1277352592
B41: RBRP11<XBSP> | C41: RBRP11 | D41: FII Rbr Prop | E41: =IFERROR(IF(H41="","",VLOOKUP(H41,'Base Gráfico Lâmina'!$H:$I,2,0)),"Carregando") -> 401943<BraNa> | F41: 401943 | G41: Fundo de Investimento Imobiliario Rbr Properties - FII | H41: 21408063000151 | I41: Lajes Corporativas | J41: Rbr Asset Management | K41: Brl Dtvm | L41: 82604 | M41: 0.00457 | N41: 646349.4508 | O41: 2024-09-27 | P41: 53.07 | Q41: 59.91391784 | R41: 0.8857708178 | S41: 2024-05-08 | T41: 1216.77915 | U41: 1297.44074 | V41: 0.9378302318 | W41: 6767 | X41: 4293.876494 | Y41: 1.575965217 | AA41: -0.0009412650597 | AB41: 0.0007930009925 | AC41: -0.08441065513 | AD41: -0.06130099318 | AE41: 0.04420179133 | AF41: 0.04979722315 | AG41: -0.07492595888 | AH41: -0.04696891154 | AI41: -0.05554417868 | AJ41: -0.1238171503 | AK41: -0.04671287157 | AL41: -0.08931013745 | AM41: 0.0332385695 | AN41: -0.1320730521 | AO41: 0.01258708241 | AP41: -0.2062796147 | AQ41: -0.1135773032 | AR41: -0.2714034091 | AS41: -0.2160290096 | AT41: -0.577956125 | AU41: -0.1145591951 | AV41: -0.3880937302 | AW41: 0.2246204113 | AY41: 0.06879223705 | AZ41: -0.04101815824 | BA41: 0.06696695078 | BB41: -0.0904100887 | BC41: 7 | BD41: 5 | BE41: 7 | BF41: 5 | BG41: -0.2043013569 | BH41: 0.02331367192 | BI41: -0.1142291822 | BJ41: 2024-05-08 | BK41: 2024-09-27 | BO41: 1.023899064 | BP41: 1.058358361 | BQ41: 1.134192365 | BR41: 1.022652515 | BS41: 1.074706232 | BT41: 0.9335064911 | BU41: 0.9313563768 | BV41: 0.6992364158 | BW41: 0.6240888924 | BX41: 0.7125611384 | BY41: 0.682352808 | BZ41: 0.6758676088 | CA41: 0.7125611384 | CB41: 0.9485047281 | CC41: 0.9485047281 | CG41: 0.06106895424 | CH41: 4.915898669 | CI41: 0.05922233713 | CJ41: 5.7268 | CK41: 0.05557894737 | CL41: 5.28 | CM41: 0.06499808454 | CN41: 5.09 | CO41: 0.06314963718 | CP41: 3.22 | CQ41: 0.09244444444 | CR41: 5.2 | CS41: 0.06607706748 | CT41: 0.09244444444 | CU41: 0.05557894737
B42: RZTR11<XBSP> | C42: RZTR11 | D42: FII Riza Tx | E42: =IFERROR(IF(H42="","",VLOOKUP(H42,'Base Gráfico Lâmina'!$H:$I,2,0)),"Carregando") -> 558346<BraNa> | F42: 558346 | G42: Fundo de Investimento Imobiliário Riza Terrax | H42: 36501128000186 | I42: Híbrido | J42: Riza Asset | K42: Banco Genial S.A. | L42: 1 | M42: 0.01202 | N42: 1698728.489 | O42: 2024-09-27 | P42: 90.11 | Q42: 99.50635187 | R42: 0.905570331 | S42: 2023-12-28 | T42: 5156.26896 | U42: 4093.436819 | V42: 1.259642982 | W42: 8668 | X42: 8075.302789 | Y42: 1.073396283 | AA42: -0.001661865722 | AB42: 7.24003303e-05 | AC42: -0.0397485081 | AD42: -0.01663884615 | AE42: -0.09442966896 | AF42: -0.08883423714 | AG42: -0.03373100008 | AH42: -0.005773952736 | AI42: -0.01523534151 | AJ42: -0.08350831312 | AK42: -0.006280920509 | AL42: -0.04887818639 | AM42: 0.05090526987 | AN42: -0.1144063517 | AO42: 0.1091899147 | AP42: -0.1096767824 | AQ42: 0.3599691531 | AR42: 0.2021430472 | AW42: 0.1283567584 | AY42: 0.03264837801 | AZ42: -0.02950752951 | BA42: 0.07689250944 | BB42: -0.05057000877 | BC42: 7 | BD42: 5 | BE42: 6 | BF42: 6 | BG42: -0.3584666546 | BH42: 0.01329893131 | BI42: -0.1030427868 | BJ42: 2023-12-28 | BK42: 2024-03-15 | BS42: 1.08563294 | BT42: 0.9938713266 | BU42: 0.9963928137 | BV42: 1.027856593 | BW42: 1.017582339 | BX42: 0.8830428212 | BY42: 1.079446429 | BZ42: 0.9075448047 | CA42: 1.079446429 | CB42: 0.8407502036 | CC42: 0.8407502036 | CK42: 0.08910232027 | CL42: 9.37 | CM42: 0.149224035 | CN42: 15 | CO42: 0.1166027839 | CP42: 11.56 | CQ42: 0.1246394726 | CR42: 12.1 | CS42: 0.119892153 | CT42: 0.149224035 | CU42: 0.08910232027
B43: SPXS11<XBSP> | C43: SPXS11 | D43: FII Spx Syn | E43: =IFERROR(IF(H43="","",VLOOKUP(H43,'Base Gráfico Lâmina'!$H:$I,2,0)),"Carregando") -> 671551<BraNa> | F43: 671551 | G43: Fundo de Investimento Imobiliário - Spx Syn Multiestratégia | H43: 43010543000100 | I43: Híbrido | J43: Spx Syn Gestao de Recursos Ltda. | K43: BTG Pactual Servicos Financeiros SA Dtvm | L43: 18571 | M43: 0.00133 | N43: 187354.2912 | O43: 2024-09-27 | P43: 9.28 | Q43: 9.54082192 | R43: 0.9726625314 | S43: 2024-06-17 | T43: 615.57189 | U43: 764.3053508 | V43: 0.8054004716 | W43: 10107 | X43: 5109.071713 | Y43: 1.978245867 | AA43: 0.01978021978 | AB43: 0.02151448583 | AC43: -0.00310732801 | AD43: 0.02000233394 | AE43: 0.07041102716 | AF43: 0.07600645898 | AG43: 0.01633369918 | AH43: 0.04429074652 | AI43: 0.001120787294 | AJ43: -0.06715218432 | AK43: 0.05147097522 | AL43: 0.008873709341 | AM43: 0.08228822829 | AN43: -0.08302339332 | AO43: 0.2078928979 | AP43: -0.01097379923 | AW43: 0.1389758118 | AY43: 0.03902953586 | AZ43: -0.02841530055 | BA43: 0.05224728551 | BB43: -0.04541227308 | BC43: 7 | BD43: 5 | BE43: 8 | BF43: 4 | BG43: -0.1159537643 | BH43: 0.01437084227 | BI43: -0.07376699547 | BJ43: 2023-10-24 | BK43: 2023-12-05 | BL43: 1900-02-13 | BM43: 2023-12-28 | BW43: 1.001287512 | BX43: 0.9689576137 | BY43: 0.9840207853 | BZ43: 0.9713488808 | CA43: 1.001287512 | CB43: 0.9700998652 | CC43: 0.9700998652 | CO43: 0.1295661376 | CP43: 1.2244 | CQ43: 0.1195999587 | CR43: 1.16 | CS43: 0.1245830482 | CT43: 0.1295661376 | CU43: 0.1195999587
B44: TRBL11<XBSP> | C44: TRBL11 | D44: FII Sdi Log | E44: =IFERROR(IF(H44="","",VLOOKUP(H44,'Base Gráfico Lâmina'!$H:$I,2,0)),"Carregando") -> 362001<BraNa> | F44: 362001 | G44: Fundo de Investimento Imobiliário Tellus Rio Bravo Renda Log | H44: 16671412000193 | I44: Logistica | J44: Rio Bravo Investimentos Ltda | K44: Rio Bravo Investimentos Dtvm | L44: 59817 | M44: 0.00508 | N44: 717413.8284 | O44: 2024-09-27 | P44: 92.7 | Q44: 100.3929663 | R44: 0.9233714612 | S44: 2024-05-22 | T44: 652.03437 | U44: 843.4106176 | V44: 0.7730924373 | W44: 1670 | X44: 1112.864542 | Y44: 1.500631871 | AA44: 0.009034505279 | AB44: 0.01076877133 | AC44: -0.03588143526 | AD44: -0.01277177331 | AE44: 0.02352994712 | AF44: 0.02912537894 | AG44: -0.03776622307 | AH44: -0.009809175727 | AI44: -0.0444389168 | AJ44: -0.1127118884 | AK44: -0.02506261469 | AL44: -0.06765988057 | AM44: 0.05597580241 | AN44: -0.1093358192 | AO44: 0.158025286 | AP44: -0.06084141113 | AQ44: 0.3937876294 | AR44: 0.2359615235 | AS44: 0.3328058197 | AT44: -0.02912129572 | AU44: 0.2458986507 | AV44: -0.02763588444 | AW44: 0.1130402956 | AY44: 0.02736293475 | AZ44: -0.0299202816 | BA44: 0.02969684471 | BB44: -0.03588143526 | BC44: 8 | BD44: 4 | BE44: 6 | BF44: 6 | BG44: -0.3832637802 | BH44: 0.01167274964 | BI44: -0.09356199605 | BJ44: 2024-05-22 | BK44: 2024-09-23 | BO44: 1.135782975 | BP44: 1.230679913 | BQ44: 1.565375734 | BR44: 1.14191897 | BS44: 0.9702466196 | BT44: 0.9122737041 | BU44: 0.9275352701 | BV44: 0.8831982452 | BW44: 0.9642424327 | BX44: 1.0116803 | BY44: 0.9892985329 | BZ44: 0.9261750315 | CA44: 1.0116803 | CB44: 0.9154819279 | CC44: 0.9154819279 | CE44: 0.07977327595 | CF44: 7.6 | CG44: 0.07156416097 | CH44: 7.54 | CI44: 0.04149099913 | CJ44: 6.2 | CK44: 0.07409205671 | CL44: 7.63 | CM44: 0.1022689541 | CN44: 9.24 | CO44: 0.09992582389 | CP44: 9.43 | CQ44: 0.09998967049 | CR44: 9.68 | CS44: 0.08130070589 | CT44: 0.1022689541 | CU44: 0.04149099913
B45: TGAR11<XBSP> | C45: TGAR11 | D45: FII Tg Ativo | E45: =IFERROR(IF(H45="","",VLOOKUP(H45,'Base Gráfico Lâmina'!$H:$I,2,0)),"Carregando") -> 443141<BraNa> | F45: 443141 | G45: Fundo de Investimento Imobiliário Tg Ativo Real | H45: 25032881000153 | I45: Híbrido | J45: Tg Core Asset | K45: Vortx Dtvm Ltda | L45: 169467 | M45: 0.01884 | N45: 2661766.347 | O45: 2024-09-27 | P45: 112.94 | Q45: 120.4230295 | R45: 0.9378604779 | S45: 2024-05-31 | T45: 11575.06318 | U45: 7572.445695 | V45: 1.528576585 | W45: 21024 | X45: 11136.76892 | Y45: 1.887800685 | AA45: 0.003732669747 | AB45: 0.0054669358 | AC45: -0.05116357221 | AD45: -0.02805391026 | AE45: 0.02041612544 | AF45: 0.02601155726 | AG45: -0.04886787253 | AH45: -0.02091082518 | AI45: -0.03801548303 | AJ45: -0.1062884546 | AK45: -0.0463343437 | AL45: -0.08893160957 | AM45: 0.03218913811 | AN45: -0.1331224835 | AO45: 0.1767889623 | AP45: -0.04207773483 | AQ45: 0.3451445055 | AR45: 0.1873183997 | AS45: 0.4926848836 | AT45: 0.1307577682 | AU45: 0.5559631862 | AV45: 0.282428651 | AW45: 0.1046393382 | AY45: 0.03635551586 | AZ45: -0.02668393783 | BA45: 0.03121714517 | BB45: -0.05116357221 | BC45: 9 | BD45: 3 | BE45: 7 | BF45: 5 | BG45: -0.6283960012 | BH45: 0.01081712412 | BI45: -0.07036054103 | BJ45: 2024-05-31 | BK45: 2024-09-19 | BO45: 0.9722788505 | BP45: 0.9897394539 | BQ45: 1.035116284 | BR45: 1.04105114 | BS45: 1.005794303 | BT45: 1.003153877 | BU45: 0.9063029139 | BV45: 0.92926488 | BW45: 0.9446286781 | BX45: 1.018636664 | BY45: 0.9777617861 | BZ45: 0.9937835815 | CA45: 1.018636664 | CB45: 0.9756016223 | CC45: 0.9756016223 | CE45: 0.08242146135 | CF45: 9.34 | CG45: 0.08739372139 | CH45: 10.69 | CI45: 0.08809265291 | CJ45: 12.17 | CK45: 0.1065261269 | CL45: 14.25 | CM45: 0.1436312104 | CN45: 17.23 | CO45: 0.1364540182 | CP45: 16.47 | CQ45: 0.1269980119 | CR45: 15.97 | CS45: 0.1102167433 | CT45: 0.1436312104 | CU45: 0.08242146135
B46: RBRR11<XBSP> | C46: RBRR11 | D46: FII Rbrhgrad | E46: =IFERROR(IF(H46="","",VLOOKUP(H46,'Base Gráfico Lâmina'!$H:$I,2,0)),"Carregando") -> 466131<BraNa> | F46: 466131 | G46: Fundo de Investimento Imobiliário - FII Rbr Rendimento High | H46: 29467977000103 | I46: TVM | J46: Rbr Asset Management | K46: BTG Pactual Servicos Financeiros SA Dtvm | L46: 132461 | M46: 0.00958 | N46: 1353190.654 | O46: 2024-09-27 | P46: 89.87 | Q46: 91.34517888 | R46: 0.9838505009 | S46: 2024-09-09 | T46: 4172.15377 | U46: 3214.677866 | V46: 1.297845054 | W46: 16268 | X46: 7884.856574 | Y46: 2.063195424 | AA46: 0.003013392858 | AB46: 0.00474765891 | AC46: -0.00568874072 | AD46: 0.01742092123 | AE46: 0.09510806204 | AF46: 0.1007034939 | AG46: -0.005579739266 | AH46: 0.02237730808 | AI46: 0.01350480055 | AJ46: -0.05476817106 | AK46: 0.02094212864 | AL46: -0.02165513724 | AM46: 0.1418301855 | AN46: -0.02348143616 | AO46: 0.1860942501 | AP46: -0.032772447 | AQ46: 0.3204293463 | AR46: 0.1626032404 | AS46: 0.3920442601 | AT46: 0.03011714464 | AU46: 0.4360278492 | AV46: 0.1624933141 | AW46: 0.1142111903 | AY46: 0.0207786277 | AZ46: -0.02438206017 | BA46: 0.05187436489 | BB46: -0.02096784302 | BC46: 6 | BD46: 6 | BE46: 8 | BF46: 4 | BG46: 0.3063566407 | BH46: 0.0117971003 | BI46: -0.04676339286 | BJ46: 2023-11-16 | BK46: 2023-11-28 | BL46: 1900-01-27 | BM46: 2023-12-26 | BO46: 1.123238112 | BP46: 1.112874909 | BQ46: 1.117308537 | BR46: 1.023500329 | BS46: 0.9526398528 | BT46: 0.989810654 | BU46: 0.9827561087 | BV46: 1.052563557 | BW46: 0.8952504274 | BX46: 0.9460588752 | BY46: 0.9311081635 | BZ46: 0.9538804355 | CA46: 1.052563557 | CB46: 0.9062449759 | CC46: 0.9062449759 | CG46: 0.06536875274 | CH46: 7.066362171 | CI46: 0.05911322142 | CJ46: 6.495951902 | CK46: 0.09785469815 | CL46: 9.3040247 | CM46: 0.1246690248 | CN46: 12.336 | CO46: 0.1175969622 | CP46: 9.90401616 | CQ46: 0.1084782609 | CR46: 9.481 | CS46: 0.0955134867 | CT46: 0.1246690248 | CU46: 0.05911322142
B47: CVBI11<XBSP> | C47: CVBI11 | D47: FII Vbi Cri | E47: =IFERROR(IF(H47="","",VLOOKUP(H47,'Base Gráfico Lâmina'!$H:$I,2,0)),"Carregando") -> 495344<BraNa> | F47: 495344 | G47: Fundo de Investimento Imobiliário - Vbi Cri | H47: 28729197000113 | I47: TVM | J47: Vbi Real Estate Gestao de Carteiras Ltda | K47: Brl Dtvm | L47: 95487 | M47: 0.00699 | N47: 988498.2698 | O47: 2024-09-27 | P47: 89.78 | Q47: 93.53624854 | R47: 0.9598417876 | S47: 2024-09-06 | T47: 3691.3941 | U47: 2583.409676 | V47: 1.428884522 | W47: 11145 | X47: 5679.880478 | Y47: 1.962189177 | AA47: 0.0039136755 | AB47: 0.005647941553 | AC47: -0.03545811424 | AD47: -0.01234845229 | AE47: 0.06429891026 | AF47: 0.06989434208 | AG47: -0.03463600311 | AH47: -0.006678955766 | AI47: -0.006092712072 | AJ47: -0.07436568368 | AK47: 0.005703249239 | AL47: -0.03689401664 | AM47: 0.0820721954 | AN47: -0.08323942621 | AO47: 0.2663072582 | AP47: 0.04744056111 | AQ47: 0.3077961976 | AR47: 0.1499700917 | AS47: 0.58485375 | AT47: 0.2229266345 | AU47: 0.6527118416 | AV47: 0.3791773064 | AW47: 0.1172970727 | AY47: 0.03336773306 | AZ47: -0.02151583955 | BA47: 0.04416341917 | BB47: -0.03545811424 | BC47: 8 | BD47: 4 | BE47: 9 | BF47: 3 | BG47: -0.1620368582 | BH47: 0.01214707738 | BI47: -0.0519621698 | BJ47: 2023-11-16 | BK47: 2023-11-27 | BL47: 1900-01-29 | BM47: 2023-12-28 | BQ47: 1.045041198 | BR47: 0.9007792175 | BS47: 1.049801552 | BT47: 1.016039205 | BU47: 1.022372075 | BV47: 0.9979204826 | BW47: 0.9194989852 | BX47: 0.9311496274 | BY47: 0.9527587297 | BZ47: 0.9522467528 | CA47: 0.9979204826 | CB47: 0.9542310929 | CC47: 0.9542310929 | CI47: 0.08784688995 | CJ47: 9.18 | CK47: 0.1296596434 | CL47: 13.6 | CM47: 0.1231295844 | CN47: 12.59 | CO47: 0.1326767091 | CP47: 11.45 | CQ47: 0.1164288014 | CR47: 10.85 | CS47: 0.1179483257 | CT47: 0.1326767091 | CU47: 0.08784688995
B48: PVBI11<XBSP> | C48: PVBI11 | D48: FII Vbi Pri | E48: =IFERROR(IF(H48="","",VLOOKUP(H48,'Base Gráfico Lâmina'!$H:$I,2,0)),"Carregando") -> 558133<BraNa> | F48: 558133 | G48: Fundo de Investimento Imobiliário - Vbi Prime Properties | H48: 35652102000176 | I48: Lajes Corporativas | J48: Vbi Real Estate Gestao de Carteiras Ltda | K48: BTG Pactual Servicos Financeiros SA Dtvm | L48: 167233 | M48: 0.01641 | N48: 2319620.729 | O48: 2024-09-27 | P48: 85.5 | Q48: 99.52330716 | R48: 0.8590952455 | S48: 2023-10-16 | T48: 6129.33419 | U48: 5752.587264 | V48: 1.065491736 | W48: 18994 | X48: 11281.76892 | Y48: 1.683601227 | AA48: 0.00422832981 | AB48: 0.005962595862 | AC48: -0.08104041272 | AD48: -0.05793075077 | AE48: -0.1198025292 | AF48: -0.1142070973 | AG48: -0.085335985 | AH48: -0.05737893766 | AI48: -0.03257941956 | AJ48: -0.1008523912 | AK48: -0.1246429284 | AL48: -0.1672401943 | AM48: -0.1180311313 | AN48: -0.283342753 | AO48: 0.02953120767 | AP48: -0.1893354894 | AQ48: 0.2616570149 | AR48: 0.103830909 | AS48: 0.1538545171 | AT48: -0.2080725984 | AW48: 0.1313672483 | AY48: 0.03338801505 | AZ48: -0.02659778033 | BA48: 0.02990939854 | BB48: -0.08104041272 | BC48: 4 | BD48: 8 | BE48: 2 | BF48: 10 | BG48: -1.518748795 | BH48: 0.01359108433 | BI48: -0.1445219976 | BJ48: 2023-10-16 | BK48: 2024-09-26 | BS48: 0.9978039184 | BT48: 0.9425726371 | BU48: 0.9507673533 | BV48: 0.9251072556 | BW48: 0.9012899485 | BX48: 0.9673193602 | BY48: 1.021425872 | BZ48: 0.8134117383 | CA48: 1.021425872 | CB48: 0.7963492612 | CC48: 0.7963492612 | CK48: 0.06631080791 | CL48: 6.391035666 | CM48: 0.07147395171 | CN48: 6.75 | CO48: 0.08285039708 | CP48: 7.72 | CQ48: 0.07633949739 | CR48: 8.05 | CS48: 0.07424366352 | CT48: 0.08285039708 | CU48: 0.06631080791
B49: BARI11<XBSP> | C49: BARI11 | D49: FII Barigui | E49: =IFERROR(IF(H49="","",VLOOKUP(H49,'Base Gráfico Lâmina'!$H:$I,2,0)),"Carregando") -> 495603<BraNa> | F49: 495603 | G49: Fundo de Investimento Imobiliário Vbi Rendimentos Imobiliári | H49: 29267567000100 | I49: TVM | J49: Vbi Securities Ltda | K49: Oliveira Trust Dtvm | L49: 39850 | M49: 0.00253 | N49: 358083.9386 | O49: 2024-09-27 | P49: 77.27 | Q49: 82.4593328 | R49: 0.9370679749 | S49: 2024-06-28 | T49: 1005.81181 | U49: 708.9735151 | V49: 1.418687424 | W49: 2305 | X49: 1615.199203 | Y49: 1.427068559 | AA49: 0.02999200213 | AB49: 0.03172626819 | AC49: -0.02449185709 | AD49: -0.001382195135 | AE49: 0.01039857861 | AF49: 0.01599401044 | AG49: -0.02656015822 | AH49: 0.001396889126 | AI49: 0.005734990094 | AJ49: -0.06253798152 | AK49: -0.0431032171 | AL49: -0.08570048298 | AM49: 0.02554068337 | AN49: -0.1397709382 | AO49: 0.009215621099 | AP49: -0.209651076 | AQ49: 0.07742228665 | AR49: -0.08040381923 | AS49: 0.2281005243 | AT49: -0.1338265911 | AU49: 0.3853487123 | AV49: 0.1118141771 | AW49: 0.1478770569 | AY49: 0.07327858497 | AZ49: -0.03865943607 | BA49: 0.05580412627 | BB49: -0.0543071161 | BC49: 6 | BD49: 6 | BE49: 8 | BF49: 4 | BG49: -0.4461526529 | BH49: 0.01544134054 | BI49: -0.09203728123 | BJ49: 2024-06-28 | BK49: 2024-09-25 | BQ49: 1.085328419 | BR49: 0.982634912 | BS49: 1.111535608 | BT49: 1.028169871 | BU49: 1.007487381 | BV49: 0.9849675887 | BW49: 0.9091985911 | BX49: 0.8773515226 | BY49: 0.8608808329 | BZ49: 0.8373760399 | CA49: 0.9849675887 | CB49: 0.8501559336 | CC49: 0.8501559336 | CI49: 0.08508307468 | CJ49: 9.32 | CK49: 0.1359035296 | CL49: 15.44 | CM49: 0.1390243902 | CN49: 14.25 | CO49: 0.1103713956 | CP49: 9.5692 | CQ49: 0.1067964286 | CR49: 8.9709 | CS49: 0.1154357637 | CT49: 0.1390243902 | CU49: 0.08508307468
B50: VILG11<XBSP> | C50: VILG11 | D50: FII Vincilog | E50: =IFERROR(IF(H50="","",VLOOKUP(H50,'Base Gráfico Lâmina'!$H:$I,2,0)),"Carregando") -> 504361<BraNa> | F50: 504361 | G50: Vinci Logistica Fundo de Investimento Imobiliario - FII | H50: 24853044000122 | I50: Logistica | J50: Vinci Real State Gestora de Rec Ltda | K50: Brl Dtvm | L50: 159148 | M50: 0.00901 | N50: 1271929.155 | O50: 2024-09-27 | P50: 84.81 | Q50: 98.74589534 | R50: 0.858871143 | S50: 2023-09-29 | T50: 2553.23593 | U50: 2367.817868 | V50: 1.078307569 | W50: 6117 | X50: 4697.924303 | Y50: 1.302064402 | AA50: 0.01922845812 | AB50: 0.02096272417 | AC50: -0.02918956044 | AD50: -0.006079898486 | AE50: -0.09185482901 | AF50: -0.08625939719 | AG50: -0.02364207221 | AH50: 0.004314975129 | AI50: 0.0193944294 | AJ50: -0.04887854221 | AK50: -0.04439507834 | AL50: -0.08699234422 | AM50: -0.1379084927 | AN50: -0.3032201143 | AO50: -0.09137339031 | AP50: -0.3102400874 | AQ50: 0.003765544083 | AR50: -0.1540605618 | AS50: -0.1008809547 | AT50: -0.4628080702 | AU50: 0.144045359 | AV50: -0.1294891762 | AW50: 0.1712523156 | AY50: 0.04750261963 | AZ50: -0.04666666667 | BA50: 0.06442272892 | BB50: -0.05708202372 | BC50: 5 | BD50: 7 | BE50: 3 | BF50: 9 | BG50: -1.241451873 | BH50: 0.01773425484 | BI50: -0.1915309093 | BJ50: 2023-09-29 | BK50: 2024-06-20 | BP50: 1.041869403 | BQ50: 1.369900181 | BR50: 1.120814924 | BS50: 1.11625102 | BT50: 0.9549071111 | BU50: 0.918399742 | BV50: 0.8424308988 | BW50: 0.8838649637 | BX50: 0.9914430488 | BY50: 0.864474626 | BZ50: 0.7463153448 | CA50: 0.9914430488 | CB50: 0.7527566467 | CC50: 0.7527566467 | CI50: 0.04595331516 | CJ50: 6.91 | CK50: 0.05583155902 | CL50: 7.08 | CM50: 0.081163567 | CN50: 8.51 | CO50: 0.08112465988 | CP50: 8.05 | CQ50: 0.07077240345 | CR50: 7.55 | CS50: 0.0669691009 | CT50: 0.081163567 | CU50: 0.04595331516
B51: XPLG11<XBSP> | C51: XPLG11 | D51: FII Xp Log | E51: =IFERROR(IF(H51="","",VLOOKUP(H51,'Base Gráfico Lâmina'!$H:$I,2,0)),"Carregando") -> 471143<BraNa> | F51: 471143 | G51: Xp Log Fundo de Investimento Imobiliário - FII | H51: 26502794000185 | I51: Logistica | J51: Xp Asset Management | K51: Vortx Dtvm Ltda | L51: 348695 | M51: 0.02106 | N51: 2976129.916 | O51: 2024-09-27 | P51: 100.5 | Q51: 107.0048729 | R51: 0.9392095641 | S51: 2024-03-05 | T51: 3551.12464 | U51: 5012.571542 | V51: 0.7084436821 | W51: 6142 | X51: 7706.446215 | Y51: 0.7969951166 | AA51: -0.001192605844 | AB51: 0.0005416602081 | AC51: -0.01912941636 | AD51: 0.003980245596 | AE51: -0.01382842922 | AF51: -0.008232997405 | AG51: -0.01760691642 | AH51: 0.01035013092 | AI51: 0.03060777086 | AJ51: -0.03766520075 | AK51: -0.04387697588 | AL51: -0.08647424175 | AM51: -0.02874029099 | AN51: -0.1940519126 | AO51: 0.106275767 | AP51: -0.1125909301 | AQ51: 0.2880676381 | AR51: 0.1302415323 | AS51: 0.07673105104 | AT51: -0.2851960644 | AU51: 0.4263254643 | AV51: 0.1527909292 | AW51: 0.1109920391 | AY51: 0.0273639108 | AZ51: -0.0432938856 | BA51: 0.04853683148 | BB51: -0.04338295735 | BC51: 6 | BD51: 6 | BE51: 5 | BF51: 7 | BG51: -1.091656923 | BH51: 0.01141140108 | BI51: -0.1139829106 | BJ51: 2024-03-05 | BK51: 2024-06-21 | BO51: 1.037063607 | BP51: 1.032701884 | BQ51: 1.558343564 | BR51: 1.190454933 | BS51: 1.121527237 | BT51: 0.9563131986 | BU51: 0.9143283927 | BV51: 0.8241251164 | BW51: 0.8632564398 | BX51: 1.009979352 | BY51: 0.9798590501 | BZ51: 0.8929980171 | CA51: 1.009979352 | CB51: 0.8841745279 | CC51: 0.8841745279 | CG51: 0.07705585998 | CH51: 7.678 | CI51: 0.04642433821 | CJ51: 7.05 | CK51: 0.0592382496 | CL51: 7.31 | CM51: 0.08156446541 | CN51: 8.3 | CO51: 0.09294285133 | CP51: 9.14 | CQ51: 0.0828611898 | CR51: 9.36 | CS51: 0.07334782572 | CT51: 0.09294285133 | CU51: 0.04642433821
B52: KFOF11<XBSP> | C52: KFOF11 | D52: FII Kineafof | E52: =IFERROR(IF(H52="","",VLOOKUP(H52,'Base Gráfico Lâmina'!$H:$I,2,0)),"Carregando") -> 482684<BraNa> | F52: 482684 | G52: Fundo de Fundos de Investimento Imobiliário Kinea FII Respon | H52: 30091444000140 | I52: TVM | J52: Kinea Investimento Ltda | K52: Intrag | L52: 23552 | M52: 0.00422 | N52: 596729.0445 | O52: 2024-09-27 | P52: 85.07 | Q52: 99.76541941 | R52: 0.8527002693 | S52: 2024-04-15 | T52: 1323.74605 | U52: 1312.12104 | V52: 1.008859709 | W52: 3433 | X52: 2277.390438 | Y52: 1.507427072 | AA52: 0.01527628595 | AB52: 0.017010552 | AC52: -0.0183475652 | AD52: 0.004762096755 | AE52: -0.06169608155 | AF52: -0.05610064973 | AG52: -0.02503988949 | AH52: 0.002917157852 | AI52: -0.06209895875 | AJ52: -0.1303719304 | AK52: -0.113264909 | AL52: -0.1558621749 | AM52: 0.005752105937 | AN52: -0.1595595157 | AO52: 0.1512992178 | AP52: -0.06756747927 | AQ52: 0.4391198301 | AR52: 0.2812937242 | AS52: 0.1064812219 | AT52: -0.2554458936 | AU52: 0.1440936938 | AV52: -0.1294408413 | AW52: 0.1536216232 | AY52: 0.05122994652 | AZ52: -0.02692889561 | BA52: 0.04904997935 | BB52: -0.04370125013 | BC52: 5 | BD52: 7 | BE52: 5 | BF52: 7 | BG52: -0.5452362032 | BH52: 0.01592485845 | BI52: -0.1630366464 | BJ52: 2024-04-15 | BK52: 2024-09-23 | BP52: 0.9595342808 | BQ52: 1.197032431 | BR52: 1.008815563 | BS52: 0.9723506559 | BT52: 0.8570593636 | BU52: 0.8038915287 | BV52: 0.8178668847 | BW52: 0.8550983969 | BX52: 0.9532709802 | BY52: 0.9880638678 | BZ52: 0.9102665515 | CA52: 0.9880638678 | CB52: 0.9212628668 | CC52: 0.9212628668 | CI52: 0.03930489731 | CJ52: 6.22 | CK52: 0.06447677147 | CL52: 6.87 | CM52: 0.1063774516 | CN52: 8.19 | CO52: 0.1194337194 | CP52: 9.28 | CQ52: 0.1033967101 | CR52: 9.68 | CS52: 0.08659790998 | CT52: 0.1194337194 | CU52: 0.03930489731
B53: GZIT11<XBSP> | C53: GZIT11 | D53: FII Gazit | E53: =IFERROR(IF(H53="","",VLOOKUP(H53,'Base Gráfico Lâmina'!$H:$I,2,0)),"Carregando") -> 461571<BraNa> | F53: 461571 | G53: Gazit Malls Fundo de Investimento Imobiliário | H53: 15447108000102 | I53: Shoppings | J53: BTG Pactual Gestora de Recursos Ltda | K53: BTG Pactual Servicos Financeiros SA Dtvm | L53: 5705 | M53: 0.00846 | N53: 1195807.397 | O53: 2024-09-27 | P53: 54.75 | T53: 895.46408 | W53: 1259 | AA53: 0.00865880619 | AB53: 0.01039307224 | AC53: -0.02078158493 | AD53: 0.002328077023 | AG53: -0.02593536606 | AH53: 0.00202168128 | AI53: -0.006837265778 | AJ53: -0.07511023739 | AK53: -0.09790005703 | AL53: -0.1404973229 | AY53: 0.03449296817 | AZ53: -0.0403548941 | BA53: 0.0296732859 | BB53: -0.0756521995 | BI53: -0.1885428284 | BJ53: 2024-03-07 | BK53: 2024-07-11 | BZ53: 0.5759498203 | CA53: 0.5759498203 | CB53: 1 | CC53: 1
B54: MALL11<XBSP> | C54: MALL11 | D54: FII Malls Bp | E54: =IFERROR(IF(H54="","",VLOOKUP(H54,'Base Gráfico Lâmina'!$H:$I,2,0)),"Carregando") -> 458538<BraNa> | F54: 458538 | G54: Genial Malls Fundo de Investimento Imobiliário | H54: 26499833000132 | I54: Shoppings | J54: - | K54: - | L54: 1 | M54: 0.00952 | N54: 1344648.03 | O54: 2024-09-27 | P54: 103.65 | Q54: 114.1237125 | R54: 0.9082249226 | S54: 2024-03-04 | T54: 1836.88572 | U54: 2885.331362 | V54: 0.6366290348 | W54: 2447 | X54: 3782.565737 | Y54: 0.6469153929 | AA54: 0.01240476656 | AB54: 0.01413903261 | AC54: -0.05943738657 | AD54: -0.03632772462 | AE54: -0.06680288539 | AF54: -0.06120745357 | AG54: -0.05406761361 | AH54: -0.02611056626 | AI54: -0.0397164706 | AJ54: -0.1079894422 | AK54: -0.08371527203 | AL54: -0.1263125379 | AM54: -0.02923681159 | AN54: -0.1945484332 | AO54: 0.1329755751 | AP54: -0.08589112202 | AQ54: 0.4307206587 | AR54: 0.2728945528 | AS54: 0.5627538419 | AT54: 0.2008267265 | AU54: 0.4307294327 | AV54: 0.1571948975 | AW54: 0.09712948664 | AY54: 0.01696382205 | AZ54: -0.02525759095 | BA54: 0.02475631847 | BB54: -0.05943738657 | BC54: 7 | BD54: 4 | BE54: 5 | BF54: 7 | BG54: -1.262115189 | BH54: 0.01001352933 | BI54: -0.1036043456 | BJ54: 2024-03-04 | BK54: 2024-09-25 | BO54: 0.925443669 | BP54: 0.933144891 | BQ54: 1.189979824 | BR54: 0.8225499252 | BS54: 0.9962651992 | BT54: 0.9108632138 | BU54: 0.8718503885 | BV54: 0.9414088498 | BW54: 0.8566104792 | BX54: 0.9790666896 | BY54: 0.9751592331 | BZ54: 0.8685430909 | CA54: 0.9790666896 | CB54: 0.8871133092 | CC54: 0.8871133092 | CE54: 0.0653009064 | CF54: 6.628042 | CG54: 0.06464872945 | CH54: 6.92 | CI54: 0.03425203123 | CJ54: 4.3 | CK54: 0.06213610766 | CL54: 6.51 | CM54: 0.09251515785 | CN54: 8.85 | CO54: 0.09375 | CP54: 9.63 | CQ54: 0.08750428523 | CR54: 10.21 | CS54: 0.07144388826 | CT54: 0.09375 | CU54: 0.03425203123
B55: GGRC11<XBSP> | C55: GGRC11 | D55: FII Ggrcovep | E55: =IFERROR(IF(H55="","",VLOOKUP(H55,'Base Gráfico Lâmina'!$H:$I,2,0)),"Carregando") -> 443735<BraNa> | F55: 443735 | G55: Ggr Covepi Renda FI Imobiliário - Responsabilidade Limitada | H55: 26614291000100 | I55: Logistica | J55: - | K55: - | L55: 132517 | M55: 0.00795 | N55: 1123624.982 | O55: 2024-09-27 | P55: 10.62 | Q55: 11.09611604 | R55: 0.9570916488 | S55: 2024-04-01 | T55: 1478.99708 | U55: 1380.821173 | V55: 1.071099653 | W55: 5079 | X55: 4010.374502 | Y55: 1.266465263 | AA55: 0.003780718336 | AB55: 0.005514984388 | AC55: -0.02199439619 | AD55: 0.001115265765 | AE55: 0.006079399343 | AF55: 0.01167483116 | AG55: -0.01206998508 | AH55: 0.01588706226 | AI55: 0.005601792262 | AJ55: -0.06267117935 | AK55: -0.03380107771 | AL55: -0.07639834359 | AM55: 0.007018517421 | AN55: -0.1582931042 | AO55: 0.1061090818 | AP55: -0.1127576153 | AQ55: 0.2266013334 | AR55: 0.0687752275 | AS55: 0.08765619851 | AT55: -0.274270917 | AU55: 0.1796600814 | AV55: -0.09387445373 | AW55: 0.07132160732 | AY55: 0.01628234466 | AZ55: -0.01281484755 | BA55: 0.02532133462 | BB55: -0.03038364671 | BC55: 8 | BD55: 4 | BE55: 6 | BF55: 6 | BG55: -1.279779652 | BH55: 0.007374003865 | BI55: -0.0552704589 | BJ55: 2024-04-01 | BK55: 2024-06-18 | BO55: 1.140666157 | BP55: 1.206501905 | BQ55: 1.26350539 | BR55: 1.084884943 | BS55: 1.124856238 | BT55: 0.883783814 | BU55: 0.8527322608 | BV55: 0.8130966741 | BW55: 0.9326846726 | BX55: 1.093408419 | BY55: 1.005502121 | BZ55: 0.9373520939 | CA55: 1.093408419 | CB55: 0.8572753579 | CC55: 0.8572753579 | CE55: 0.07498132935 | CF55: 1.004 | CG55: 0.06672103195 | CH55: 0.9 | CI55: 0.05739014647 | CJ55: 0.862 | CK55: 0.06578571429 | CL55: 0.921 | CM55: 0.09838250978 | CN55: 1.107 | CO55: 0.1006034483 | CP55: 1.167 | CQ55: 0.09408024744 | CR55: 1.095 | CS55: 0.07970634679 | CT55: 0.1006034483 | CU55: 0.05739014647
B56: HABT11<XBSP> | C56: HABT11 | D56: FII Habit 2 | E56: =IFERROR(IF(H56="","",VLOOKUP(H56,'Base Gráfico Lâmina'!$H:$I,2,0)),"Carregando") -> 511129<BraNa> | F56: 511129 | G56: Habitat II - Fundo de Investimento Imobiliário | H56: 30578417000105 | I56: TVM | J56: Habitat Capital Partners Asset Managemen | K56: Vortx Dtvm Ltda | L56: 70960 | M56: 0.00497 | N56: 702885.4617 | O56: 2024-09-27 | P56: 86.49 | Q56: 88.72535814 | R56: 0.9748058708 | S56: 2024-04-08 | T56: 1993.07919 | U56: 1482.58478 | V56: 1.344327297 | W56: 4219 | X56: 2671.047809 | Y56: 1.579529946 | AA56: -0.001500808127 | AB56: 0.000233457925 | AC56: -0.01604095563 | AD56: 0.007068706321 | AE56: 0.05267789153 | AF56: 0.05827332335 | AG56: -0.02482140444 | AH56: 0.003135642904 | AI56: 0.004324002674 | AJ56: -0.06394896894 | AK56: -0.01206164601 | AL56: -0.05465891189 | AM56: 0.08128155671 | AN56: -0.0840300649 | AO56: 0.217665821 | AP56: -0.00120087609 | AQ56: 0.2121925148 | AR56: 0.0543664089 | AS56: 0.4087694378 | AT56: 0.0468423223 | AU56: 0.7785304264 | AV56: 0.5049958912 | AW56: 0.1094048416 | AY56: 0.02730414747 | AZ56: -0.02436335575 | BA56: 0.0447761194 | BB56: -0.03451995685 | BC56: 7 | BD56: 5 | BE56: 6 | BF56: 6 | BG56: -0.1888628555 | BH56: 0.01130115103 | BI56: -0.07104153031 | BJ56: 2024-04-08 | BK56: 2024-06-07 | BQ56: 1.21351378 | BR56: 0.9928065189 | BS56: 1.184805654 | BT56: 1.257065769 | BU56: 1.117373412 | BV56: 1.023542358 | BW56: 0.8899403743 | BX56: 0.9750089608 | BY56: 0.9133400336 | BZ56: 0.9023372831 | CA56: 1.023542358 | CB56: 0.8815827462 | CC56: 0.8815827462 | CI56: 0.09878079124 | CJ56: 11.91 | CK56: 0.1558723014 | CL56: 18.7 | CM56: 0.1293103448 | CN56: 14.1 | CO56: 0.1550675676 | CP56: 13.77 | CQ56: 0.1338427948 | CR56: 12.26 | CS56: 0.13457476 | CT56: 0.1558723014 | CU56: 0.09878079124
B57: HCTR11<XBSP> | C57: HCTR11 | D57: FII Hectare | E57: =IFERROR(IF(H57="","",VLOOKUP(H57,'Base Gráfico Lâmina'!$H:$I,2,0)),"Carregando") -> 503185<BraNa> | F57: 503185 | G57: Hectare Ce - Fundo de Investimento Imobiliário | H57: 30248180000196 | I57: TVM | J57: Hectare Capital Gestora de Recu | K57: Vortx Dtvm Ltda | L57: 168267 | M57: 0.00461 | N57: 651483.9857 | O57: 2024-09-27 | P57: 29.5 | Q57: 37.03579008 | R57: 0.7965268174 | S57: 2023-10-23 | T57: 782.39732 | U57: 1460.722297 | V57: 0.5356235896 | W57: 1454 | X57: 3624.095618 | Y57: 0.4012035425 | AA57: 0.01794340925 | AB57: 0.0196776753 | AC57: 0.002814895433 | AD57: 0.02592455739 | AE57: -0.1684395401 | AF57: -0.1628441082 | AG57: 0.01784345653 | AH57: 0.04580050388 | AI57: 0.08500552933 | AJ57: 0.01673255772 | AK57: -0.07014547085 | AL57: -0.1127427367 | AM57: 0.1422296619 | AN57: -0.0230819597 | AO57: -0.630827012 | AP57: -0.8496937091 | AQ57: -0.6291251724 | AR57: -0.7869512783 | AS57: -0.4774850536 | AT57: -0.8394121691 | AU57: -0.3116219987 | AV57: -0.5851565338 | AW57: 0.3390709873 | AY57: 0.1655555556 | AZ57: -0.08913250715 | BA57: 0.2366811754 | BB57: -0.1997340599 | BC57: 6 | BD57: 6 | BE57: 5 | BF57: 7 | BG57: 0.2604094872 | BH57: 0.03589050614 | BI57: -0.2825103616 | BJ57: 2023-10-23 | BK57: 2024-02-29 | BQ57: 1.215842701 | BR57: 1.122060452 | BS57: 1.251377276 | BT57: 1.138391607 | BU57: 1.073398866 | BV57: 0.9349731744 | BW57: 0.8258433741 | BX57: 0.5303550491 | BY57: 0.3389278492 | BZ57: 0.2648561268 | CA57: 0.9349731744 | CB57: 0.2832767122 | CC57: 0.2832767122 | CI57: 0.1431884058 | CJ57: 19.76 | CK57: 0.149915168 | CL57: 22.09 | CM57: 0.1321442727 | CN57: 16.67 | CO57: 0.06405127693 | CP57: 6.4205 | CQ57: 0.1465628175 | CR57: 4.328 | CS57: 0.1271723882 | CT57: 0.149915168 | CU57: 0.06405127693
B58: HGBS11<XBSP> | C58: HGBS11 | D58: FII Hedgebs | E58: =IFERROR(IF(H58="","",VLOOKUP(H58,'Base Gráfico Lâmina'!$H:$I,2,0)),"Carregando") -> 501484<BraNa> | F58: 501484 | G58: Hedge Brasil Shopping Fundo de Investimento Imobiliário | H58: 8431747000106 | I58: Shoppings | J58: Hedge Invest Real Estate Gestao de Rec | K58: Hedge Investments Dtvm Ltda | M58: 0.01824 | N58: 2577784.5 | O58: 2024-09-27 | P58: 202.5 | Q58: 221.0248651 | R58: 0.9161865109 | S58: 2024-03-05 | T58: 4919.04837 | U58: 4274.638257 | V58: 1.150751964 | W58: 6634 | X58: 5234.410359 | Y58: 1.267382484 | AA58: 0.001880071244 | AB58: 0.003614337296 | AC58: -0.03805044891 | AD58: -0.01494078696 | AE58: -0.05785693732 | AF58: -0.0522615055 | AG58: -0.0374151093 | AH58: -0.009458061958 | AI58: -0.009635485014 | AJ58: -0.07790845663 | AK58: -0.07313038147 | AL58: -0.1157276473 | AM58: -0.03574273349 | AN58: -0.2010543551 | AO58: 0.1559870111 | AP58: -0.06287968604 | AQ58: 0.4385995963 | AR58: 0.2807734904 | AS58: 0.2858646578 | AT58: -0.07606245765 | AU58: 0.1249737701 | AV58: -0.1485607651 | AW58: 0.09188696453 | AY58: 0.02061320755 | AZ58: -0.02173913044 | BA58: 0.04312644094 | BB58: -0.03805044891 | BC58: 4 | BD58: 8 | BE58: 4 | BF58: 8 | BG58: -1.400975015 | BH58: 0.009486720742 | BI58: -0.08553275267 | BJ58: 2024-03-05 | BK58: 2024-09-26 | BO58: 1.06724718 | BP58: 1.145938465 | BQ58: 1.234167906 | BR58: 0.9451695354 | BS58: 0.9748579347 | BT58: 0.9445205028 | BU58: 0.890320964 | BV58: 0.8012940307 | BW58: 0.8504909883 | BX58: 0.9800178582 | BY58: 0.9880414623 | BZ58: 0.8953720638 | CA58: 0.9880414623 | CB58: 0.9062089983 | CC58: 0.9062089983 | CE58: 0.06128133705 | CF58: 14.3 | CG58: 0.07408660352 | CH58: 17.52 | CI58: 0.02662513815 | CJ58: 7.95 | CK58: 0.03763865039 | CL58: 8.11 | CM58: 0.07913631361 | CN58: 15.1 | CO58: 0.103316732 | CP58: 19.5 | CQ58: 0.09373650108 | CR58: 21.7 | CS58: 0.06797446797 | CT58: 0.103316732 | CU58: 0.02662513815
B59: HFOF11<XBSP> | C59: HFOF11 | D59: FII Htopfof3 | E59: =IFERROR(IF(H59="","",VLOOKUP(H59,'Base Gráfico Lâmina'!$H:$I,2,0)),"Carregando") -> 463116<BraNa> | F59: 463116 | G59: Hedge Top Fofii 3 Fundo de Investimento Imobiliário | H59: 18307582000119 | I59: TVM | J59: Hedge Invest Real Estate Gestao de Rec | K59: Hedge Investments Dtvm Ltda | L59: 74430 | M59: 0.01104 | N59: 1560105.135 | O59: 2024-09-27 | P59: 67.7 | Q59: 74.52840043 | R59: 0.9083785457 | S59: 2024-04-10 | T59: 1243.30791 | U59: 1965.37474 | V59: 0.6326060291 | W59: 1601 | X59: 4432.952191 | Y59: 0.3611588691 | AA59: 0.00147928994 | AB59: 0.003213555992 | AC59: -0.01555911008 | AD59: 0.007550551875 | AE59: -0.08706255311 | AF59: -0.08146712129 | AG59: -0.02162111183 | AH59: 0.006335935509 | AI59: -0.01351457812 | AJ59: -0.08178754974 | AK59: -0.08115033436 | AL59: -0.1237476002 | AM59: -0.05708232917 | AN59: -0.2223939508 | AO59: 0.05187033356 | AP59: -0.1669963635 | AQ59: 0.07465631875 | AR59: -0.08316978713 | AS59: -0.06267361139 | AT59: -0.4246007268 | AU59: 0.05116762991 | AV59: -0.2223669052 | AW59: 0.09538420735 | AY59: 0.03973870441 | AZ59: -0.02434694395 | BA59: 0.1022320198 | BB59: -0.0489475019 | BC59: 4 | BD59: 8 | BE59: 3 | BF59: 9 | BG59: -1.543773919 | BH59: 0.009885227168 | BI59: -0.09296322466 | BJ59: 2024-04-10 | BK59: 2024-09-26 | BO59: 0.9603033792 | BP59: 1.049461871 | BQ59: 1.112435391 | BR59: 1.117669893 | BS59: 1.052946101 | BT59: 1.011312495 | BU59: 0.9382246792 | BV59: 0.8522586489 | BW59: 0.8539356534 | BX59: 0.9557597428 | BY59: 0.9698174058 | BZ59: 0.8806655961 | CA59: 0.9698174058 | CB59: 0.9080736135 | CC59: 0.9080736135 | CG59: 0.1135276207 | CH59: 10.44 | CI59: 0.07014889721 | CJ59: 8.81 | CK59: 0.06916067146 | CL59: 7.21 | CM59: 0.08968058968 | CN59: 7.3 | CO59: 0.1093093963 | CP59: 7.55 | CQ59: 0.09519012843 | CR59: 7.56 | CS59: 0.09116955062 | CT59: 0.1135276207 | CU59: 0.06916067146
B60: HTMX11<XBSP> | C60: HTMX11 | D60: FII Hotel Mx | E60: =IFERROR(IF(H60="","",VLOOKUP(H60,'Base Gráfico Lâmina'!$H:$I,2,0)),"Carregando") -> 310336<BraNa> | F60: 310336 | G60: Fundo de Investimento Imobiliario FII Hotel Maxinvest | H60: 8706065000169 | I60: Hotel | J60: BTG Pactual Gestora de Recursos Ltda | K60: BTG Pactual Servicos Financeiros SA Dtvm | L60: 35041 | M60: 0.00215 | N60: 304191.3781 | O60: 2024-09-27 | P60: 202.21 | Q60: 202.21 | R60: 1 | S60: 2024-09-27 | T60: 834.84027 | U60: 1220.964894 | V60: 0.6837545241 | W60: 960 | X60: 1391.346614 | Y60: 0.6899790395 | AA60: 0.01155577789 | AB60: 0.01329004394 | AC60: 0.0716680252 | AD60: 0.09477768715 | AE60: 0.131741202 | AF60: 0.1373366338 | AG60: 0.07947472851 | AH60: 0.1074317759 | AI60: 0.130041841 | AJ60: 0.06176886941 | AK60: 0.2145758005 | AL60: 0.1719785346 | AM60: 0.6486186619 | AN60: 0.4833070403 | AO60: 1.319447487 | AP60: 1.10058079 | AQ60: 1.761823633 | AR60: 1.603997527 | AS60: 1.356214726 | AT60: 0.9942876101 | AU60: 0.8102624991 | AV60: 0.536727964 | AW60: 0.3536055252 | AY60: 0.08025621703 | AZ60: -0.1901982437 | BA60: 0.1827886136 | BB60: -0.1292235634 | BC60: 8 | BD60: 4 | BE60: 9 | BF60: 3 | BG60: 1.702437503 | BH60: 0.03522188984 | BI60: -0.2152983701 | BJ60: 2023-12-28 | BK60: 2024-02-14 | BL60: 1900-04-13 | BM60: 2024-05-31 | BO60: 1.047810049 | BP60: 1.487064666 | BQ60: 1.261877351 | BR60: 0.9010338197 | BS60: 0.9784874259 | BT60: 0.7823944669 | BU60: 0.707265115 | BV60: 0.661385021 | BW60: 0.7858142078 | BX60: 0.9301510689 | BY60: 1.357963755 | BZ60: 1.502224193 | CA60: 1.502224193 | CB60: 1 | CC60: 1 | CE60: 0.07043921164 | CF60: 8.578843229 | CG60: 0.07617240776 | CH60: 11.17368084 | CI60: 0.009397206338 | CJ60: 1.762098418 | CK60: 0 | CL60: 0 | CM60: 0.04463320324 | CN60: 3.944682502 | CO60: 0.2078374907 | CP60: 22.92166713 | CQ60: 0.1974810644 | CR60: 28.63475433 | CS60: 0.08656579773 | CT60: 0.2078374907 | CU60: 0
B61: HSAF11<XBSP> | C61: HSAF11 | D61: FII Hsi Cri | E61: =IFERROR(IF(H61="","",VLOOKUP(H61,'Base Gráfico Lâmina'!$H:$I,2,0)),"Carregando") -> 556221<BraNa> | F61: 556221 | G61: Hsi Ativos Financeiros - Fundo de Investimento Imobiliario | H61: 35360687000150 | I61: TVM | J61: Hsi Gestora de Ativos Financeiros Ltda. | K61: Brl Dtvm | L61: 10694 | M61: 0.00147 | N61: 207161.52 | O61: 2024-09-27 | P61: 82 | Q61: 85.52470255 | R61: 0.9587873159 | S61: 2024-08-02 | T61: 1224.02741 | U61: 696.9300055 | V61: 1.75631326 | W61: 1289 | X61: 1209.430279 | Y61: 1.065791077 | AA61: -0.004975124379 | AB61: -0.003240858327 | AC61: -0.02287893232 | AD61: 0.000230729636 | AE61: 0.0396334565 | AF61: 0.04522888832 | AG61: -0.01952271877 | AH61: 0.008434328571 | AI61: -0.01855715317 | AJ61: -0.08683012478 | AK61: -0.02440000599 | AL61: -0.06699727187 | AM61: 0.08295451378 | AN61: -0.08235710783 | AO61: 0.2525124586 | AP61: 0.03364576153 | AQ61: 0.3834530599 | AR61: 0.225626954 | AS61: 0.4694730961 | AT61: 0.1075459806 | AW61: 0.127053305 | AY61: 0.04092377647 | AZ61: -0.03723404255 | BA61: 0.04015693515 | BB61: -0.04161992372 | BC61: 7 | BD61: 5 | BE61: 7 | BF61: 5 | BG61: -0.1345932369 | BH61: 0.01311989554 | BI61: -0.06722595078 | BJ61: 2024-04-05 | BK61: 2024-04-25 | BL61: 1900-03-18 | BM61: 2024-07-26 | BS61: 0.9545987024 | BT61: 1.04793779 | BU61: 0.9765223492 | BV61: 1.001224491 | BW61: 0.8550572476 | BX61: 0.9316224868 | BY61: 0.9222445421 | BZ61: 0.9187708029 | CA61: 1.001224491 | CB61: 0.9176471523 | CC61: 0.9176471523 | CK61: 0.1234791889 | CL61: 11.57 | CM61: 0.1349333333 | CN61: 12.65 | CO61: 0.1370038412 | CP61: 10.7 | CQ61: 0.1211376405 | CR61: 10.35 | CS61: 0.129138501 | CT61: 0.1370038412 | CU61: 0.1211376405
B62: HSLG11<XBSP> | C62: HSLG11 | D62: FII Hsi Log | E62: =IFERROR(IF(H62="","",VLOOKUP(H62,'Base Gráfico Lâmina'!$H:$I,2,0)),"Carregando") -> 521922<BraNa> | F62: 521922 | G62: Hsi Logística Fundo de Investimento Imobiliário | H62: 32903621000171 | I62: Logistica | J62: Hsi Gestora de Fundos Imobiliarios Ltda | K62: Brl Dtvm | L62: 40067 | M62: 0.00757 | N62: 1069395.86 | O62: 2024-09-27 | P62: 84.47 | Q62: 94.74109258 | R62: 0.8915877757 | S62: 2024-03-11 | T62: 478.69762 | U62: 693.0657562 | V62: 0.6906958188 | W62: 711 | X62: 1320.262948 | Y62: 0.5385290869 | AA62: 0.007033857892 | AB62: 0.008768123944 | AC62: -0.01435239207 | AD62: 0.008757269888 | AE62: -0.07821134761 | AF62: -0.07261591579 | AG62: -0.01241011673 | AH62: 0.01554693061 | AI62: -0.007321318162 | AJ62: -0.07559428977 | AK62: -0.1024610923 | AL62: -0.1450583581 | AM62: -0.01976507593 | AN62: -0.1850766975 | AO62: 0.06136107152 | AP62: -0.1575056256 | AQ62: 0.2419903412 | AR62: 0.0841642353 | AW62: 0.1274980586 | AY62: 0.02904304221 | AZ62: -0.04396407686 | BA62: 0.09189668551 | BB62: -0.08193384224 | BC62: 6 | BD62: 6 | BE62: 5 | BF62: 7 | BG62: -0.8707716227 | BH62: 0.01313193565 | BI62: -0.1222165617 | BJ62: 2024-03-11 | BK62: 2024-07-02 | BS62: 1.02652841 | BT62: 0.884767805 | BU62: 0.8592663992 | BV62: 0.7958465547 | BW62: 0.8404465788 | BX62: 0.9106208646 | BY62: 0.9446067677 | BZ62: 0.8078661315 | CA62: 0.9446067677 | CB62: 0.8552406769 | CC62: 0.8552406769 | CK62: 0.06200760033 | CL62: 6.69 | CM62: 0.08230495712 | CN62: 7.87 | CO62: 0.09875283447 | CP62: 8.71 | CQ62: 0.09359190556 | CR62: 8.88 | CS62: 0.08416432437 | CT62: 0.09875283447 | CU62: 0.06200760033
B63: HSML11<XBSP> | C63: HSML11 | D63: FII Hsi Mall | E63: =IFERROR(IF(H63="","",VLOOKUP(H63,'Base Gráfico Lâmina'!$H:$I,2,0)),"Carregando") -> 504386<BraNa> | F63: 504386 | G63: Hsi Malls Fundo de Investimento Imobiliário | H63: 32892018000131 | I63: Shoppings | J63: Hsi Gestora de Fundos Imobiliarios Ltda | K63: S3 Caceis Brasil Dtvm S A | L63: 197528 | M63: 0.01345 | N63: 1901071.138 | O63: 2024-09-27 | P63: 91.36 | Q63: 96.07071429 | R63: 0.9509661781 | S63: 2024-07-30 | T63: 3952.99972 | U63: 3729.774138 | V63: 1.059849625 | W63: 11026 | X63: 6563.12749 | Y63: 1.679991744 | AA63: 0.007276736494 | AB63: 0.009011002547 | AC63: -0.04584856397 | AD63: -0.02273890202 | AE63: 0.01950241304 | AF63: 0.02509784486 | AG63: -0.04466119311 | AH63: -0.01670414576 | AI63: -0.01834133591 | AJ63: -0.08661430752 | AK63: -0.02128286356 | AL63: -0.06388012944 | AM63: 0.08319546883 | AN63: -0.08211615278 | AO63: 0.1845808145 | AP63: -0.03428588256 | AQ63: 0.5233538419 | AR63: 0.365527736 | AS63: 0.3897989146 | AT63: 0.02787179916 | AU63: 0.3150355162 | AV63: 0.04150098107 | AW63: 0.1045751321 | AY63: 0.02979166667 | AZ63: -0.02444329363 | BA63: 0.04301423027 | BB63: -0.04584856397 | BC63: 9 | BD63: 3 | BE63: 9 | BF63: 3 | BG63: -0.1855961001 | BH63: 0.01081333084 | BI63: -0.06631276075 | BJ63: 2024-07-30 | BK63: 2024-09-25 | BQ63: 1.288087018 | BR63: 0.8917435147 | BS63: 0.9604819046 | BT63: 0.9413894239 | BU63: 0.8482189308 | BV63: 0.7887625795 | BW63: 0.831562434 | BX63: 0.9842481911 | BY63: 1.011023141 | BZ63: 0.8438426786 | CA63: 1.011023141 | CB63: 0.8346422988 | CC63: 0.8346422988 | CI63: 0.03515190075 | CJ63: 4.42 | CK63: 0.05427017806 | CL63: 5.09 | CM63: 0.09250123335 | CN63: 7.5 | CO63: 0.108454523 | CP63: 8.8 | CQ63: 0.1001393803 | CR63: 9.34 | CS63: 0.0781034431 | CT63: 0.108454523 | CU63: 0.03515190075
B64: INLG11<XBSP> | C64: INLG11 | D64: FII Inter Lg | E64: =IFERROR(IF(H64="","",VLOOKUP(H64,'Base Gráfico Lâmina'!$H:$I,2,0)),"Carregando") -> 521914<BraNa> | F64: 521914 | G64: Inter Logístico Fundo de Investimento Imobiliário - FII | H64: 34598181000111 | I64: Logística | J64: - | K64: - | L64: 20451 | M64: 0.00207 | N64: 374414.3069 | O64: 2024-09-27 | P64: 82.98 | Q64: 85.74809115 | R64: 0.967718335 | S64: 2024-08-07 | T64: 151.95324 | U64: 408.7503625 | V64: 0.3717507162 | W64: 112 | X64: 492.2151394 | Y64: 0.2275427776 | AA64: -0.0002409638555 | AB64: 0.001493302197 | AC64: -0.01670814078 | AD64: 0.006401521178 | AE64: -0.005142768596 | AF64: 0.0004526632246 | AG64: -0.01751600967 | AH64: 0.01044103767 | AI64: -0.01989119195 | AJ64: -0.08816416356 | AK64: -0.01554537602 | AL64: -0.05814264189 | AM64: 0.05016394718 | AN64: -0.1151476744 | AO64: 0.2033464143 | AP64: -0.01552028281 | AQ64: 0.3217281769 | AR64: 0.163902071 | AS64: 0.177945908 | AT64: -0.1839812074 | AW64: 0.09440647371 | AY64: 0.02792899408 | AZ64: -0.03264129181 | BA64: 0.03715670436 | BB64: -0.02899864069 | BC64: 6 | BD64: 6 | BE64: 6 | BF64: 6 | BG64: -0.5340865294 | BH64: 0.00975433179 | BI64: -0.05097251151 | BJ64: 2024-03-08 | BK64: 2024-05-09 | BL64: 1900-04-14 | BM64: 2024-08-07 | BQ64: 1.324088728 | BR64: 1.081522339 | BS64: 1.019469828 | BT64: 0.8984925035 | BU64: 0.8563925945 | BV64: 0.7760999874 | BW64: 0.7975508291 | BX64: 0.8579135099 | BY64: 0.8556870773 | BZ64: 0.8310816495 | CA64: 0.8579135099 | CB64: 0.9687242827 | CC64: 0.9687242827 | CI64: 0.04018619072 | CJ64: 5.102091581 | CK64: 0.06248137479 | CL64: 6.29 | CM64: 0.08352402746 | CN64: 7.3 | CO64: 0.09331544279 | CP64: 7.65 | CQ64: 0.09827981651 | CR64: 8.57 | CS64: 0.07555737045 | CT64: 0.09827981651 | CU64: 0.04018619072
B65: IRDM11<XBSP> | C65: IRDM11 | D65: FII Iridium | E65: =IFERROR(IF(H65="","",VLOOKUP(H65,'Base Gráfico Lâmina'!$H:$I,2,0)),"Carregando") -> 461970<BraNa> | F65: 461970 | G65: Fundo de Investimento Imobiliario Iridium Recebiveis Imobili | H65: 28830325000110 | I65: TVM | J65: Iridium Gestao de Recursos Ltda | K65: BTG Pactual Servicos Financeiros SA Dtvm | L65: 288936 | M65: 0.01745 | N65: 2466570.088 | O65: 2024-09-27 | P65: 67.7 | Q65: 75.77455998 | R65: 0.8934396983 | S65: 2024-01-08 | T65: 4262.52329 | U65: 4303.673973 | V65: 0.9904382434 | W65: 6129 | X65: 6369.498008 | Y65: 0.9622422351 | AA65: 0.02111613876 | AB65: 0.02285040481 | AC65: -0.05042174964 | AD65: -0.02731208769 | AE65: -0.0969721684 | AF65: -0.09137673657 | AG65: -0.04591635465 | AH65: -0.01795930731 | AI65: -0.02675814185 | AJ65: -0.09503111346 | AK65: -0.05446533811 | AL65: -0.09706260398 | AM65: -0.03118222937 | AN65: -0.196493851 | AO65: -0.1640186187 | AP65: -0.3828853158 | AQ65: -0.1024127341 | AR65: -0.26023884 | AS65: 0.1146324445 | AT65: -0.247294671 | AU65: 0.458255164 | AV65: 0.1847206289 | AW65: 0.1109796601 | AY65: 0.02754783553 | AZ65: -0.0206822455 | BA65: 0.1438240457 | BB65: -0.0721414802 | BC65: 6 | BD65: 6 | BE65: 7 | BF65: 5 | BG65: -1.105201471 | BH65: 0.01147890186 | BI65: -0.1288633016 | BJ65: 2024-01-08 | BK65: 2024-09-25 | BO65: 1.145502696 | BP65: 1.146136872 | BQ65: 1.401018238 | BR65: 1.21340024 | BS65: 1.382765764 | BT65: 1.295713965 | BU65: 1.111244074 | BV65: 1.063043072 | BW65: 0.9951971518 | BX65: 0.990977985 | BY65: 0.9384996223 | BZ65: 0.7963308022 | CA65: 1.063043072 | CB65: 0.7491049264 | CC65: 0.7491049264 | CG65: 0.09249002149 | CH65: 10.12673245 | CI65: 0.08135425113 | CJ65: 11.55230366 | CK65: 0.1061193667 | CL65: 14.55851591 | CM65: 0.1261296286 | CN65: 13.74434563 | CO65: 0.110120092 | CP65: 10.1695905 | CQ65: 0.1148875763 | CR65: 9.042801133 | CS65: 0.1051834894 | CT65: 0.1261296286 | CU65: 0.08135425113
B66: JSAF11<XBSP> | C66: JSAF11 | D66: FII Js A Fin | E66: =IFERROR(IF(H66="","",VLOOKUP(H66,'Base Gráfico Lâmina'!$H:$I,2,0)),"Carregando") -> 621722<BraNa> | F66: 621722 | G66: Js Ativos Financeiros Fundo de Investimento Imobiliário | H66: 42085661000107 | I66: TVM | J66: Safra Asset Management Ltda | K66: Banco J Safra SA | L66: 16035 | M66: 0.00518 | N66: 732595.0905 | O66: 2024-09-27 | P66: 94.5 | Q66: 100.2073249 | R66: 0.9430448331 | S66: 2024-05-29 | T66: 1830.76058 | U66: 1642.215774 | V66: 1.114811226 | W66: 1179 | X66: 1998.159363 | Y66: 0.5900430277 | AA66: 0.005640097905 | AB66: 0.007374363957 | AC66: -0.04352226721 | AD66: -0.02041260525 | AE66: 0.03429708967 | AF66: 0.03989252149 | AG66: -0.04486334765 | AH66: -0.01690630031 | AI66: -0.00534488661 | AJ66: -0.07361785822 | AK66: -0.02612694561 | AL66: -0.06872421149 | AM66: 0.08938973349 | AN66: -0.07592188812 | AO66: 0.3840960631 | AP66: 0.165229366 | AW66: 0.1802086356 | AY66: 0.04389189189 | AZ66: -0.04175638985 | BA66: 0.0664171123 | BB66: -0.04352226721 | BC66: 7 | BD66: 5 | BE66: 6 | BF66: 6 | BG66: -0.01733430276 | BH66: 0.01860577662 | BI66: -0.1149272587 | BJ66: 2024-05-29 | BK66: 2024-06-20 | BU66: 1.022931511 | BV66: 0.8528567274 | BW66: 0.8894223754 | BX66: 0.93149244 | BY66: 0.9979245113 | BZ66: 0.986617417 | CA66: 0.9979245113 | CB66: 0.9886693891 | CC66: 0.9886693891 | CM66: 0.1099739113 | CN66: 10.96 | CO66: 0.1360861759 | CP66: 11.37 | CQ66: 0.1201816347 | CR66: 11.91 | CS66: 0.122080574 | CT66: 0.1360861759 | CU66: 0.1099739113
B67: JSRE11<XBSP> | C67: JSRE11 | D67: FII Js Real | E67: =IFERROR(IF(H67="","",VLOOKUP(H67,'Base Gráfico Lâmina'!$H:$I,2,0)),"Carregando") -> 318760<BraNa> | F67: 318760 | G67: Js Real Estate Multigestão - FII | H67: 13371132000171 | I67: Híbrido | J67: Safra Asset Management Ltda | K67: Banco J Safra SA | L67: 100335 | M67: 0.00925 | N67: 1307303.298 | O67: 2024-09-27 | P67: 62.95 | Q67: 73.32199427 | R67: 0.8585418418 | S67: 2024-01-19 | T67: 1758.64652 | U67: 2336.161687 | V67: 0.7527931522 | W67: 10712 | X67: 5825.270916 | Y67: 1.838884432 | AA67: 0.008167841128 | AB67: 0.00990210718 | AC67: -0.01053127947 | AD67: 0.01257838248 | AE67: -0.1087737235 | AF67: -0.1031782917 | AG67: -0.02408147429 | AH67: 0.003875573052 | AI67: -0.01582918762 | AJ67: -0.08410215923 | AK67: -0.1127968896 | AL67: -0.1553941555 | AM67: -0.1037470228 | AN67: -0.2690586444 | AO67: -0.1502845428 | AP67: -0.3691512398 | AQ67: -0.003576156951 | AR67: -0.1614022628 | AS67: -0.1315734131 | AT67: -0.4935005286 | AU67: -0.1872256974 | AV67: -0.4607602326 | AW67: 0.1927470533 | AY67: 0.04383561644 | AZ67: -0.04137931034 | BA67: 0.06503476246 | BB67: -0.07947019868 | BC67: 4 | BD67: 8 | BE67: 4 | BF67: 8 | BG67: -0.9254516955 | BH67: 0.01993989199 | BI67: -0.1672822904 | BJ67: 2024-01-19 | BK67: 2024-07-02 | BO67: 0.9098720615 | BP67: 0.996761738 | BQ67: 1.059082271 | BR67: 0.9013765794 | BS67: 0.8693308021 | BT67: 0.7892902631 | BU67: 0.7226942416 | BV67: 0.6675446093 | BW67: 0.6418549842 | BX67: 0.7070303064 | BY67: 0.6807251371 | BZ67: 0.5742625697 | CA67: 0.7070303064 | CB67: 0.812217757 | CC67: 0.812217757 | CE67: 0.06601320264 | CF67: 6.6 | CG67: 0.06999203505 | CH67: 7.03 | CI67: 0.04626829069 | CJ67: 5.66 | CK67: 0.06459112504 | CL67: 6.39 | CM67: 0.07291843928 | CN67: 5.999 | CO67: 0.07695490277 | CP67: 5.58 | CQ67: 0.07414223741 | CR67: 5.64 | CS67: 0.0672686047 | CT67: 0.07695490277 | CU67: 0.04626829069
B68: KISU11<XBSP> | C68: KISU11 | D68: FII Kilima | E68: =IFERROR(IF(H68="","",VLOOKUP(H68,'Base Gráfico Lâmina'!$H:$I,2,0)),"Carregando") -> 558095<BraNa> | F68: 558095 | G68: Kilima Fundo de Investimento em Cotas de FII Suno 30 | H68: 36669660000107 | I68: TVM | J68: Kilima Gestao de Recursos Ltda | K68: Brl Dtvm | L68: 124877 | M68: 0.00247 | N68: 348264.874 | O68: 2024-09-27 | P68: 7.88 | Q68: 8.325343201 | R68: 0.9465075265 | S68: 2024-05-31 | T68: 646.31336 | U68: 816.2589194 | V68: 0.7917994458 | W68: 3451 | X68: 3791.414343 | Y68: 0.9102144182 | AA68: -0.00379266751 | AB68: -0.002058401458 | AC68: -0.02955665025 | AD68: -0.006446988295 | AE68: -0.01445102932 | AF68: -0.008855597504 | AG68: -0.02718102393 | AH68: 0.00077602341 | AI68: -0.02906280747 | AJ68: -0.09733577908 | AK68: -0.006391818128 | AL68: -0.04898908401 | AM68: 0.01823405007 | AN68: -0.1470775715 | AO68: 0.1669171073 | AP68: -0.05194958976 | AQ68: 0.275159691 | AR68: 0.1173335851 | AW68: 0.1037011614 | AY68: 0.0245398773 | AZ68: -0.02467685076 | BA68: 0.05932721713 | BB68: -0.03647944412 | BC68: 5 | BD68: 7 | BE68: 3 | BF68: 9 | BG68: -0.7588500726 | BH68: 0.01069639399 | BI68: -0.06511043699 | BJ68: 2023-09-29 | BK68: 2023-11-24 | BL68: 1900-02-26 | BM68: 2023-12-22 | BT68: 1.164839787 | BU68: 0.858899067 | BV68: 0.8649603489 | BW68: 0.9189728446 | BX68: 0.9238809157 | BY68: 0.9482294475 | BZ68: 0.9135108525 | CA68: 0.9482294475 | CB68: 0.9633858714 | CC68: 0.9633858714 | CM68: 0.108478803 | CN68: 0.87 | CO68: 0.1117353308 | CP68: 0.895 | CQ68: 0.1039488966 | CR68: 0.895 | CS68: 0.1080543435 | CT68: 0.1117353308 | CU68: 0.1039488966
B69: KIVO11<XBSP> | C69: KIVO11 | D69: FII Kivo | E69: =IFERROR(IF(H69="","",VLOOKUP(H69,'Base Gráfico Lâmina'!$H:$I,2,0)),"Carregando") -> 627267<BraNa> | F69: 627267 | G69: Kilima Volkano Recebiveis Imobiliarios Fundo de Investimento | H69: 42273325000198 | I69: TVM | J69: Kilima Gestao de Recursos Ltda | K69: Brl Dtvm | L69: 6957 | M69: 0.00124 | N69: 175240.5062 | O69: 2024-09-27 | P69: 78.84 | Q69: 87.52719116 | R69: 0.9007486582 | S69: 2024-02-01 | T69: 526.86318 | U69: 387.7292174 | V69: 1.358843121 | W69: 2708 | X69: 1086.836653 | Y69: 2.491634775 | AA69: 0.02084682118 | AB69: 0.02258108724 | AC69: -0.01646706587 | AD69: 0.006642596084 | AE69: -0.03427446169 | AF69: -0.02867902987 | AG69: -0.01997105298 | AH69: 0.007985994361 | AI69: -0.01924859574 | AJ69: -0.08752156735 | AK69: -0.07368147878 | AL69: -0.1162787447 | AM69: -0.02429352712 | AN69: -0.1896051487 | AO69: 0.1211067333 | AP69: -0.09775996376 | AW69: 0.1593137071 | AY69: 0.05294740558 | AZ69: -0.03617881736 | BA69: 0.05859375 | BB69: -0.0278078338 | BC69: 5 | BD69: 7 | BE69: 4 | BF69: 8 | BG69: -0.6933703848 | BH69: 0.01649765603 | BI69: -0.1176456256 | BJ69: 2024-02-01 | BK69: 2024-09-26 | BV69: 0.9876969792 | BW69: 0.9923254894 | BX69: 0.990477084 | BY69: 0.9797269807 | BZ69: 0.8831782953 | CA69: 0.9923254894 | CB69: 0.8900086763 | CC69: 0.8900086763 | CO69: 0.1638830898 | CP69: 15.7 | CQ69: 0.1375361233 | CR69: 12.85 | CS69: 0.1507096065 | CT69: 0.1638830898 | CU69: 0.1375361233
B70: KORE11<XBSP> | C70: KORE11 | D70: FII Kore | E70: =IFERROR(IF(H70="","",VLOOKUP(H70,'Base Gráfico Lâmina'!$H:$I,2,0)),"Carregando") -> 749761<BraNa> | F70: 749761 | G70: Kine Oport Real Estat FII Resp Lim Unica | H70: 52219978000142 | I70: Outros | J70: Kinea Investimento Ltda | K70: Intrag | L70: 19897 | M70: 0.00683 | N70: 965291.25 | O70: 2024-09-27 | P70: 100.29 | T70: 1774.35882 | W70: 1243 | AA70: -0.0005979073239 | AB70: 0.001136358728 | AC70: -0.03752399232 | AD70: -0.01441433037 | AE70: 0.02598366138 | AF70: 0.0315790932 | AG70: -0.02812319248 | AH70: -0.000166145135 | AI70: -0.0002567047195 | AJ70: -0.06852967633 | AK70: -0.0128702315 | AL70: -0.05546749737 | AY70: 0.02757051865 | AZ70: -0.02089790136 | BA70: 0.02497437331 | BB70: -0.03752399232 | BI70: -0.06778827356 | BJ70: 2024-03-07 | BK70: 2024-07-02 | BY70: 1.073819664 | BZ70: 0.9460933188 | CA70: 1.073819664 | CB70: 0.8810541945 | CC70: 0.8810541945
B71: KCRE11<XBSP> | C71: KCRE11 | D71: FII Kinea Cr | E71: =IFERROR(IF(H71="","",VLOOKUP(H71,'Base Gráfico Lâmina'!$H:$I,2,0)),"Carregando") -> 655317<BraNa> | F71: 655317 | G71: Kinea Creditas Fundo de Investimento Imobiliário - FII | H71: 42502802000140 | I71: TVM | J71: Kinea Investimento Ltda | K71: Intrag | L71: 14225 | M71: 0.00244 | N71: 344160 | O71: 2024-09-27 | P71: 9.56 | Q71: 9.87 | R71: 0.968591692 | S71: 2024-08-30 | T71: 358.7932 | U71: 518.37204 | V71: 0.6921538438 | W71: 2315 | X71: 868.7729084 | Y71: 2.664677936 | AA71: 0.002096436059 | AB71: 0.003830702111 | AC71: -0.03140830801 | AD71: -0.008298646053 | AE71: 0.06616483406 | AF71: 0.07176026588 | AG71: -0.0105463331 | AH71: 0.01741071424 | AI71: 0.009162433309 | AJ71: -0.0591105383 | AK71: 0.02912227815 | AL71: -0.01347498773 | AM71: 0.1197080192 | AN71: -0.04560360241 | AO71: 0.2985547282 | AP71: 0.07968803107 | AW71: 0.09773655803 | AY71: 0.02697375247 | AZ71: -0.01950390078 | BA71: 0.0462184874 | BB71: -0.03140830801 | BC71: 8 | BD71: 4 | BE71: 8 | BF71: 4 | BG71: 0.1336059692 | BH71: 0.010114151 | BI71: -0.05572441743 | BJ71: 2024-08-30 | BK71: 2024-09-12 | BV71: 1.028768546 | BW71: 0.8965112972 | BX71: 0.9474777429 | BY71: 0.9388903639 | BZ71: 0.9549859246 | CA71: 1.028768546 | CB71: 0.9282806403 | CC71: 0.9282806403 | CO71: 0.1306526939 | CP71: 1.147 | CQ71: 0.1145070128 | CR71: 1.094 | CS71: 0.1225798534 | CT71: 0.1306526939 | CU71: 0.1145070128
B72: KNHF11<XBSP> | C72: KNHF11 | D72: FII Kinea Hf | E72: =IFERROR(IF(H72="","",VLOOKUP(H72,'Base Gráfico Lâmina'!$H:$I,2,0)),"Carregando") -> 716685<BraNa> | F72: 716685 | G72: Kinea Hedge Fund FII Resp Lim Unica | H72: 42754342000147 | I72: Multicategoria | J72: Kinea Investimento Ltda | K72: Intrag | L72: 35833 | M72: 0.01329 | N72: 1877445.678 | O72: 2024-09-27 | P72: 95.48 | Q72: 99.49442823 | R72: =IFERROR(P72/Q72,"") -> 0.9596517282 | S72: 2024-04-05 | T72: 3977.237 | U72: 2302.647457 | V72: =IFERROR(T72/U72,"") -> 1.727245301 | W72: 6005 | X72: 1874.756972 | Y72: =IFERROR(W72/X72,"") -> 3.203081834 | AA72: 0.01197668256 | AB72: =IF(AA72="","",AA72-AA$5) -> 0.01371094862 | AC72: -0.02011494253 | AD72: =IF(AC72="","",AC72-AC$5) -> 0.002994719424 | AE72: -0.02808702618 | AF72: =IF(AE72="","",AE72-AE$5) -> -0.02249159436 | AG72: -0.01671534131 | AH72: =IF(AG72="","",AG72-AG$5) -> 0.01124170603 | AI72: 0.03967187606 | AJ72: =IF(AI72="","",AI72-AI$5) -> -0.02860109555 | AK72: -0.01830610154 | AL72: =IF(AK72="","",AK72-AK$5) -> -0.06090336742 | AM72: 0.01058758172 | AN72: =IF(AM72="","",AM72-AM$5) -> -0.1547240399 | AP72: =IF(AO72="","",AO72-AO$5) ->  | AR72: =IF(AQ72="","",AQ72-AQ$5) ->  | AT72: =IF(AS72="","",AS72-AS$5) ->  | AV72: =IF(AU72="","",AU72-AU$5) ->  | AW72: 0.104114799 | AY72: 0.03982207159 | AZ72: -0.02086759868 | BA72: 0.04761904762 | BB72: -0.02390248548 | BC72: 6 | BD72: 6 | BE72: 5 | BF72: 7 | BG72: -0.8175048651 | BH72: 0.01080084873 | BI72: -0.07970396374 | BJ72: 2024-04-05 | BK72: 2024-06-26 | BY72: 1.037912889 | BZ72: 0.9562486011 | CA72: =IF(B72="","",IF(MAX(BO72:BZ72)=0,"-x-",MAX(BV72:BZ72))) -> 1.037912889 | CB72: =IF(B72="","",IFERROR(BZ72/CA72,"-x-")) -> 0.921318746 | CC72: =IF(B72="","",IFERROR(BZ72/CA72,"-x-")) -> 0.921318746 | CQ72: 0.1048685584 | CR72: 11.05 | CS72: 0.1048685584 | CT72: 0.1048685584 | CU72: 0.1048685584
B73: KNHY11<XBSP> | C73: KNHY11 | D73: FII Kinea Hy | E73: =IFERROR(IF(H73="","",VLOOKUP(H73,'Base Gráfico Lâmina'!$H:$I,2,0)),"Carregando") -> 482676<BraNa> | F73: 482676 | G73: Kinea High Yield Cri Fundo de Investimento Imobiliário - FII | H73: 30130708000128 | I73: TVM | J73: Kinea Investimento Ltda | K73: Intrag | L73: 28977 | M73: 0.02113 | N73: 370975.599 | O73: 2024-09-27 | P73: 105.99 | Q73: 107.1 | R73: 0.9896358543 | S73: 2024-09-20 | T73: 4737.82908 | U73: 4030.243981 | V73: 1.1755688 | W73: 6057 | X73: 5079.705179 | Y73: 1.192392036 | AA73: 0.001322626358 | AB73: 0.00305689241 | AC73: 0.009524716639 | AD73: 0.03263437859 | AE73: 0.1333684323 | AF73: 0.1389638641 | AG73: 0.006297578584 | AH73: 0.03425462593 | AI73: 0.04156939113 | AJ73: -0.02670358048 | AK73: 0.05437287678 | AL73: 0.0117756109 | AM73: 0.1736339044 | AN73: 0.00832228283 | AO73: 0.3920400014 | AP73: 0.1731733043 | AQ73: 0.4743161961 | AR73: 0.3164900903 | AS73: 0.6396311386 | AT73: 0.2777040231 | AU73: 0.6213611496 | AV73: 0.3478266145 | AW73: 0.06309030889 | AY73: 0.01384936445 | AZ73: -0.01398465572 | BA73: 0.03266503667 | BB73: -0.004804392586 | BC73: 11 | BD73: 1 | BE73: 10 | BF73: 2 | BG73: 0.936391281 | BH73: 0.006524028512 | BI73: -0.01787448999 | BJ73: 2023-10-13 | BK73: 2023-10-30 | BL73: 1900-02-02 | BM73: 2023-12-01 | BO73: 1.065148144 | BP73: 1.243960544 | BQ73: 1.060798769 | BR73: 0.9986264257 | BS73: 1.058242437 | BT73: 1.101400987 | BU73: 1.086363896 | BV73: 1.068347045 | BW73: 0.9908819715 | BX73: 0.9699514268 | BY73: 186.8020028 | BZ73: 10.85410019 | CA73: 186.8020028 | CB73: 0.05810483844 | CC73: 0.05810483844 | CG73: 0.07105071142 | CH73: 7.79 | CI73: 0.06934647744 | CJ73: 8.16 | CK73: 0.1308780874 | CL73: 14.89 | CM73: 0.1236111111 | CN73: 13.35 | CO73: 0.1326657031 | CP73: 12.85 | CQ73: 0.1265822785 | CR73: 13 | CS73: =IFERROR(AVERAGE(CE73,CG73,CI73,CK73,CM73,CO73,CQ73),"") -> 0.1090223948 | CT73: =IF(MAX(CE73,CG73,CI73,CK73,CM73,CO73,CQ73)=0,"",MAX(CE73,CG73,CI73,CK73,CM73,CO73,CQ73)) -> 0.1326657031 | CU73: =IF(SUM(CE73:CR73)<>0,MIN(CE73,CG73,CI73,CK73,CM73,CO73,CQ73),"") -> 0.06934647744
B74: KNIP11<XBSP> | C74: KNIP11 | D74: FII Kinea Ip | E74: =IFERROR(IF(H74="","",VLOOKUP(H74,'Base Gráfico Lâmina'!$H:$I,2,0)),"Carregando") -> 428779<BraNa> | F74: 428779 | G74: Kinea Indices de Preços Fundo de Investimento Imobiliário - | H74: 24960430000113 | I74: Não se aplica | J74: Kinea Investimento Ltda | K74: Intrag | L74: 78267 | M74: 0.0531 | N74: 7503326.028 | O74: 2024-09-27 | P74: 93.7 | Q74: 96.09 | R74: 0.9751274846 | S74: 2024-09-09 | T74: 8778.25343 | U74: 9528.630074 | V74: 0.9212503122 | W74: 9909 | X74: 11688.06773 | Y74: 0.8477876951 | AA74: -0.003085434621 | AB74: -0.001351168569 | AC74: -0.02130770838 | AD74: 0.001801953576 | AE74: 0.06471101928 | AF74: 0.0703064511 | AG74: -0.01621035269 | AH74: 0.01174669465 | AI74: -0.0002913136041 | AJ74: -0.06856428522 | AK74: 0.01168172031 | AL74: -0.03091554557 | AM74: 0.1121435773 | AN74: -0.05316804433 | AO74: 0.2550439224 | AP74: 0.03617722534 | AQ74: 0.287996572 | AR74: 0.1301704661 | AS74: 0.3634415573 | AT74: 0.00151444182 | AU74: 0.3893899456 | AV74: 0.1158554104 | AW74: 0.06828548811 | AY74: 0.02106607086 | AZ74: -0.01476130653 | BA74: 0.04699824715 | BB74: -0.02130770838 | BC74: 8 | BD74: 4 | BE74: 10 | BF74: 2 | BG74: 0.05475730962 | BH74: 0.007066230966 | BI74: -0.02658529601 | BJ74: 2023-10-16 | BK74: 2023-11-01 | BL74: 1900-02-12 | BM74: 2023-12-18 | BO74: 1.040636179 | BP74: 1.088321324 | BQ74: 1.029637828 | BR74: 0.9902066569 | BS74: 1.061679172 | BT74: 1.046202952 | BU74: 1.044657853 | BV74: 1.053018543 | BW74: 0.9696194454 | BX74: 0.9440174122 | BY74: 0.9565516617 | BZ74: 0.9800437632 | CA74: 1.053018543 | CB74: 0.9306994356 | CC74: 0.9306994356 | CE74: 0.08361550038 | CF74: 8.89 | CG74: 0.07273559012 | CH74: 7.95 | CI74: 0.07347287484 | CJ74: 8.6 | CK74: 0.126408666 | CL74: 14.47 | CM74: 0.124975892 | CN74: 12.96 | CO74: 0.1068014504 | CP74: 9.72 | CQ74: 0.1063101604 | CR74: 9.94 | CS74: 0.09918859059 | CT74: 0.126408666 | CU74: 0.07273559012
B75: KNRI11<XBSP> | C75: KNRI11 | D75: FII Kinea | E75: =IFERROR(IF(H75="","",VLOOKUP(H75,'Base Gráfico Lâmina'!$H:$I,2,0)),"Carregando") -> 253707<BraNa> | F75: 253707 | G75: Kinea Renda Imobiliária Fundo de Investimento Imobiliário - | H75: 12005956000165 | I75: TVM | J75: Kinea Investimento Ltda | K75: Intrag | L75: 279363 | M75: 0.02794 | N75: 3948566.58 | O75: 2024-09-27 | P75: 140 | Q75: 160.2442789 | R75: 0.8736661361 | S75: 2024-03-28 | T75: 27312.71749 | U75: 4849.149487 | V75: 5.632475873 | W75: 9026 | X75: 5055.513944 | Y75: 1.785377332 | AA75: 0.01302460203 | AB75: 0.01475886808 | AC75: -0.08502712241 | AD75: -0.06191746046 | AE75: -0.1025780793 | AF75: -0.0969826475 | AG75: -0.08264453566 | AH75: -0.05468748832 | AI75: -0.1040440494 | AJ75: -0.172317021 | AK75: -0.118386628 | AL75: -0.1609838939 | AM75: -0.0694730919 | AN75: -0.2347847135 | AO75: 0.08040992667 | AP75: -0.1384567704 | AQ75: 0.1903189714 | AR75: 0.0324928655 | AS75: 0.1211450951 | AT75: -0.2407820204 | AU75: 0.2298616691 | AV75: -0.04367286601 | AW75: 0.118987021 | AY75: 0.01769636759 | AZ75: -0.06201022147 | BA75: 0.04416403785 | BB75: -0.08502712241 | BC75: 6 | BD75: 6 | BE75: 3 | BF75: 9 | BG75: -1.330849365 | BH75: 0.01218014168 | BI75: -0.1409989741 | BJ75: 2024-03-28 | BK75: 2024-09-20 | BO75: 1.010168808 | BP75: 1.01860229 | BQ75: 1.308668121 | BR75: 1.076706853 | BS75: 1.028884851 | BT75: 0.8735238397 | BU75: 0.8936174267 | BV75: 0.8228738773 | BW75: 0.8708947197 | BX75: 0.9974074058 | BY75: 1.035680999 | BZ75: 0.8660584422 | CA75: 1.035680999 | CB75: 0.8362212332 | CC75: 0.8362212332 | CE75: 0.06516689082 | CF75: 10.66 | CG75: 0.06103931812 | CH75: 8.88 | CI75: 0.04087317666 | CJ75: 8.07 | CK75: 0.05269994433 | CL75: 8.52 | CM75: 0.07361180058 | CN75: 10.38 | CO75: 0.08706896552 | CP75: 12.12 | CQ75: 0.07379166154 | CR75: 12 | CS75: 0.06489310822 | CT75: 0.08706896552 | CU75: 0.04087317666
B76: KNCR11<XBSP> | C76: KNCR11 | D76: FII Kinea Ri | E76: =IFERROR(IF(H76="","",VLOOKUP(H76,'Base Gráfico Lâmina'!$H:$I,2,0)),"Carregando") -> 362506<BraNa> | F76: 362506 | G76: Kinea Rendimentos Imobiliários Fundo de Investimento Imobili | H76: 16706958000132 | I76: TVM | J76: Kinea Investimento Ltda | K76: Intrag | L76: 376638 | M76: 0.05237 | N76: 7401302.574 | O76: 2024-09-27 | P76: 106.51 | Q76: 106.51 | R76: 1 | S76: 2024-09-27 | T76: 12505.83523 | U76: 11612.43336 | V76: 1.076934941 | W76: 18377 | X76: 14774.1753 | Y76: 1.243859615 | AA76: 0.001410304627 | AB76: 0.003144570679 | AC76: 0.020113016 | AD76: 0.04322267795 | AE76: 0.1133424438 | AF76: 0.1189378756 | AG76: 0.02215033158 | AH76: 0.05010737892 | AI76: 0.03298336977 | AJ76: -0.03528960184 | AK76: 0.09915685724 | AL76: 0.05655959137 | AM76: 0.1933833262 | AN76: 0.0280717046 | AO76: 0.3606558427 | AP76: 0.1417891456 | AQ76: 0.5745021391 | AR76: 0.4166760333 | AS76: 0.7805486377 | AT76: 0.4186215223 | AU76: 0.6088233701 | AV76: 0.335288835 | AW76: 0.06630233202 | AY76: 0.009993141961 | AZ76: -0.01376015289 | BA76: 0.03532096438 | BB76: 0.001646489105 | BC76: 12 | BD76: 0 | BE76: 7 | BF76: 5 | BG76: 1.165737939 | BH76: 0.006847088147 | BI76: -0.02038243766 | BJ76: 2024-01-19 | BK76: 2024-02-05 | BL76: 1900-01-15 | BM76: 2024-02-09 | BO76: 1.00967618 | BP76: 0.9966407284 | BQ76: 1.003542736 | BR76: 0.9246957786 | BS76: 0.8825195952 | BT76: 0.9093077388 | BU76: 1.002089848 | BV76: 1.00866744 | BW76: 0.9676156922 | BX76: 0.9680951942 | BY76: 1.024474758 | BZ76: 1.050234382 | CA76: 1.050234382 | CB76: 1 | CC76: 1 | CE76: 0.07132388862 | CF76: 7.3 | CG76: 0.06276666351 | CH76: 6.62 | CI76: 0.03981375903 | CJ76: 4.19 | CK76: 0.05830062341 | CL76: 5.05 | CM76: 0.1228122219 | CN76: 12.42 | CO76: 0.1392963381 | CP76: 13.58 | CQ76: 0.1203980099 | CR76: 12.1 | CS76: 0.08781592921 | CT76: 0.1392963381 | CU76: 0.03981375903
B77: KNSC11<XBSP> | C77: KNSC11 | D77: FII Kinea Sc | E77: =IFERROR(IF(H77="","",VLOOKUP(H77,'Base Gráfico Lâmina'!$H:$I,2,0)),"Carregando") -> 573981<BraNa> | F77: 573981 | G77: Kinea Securities FII 1 | H77: 35864448000138 | I77: Não se aplica | J77: Kinea Investimento Ltda | K77: Intrag | L77: 160624 | M77: 0.01231 | N77: 1226683.366 | O77: 2024-09-27 | P77: 9.24 | Q77: 9.27 | R77: 0.996763754 | S77: 2024-09-26 | T77: 5110.28388 | U77: 3429.643034 | V77: 1.490033753 | W77: 11734 | X77: 14116.37849 | Y77: 0.8312330256 | AA77: -0.003236245954 | AB77: -0.001501979902 | AC77: 0.007633587787 | AD77: 0.03074324974 | AE77: 0.1021197588 | AF77: 0.1077151907 | AG77: 0.0120051001 | AH77: 0.03996214744 | AI77: 0.03541960079 | AJ77: -0.03285337082 | AK77: 0.0640875153 | AL77: 0.02149024943 | AM77: 0.1402265186 | AN77: -0.02508510304 | AO77: 0.3632961567 | AP77: 0.1444294596 | AQ77: 0.3771695462 | AR77: 0.2193434403 | AW77: 0.1031692253 | AY77: 0.02210708118 | AZ77: -0.02456409694 | BA77: 0.03986332574 | BB77: -0.03882004606 | BC77: 10 | BD77: 2 | BE77: 8 | BF77: 4 | BG77: 0.3127816485 | BH77: 0.01066234002 | BI77: -0.03981435205 | BJ77: 2023-11-21 | BK77: 2023-12-04 | BL77: 1900-01-24 | BM77: 2023-12-26 | BS77: 0.9973152133 | BT77: 1.08109341 | BU77: 1.098212939 | BV77: 1.060174674 | BW77: 0.9697472493 | BX77: 0.9733477152 | BY77: 0.9953978376 | BZ77: 1.027226498 | CA77: 1.060174674 | CB77: 0.9689219367 | CC77: 0.9689219367 | CK77: 0.1337001936 | CL77: 1.312 | CM77: 0.1185587762 | CN77: 1.178 | CO77: 0.122279429 | CP77: 1.045 | CQ77: 0.1088277538 | CR77: 0.985 | CS77: 0.1208415381 | CT77: 0.1337001936 | CU77: 0.1088277538
B78: KNUQ11<XBSP> | C78: KNUQ11 | D78: FII Kinea Un | E78: =IFERROR(IF(H78="","",VLOOKUP(H78,'Base Gráfico Lâmina'!$H:$I,2,0)),"Carregando") -> 683280<BraNa> | F78: 683280 | G78: Kinea Unique Hy CDI Fundo de Investimento Imobiliário | H78: 42754362000118 | I78: TVM | J78: Kinea Investimento Ltda | K78: Intrag | L78: 20026 | M78: 0.01152 | N78: 1628026.807 | O78: 2024-09-27 | P78: 106.32 | T78: 5076.69298 | W78: 8050 | AA78: 0.007772511848 | AB78: 0.0095067779 | AC78: 0.01160799239 | AD78: 0.03471765434 | AE78: 0.1374156714 | AF78: 0.1430111032 | AG78: 0.01361363512 | AH78: 0.04157068246 | AI78: 0.03738617032 | AJ78: -0.03088680129 | AK78: 0.09775199859 | AL78: 0.05515473271 | AW78: 0.08479071909 | AY78: 0.01834595224 | AZ78: -0.01617633147 | BA78: 0.02960849892 | BB78: 0.001912045889 | BG78: 0.9269703186 | BH78: 0.008767995399 | BI78: -0.02596012529 | BJ78: 2024-02-15 | BK78: 2024-03-19 | BL78: 1900-02-04 | BM78: 2024-04-05 | BY78: 1.007166942 | BZ78: 1.052984121 | CA78: 1.052984121 | CB78: 1 | CC78: 1
B79: MANA11<XBSP> | C79: MANA11 | D79: FII Manati | E79: =IFERROR(IF(H79="","",VLOOKUP(H79,'Base Gráfico Lâmina'!$H:$I,2,0)),"Carregando") -> 657141<BraNa> | F79: 657141 | G79: Manatí Capital Hedge Fund Fundo de Investimento Imobiliário | H79: 42888583000189 | I79: TVM | J79: Manati Capital Management Ltda. | K79: Daycoval | L79: 1 | M79: 0.00238 | N79: 335948.453 | O79: 2024-09-27 | P79: 8.95 | Q79: 9.692696917 | R79: 0.9233756174 | S79: 2024-06-21 | T79: 1857.77816 | U79: 492.019815 | V79: 3.775819801 | W79: 9221 | X79: 2249.087649 | Y79: 4.099884681 | AA79: 0.01589103292 | AB79: 0.01762529897 | AC79: -0.02505446623 | AD79: -0.001944804277 | AE79: 0.04758894358 | AF79: 0.0531843754 | AG79: -0.02610392321 | AH79: 0.001853124133 | AI79: -0.07570008266 | AJ79: -0.1439730543 | AK79: 0.02787625559 | AL79: -0.01472101029 | AM79: 0.08263128362 | AN79: -0.08268033799 | AO79: 0.1875388501 | AP79: -0.03132784703 | AW79: 0.1355092694 | AY79: 0.04761904762 | AZ79: -0.04387755102 | BA79: 0.06417112299 | BB79: -0.04329896907 | BC79: 7 | BD79: 5 | BE79: 6 | BF79: 6 | BG79: -0.1196769797 | BH79: 0.01404776756 | BI79: -0.09416336079 | BJ79: 2024-06-13 | BK79: 2024-09-25 | BW79: 1.028216981 | BX79: 1.011463141 | BY79: 0.9602263762 | BZ79: 0.9445833571 | CA79: 1.028216981 | CB79: 0.918661503 | CC79: 0.918661503 | CO79: 0.131262525 | CP79: 1.31 | CQ79: 0.1309398099 | CR79: 1.24 | CS79: 0.1311011675 | CT79: 0.131262525 | CU79: 0.1309398099
B80: MCHY11<XBSP> | C80: MCHY11 | D80: FII Maua Hy | E80: =IFERROR(IF(H80="","",VLOOKUP(H80,'Base Gráfico Lâmina'!$H:$I,2,0)),"Carregando") -> 607355<BraNa> | F80: 607355 | G80: Maua Capital Real Estate FII-Unica | H80: 36655973000106 | I80: Não se aplica | J80: Maua Capital Real Estate Ltda | K80: BTG Pactual Servicos Financeiros SA Dtvm | L80: 97250 | M80: 0.007 | N80: 989882.4293 | O80: 2024-09-27 | P80: 8.87 | Q80: 11.4719729 | R80: 0.7731887162 | S80: 2024-02-19 | T80: 6752.68695 | U80: 2438.449436 | V80: 2.769254449 | W80: 31791 | X80: 11559.9243 | Y80: 2.750104514 | AA80: 0.006810442679 | AB80: 0.008544708731 | AC80: -0.04513270452 | AD80: -0.02202304257 | AE80: -0.126211595 | AF80: -0.1206161632 | AG80: -0.04309456728 | AH80: -0.01513751994 | AI80: -0.05795029757 | AJ80: -0.1262232692 | AK80: -0.03497231479 | AL80: -0.07756958066 | AM80: -0.07998183424 | AN80: -0.2452934559 | AO80: 0.09206874187 | AP80: -0.1267979552 | AW80: 0.2726412068 | AY80: 0.08597285068 | AZ80: -0.1279863481 | BA80: 0.1618880197 | BB80: -0.1574444415 | BC80: 6 | BD80: 6 | BE80: 5 | BF80: 7 | BG80: -0.5235992589 | BH80: 0.02785545524 | BI80: -0.2368040273 | BJ80: 2024-02-19 | BK80: 2024-04-29 | BU80: 1.167340212 | BV80: 1.043370319 | BW80: 1.116087787 | BX80: 1.09044263 | BY80: 1.12985773 | BZ80: 0.9145670431 | CA80: 1.12985773 | CB80: 0.8094532776 | CC80: 0.8094532776 | CM80: 0.1541666667 | CN80: 1.85 | CO80: 0.1455357143 | CP80: 1.63 | CQ80: 0.1254773595 | CR80: 1.38 | CS80: 0.1417265802 | CT80: 0.1541666667 | CU80: 0.1254773595
B81: MCCI11<XBSP> | C81: MCCI11 | D81: FII Maua | E81: =IFERROR(IF(H81="","",VLOOKUP(H81,'Base Gráfico Lâmina'!$H:$I,2,0)),"Carregando") -> 607347<BraNa> | F81: 607347 | G81: Maua Capital Recebiveis Imobil-Unica | H81: 23648935000184 | I81: Não se aplica | J81: Maua Capital Real Estate Ltda | K81: BTG Pactual Servicos Financeiros SA Dtvm | L81: 115149 | M81: 0.01065 | N81: 1505202.13 | O81: 2024-09-27 | P81: 88.75 | Q81: 91.82602289 | R81: 0.9665016213 | S81: 2024-07-29 | T81: 4366.18503 | U81: 3639.174635 | V81: 1.199773429 | W81: 11624 | X81: 6030.848606 | Y81: 1.927423612 | AA81: 0.005096262739 | AB81: 0.006830528791 | AC81: -0.005655658744 | AD81: 0.01745400321 | AE81: 0.01626989306 | AF81: 0.02186532489 | AG81: 0.00494383771 | AH81: 0.03290088505 | AI81: 0.01054344679 | AJ81: -0.05772952482 | AK81: -0.001612431549 | AL81: -0.04420969743 | AM81: 0.05937457375 | AN81: -0.1059370479 | AO81: 0.1678144569 | AP81: -0.05105224015 | AQ81: 0.251133478 | AR81: 0.0933073721 | AS81: 0.3758983475 | AT81: 0.01397123204 | AW81: 0.1473295418 | AY81: 0.04722442956 | AZ81: -0.03728070175 | BA81: 0.08415316111 | BB81: -0.04541227701 | BC81: 5 | BD81: 7 | BE81: 6 | BF81: 6 | BG81: -0.2438804143 | BH81: 0.01521234234 | BI81: -0.06686318999 | BJ81: 2023-10-16 | BK81: 2023-11-29 | BL81: 1900-02-11 | BM81: 2023-12-15 | BQ81: 1.099881554 | BR81: 0.9962068697 | BS81: 1.03428047 | BT81: 1.002372213 | BU81: 1.051362035 | BV81: 1.011234244 | BW81: 0.9502627699 | BX81: 0.963643018 | BY81: 0.9904657066 | BZ81: 0.937633553 | CA81: 1.011234244 | CB81: 0.9272169712 | CC81: 0.9272169712 | CI81: 0.06513920726 | CJ81: 7.100173591 | CK81: 0.09983522342 | CL81: 10.3 | CM81: 0.1233608548 | CN81: 12.7 | CO81: 0.1291240046 | CP81: 11.35 | CQ81: 0.1070663812 | CR81: 10 | CS81: 0.1049051342 | CT81: 0.1291240046 | CU81: 0.06513920726
B82: MXRF11<XBSP> | C82: MXRF11 | D82: FII Maxi Ren | E82: =IFERROR(IF(H82="","",VLOOKUP(H82,'Base Gráfico Lâmina'!$H:$I,2,0)),"Carregando") -> 362042<BraNa> | F82: 362042 | G82: Maxi Renda Fundo de Investimento Imobiliário - FII | H82: 97521225000125 | I82: TVM | J82: Xp Vista Asset Management Ltda | K82: BTG Pactual Servicos Financeiros SA Dtvm | L82: 1142848 | M82: 0.03092 | N82: 4368879.717 | O82: 2024-09-27 | P82: 9.99 | Q82: 10.09 | R82: 0.9900891972 | S82: 2024-09-20 | T82: 14815.40299 | U82: 11778.34346 | V82: 1.25785116 | W82: 42904 | X82: 34848.251 | Y82: 1.231166523 | AA82: 0.001002004008 | AB82: 0.00273627006 | AC82: -0.005970149254 | AD82: 0.0171395127 | AE82: 0.03269010131 | AF82: 0.03828553313 | AG82: 0.001934660693 | AH82: 0.02989170804 | AI82: 0.008807301452 | AJ82: -0.05946567016 | AK82: 0.01029166939 | AL82: -0.03230559649 | AM82: 0.0374973048 | AN82: -0.1278143168 | AO82: 0.2688645143 | AP82: 0.04999781725 | AQ82: 0.4448490137 | AR82: 0.2870229078 | AS82: 0.4718190938 | AT82: 0.1098919783 | AU82: 0.6862149973 | AV82: 0.4126804622 | AW82: 0.06652412533 | AY82: 0.01595214357 | AZ82: -0.01662049861 | BA82: 0.02772466539 | BB82: -0.02910798122 | BC82: 7 | BD82: 5 | BE82: 7 | BF82: 5 | BG82: -0.9638844828 | BH82: 0.006862418245 | BI82: -0.03661971831 | BJ82: 2024-01-31 | BK82: 2024-02-28 | BL82: 1900-02-14 | BM82: 2024-04-08 | BO82: 1.054515779 | BP82: 1.120559747 | BQ82: 1.38154368 | BR82: 1.072801581 | BS82: 1.036663204 | BT82: 1.015046597 | BU82: 0.9660552499 | BV82: 0.954348604 | BW82: 0.9884606856 | BX82: 1.079191566 | BY82: 1.053799602 | BZ82: 1.026235478 | CA82: 1.079191566 | CB82: 0.9509298536 | CC82: 0.9509298536 | CE82: 0.0866807611 | CF82: 0.82 | CG82: 0.08644400786 | CH82: 0.88 | CI82: 0.06576125804 | CJ82: 0.92 | CK82: 0.08925143954 | CL82: 0.93 | CM82: 0.1209677419 | CN82: 1.2 | CO82: 0.1371371371 | CP82: 1.37 | CQ82: 0.1125343092 | CR82: 1.23 | CS82: 0.09982523641 | CT82: 0.1371371371 | CU82: 0.06576125804
B83: MFII11<XBSP> | C83: MFII11 | D83: FII Merito I | E83: =IFERROR(IF(H83="","",VLOOKUP(H83,'Base Gráfico Lâmina'!$H:$I,2,0)),"Carregando") -> 335770<BraNa> | F83: 335770 | G83: Mérito Desenvolvimento Imobiliário I FII - Fundo de Investim | H83: 16915968000188 | I83: Híbrido | J83: Merito Investimentos Ltda | K83: Merito Dtvm Ltda | L83: 32361 | M83: 0.00373 | N83: 526504.019 | O83: 2024-09-27 | P83: 101.01 | Q83: 103.32 | R83: 0.9776422764 | S83: 2024-08-30 | T83: 2168.88099 | U83: 620.0486794 | V83: 3.497920505 | W83: 2033 | X83: 598.812749 | Y83: 3.395051297 | AA83: -0.001087816456 | AB83: 0.0006464495965 | AC83: -0.02235772358 | AD83: 0.000751938376 | AE83: 0.1879667476 | AF83: 0.1935621794 | AG83: -0.007542083872 | AH83: 0.02041496347 | AI83: 0.01845860612 | AJ83: -0.04981436549 | AK83: 0.03676907522 | AL83: -0.005828190657 | AM83: 0.2328156762 | AN83: 0.06750405459 | AO83: 0.385380208 | AP83: 0.1665135109 | AQ83: 0.3302660764 | AR83: 0.1724399705 | AS83: 0.4273220081 | AT83: 0.0653948926 | AU83: 0.6334919528 | AV83: 0.3599574177 | AW83: 0.07713863667 | AY83: 0.01835748792 | AZ83: -0.02674897119 | BA83: 0.1299313894 | BB83: -0.02235772358 | BC83: 9 | BD83: 3 | BE83: 9 | BF83: 3 | BG83: 1.476707756 | BH83: 0.007969039641 | BI83: -0.04461279461 | BJ83: 2024-02-09 | BK83: 2024-02-20 | BL83: 1900-02-05 | BM83: 2024-04-04 | BO83: 0.8994816108 | BP83: 1.186674109 | BQ83: 1.085172284 | BR83: 1.116727023 | BS83: 1.094869576 | BT83: 0.90603648 | BU83: 1.036535175 | BV83: 0.9503078116 | BW83: 0.8735222128 | BX83: 0.935484039 | BY83: 0.8132855008 | BZ83: 0.9370283507 | CA83: 0.9503078116 | CB83: 0.9860261479 | CC83: 0.9860261479 | CE83: 0.07589092483 | CF83: 10.52 | CG83: 0.1446451894 | CH83: 13.29 | CI83: 0.09308185706 | CJ83: 12.19 | CK83: 0.09499481712 | CL83: 12.83 | CM83: 0.1221792682 | CN83: 13.59 | CO83: 0.1420528367 | CP83: 13.12 | CQ83: 0.1476210705 | CR83: 13.9 | CS83: 0.1172094234 | CT83: 0.1476210705 | CU83: 0.07589092483
B84: ARRI11<XBSP> | C84: ARRI11 | D84: FII Atrio | E84: =IFERROR(IF(H84="","",VLOOKUP(H84,'Base Gráfico Lâmina'!$H:$I,2,0)),"Carregando") -> 525308<BraNa> | F84: 525308 | G84: Open K Ativos e Recebiveis Imobiliarios - Fundo de Investime | H84: 32006821000121 | I84: TVM | J84: - | K84: - | L84: 27218 | M84: 0.00116 | N84: 170157.8754 | O84: 2024-09-27 | P84: 8.76 | Q84: 9.02 | R84: 0.9711751663 | S84: 2024-09-05 | T84: 749.87351 | U84: 326.6135429 | V84: 2.295904522 | W84: 2960 | X84: 949.5896414 | Y84: 3.11713594 | AA84: -0.003412969283 | AB84: -0.001678703231 | AC84: -0.02341137124 | AD84: -0.000301709286 | AE84: 0.06848830133 | AF84: 0.07408373315 | AG84: -0.02125316432 | AH84: 0.006703883019 | AI84: -0.00232015725 | AJ84: -0.07059312886 | AK84: 0.01867504443 | AL84: -0.02392222144 | AM84: 0.1364049303 | AN84: -0.02890669128 | AO84: 0.2938115984 | AP84: 0.0749449013 | AQ84: 0.4202669616 | AR84: 0.2624408558 | AS84: 0.8648594345 | AT84: 0.502932319 | AW84: 0.06864194996 | AY84: 0.01949541284 | AZ84: -0.01661129568 | BA84: 0.03071672355 | BB84: -0.02341137124 | BC84: 9 | BD84: 2 | BE84: 8 | BF84: 4 | BG84: 0.374910481 | BH84: 0.007101945564 | BI84: -0.0288248337 | BJ84: 2024-09-02 | BK84: 2024-09-27 | BQ84: 1.075858522 | BR84: 0.8547157489 | BS84: 0.9645448061 | BT84: 1.068678567 | BU84: 1.029827782 | BV84: 1.037536811 | BW84: 1.033315462 | BX84: 0.993798294 | BY84: 0.9990808536 | BZ84: 1.017946068 | CA84: 1.037536811 | CB84: 0.9811180254 | CC84: 0.9811180254 | CI84: 0.06062768798 | CJ84: 0.6211306404 | CK84: 0.1515613621 | CL84: 1.394335936 | CM84: 0.1640065606 | CN84: 1.578235133 | CO84: 0.1375655022 | CP84: 1.2601 | CQ84: 0.1360544218 | CR84: 1.2 | CS84: 0.1299631069 | CT84: 0.1640065606 | CU84: 0.06062768798
B85: OUJP11<XBSP> | C85: OUJP11 | D85: FII Ouri Jpp | E85: =IFERROR(IF(H85="","",VLOOKUP(H85,'Base Gráfico Lâmina'!$H:$I,2,0)),"Carregando") -> 470538<BraNa> | F85: 470538 | G85: Ourinvest Jpp Fundo de Investimento Imobiliário - FII | H85: 26091656000150 | I85: Híbrido | J85: Jpp Capital Gestao de Recursos | K85: Finaxis Corretora de Tit e Val Mob | L85: 28788 | M85: 0.00182 | N85: 256678.1453 | O85: 2024-09-27 | P85: 78.92 | Q85: 93.96183459 | R85: 0.8399154863 | S85: 2024-02-02 | T85: 457.19024 | U85: 714.5680627 | V85: 0.6398134256 | W85: 582 | X85: 1901.059761 | Y85: 0.3061450313 | AA85: 0.004199007508 | AB85: 0.00593327356 | AC85: -0.005419029615 | AD85: 0.01769063234 | AE85: -0.1258682019 | AF85: -0.12027277 | AG85: -0.009248617254 | AH85: 0.01870843009 | AI85: -0.03810285888 | AJ85: -0.1063758305 | AK85: -0.1283683097 | AL85: -0.1709655756 | AM85: -0.111244886 | AN85: -0.2765565076 | AO85: 0.06185846684 | AP85: -0.1570082303 | AQ85: 0.3401031878 | AR85: 0.1822770819 | AS85: 0.3285116766 | AT85: -0.03341543891 | AU85: 0.3822404127 | AV85: 0.1087058776 | AW85: 0.1552203989 | AY85: 0.0318627451 | AZ85: -0.05026347791 | BA85: 0.04552238806 | BB85: -0.05535634245 | BC85: 5 | BD85: 7 | BE85: 4 | BF85: 8 | BG85: -1.233917045 | BH85: 0.01598106124 | BI85: -0.1837281134 | BJ85: 2024-02-02 | BK85: 2024-08-07 | BO85: 0.9741805356 | BP85: 1.054796908 | BQ85: 1.142510327 | BR85: 1.098641372 | BS85: 1.031670923 | BT85: 0.9462248358 | BU85: 0.8945682485 | BV85: 0.9539138084 | BW85: 0.9775559919 | BX85: 1.038008271 | BY85: 0.9860329284 | BZ85: 0.7990139386 | CA85: 1.038008271 | CB85: 0.769756813 | CC85: 0.769756813 | CE85: 0.08041735184 | CF85: 8.024981569 | CG85: 0.1040286911 | CH85: 10.62727094 | CI85: 0.06330062378 | CJ85: 7.423790044 | CK85: 0.09154922171 | CL85: 9.770509405 | CM85: 0.164195497 | CN85: 14.95 | CO85: 0.1438812084 | CP85: 14.05 | CQ85: 0.1093890611 | CR85: 10.94 | CS85: 0.1081088078 | CT85: 0.164195497 | CU85: 0.06330062378
B86: HGRE11<XBSP> | C86: HGRE11 | D86: FII Hgre Pax | E86: =IFERROR(IF(H86="","",VLOOKUP(H86,'Base Gráfico Lâmina'!$H:$I,2,0)),"Carregando") -> 362298<BraNa> | F86: 362298 | G86: Pátria Escritórios FII Responsabilidade Limitada | H86: 9072017000129 | I86: Lajes Corporativas | J86: Patria Investimentos Ltda | K86: Banco Genial S.A. | L86: 8 | M86: 0.00877 | N86: 1239565.581 | O86: 2024-09-27 | P86: 104.89 | Q86: 127.5016224 | R86: 0.8226561985 | S86: 2024-01-15 | T86: 1999.27076 | U86: 1818.448988 | V86: 1.099437363 | W86: 6626 | X86: 3844.996016 | Y86: 1.723278769 | AA86: 0.01657297926 | AB86: 0.01830724531 | AC86: -0.07185204849 | AD86: -0.04874238654 | AE86: -0.1583253721 | AF86: -0.1527299402 | AG86: -0.06783799292 | AH86: -0.03988094558 | AI86: -0.0872595313 | AJ86: -0.1555325029 | AK86: -0.1500818674 | AL86: -0.1926791332 | AM86: -0.1365614074 | AN86: -0.301873029 | AO86: -0.1376747665 | AP86: -0.3565414636 | AQ86: 0.02932077115 | AR86: -0.1285053347 | AS86: -0.04226185505 | AT86: -0.4041889705 | AU86: -0.05009645126 | AV86: -0.3236309864 | AW86: 0.1372088419 | AY86: 0.03130016051 | AZ86: -0.02645502645 | BA86: 0.06739362138 | BB86: -0.09141376758 | BC86: 5 | BD86: 7 | BE86: 3 | BF86: 9 | BG86: -1.573150546 | BH86: 0.01419015589 | BI86: -0.1956180788 | BJ86: 2024-01-15 | BK86: 2024-09-25 | BO86: 0.9786665187 | BP86: 1.055316017 | BQ86: 1.201992954 | BR86: 0.9199439935 | BS86: 0.906528731 | BT86: 0.7873934424 | BU86: 0.8082566547 | BV86: 0.7992349945 | BW86: 0.7770409615 | BX86: 0.9106464533 | BY86: 0.8603944625 | BZ86: 0.6883979146 | CA86: 0.9106464533 | CB86: 0.7559442109 | CC86: 0.7559442109 | CE86: 0.06598629945 | CF86: 9.44 | CG86: 0.05975371779 | CH86: 8.88 | CI86: 0.04148892952 | CJ86: 8.17 | CK86: 0.05877074922 | CL86: 9.17 | CM86: 0.08293963255 | CN86: 11.06 | CO86: 0.08448855713 | CP86: 10.3 | CQ86: 0.07945516459 | CR86: 10.5 | CS86: 0.06755472146 | CT86: 0.08448855713 | CU86: 0.04148892952
B87: HGFF11<XBSP> | C87: HGFF11 | D87: FII Hgff Paxci | E87: =IFERROR(IF(H87="","",VLOOKUP(H87,'Base Gráfico Lâmina'!$H:$I,2,0)),"Carregando") -> 506745<BraNa> | F87: 506745 | G87: Patria Imobiliario Fof Fundo de Investimento Imobiliário Res | H87: 32784898000122 | I87: Não se aplica | J87: Patria Investimentos Ltda | K87: Banco Genial S.A. | L87: 1 | M87: 0.00161 | N87: 227025.9702 | O87: 2024-09-27 | P87: 79.28 | Q87: 87.11603188 | R87: 0.9100506335 | S87: 2024-03-21 | T87: 400.27231 | U87: 718.2854777 | V87: 0.5572607583 | W87: 1647 | X87: 1411.099602 | Y87: 1.167174874 | AA87: 0.001136507135 | AB87: 0.002870773187 | AC87: -0.04894433781 | AD87: -0.02583467586 | AE87: -0.03065607457 | AF87: -0.02506064275 | AG87: -0.05534988818 | AH87: -0.02739284083 | AI87: -0.02031089308 | AJ87: -0.08858386469 | AK87: -0.08039951451 | AL87: -0.1229967804 | AM87: 0.01460927889 | AN87: -0.1507023427 | AO87: 0.193123272 | AP87: -0.02574342509 | AQ87: 0.4171262931 | AR87: 0.2593001872 | AS87: 0.1608030441 | AT87: -0.2011240713 | AU87: 0.2257503 | AV87: -0.04778423511 | AW87: 0.1394487052 | AY87: 0.04329823731 | AZ87: -0.0250028673 | BA87: 0.05836341757 | BB87: -0.04894433781 | BC87: 5 | BD87: 7 | BE87: 5 | BF87: 7 | BG87: -0.5572927409 | BH87: 0.01443428857 | BI87: -0.09098247142 | BJ87: 2024-03-21 | BK87: 2024-09-26 | BQ87: 1.001027035 | BR87: 1.001946748 | BS87: 0.9454381734 | BT87: 0.8734390258 | BU87: 0.8210692834 | BV87: 0.8104276506 | BW87: 0.8195904077 | BX87: 0.937494714 | BY87: 0.9282859159 | BZ87: 0.8861528836 | CA87: 0.937494714 | CB87: 0.9452350721 | CC87: 0.9452350721 | CI87: 0.06300114548 | CJ87: 7.15 | CK87: 0.07158119658 | CL87: 6.7 | CM87: 0.09925591284 | CN87: 7.47 | CO87: 0.112406913 | CP87: 8 | CQ87: 0.0975496458 | CR87: 8.4 | CS87: 0.08875896274 | CT87: 0.112406913 | CU87: 0.06300114548
B88: HGLG11<XBSP> | C88: HGLG11 | D88: FII Hglg Pax | E88: =IFERROR(IF(H88="","",VLOOKUP(H88,'Base Gráfico Lâmina'!$H:$I,2,0)),"Carregando") -> 362301<BraNa> | F88: 362301 | G88: Pátria Log Fundo de Investimento Imobiliário Responsabilidad | H88: 11728688000147 | I88: Logistica | J88: Patria Investimentos Ltda | K88: Banco Genial S.A. | L88: 8 | M88: 0.03791 | N88: 5357020.016 | O88: 2024-09-27 | P88: 158.55 | Q88: 163.7995294 | R88: 0.9679514989 | S88: 2024-03-08 | T88: 8831.15261 | U88: 8585.43775 | V88: 1.028619957 | W88: 15066 | X88: 9950.418327 | Y88: 1.514107197 | AA88: 0.0008837825899 | AB88: 0.002618048642 | AC88: -0.009681449093 | AD88: 0.01342821286 | AE88: 0.03973239502 | AF88: 0.04532782684 | AG88: -0.008512822768 | AH88: 0.01944422457 | AI88: -0.001668077814 | AJ88: -0.06994104943 | AK88: -0.01729876398 | AL88: -0.05989602986 | AM88: 0.071290928 | AN88: -0.09402069361 | AO88: 0.114935033 | AP88: -0.1039316641 | AQ88: 0.291155923 | AR88: 0.1333298171 | AS88: 0.3718805549 | AT88: 0.00995343947 | AU88: 0.6941158521 | AV88: 0.420581317 | AW88: 0.08708618208 | AY88: 0.02419510936 | AZ88: -0.03553204729 | BA88: 0.03551413255 | BB88: -0.01483975558 | BC88: 6 | BD88: 6 | BE88: 8 | BF88: 4 | BG88: -0.3670190774 | BH88: 0.008975672093 | BI88: -0.0696660959 | BJ88: 2024-03-08 | BK88: 2024-06-21 | BO88: 1.152466844 | BP88: 1.21904238 | BQ88: 1.516981106 | BR88: 1.402510554 | BS88: 1.205296974 | BT88: 1.149766035 | BU88: 1.139992626 | BV88: 1.121633185 | BW88: 1.053711755 | BX88: 1.087007091 | BY88: 1.016752425 | BZ88: 1.004113641 | CA88: 1.121633185 | CB88: 0.8952246195 | CC88: 0.8952246195 | CE88: 0.07284718579 | CF88: 9.72 | CG88: 0.06527827648 | CH88: 9.09 | CI88: 0.0446998101 | CJ88: 9.18 | CK88: 0.08101138084 | CL88: 14.45 | CM88: 0.09507730585 | CN88: 16.05 | CO88: 0.09057301294 | CP88: 14.7 | CQ88: 0.08224299065 | CR88: 13.2 | CS88: 0.07596142324 | CT88: 0.09507730585 | CU88: 0.0446998101
B89: PATL11<XBSP> | C89: PATL11 | D89: FII Patlogisci | E89: =IFERROR(IF(H89="","",VLOOKUP(H89,'Base Gráfico Lâmina'!$H:$I,2,0)),"Carregando") -> 551694<BraNa> | F89: 551694 | G89: Pátria Logística Fundo de Investimento Imobiliário | H89: 35754164000199 | I89: Híbrido | J89: Vbi Real Estate Gestao de Carteiras Ltda | K89: Vortx Dtvm Ltda | L89: 25764 | M89: 0.00208 | N89: 294101.2422 | O89: 2024-09-27 | P89: 58.92 | Q89: 67.55024663 | R89: 0.8722395986 | S89: 2024-02-22 | T89: 897.1681 | U89: 572.2429028 | V89: 1.567809921 | W89: 1396 | X89: 1701.027888 | Y89: 0.8206802543 | AA89: -0.004729729731 | AB89: -0.002995463678 | AC89: -0.03409836066 | AD89: -0.0109886987 | AE89: -0.07315286528 | AF89: -0.06755743346 | AG89: -0.02106067598 | AH89: 0.006896371365 | AI89: 0.009803670071 | AJ89: -0.05846930154 | AK89: -0.09070544907 | AL89: -0.133302715 | AM89: -0.07083025576 | AN89: -0.2361418774 | AO89: -0.1238472995 | AP89: -0.3427139966 | AQ89: 0.1011162888 | AR89: -0.05670981708 | AS89: -0.1114694955 | AT89: -0.473396611 | AW89: 0.1510310672 | AY89: 0.03182461103 | AZ89: -0.04492214414 | BA89: 0.1004784689 | BB89: -0.09415204678 | BC89: 5 | BD89: 7 | BE89: 5 | BF89: 7 | BG89: -1.025427863 | BH89: 0.01555796478 | BI89: -0.1419667496 | BJ89: 2024-02-22 | BK89: 2024-05-02 | BS89: 0.9839316851 | BT89: 0.8715054113 | BU89: 0.7582189716 | BV89: 0.7888472167 | BW89: 0.710895401 | BX89: 0.7679830066 | BY89: 0.6943987117 | BZ89: 0.5988141113 | CA89: 0.7888472167 | CB89: 0.7591002398 | CC89: 0.7591002398 | CK89: 0.07103132202 | CL89: 6.78065 | CM89: 0.09345166062 | CN89: 6.95 | CO89: 0.1017921147 | CP89: 7.1 | CQ89: 0.1001414427 | CR89: 7.08 | CS89: 0.09160413501 | CT89: 0.1017921147 | CU89: 0.07103132202
B90: HGPO11<XBSP> | C90: HGPO11 | D90: FII Hgpo Paxci Er | E90: =IFERROR(IF(H90="","",VLOOKUP(H90,'Base Gráfico Lâmina'!$H:$I,2,0)),"Carregando") -> 362336<BraNa> | F90: 362336 | G90: Patria Prime Offices Fundo de Investimento Imobiliario Respo | H90: 11260134000168 | I90: Lajes Corporativas | J90: Patria Investimentos Ltda | K90: Banco Genial S.A. | L90: 7 | M90: 0.00365 | N90: 515451.3497 | O90: 2024-09-27 | P90: 294.03 | Q90: 306.6878441 | R90: 0.9587272715 | S90: 2024-07-16 | T90: 243.65594 | U90: 783.6545935 | V90: 0.3109226208 | W90: 161 | X90: 649.6374502 | Y90: 0.2478305399 | AA90: -0.003152969894 | AB90: -0.001418703842 | AC90: -0.02412877531 | AD90: -0.001019113354 | AE90: 0.08962745409 | AF90: 0.09522288591 | AG90: -0.01829687556 | AH90: 0.009660171783 | AI90: -0.03536291499 | AJ90: -0.1036358866 | AK90: -0.01510251076 | AL90: -0.05769977664 | AM90: 0.1497256091 | AN90: -0.01558601247 | AO90: 0.2942931545 | AP90: 0.07542645743 | AQ90: 0.6022653563 | AR90: 0.4444392504 | AS90: 0.7055325523 | AT90: 0.3436054369 | AU90: 1.196998679 | AV90: 0.9234641442 | AW90: 0.1416777371 | AY90: 0.07125825068 | AZ90: -0.02407645033 | BA90: 0.04933443118 | BB90: -0.02412877531 | BC90: 7 | BD90: 5 | BE90: 8 | BF90: 4 | BG90: 0.3210248546 | BH90: 0.01477509168 | BI90: -0.04137054782 | BJ90: 2024-07-16 | BK90: 2024-09-25 | BO90: 1.143487515 | BP90: 1.262575757 | BQ90: 1.093363563 | BR90: 1.011563115 | BS90: 0.9217798048 | BT90: 0.9048101853 | BU90: 0.8956850254 | BV90: 0.9683649602 | BW90: 0.8738777148 | BX90: 0.9293634235 | BY90: 0.91206797 | BZ90: 0.8530222993 | CA90: 0.9683649602 | CB90: 0.8808892663 | CC90: 0.8808892663 | CE90: 0.0638898694 | CF90: 9.05 | CG90: 0.05811915888 | CH90: 9.95 | CI90: 0.04908223862 | CJ90: 10.91 | CK90: 0.06318607764 | CL90: 14.16 | CM90: 0.07227962006 | CN90: 17.35 | CO90: 0.07224494476 | CP90: 18.9 | CQ90: 0.06896551724 | CR90: 18.8 | CS90: 0.06396677523 | CT90: 0.07227962006 | CU90: 0.04908223862
B91: HGCR11<XBSP> | C91: HGCR11 | D91: FII Hgcr Paxci Er | E91: =IFERROR(IF(H91="","",VLOOKUP(H91,'Base Gráfico Lâmina'!$H:$I,2,0)),"Carregando") -> 362311<BraNa> | F91: 362311 | G91: Pátria Recebíveis Imobiliários Fundo de Investimento Imobili | H91: 11160521000122 | I91: TVM | J91: Patria Investimentos Ltda | K91: Banco Genial S.A. | L91: 3 | M91: 0.0111 | N91: 1567867.199 | O91: 2024-09-27 | P91: 101.69 | Q91: 103.0444874 | R91: 0.9868553141 | S91: 2024-08-23 | T91: 2889.18984 | U91: 3368.175319 | V91: 0.8577908115 | W91: 4650 | X91: 5066.657371 | Y91: 0.9177648418 | AA91: -0.0008842601701 | AB91: 0.0008500058821 | AC91: -0.007418252806 | AD91: 0.01569140915 | AE91: 0.0503086444 | AF91: 0.05590407622 | AG91: -0.009812323591 | AH91: 0.01814472375 | AI91: 0.0002309545925 | AJ91: -0.06804201702 | AK91: 0.01183651482 | AL91: -0.03076075105 | AM91: 0.05470058963 | AN91: -0.110611032 | AO91: 0.2488010125 | AP91: 0.02993431542 | AQ91: 0.4025831596 | AR91: 0.2447570537 | AS91: 0.5678371688 | AT91: 0.2059100534 | AU91: 0.4806384261 | AV91: 0.207103891 | AW91: 0.08655487759 | AY91: 0.01575999241 | AZ91: -0.03701589114 | BA91: 0.02177293935 | BB91: -0.01151394043 | BC91: 8 | BD91: 4 | BE91: 7 | BF91: 5 | BG91: -0.5448203017 | BH91: 0.008908094185 | BI91: -0.0474313836 | BJ91: 2023-09-29 | BK91: 2023-11-01 | BL91: 1900-02-26 | BM91: 2023-12-22 | BO91: 1.091064002 | BP91: 1.134419501 | BQ91: 1.23312098 | BR91: 1.032064193 | BS91: 0.9542080012 | BT91: 1.006508815 | BU91: 1.019748113 | BV91: 1.028848305 | BW91: 0.9998605066 | BX91: 1.004583735 | BY91: 1.016914455 | BZ91: 1.011871841 | CA91: 1.028848305 | CB91: 0.9834995466 | CC91: 0.9834995466 | CE91: 0.09154315606 | CF91: 9.45 | CG91: 0.07859458512 | CH91: 8.97 | CI91: 0.05001917913 | CJ91: 6.52 | CK91: 0.09765509053 | CL91: 9.87 | CM91: 0.1322685539 | CN91: 13.83 | CO91: 0.1357107479 | CP91: 13.7 | CQ91: 0.1085343228 | CR91: 11.7 | CS91: 0.0991893765 | CT91: 0.1357107479 | CU91: 0.05001917913
B92: HGRU11<XBSP> | C92: HGRU11 | D92: FII Hgru Pax | E92: =IFERROR(IF(H92="","",VLOOKUP(H92,'Base Gráfico Lâmina'!$H:$I,2,0)),"Carregando") -> 466123<BraNa> | F92: 466123 | G92: Pátria Renda Urbana - Fundo de Investimento Imobiliário - Re | H92: 29641226000153 | I92: Multicategoria | J92: Patria Investimentos Ltda | K92: Banco Genial S.A. | L92: 4 | M92: 0.02434 | N92: 2251109.813 | O92: 2024-09-27 | P92: 122.3 | Q92: 131.3947986 | R92: 0.9307826588 | S92: 2024-01-17 | T92: 4460.67643 | U92: 3525.408257 | V92: 1.265293579 | W92: 4476 | X92: 5251.167331 | Y92: 0.8523819026 | AA92: 0.002459016394 | AB92: 0.004193282446 | AC92: -0.03503234969 | AD92: -0.01192268774 | AE92: -0.05367049944 | AF92: -0.04807506762 | AG92: -0.03488106527 | AH92: -0.006924017933 | AI92: -0.02301931833 | AJ92: -0.09129228994 | AK92: -0.0544947933 | AL92: -0.09709205918 | AM92: -0.006256705706 | AN92: -0.1715683273 | AO92: 0.1609105483 | AP92: -0.05795614882 | AQ92: 0.4492254747 | AR92: 0.2913993689 | AS92: 0.3301439458 | AT92: -0.03178316965 | AU92: 0.7869763419 | AV92: 0.5134418068 | AW92: 0.1154989777 | AY92: 0.03386531724 | AZ92: -0.04475118053 | BA92: 0.04751215862 | BB92: -0.06066109699 | BC92: 7 | BD92: 5 | BE92: 5 | BF92: 7 | BG92: -0.8648809452 | BH92: 0.01190733325 | BI92: -0.07248992131 | BJ92: 2024-01-15 | BK92: 2024-09-25 | BO92: 1.015048551 | BP92: 1.052877105 | BQ92: 1.227338613 | BR92: 1.18727162 | BS92: 1.088239277 | BT92: 0.9952268188 | BU92: 0.9896428364 | BV92: 1.003627151 | BW92: 0.978007307 | BX92: 1.071697144 | BY92: 1.084579536 | BZ92: 0.973999369 | CA92: 1.084579536 | CB92: 0.8980432849 | CC92: 0.8980432849 | CG92: 0.07933154053 | CH92: 8.26 | CI92: 0.06171634507 | CJ92: 8.22 | CK92: 0.06717984605 | CL92: 8.64 | CM92: 0.08546135512 | CN92: 10.04 | CO92: 0.0987602962 | CP92: 11.87 | CQ92: 0.08867466333 | CR92: 12.05 | CS92: 0.08018734105 | CT92: 0.0987602962 | CU92: 0.06171634507
B93: PORD11<XBSP> | C93: PORD11 | D93: FII Polo Cri | E93: =IFERROR(IF(H93="","",VLOOKUP(H93,'Base Gráfico Lâmina'!$H:$I,2,0)),"Carregando") -> 362794<BraNa> | F93: 362794 | G93: Polo Crédito Imobiliário - Fundo de Investimento Imobiliário | H93: 17156502000109 | I93: TVM | J93: Polo Capital Gest de Recursos | K93: Oliveira Trust Dtvm | L93: 36592 | M93: 0.00227 | N93: 320640.25 | O93: 2024-09-27 | P93: 8.6 | Q93: 9.026369842 | R93: 0.9527639739 | S93: 2024-04-19 | T93: 382.78102 | U93: 590.1418752 | V93: 0.6486254172 | W93: 2371 | X93: 2054.633466 | Y93: 1.153977115 | AA93: 0.01775147929 | AB93: 0.01948574534 | AC93: -0.0150040087 | AD93: 0.00810565325 | AE93: 0.03850266028 | AF93: 0.0440980921 | AG93: -0.0150040087 | AH93: 0.01295303864 | AI93: -0.02294309112 | AJ93: -0.09121606273 | AK93: -0.00321845488 | AL93: -0.04581572076 | AM93: 0.0837328581 | AN93: -0.08157876351 | AO93: 0.1511033397 | AP93: -0.0677633574 | AQ93: 0.3610821188 | AR93: 0.2032560129 | AS93: 0.4734598372 | AT93: 0.1115327217 | AU93: 0.5818026269 | AV93: 0.3082680918 | AW93: 0.09870300146 | AY93: 0.02057842047 | AZ93: -0.02747252747 | BA93: 0.04187220374 | BB93: -0.02552204176 | BC93: 7 | BD93: 5 | BE93: 8 | BF93: 4 | BG93: -0.1980467829 | BH93: 0.01018717069 | BI93: -0.0649618675 | BJ93: 2024-04-19 | BK93: 2024-09-25 | BO93: 0.9666076359 | BP93: 1.047963404 | BQ93: 1.030692733 | BR93: 0.9133096026 | BS93: 1.024492831 | BT93: 1.032416646 | BU93: 0.9552461999 | BV93: 0.9855018635 | BW93: 0.9167237584 | BX93: 0.9145258837 | BY93: 0.9188519581 | BZ93: 0.8956169673 | CA93: 0.9855018635 | CB93: 0.9087927689 | CC93: 0.9087927689 | CE93: 0.08192534381 | CF93: 0.834 | CG93: 0.1153350203 | CH93: 1.145908834 | CI93: 0.09986967148 | CJ93: 1.076571133 | CK93: 0.1079721362 | CL93: 1.116 | CM93: 0.1555853724 | CN93: 1.47684108 | CO93: 0.1362170577 | CP93: 1.225 | CQ93: 0.1267496112 | CR93: 1.141 | CS93: 0.1176648876 | CT93: 0.1555853724 | CU93: 0.08192534381
B94: RBRF11<XBSP> | C94: RBRF11 | D94: FII Rbralpha | E94: =IFERROR(IF(H94="","",VLOOKUP(H94,'Base Gráfico Lâmina'!$H:$I,2,0)),"Carregando") -> 450693<BraNa> | F94: 450693 | G94: Rbr Alpha Multiestratégia Real Estate Fundo de Investimento | H94: 27529279000151 | I94: TVM | J94: Rbr Asset Management | K94: BTG Pactual Servicos Financeiros SA Dtvm | L94: 129747 | M94: 0.0068 | N94: 960390.054 | O94: 2024-09-27 | P94: 7.02 | Q94: 8.098636461 | R94: 0.8668125842 | S94: 2024-03-11 | T94: 2667.55617 | U94: 2895.484076 | V94: 0.9212815889 | W94: 23579 | X94: 13015.00398 | Y94: 1.811678278 | AA94: 0.008620689654 | AB94: 0.01035495571 | AC94: -0.0583593387 | AD94: -0.03524967675 | AE94: -0.0819450964 | AF94: -0.07634966458 | AG94: -0.06458712085 | AH94: -0.03663007351 | AI94: -0.03905770587 | AJ94: -0.1073306775 | AK94: -0.1191394327 | AL94: -0.1617366986 | AM94: -0.05111938213 | AN94: -0.2164310037 | AO94: 0.1196096223 | AP94: -0.09925707474 | AQ94: 0.2453996153 | AR94: 0.08757350946 | AS94: 0.07505376825 | AT94: -0.2868733472 | AU94: 0.09679250524 | AV94: -0.1767420299 | AW94: 0.1565307948 | AY94: 0.03590425532 | AZ94: -0.03443794672 | BA94: 0.07746650724 | BB94: -0.06917051082 | BC94: 7 | BD94: 5 | BE94: 6 | BF94: 6 | BG94: -0.8666108975 | BH94: 0.01617439232 | BI94: -0.1405960703 | BJ94: 2024-03-11 | BK94: 2024-09-25 | BO94: 1.01618058 | BP94: 1.035206971 | BQ94: 1.175986593 | BR94: 1.022061416 | BS94: 1.031007647 | BT94: 0.9325015287 | BU94: 0.909086086 | BV94: 0.8178915928 | BW94: 0.8408338035 | BX94: 0.9240595651 | BY94: 0.9308631614 | BZ94: 0.8091276906 | CA94: 0.9308631614 | CB94: 0.8692230224 | CC94: 0.8692230224 | CE94: 0.08571091997 | CF94: 0.8399670157 | CG94: 0.08844794362 | CH94: 0.880145487 | CI94: 0.06073011587 | CJ94: 0.794046265 | CK94: 0.07632753326 | CL94: 0.74572 | CM94: 0.09327508989 | CN94: 0.7406042137 | CO94: 0.1052019762 | CP94: 0.724 | CQ94: 0.08351321176 | CR94: 0.6732 | CS94: 0.08474382722 | CT94: 0.1052019762 | CU94: 0.06073011587
B95: RBRL11<XBSP> | C95: RBRL11 | D95: FII Rbr Log | E95: =IFERROR(IF(H95="","",VLOOKUP(H95,'Base Gráfico Lâmina'!$H:$I,2,0)),"Carregando") -> 528366<BraNa> | F95: 528366 | G95: Rbr Log Fundo de Investimento Imobiliário | H95: 35705463000133 | I95: Híbrido | J95: Rbr Asset Management | K95: Brl Dtvm | L95: 14967 | M95: 0.00367 | N95: 518111.4718 | O95: 2024-09-27 | P95: 77.48 | Q95: 84.52217378 | R95: 0.9166825288 | S95: 2024-01-12 | T95: 285.17983 | U95: 662.2574526 | V95: 0.430617774 | W95: 1501 | X95: 1817.565737 | Y95: 0.825829828 | AA95: 0.007018455941 | AB95: 0.008752721993 | AC95: -0.02711227817 | AD95: -0.004002616215 | AE95: -0.04695234082 | AF95: -0.041356909 | AG95: -0.02285589438 | AH95: 0.005101152957 | AI95: 0.04314331633 | AJ95: -0.02512965528 | AK95: -0.003937620905 | AL95: -0.04653488678 | AM95: -0.06951874781 | AN95: -0.2348303694 | AO95: 0.01811725161 | AP95: -0.2007494455 | AQ95: 0.02663188971 | AR95: -0.1311942162 | AS95: -0.01295951007 | AT95: -0.3748866255 | AW95: 0.167125795 | AY95: 0.03954081633 | AZ95: -0.0325 | BA95: 0.08171742329 | BB95: -0.06627698038 | BC95: 5 | BD95: 7 | BE95: 4 | BF95: 8 | BG95: -0.9011889373 | BH95: 0.01731141938 | BI95: -0.1272289283 | BJ95: 2024-01-12 | BK95: 2024-06-25 | BR95: 1.160740888 | BS95: 1.020546618 | BT95: 0.9284868756 | BU95: 0.9006274446 | BV95: 0.792289168 | BW95: 0.7831400448 | BX95: 0.8856512326 | BY95: 0.8600316312 | BZ95: 0.7576080828 | CA95: 0.8856512326 | CB95: 0.8554248613 | CC95: 0.8554248613 | CK95: 0.07625688073 | CL95: 8.312 | CM95: 0.08178154387 | CN95: 7.914 | CO95: 0.0944047619 | CP95: 7.93 | CQ95: 0.08877995643 | CR95: 8.15 | CS95: 0.08530578573 | CT95: 0.0944047619 | CU95: 0.07625688073
B96: RBFF11<XBSP> | C96: RBFF11 | D96: FII Riob Ff | E96: =IFERROR(IF(H96="","",VLOOKUP(H96,'Base Gráfico Lâmina'!$H:$I,2,0)),"Carregando") -> 356131<BraNa> | F96: 356131 | G96: Rio Bravo Fundo de Fundos de Investimento Imobiliário | H96: 17329029000114 | I96: TVM | J96: Rio Bravo Investimentos Ltda | K96: Rio Bravo Investimentos Dtvm | L96: 23569 | M96: 0.00157 | N96: 221766.0672 | O96: 2024-09-27 | P96: 59.15 | Q96: 63.20133249 | R96: 0.9358979894 | S96: 2024-05-22 | T96: 747.30126 | U96: 507.6041827 | V96: 1.472212573 | W96: 1759 | X96: 688.8207171 | Y96: 2.553639802 | AA96: 0.01667239601 | AB96: 0.01840666207 | AC96: -0.02713815789 | AD96: -0.004028495941 | AE96: 0.04460854192 | AF96: 0.05020397374 | AG96: -0.02058851331 | AH96: 0.007368534033 | AI96: -0.008242254592 | AJ96: -0.0765152262 | AK96: -0.02186981405 | AL96: -0.06446707993 | AM96: 0.08396334209 | AN96: -0.08134827952 | AO96: 0.295675868 | AP96: 0.07680917093 | AQ96: 0.3553071359 | AR96: 0.19748103 | AS96: 0.2001378112 | AT96: -0.1617893043 | AU96: 0.2721989722 | AV96: -0.00133556297 | AW96: 0.1248399158 | AY96: 0.02357629089 | AZ96: -0.0263367917 | BA96: 0.03569100391 | BB96: -0.03440550488 | BC96: 8 | BD96: 4 | BE96: 7 | BF96: 5 | BG96: -0.1317115462 | BH96: 0.01289853368 | BI96: -0.08403829915 | BJ96: 2024-05-22 | BK96: 2024-09-25 | BO96: 0.9387506547 | BP96: 0.8624334589 | BQ96: 1.01022368 | BR96: 0.9235052465 | BS96: 0.9506293144 | BT96: 0.9312424541 | BU96: 0.8374367823 | BV96: 0.8321543084 | BW96: 0.8216647187 | BX96: 0.8632767844 | BY96: 0.8728420462 | BZ96: 0.9006029432 | CA96: 0.9006029432 | CB96: 1 | CC96: 1 | CE96: 0.06059667596 | CF96: 5.87 | CG96: 0.06708816298 | CH96: 5.73 | CI96: 0.0742490418 | CJ96: 8.33 | CK96: 0.07772653283 | CL96: 5.73 | CM96: 0.1044908062 | CN96: 5.91 | CO96: 0.1151572927 | CP96: 6.04 | CQ96: 0.1011608624 | CR96: 6.1 | CS96: 0.08578133926 | CT96: 0.1151572927 | CU96: 0.06059667596
B97: RZAK11<XBSP> | C97: RZAK11 | D97: FII Riza Akn | E97: =IFERROR(IF(H97="","",VLOOKUP(H97,'Base Gráfico Lâmina'!$H:$I,2,0)),"Carregando") -> 569348<BraNa> | F97: 569348 | G97: Riza Akin Fundo de Investimento Imobiliário - FII | H97: 36642219000131 | I97: TVM | J97: Riza Asset | K97: BTG Pactual Servicos Financeiros SA Dtvm | L97: 50329 | M97: 0.00492 | N97: 695822.915 | O97: 2024-09-27 | P97: 79 | Q97: 83.16896482 | R97: 0.9498735516 | S97: 2024-04-12 | T97: 2915.3533 | U97: 2819.819855 | V97: 1.033879272 | W97: 7496 | X97: 4848.195219 | Y97: 1.54614236 | AA97: -0.006164297396 | AB97: -0.004430031344 | AC97: -0.03085840758 | AD97: -0.007748745624 | AE97: -0.001585813519 | AF97: 0.004009618301 | AG97: -0.03214997016 | AH97: -0.004192922814 | AI97: -0.004510228106 | AJ97: -0.07278319972 | AK97: -0.04229752558 | AL97: -0.08489479145 | AM97: -0.003414367441 | AN97: -0.1687259891 | AO97: 0.0908673383 | AP97: -0.1279993588 | AQ97: 0.5143442997 | AR97: 0.3565181939 | AW97: 0.1114565328 | AY97: 0.03426275993 | AZ97: -0.05031854011 | BA97: 0.06576167373 | BB97: -0.08046408268 | BC97: 7 | BD97: 5 | BE97: 6 | BF97: 6 | BG97: -0.8780835927 | BH97: 0.01147171103 | BI97: -0.08602376332 | BJ97: 2023-10-13 | BK97: 2023-11-29 | BL97: 1900-02-25 | BM97: 2024-01-08 | BS97: 1.036159493 | BT97: 0.9977324609 | BU97: 0.9975937089 | BV97: 1.046455861 | BW97: 1.032501456 | BX97: 1.009668088 | BY97: 0.9662037511 | BZ97: 0.8817826264 | CA97: 1.046455861 | CB97: 0.8426371905 | CC97: 0.8426371905 | CK97: 0.07698421332 | CL97: 7.69765149 | CM97: 0.1894970271 | CN97: 17.88283445 | CO97: 0.151715585 | CP97: 14.68 | CQ97: 0.1427331887 | CR97: 13.16 | CS97: 0.1402325035 | CT97: 0.1894970271 | CU97: 0.07698421332
B98: RZAT11<XBSP> | C98: RZAT11 | D98: FII Arctium | E98: =IFERROR(IF(H98="","",VLOOKUP(H98,'Base Gráfico Lâmina'!$H:$I,2,0)),"Carregando") -> 496235<BraNa> | F98: 496235 | G98: Riza Arctium Real Estate Fundo de Investimento Imobiliário | H98: 28267696000136 | I98: Outros | J98: Riza Asset | K98: BTG Pactual Servicos Financeiros SA Dtvm | L98: 38616 | M98: 0.00253 | N98: 358097.7838 | O98: 2024-09-27 | P98: 96.57 | Q98: 100.05 | R98: 0.9652173913 | S98: 2024-09-20 | T98: 985.89371 | U98: 1041.016188 | V98: 0.9470493553 | W98: 2099 | X98: 1787.215139 | Y98: 1.174452898 | AA98: -0.0006209251787 | AB98: 0.001113340873 | AC98: -0.006901899846 | AD98: 0.01620776211 | AE98: 0.1540751353 | AF98: 0.1596705671 | AG98: -0.009723487547 | AH98: 0.01823355979 | AI98: 0.04961400981 | AJ98: -0.0186589618 | AK98: 0.04032537269 | AL98: -0.002271893191 | AM98: 0.2522851121 | AN98: 0.08697349048 | AO98: 0.2455626803 | AP98: 0.02669598322 | AQ98: 0.5259572197 | AR98: 0.3681311138 | AS98: 0.8292707405 | AT98: 0.4673436251 | AW98: 0.1280231177 | AY98: 0.0626142596 | AZ98: -0.03031536114 | BA98: 0.07601849492 | BB98: -0.01945421014 | BC98: 7 | BD98: 5 | BE98: 9 | BF98: 3 | BG98: 1.066559135 | BH98: 0.01332078795 | BI98: -0.06522609044 | BJ98: 2024-05-17 | BK98: 2024-06-06 | BL98: 1900-02-08 | BM98: 2024-07-12 | BQ98: 1.205066842 | BR98: 1.011084894 | BS98: 1.311992822 | BT98: 0.9656568481 | BU98: 1.041410716 | BV98: 1.069717874 | BW98: 0.8801960527 | BX98: 0.9481306066 | BY98: 0.9247511243 | BZ98: 0.9597661675 | CA98: 1.069717874 | CB98: 0.8972142941 | CC98: 0.8972142941 | CI98: 0.1111240398 | CJ98: 13.33477365 | CK98: 0.1460709206 | CL98: 18.98921967 | CM98: 0.1502185644 | CN98: 15.76694052 | CO98: 0.1337261621 | CP98: 11.79331023 | CQ98: 0.1458380585 | CR98: 12.86 | CS98: 0.1373955491 | CT98: 0.1502185644 | CU98: 0.1111240398
B99: SARE11<XBSP> | C99: SARE11 | D99: FII Sant Ren | E99: =IFERROR(IF(H99="","",VLOOKUP(H99,'Base Gráfico Lâmina'!$H:$I,2,0)),"Carregando") -> 521681<BraNa> | F99: 521681 | G99: Santander Renda de Aluguéis Fundo de Investimento Imobiliári | H99: 32903702000171 | I99: Híbrido | J99: Santander Brasil Gestao de Recursos Ltda | K99: S3 Caceis Brasil Dtvm S A | L99: 35032 | M99: 0.00259 | N99: 366141.1448 | O99: 2024-09-27 | P99: 39.65 | Q99: 48.72224909 | R99: 0.8137965867 | S99: 2023-10-02 | T99: 494.38083 | U99: 1235.033681 | V99: 0.4002974473 | W99: 2405 | X99: 2755.760956 | Y99: 0.8727172052 | AA99: 0.003797468355 | AB99: 0.005531734407 | AC99: -0.01734820322 | AD99: 0.005761458732 | AE99: -0.1403446739 | AF99: -0.1347492421 | AG99: -0.005825090835 | AH99: 0.02213195651 | AI99: -0.09253642194 | AJ99: -0.1608093936 | AK99: -0.07836604402 | AL99: -0.1209633099 | AM99: -0.1656404519 | AN99: -0.3309520735 | AO99: -0.3492877615 | AP99: -0.5681544586 | AQ99: -0.2862007728 | AR99: -0.4440268786 | AS99: -0.4294373611 | AT99: -0.7913644766 | AW99: 0.2297186274 | AY99: 0.09135802469 | AZ99: -0.06741573034 | BA99: 0.06380563124 | BB99: -0.1202035192 | BC99: 3 | BD99: 9 | BE99: 4 | BF99: 8 | BG99: -0.992256221 | BH99: 0.02389397915 | BI99: -0.2036492418 | BJ99: 2023-10-02 | BK99: 2024-09-03 | BR99: 0.8956492698 | BS99: 0.9784261632 | BT99: 0.9843811905 | BU99: 0.708042191 | BV99: 0.6851358998 | BW99: 0.712650589 | BX99: 0.6837333018 | BY99: 0.5451456125 | BZ99: 0.4507540225 | CA99: 0.712650589 | CB99: 0.632503543 | CC99: 0.632503543 | CK99: 0.0723146635 | CL99: 7.00367516 | CM99: 0.1093572241 | CN99: 7.69 | CO99: 0.09918215613 | CP99: 6.67 | CQ99: 0.08354090822 | CR99: 4.36 | CS99: 0.09109873799 | CT99: 0.1093572241 | CU99: 0.0723146635
B100: SNEL11<XBSP> | C100: SNEL11 | D100: FII Suno El | E100: =IFERROR(IF(H100="","",VLOOKUP(H100,'Base Gráfico Lâmina'!$H:$I,2,0)),"Carregando") -> 686281<BraNa> | F100: 686281 | G100: Suno Energias Limpas FI Imobiliário | H100: 43741171000184 | I100: Outros | J100: - | K100: - | L100: 10848 | M100: 0.00122 | N100: 172918.3927 | O100: 2024-09-27 | P100: 9.15 | T100: 710.395 | W100: 925 | AA100: -0.01400862069 | AB100: -0.01227435464 | AC100: 0.008844598949 | AD100: 0.0319542609 | AE100: 0.2231409172 | AF100: 0.228736349 | AG100: 0.007745639692 | AH100: 0.03570268703 | AI100: 0.01988365246 | AJ100: -0.04838931915 | AK100: 0.03476760325 | AL100: -0.007829662629 | AY100: 0.265 | AZ100: -0.05138339921 | BA100: 0.1241149032 | BB100: -0.05922474087 | BI100: -0.1514644879 | BJ100: 2024-03-20 | BK100: 2024-04-26 | BY100: 1.206531229 | BZ100: 1.284536378 | CA100: 1.284536378 | CB100: 1 | CC100: 1
B101: SNFF11<XBSP> | C101: SNFF11 | D101: FII Sunofofi | E101: =IFERROR(IF(H101="","",VLOOKUP(H101,'Base Gráfico Lâmina'!$H:$I,2,0)),"Carregando") -> 592226<BraNa> | F101: 592226 | G101: Suno Fundo de Fundos de Investimento Imobiliário | H101: 40011225000168 | I101: TVM | J101: Suno Gestora de Recursos Ltda. | K101: BTG Pactual Servicos Financeiros SA Dtvm | L101: 29949 | M101: 0.00286 | N101: 252945.4 | O101: 2024-09-27 | P101: 89.38 | Q101: 90.15894737 | R101: 0.9913602877 | S101: 2024-09-03 | T101: 270.83668 | U101: 529.1433536 | V101: 0.5118398978 | W101: 334 | X101: 774.3784861 | Y101: 0.4313136354 | AA101: 0.00438251489 | AB101: 0.006116780942 | AC101: -0.0005299142504 | AD101: 0.0225797477 | AE101: 0.132535804 | AF101: 0.1381312358 | AG101: -0.0006396737581 | AH101: 0.02731737358 | AI101: 0.06191689679 | AJ101: -0.006356074824 | AK101: 0.09909198377 | AL101: 0.0564947179 | AM101: 0.1452786087 | AN101: -0.02003301291 | AO101: 0.265945473 | AP101: 0.04707877591 | AQ101: 0.3220920951 | AR101: 0.1642659892 | AW101: 0.1345702152 | AY101: 0.03692065986 | AZ101: -0.04015784587 | BA101: 0.06317573375 | BB101: -0.03434639653 | BC101: 7 | BD101: 5 | BE101: 6 | BF101: 6 | BG101: 0.3030405699 | BH101: 0.01388950005 | BI101: -0.07192010321 | BJ101: 2023-09-29 | BK101: 2023-12-07 | BL101: 1900-02-21 | BM101: 2023-12-15 | BT101: 1.033545965 | BU101: 0.9228128655 | BV101: 0.9786089425 | BW101: 0.9935346235 | BX101: 0.9418505222 | BY101: 0.9474413073 | BZ101: 1.001004841 | CA101: 1.001004841 | CB101: 1 | CC101: 1 | CM101: 0.1057647606 | CN101: 9.1 | CO101: 0.09779395042 | CP101: 8.6 | CQ101: 0.121307779 | CR101: 10.76 | CS101: 0.10828883 | CT101: 0.121307779 | CU101: 0.09779395042
B102: SNCI11<XBSP> | C102: SNCI11 | D102: FII Suno Cri | E102: =IFERROR(IF(H102="","",VLOOKUP(H102,'Base Gráfico Lâmina'!$H:$I,2,0)),"Carregando") -> 622540<BraNa> | F102: 622540 | G102: Suno Recebíveis Imobiliários Fundo de Investimento Imobiliár | H102: 41076710000182 | I102: TVM | J102: Suno Gestora de Recursos Ltda. | K102: BTG Pactual Servicos Financeiros SA Dtvm | L102: 41677 | M102: 0.0027 | N102: 382200 | O102: 2024-09-27 | P102: 91 | Q102: 96.61951417 | R102: 0.9418387246 | S102: 2024-09-03 | T102: 1039.67879 | U102: 627.9689033 | V102: 1.655621456 | W102: 600 | X102: 647.7051793 | Y102: 0.9263473864 | AA102: 0.002202643171 | AB102: 0.003936909223 | AC102: -0.05467656889 | AD102: -0.03156690694 | AE102: -0.01104031542 | AF102: -0.005444883604 | AG102: -0.0477278202 | AH102: -0.01977077286 | AI102: -0.01164424592 | AJ102: -0.07991721753 | AK102: -0.008686446287 | AL102: -0.05128371217 | AM102: 0.03468298458 | AN102: -0.130628637 | AO102: 0.1576208444 | AP102: -0.0612458527 | AW102: 0.069924632 | AY102: 0.01252631579 | AZ102: -0.01447916667 | BA102: 0.03152815013 | BB102: -0.05467656889 | BC102: 7 | BD102: 5 | BE102: 6 | BF102: 6 | BG102: -0.949756365 | BH102: 0.007220506356 | BI102: -0.06768316138 | BJ102: 2024-09-03 | BK102: 2024-09-25 | BU102: 1.002838944 | BV102: 1.050512633 | BW102: 1.010927807 | BX102: 1.000952268 | BY102: 0.9905525173 | BZ102: 0.9195561154 | CA102: 1.050512633 | CB102: 0.8753403682 | CC102: 0.8753403682 | CM102: 0.1452606867 | CN102: 14.85 | CO102: 0.1254316474 | CP102: 12.35 | CQ102: 0.1166902404 | CR102: 11.55 | CS102: 0.1291275248 | CT102: 0.1452606867 | CU102: 0.1166902404
B103: TEPP11<XBSP> | C103: TEPP11 | D103: FII Tel Prop | E103: =IFERROR(IF(H103="","",VLOOKUP(H103,'Base Gráfico Lâmina'!$H:$I,2,0)),"Carregando") -> 522961<BraNa> | F103: 522961 | G103: Tellus Properties - Fundo de Investimento Imobiliário | H103: 26681370000125 | I103: Lajes Corporativas | J103: Tellus Investimentos e Consultoria Ltda | K103: Brl Dtvm | L103: 30171 | M103: 0.00262 | N103: 369422.1125 | O103: 2024-09-27 | P103: 87.5 | Q103: 92.8367412 | R103: 0.9425147724 | S103: 2024-05-07 | T103: 505.42955 | U103: 1378.872379 | V103: 0.3665528135 | W103: 2920 | X103: 1856.366534 | Y103: 1.572965224 | AA103: 0.000228623685 | AB103: 0.001962889737 | AC103: -0.01430663512 | AD103: 0.008803026829 | AE103: 0.03490652949 | AF103: 0.04050196131 | AG103: -0.01901710575 | AH103: 0.008939941592 | AI103: -0.01429874383 | AJ103: -0.08257171544 | AK103: -0.03099843602 | AL103: -0.0735957019 | AM103: 0.07172398599 | AN103: -0.09358763562 | AO103: 0.2625697044 | AP103: 0.0437030073 | AQ103: 0.5260255898 | AR103: 0.368199484 | AS103: 0.3220743858 | AT103: -0.03985272963 | AU103: 0.3438111253 | AV103: 0.07027659012 | AW103: 0.1078772316 | AY103: 0.03761825264 | AZ103: -0.02268063506 | BA103: 0.05296655879 | BB103: -0.0243902439 | BC103: 5 | BD103: 7 | BE103: 7 | BF103: 5 | BG103: -0.2727814612 | BH103: 0.01117600791 | BI103: -0.06071670687 | BJ103: 2024-05-07 | BK103: 2024-09-25 | BQ103: 1.148144038 | BR103: 0.9630394769 | BS103: 0.9542679857 | BT103: 0.8297498881 | BU103: 0.8204628096 | BV103: 0.7589769301 | BW103: 0.694766688 | BX103: 0.925059633 | BY103: 0.9445456096 | BZ103: 0.8982390271 | CA103: 0.9445456096 | CB103: 0.9509747522 | CC103: 0.9509747522 | CI103: 0.0552003602 | CJ103: 6.13 | CK103: 0.06037694499 | CL103: 5.51 | CM103: 0.07899317178 | CN103: 5.9 | CO103: 0.1039097744 | CP103: 6.91 | CQ103: 0.1100483729 | CR103: 10.01 | CS103: 0.08170572486 | CT103: 0.1100483729 | CU103: 0.0552003602
B104: TVRI11<XBSP> | C104: TVRI11 | D104: FII Tivio Ri | E104: =IFERROR(IF(H104="","",VLOOKUP(H104,'Base Gráfico Lâmina'!$H:$I,2,0)),"Carregando") -> 311189<BraNa> | F104: 311189 | G104: Tivio Renda Imobiliária Fundo de Investimento Imobiliário | H104: 14410722000129 | I104: Híbrido | J104: BV Dtvm | K104: Bem Dtvm | L104: 69927 | M104: 0.01126 | N104: 1591173.015 | O104: 2024-09-27 | P104: 99.95 | Q104: 103.2041334 | R104: 0.9684689622 | S104: 2024-08-02 | T104: 705.45138 | U104: 1209.676506 | V104: 0.583173581 | W104: 846 | X104: 1377.888446 | Y104: 0.6139829406 | AA104: 0.01061678463 | AB104: 0.01235105068 | AC104: -0.02573350229 | AD104: -0.002623840338 | AE104: 0.1116343889 | AF104: 0.1172298207 | AG104: -0.0245090761 | AH104: 0.003447971237 | AI104: -0.01081279006 | AJ104: -0.07908576167 | AK104: -0.01166108901 | AL104: -0.05425835489 | AM104: 0.1637515986 | AN104: -0.001560023 | AO104: 0.3759310286 | AP104: 0.1570643315 | AQ104: 0.4517015305 | AR104: 0.2938754246 | AS104: 0.1432718571 | AT104: -0.2186552583 | AU104: 0.1464218631 | AV104: -0.1271126721 | AW104: 0.1326008279 | AY104: 0.0393258427 | AZ104: -0.03433024431 | BA104: 0.08026410812 | BB104: -0.03390714658 | BC104: 8 | BD104: 4 | BE104: 7 | BF104: 5 | BG104: 0.4318061107 | BH104: 0.01372195461 | BI104: -0.09754825248 | BJ104: 2023-09-29 | BK104: 2023-10-09 | BL104: 1900-02-12 | BM104: 2023-12-04 | BO104: 1.346337519 | BP104: 1.409060062 | BQ104: 1.668064462 | BR104: 1.619539793 | BS104: 1.218637398 | BT104: 1.196925753 | BU104: 0.979086297 | BV104: 0.801644157 | BW104: 0.8415150035 | BX104: 0.9919577243 | BY104: 0.9773900998 | BZ104: 0.9845164194 | CA104: =IF(B104="","",IF(MAX(BO104:BZ104)=0,"-x-",MAX(BV104:BZ104))) -> 0.9919577243 | CB104: =IF(B104="","",IFERROR(BZ104/CA104,"-x-")) -> 0.9924983649 | CC104: =IF(B104="","",IFERROR(BZ104/CA104,"-x-")) -> 0.9924983649 | CE104: 0.0855828194 | CF104: 12.2168684 | CG104: 0.08952153757 | CH104: 12.4305248 | CI104: 0.07501056833 | CJ104: 12.7924604 | CK104: 0.09799647963 | CL104: 12.0386392 | CM104: 0.1155403965 | CN104: 10.84 | CO104: 0.1281626862 | CP104: 10.84 | CQ104: 0.1186070686 | CR104: 11.41 | CS104: 0.1014887937 | CT104: 0.1281626862 | CU104: 0.07501056833
B105: TRXF11<XBSP> | C105: TRXF11 | D105: FII Trx Real | E105: =IFERROR(IF(H105="","",VLOOKUP(H105,'Base Gráfico Lâmina'!$H:$I,2,0)),"Carregando") -> 517811<BraNa> | F105: 517811 | G105: Trx Real Estate Fundo de Investimento Imobiliário - FII | H105: 28548288000152 | I105: Híbrido | J105: Trx Gestora de Recursos | K105: Brl Dtvm | L105: 180932 | M105: 0.015 | N105: 2119562.21 | O105: 2024-09-27 | P105: 105.79 | Q105: 107.5654532 | R105: 0.9834942061 | S105: 2024-02-27 | T105: 4440.82094 | U105: 8356.482769 | V105: 0.5314222578 | W105: 10566 | X105: 6871.414343 | Y105: 1.537674702 | AA105: 0.006086543033 | AB105: 0.007820809085 | AC105: 0.005321676328 | AD105: 0.02843133828 | AE105: 0.03158666282 | AF105: 0.03718209464 | AG105: 0.004943024096 | AH105: 0.03290007144 | AI105: 0.03695915772 | AJ105: -0.0313138139 | AK105: -0.002784921303 | AL105: -0.04538218718 | AM105: 0.05656447944 | AN105: -0.1087471422 | AO105: 0.1642419085 | AP105: -0.05462478862 | AQ105: 0.4410275824 | AR105: 0.2832014765 | AS105: 0.5728927436 | AT105: 0.2109656281 | AW105: 0.05656723934 | AY105: 0.01606176236 | AZ105: -0.01969286359 | BA105: 0.03644963829 | BB105: -0.03200537017 | BC105: 7 | BD105: 5 | BE105: 6 | BF105: 6 | BG105: -0.8375304783 | BH105: 0.0058385457 | BI105: -0.05372991277 | BJ105: 2024-02-27 | BK105: 2024-06-24 | BR105: 1.042569765 | BS105: 0.9393700014 | BT105: 0.9735813438 | BU105: 0.9837607379 | BV105: 1.002868487 | BW105: 0.9857551513 | BX105: 1.051587356 | BY105: 1.022640899 | BZ105: 0.9839237644 | CA105: 1.051587356 | CB105: 0.9356557575 | CC105: 0.9356557575 | CK105: 0.09179841897 | CL105: 9.29 | CM105: 0.1012266879 | CN105: 10.15 | CO105: 0.1043771044 | CP105: 10.85 | CQ105: 0.1053053946 | CR105: 11.81 | CS105: 0.1006769015 | CT105: 0.1053053946 | CU105: 0.09179841897
B106: URPR11<XBSP> | C106: URPR11 | D106: FII Urca Ren | E106: =IFERROR(IF(H106="","",VLOOKUP(H106,'Base Gráfico Lâmina'!$H:$I,2,0)),"Carregando") -> 529516<BraNa> | F106: 529516 | G106: Urca Prime Renda Fundo de Investimento Imobiliário - FII | H106: 34508872000187 | I106: TVM | J106: Urca Gestao de Recursos Ltda | K106: Vortx Dtvm Ltda | L106: 85163 | M106: 0.00664 | N106: 938476.9221 | O106: 2024-09-27 | P106: 79.98 | Q106: 83.55239964 | R106: 0.9572436021 | S106: 2024-03-28 | T106: 1875.12662 | U106: 1925.544416 | V106: 0.9738163423 | W106: 1833 | X106: 2357.139442 | Y106: 0.7776374902 | AA106: 0.001126549005 | AB106: 0.002860815057 | AC106: -0.02296603958 | AD106: 0.000143622373 | AE106: 0.01986939657 | AF106: 0.02546482839 | AG106: -0.01941577083 | AH106: 0.008541276513 | AI106: 0.002054284907 | AJ106: -0.0662186867 | AK106: -0.03740208753 | AL106: -0.07999935341 | AM106: 0.004161745452 | AN106: -0.1611498762 | AO106: 0.04971315332 | AP106: -0.1691535438 | AQ106: 0.1092624521 | AR106: -0.04856365381 | AS106: 1.042837889 | AT106: 0.6809107736 | AW106: 0.09832866997 | AY106: 0.0179016542 | AZ106: -0.04835658548 | BA106: 0.05052607238 | BB106: -0.04115922418 | BC106: 7 | BD106: 5 | BE106: 6 | BF106: 6 | BG106: -0.94032694 | BH106: 0.01009257 | BI106: -0.119021153 | BJ106: 2023-09-29 | BK106: 2023-11-07 | BL106: 1900-03-06 | BM106: 2024-01-09 | BS106: 1.301068901 | BT106: 1.283376394 | BU106: 1.191190881 | BV106: 1.122377962 | BW106: 1.010977729 | BX106: 0.9802700828 | BY106: 0.832792436 | BZ106: 0.7818351113 | CA106: 1.122377962 | CB106: 0.6965880813 | CC106: 0.6965880813 | CK106: 0.1828703347 | CL106: 23.764 | CM106: 0.1640721196 | CN106: 18.655 | CO106: 0.1483631995 | CP106: 14.82 | CQ106: 0.140447616 | CR106: 12.99 | CS106: 0.1589383175 | CT106: 0.1828703347 | CU106: 0.140447616
B107: VGIR11<XBSP> | C107: VGIR11 | D107: FII Valrelll | E107: =IFERROR(IF(H107="","",VLOOKUP(H107,'Base Gráfico Lâmina'!$H:$I,2,0)),"Carregando") -> 473413<BraNa> | F107: 473413 | G107: Valora Cri CDI Fundo de Investimento Imobiliario - FII | H107: 29852732000191 | I107: Não se aplica | J107: Valora Renda Fixa Ltda | K107: BTG Pactual Servicos Financeiros SA Dtvm | L107: 252065 | M107: 0.01088 | N107: 1439097.677 | O107: 2024-09-27 | P107: 9.85 | Q107: 10.0582983 | R107: 0.9792909007 | S107: 2024-09-02 | T107: 4585.72933 | U107: 4098.829569 | V107: 1.11878995 | W107: 32056 | X107: 20213.23506 | Y107: 1.585891615 | AA107: 0.001016260163 | AB107: 0.002750526215 | AC107: -0.01391520802 | AD107: 0.009194453932 | AE107: 0.1067659459 | AF107: 0.1123613777 | AG107: -0.001044623387 | AH107: 0.02691242395 | AI107: 0.01330110681 | AJ107: -0.0549718648 | AK107: 0.0677671904 | AL107: 0.02516992452 | AM107: 0.1708070935 | AN107: 0.00549547192 | AO107: 0.3116110341 | AP107: 0.092744337 | AQ107: 0.5701774129 | AR107: 0.412351307 | AS107: 0.878284097 | AT107: 0.5163569815 | AU107: 0.7108245061 | AV107: 0.437289971 | AW107: 0.08496491616 | AY107: 0.02092050209 | AZ107: -0.02797202797 | BA107: 0.03396177443 | BB107: -0.01391520802 | BC107: 7 | BD107: 5 | BE107: 9 | BF107: 3 | BG107: 0.686679187 | BH107: 0.008767350322 | BI107: -0.04495504496 | BJ107: 2023-11-27 | BK107: 2023-12-01 | BL107: 1900-01-27 | BM107: 2024-01-08 | BO107: 1.026341819 | BP107: 1.079261484 | BQ107: 1.253411973 | BR107: 0.8994814328 | BS107: 0.8876413745 | BT107: 0.9225417539 | BU107: 1.008170871 | BV107: 1.015255009 | BW107: 1.021850061 | BX107: 0.9857519536 | BY107: 1.020523959 | BZ107: 1.013875242 | CA107: 1.021850061 | CB107: 0.9921957051 | CC107: 0.9921957051 | CG107: 0.09081329822 | CH107: 0.9081329822 | CI107: 0.04850326209 | CJ107: 0.5901391899 | CK107: 0.08102662979 | CL107: 0.6981254423 | CM107: 0.1480243161 | CN107: 1.461 | CO107: 0.1472081218 | CP107: 1.45 | CQ107: 0.1348547718 | CR107: 1.3 | CS107: 0.1084050666 | CT107: 0.1480243161 | CU107: 0.04850326209
B108: VGIP11<XBSP> | C108: VGIP11 | D108: FII Valoraip | E108: =IFERROR(IF(H108="","",VLOOKUP(H108,'Base Gráfico Lâmina'!$H:$I,2,0)),"Carregando") -> 532071<BraNa> | F108: 532071 | G108: Valora Cri Índice de Preço Fundo de Investimento Imobiliário | H108: 34197811000146 | I108: TVM | J108: Valora Renda Fixa Ltda | K108: BTG Pactual Servicos Financeiros SA Dtvm | L108: 89991 | M108: 0.00702 | N108: 991425.3452 | O108: 2024-09-27 | P108: 84.11 | Q108: 89.19303744 | R108: 0.943010827 | S108: 2024-08-08 | T108: 1952.80805 | U108: 1999.485959 | V108: 0.9766550452 | W108: 3516 | X108: 4204.095618 | Y108: 0.8363273151 | AA108: -0.006379208506 | AB108: -0.004644942454 | AC108: -0.03985344712 | AD108: -0.01674378517 | AE108: 0.03997918101 | AF108: 0.04557461283 | AG108: -0.0359322587 | AH108: -0.007975211362 | AI108: -0.006863166945 | AJ108: -0.07513613856 | AK108: -0.04058259428 | AL108: -0.08317986016 | AM108: 0.07286237932 | AN108: -0.09244924229 | AO108: 0.1941101267 | AP108: -0.02475657043 | AQ108: 0.2563001465 | AR108: 0.09847404067 | AS108: 0.5283594087 | AT108: 0.1664322932 | AW108: 0.1319758052 | AY108: 0.0422357397 | AZ108: -0.02926412475 | BA108: 0.0360073119 | BB108: -0.03985344712 | BC108: 9 | BD108: 3 | BE108: 6 | BF108: 6 | BG108: -0.1936240003 | BH108: 0.01368581253 | BI108: -0.06545726456 | BJ108: 2023-10-03 | BK108: 2023-11-27 | BL108: 1900-02-28 | BM108: 2024-01-02 | BR108: 1.03058185 | BS108: 1.156532836 | BT108: 1.047146773 | BU108: 1.060372124 | BV108: 1.068213946 | BW108: 0.9499231182 | BX108: 0.9637016004 | BY108: 0.9413078919 | BZ108: 0.9165911675 | CA108: 1.068213946 | CB108: 0.8580595403 | CC108: 0.8580595403 | CK108: 0.125135722 | CL108: 13.83 | CM108: 0.1329735034 | CN108: 13.55 | CO108: 0.1241997439 | CP108: 10.67 | CQ108: 0.1149988603 | CR108: 10.09 | CS108: 0.1243269574 | CT108: 0.1329735034 | CU108: 0.1149988603
B109: VGHF11<XBSP> | C109: VGHF11 | D109: FII Valor He | E109: =IFERROR(IF(H109="","",VLOOKUP(H109,'Base Gráfico Lâmina'!$H:$I,2,0)),"Carregando") -> 588350<BraNa> | F109: 588350 | G109: Valora Hedge Fund Fundo de Investimento Imobiliário - FII | H109: 36771692000119 | I109: TVM | J109: Valora Renda Fixa Ltda | K109: Daycoval | L109: 1 | M109: 0.00992 | N109: 1401781.522 | O109: 2024-09-27 | P109: 8.51 | Q109: 8.978823925 | R109: 0.9477855976 | S109: 2024-01-26 | T109: 4568.49937 | U109: 4148.692822 | V109: 1.101190077 | W109: 19029 | X109: 18017.54582 | Y109: 1.056137178 | AA109: -0.001173708922 | AB109: 0.0005605571306 | AC109: -0.04274465692 | AD109: -0.01963499497 | AE109: -0.02516343921 | AF109: -0.01956800739 | AG109: -0.028683279 | AH109: -0.000726231657 | AI109: -0.01438333399 | AJ109: -0.0826563056 | AK109: -0.03961761897 | AL109: -0.08221488485 | AM109: -0.004047080936 | AN109: -0.1693587025 | AO109: 0.1291066201 | AP109: -0.08976007699 | AQ109: 0.3731361521 | AR109: 0.2153100462 | AW109: 0.101616551 | AY109: 0.03424657534 | AZ109: -0.02234042553 | BA109: 0.0425299891 | BB109: -0.04680851064 | BC109: 6 | BD109: 6 | BE109: 6 | BF109: 6 | BG109: -0.972823999 | BH109: 0.01051397788 | BI109: -0.08624588277 | BJ109: 2024-01-26 | BK109: 2024-04-23 | BT109: 1.00232821 | BU109: 1.037672882 | BV109: 1.085785229 | BW109: 1.016662946 | BX109: 1.015924634 | BY109: 1.011623782 | BZ109: 0.9476082857 | CA109: 1.085785229 | CB109: 0.8727400786 | CC109: 0.8727400786 | CM109: 0.1588594705 | CN109: 1.56 | CO109: 0.1385606874 | CP109: 1.29 | CQ109: 0.1178903826 | CR109: 1.14 | CS109: 0.1384368468 | CT109: 0.1588594705 | CU109: 0.1178903826
B110: LVBI11<XBSP> | C110: LVBI11 | D110: FII Vbi Log | E110: =IFERROR(IF(H110="","",VLOOKUP(H110,'Base Gráfico Lâmina'!$H:$I,2,0)),"Carregando") -> 491438<BraNa> | F110: 491438 | G110: Fundo de Investimento Imobiliário - Vbi Logístico | H110: 30629603000118 | I110: Logistica | J110: Vbi Real Estate Gestao de Carteiras Ltda | K110: BTG Pactual Servicos Financeiros SA Dtvm | L110: 130206 | M110: 0.01235 | N110: 1745157.033 | O110: 2024-09-27 | P110: 108.27 | Q110: 115.1298366 | R110: 0.9404165179 | S110: 2024-06-07 | T110: 4278.29709 | U110: 4221.693745 | V110: 1.013407733 | W110: 11193 | X110: 7851.832669 | Y110: 1.425527068 | AA110: -0.001199261993 | AB110: 0.0005350040593 | AC110: -0.02186286024 | AD110: 0.001246801713 | AE110: -0.0120688574 | AF110: -0.006473425576 | AG110: -0.02465978531 | AH110: 0.00329726203 | AI110: -0.02132615648 | AJ110: -0.08959912809 | AK110: -0.03998999615 | AL110: -0.08258726203 | AM110: 0.01230784365 | AN110: -0.153003778 | AO110: 0.1595063261 | AP110: -0.05936037097 | AQ110: 0.3870660784 | AR110: 0.2292399726 | AS110: 0.2150442625 | AT110: -0.1468828529 | AU110: 0.4660828224 | AV110: 0.1925482873 | AW110: 0.1264417775 | AY110: 0.03044727861 | AZ110: -0.0255599711 | BA110: 0.04643110795 | BB110: -0.03107638889 | BC110: 5 | BD110: 7 | BE110: 7 | BF110: 5 | BG110: -0.6439408324 | BH110: 0.01308358077 | BI110: -0.09274408829 | BJ110: 2024-06-07 | BK110: 2024-07-03 | BO110: 1.072230832 | BP110: 1.071497896 | BQ110: 1.297675572 | BR110: 1.137313676 | BS110: 1.0822947 | BT110: 0.9231916534 | BU110: 0.8917215129 | BV110: 0.8522995191 | BW110: 0.8855530046 | BX110: 1.015873565 | BY110: 1.013248061 | BZ110: 0.8687766322 | CA110: 1.015873565 | CB110: 0.8552015348 | CC110: 0.8552015348 | CG110: 0.06799255294 | CH110: 7.122219921 | CI110: 0.05332068924 | CJ110: 7.116712393 | CK110: 0.05822529918 | CL110: 6.952100722 | CM110: 0.08609920517 | CN110: 8.814836625 | CO110: 0.0920023465 | CP110: 9.41 | CQ110: 0.09192176871 | CR110: 10.81 | CS110: 0.07492697696 | CT110: 0.0920023465 | CU110: 0.05332068924
B111: RVBI11<XBSP> | C111: RVBI11 | D111: FII Vbi Reit | E111: =IFERROR(IF(H111="","",VLOOKUP(H111,'Base Gráfico Lâmina'!$H:$I,2,0)),"Carregando") -> 532061<BraNa> | F111: 532061 | G111: Vbi Reits Multiestratégia Fundo de Investimento Imobiliário | H111: 35507457000171 | I111: TVM | J111: - | K111: - | L111: 42739 | M111: 0.00521 | N111: 736173.4997 | O111: 2024-09-27 | P111: 71.64 | Q111: 82.90966343 | R111: 0.8640729806 | S111: 2024-03-05 | T111: 1812.15897 | U111: 1278.207879 | V111: 1.417734157 | W111: 5673 | X111: 1850.071713 | Y111: 3.066367622 | AA111: -0.001115448968 | AB111: 0.0006188170847 | AC111: -0.02470927213 | AD111: -0.001599610174 | AE111: -0.05930139047 | AF111: -0.05370595865 | AG111: -0.02207335124 | AH111: 0.005883696101 | AI111: 0.01653689027 | AJ111: -0.05173608134 | AK111: -0.1301862806 | AL111: -0.1727835465 | AM111: -0.03300127825 | AN111: -0.1983128999 | AO111: 0.1028279091 | AP111: -0.116038788 | AQ111: 0.1781001395 | AR111: 0.02027403366 | AS111: 0.2386245736 | AT111: -0.1233025418 | AW111: 0.1583503483 | AY111: 0.03348994097 | AZ111: -0.073798627 | BA111: 0.03326071027 | BB111: -0.03728068385 | BC111: 5 | BD111: 7 | BE111: 6 | BF111: 6 | BG111: -0.7572891988 | BH111: 0.01622268152 | BI111: -0.1547807107 | BJ111: 2024-03-05 | BK111: 2024-06-25 | BR111: 0.8532823801 | BS111: 0.9774000082 | BT111: 0.9569136728 | BU111: 0.9482107447 | BV111: 0.8677527009 | BW111: 0.8649034117 | BX111: 0.9352343679 | BY111: 0.9639584948 | BZ111: 0.8731777031 | CA111: 0.9639584948 | CB111: 0.9058249996 | CC111: 0.9058249996 | CK111: 0.0931696905 | CL111: 8.73 | CM111: 0.1071301035 | CN111: 9 | CO111: 0.1224714463 | CP111: 8.9 | CQ111: 0.1073712149 | CR111: 8.9 | CS111: 0.1075356138 | CT111: 0.1224714463 | CU111: 0.0931696905
B112: VCJR11<XBSP> | C112: VCJR11 | D112: FII Vectis | E112: =IFERROR(IF(H112="","",VLOOKUP(H112,'Base Gráfico Lâmina'!$H:$I,2,0)),"Carregando") -> 589934<BraNa> | F112: 589934 | G112: Vectis Juros Real Fundo de Investimento Imobiliário - FII | H112: 32400250000105 | I112: TVM | J112: Vectis Gestao de Recursos Ltda. | K112: Intrag | L112: 34280 | M112: 0.00929 | N112: 1312641.925 | O112: 2024-09-27 | P112: 89.15 | Q112: 92.94 | R112: 0.9592210028 | S112: 2024-09-09 | T112: 2288.6634 | U112: 2161.374077 | V112: 1.058892778 | W112: 8622 | X112: 4121.717131 | Y112: 2.091846608 | AA112: -0.009004001778 | AB112: -0.007269735725 | AC112: -0.02780806979 | AD112: -0.004698407839 | AE112: 0.03661629246 | AF112: 0.04221172428 | AG112: -0.01996781229 | AH112: 0.007989235051 | AI112: 0.00166038225 | AJ112: -0.06661258936 | AK112: -0.001958681803 | AL112: -0.04455594768 | AM112: 0.06941978852 | AN112: -0.09589183309 | AO112: 0.238532336 | AP112: 0.01966563894 | AQ112: 0.3783682261 | AR112: 0.2205421202 | AS112: 0.4027924552 | AT112: 0.04086533971 | AW112: 0.110769215 | AY112: 0.02463605823 | AZ112: -0.02647527911 | BA112: 0.0621691632 | BB112: -0.02780806979 | BC112: 7 | BD112: 5 | BE112: 6 | BF112: 6 | BG112: -0.2827308558 | BH112: 0.01143929526 | BI112: -0.05549181183 | BJ112: 2024-04-12 | BK112: 2024-04-26 | BL112: 1900-03-28 | BM112: 2024-08-16 | BR112: 0.9905476656 | BS112: 1.034912051 | BT112: 0.9592975738 | BU112: 1.01952423 | BV112: 1.076341815 | BW112: 0.9496815912 | BX112: 0.9415726413 | BY112: 0.9583464317 | BZ112: 0.9325789455 | CA112: 1.076341815 | CB112: 0.8664338156 | CC112: 0.8664338156 | CK112: 0.1085981487 | CL112: 11.38 | CM112: 0.1240246407 | CN112: 12.08 | CO112: 0.1243436487 | CP112: 11.13 | CQ112: 0.1162418684 | CR112: 10.9 | CS112: 0.1183020766 | CT112: 0.1243436487 | CU112: 0.1085981487
B113: VSLH11<XBSP> | C113: VSLH11 | D113: FII Vers Cri | E113: =IFERROR(IF(H113="","",VLOOKUP(H113,'Base Gráfico Lâmina'!$H:$I,2,0)),"Carregando") -> 576603<BraNa> | F113: 576603 | G113: Versalhes Recebiveis Imobiliarios - FI Imobiliario | H113: 36244015000142 | I113: TVM | J113: R Capital Asset Management Investimentos | K113: Vortx Dtvm Ltda | L113: 80412 | M113: 0.00074 | N113: 105121.6003 | O113: 2024-09-27 | P113: 3.52 | Q113: 3.924173091 | R113: 0.8970042651 | S113: 2023-11-20 | T113: 106.92395 | U113: 214.8470176 | V113: 0.4976748162 | W113: 1026 | X113: 1732.039841 | Y113: 0.5923651269 | AA113: 0.005714285715 | AB113: 0.007448551767 | AC113: -0.007825971615 | AD113: 0.01528369034 | AE113: -0.05564703206 | AF113: -0.05005160024 | AG113: -0.002267573696 | AH113: 0.02568947365 | AI113: 0.1402949338 | AJ113: 0.07202196215 | AK113: 0.05147397397 | AL113: 0.008876708088 | AM113: 0.3152705284 | AN113: 0.1499589068 | AO113: -0.5113596175 | AP113: -0.7302263146 | AQ113: -0.4813049451 | AR113: -0.639131051 | AW113: 0.2419341926 | AY113: 0.0977443609 | AZ113: -0.06593406593 | BA113: 0.2157141014 | BB113: -0.0727665706 | BC113: 6 | BD113: 6 | BE113: 6 | BF113: 6 | BG113: 0.9018868075 | BH113: 0.02527739076 | BI113: -0.2207324405 | BJ113: 2023-11-20 | BK113: 2024-06-19 | BT113: 1.072348588 | BU113: 0.979187773 | BV113: 0.878467703 | BW113: 0.8748202337 | BX113: 0.4884551319 | BY113: 0.3841470276 | BZ113: 0.3243277975 | CA113: 0.878467703 | CB113: 0.3691971787 | CC113: 0.3691971787 | CM113: 0.1398550725 | CN113: 1.351 | CO113: 0.05830583058 | CP113: 0.53 | CQ113: 0.1540983607 | CR113: 0.47 | CS113: 0.1174197546 | CT113: 0.1540983607 | CU113: 0.05830583058
B114: VIUR11<XBSP> | C114: VIUR11 | D114: FII Vinci Ub | E114: =IFERROR(IF(H114="","",VLOOKUP(H114,'Base Gráfico Lâmina'!$H:$I,2,0)),"Carregando") -> 599182<BraNa> | F114: 599182 | G114: Vinci Imoveis Urbanos Fundo de Investimento Imobiliario | H114: 36445587000190 | I114: Outros | J114: Vinci Real State Gestora de Rec Ltda | K114: Brl Dtvm | L114: 50453 | M114: 0.00117 | N114: 165719.253 | O114: 2024-09-27 | P114: 6.15 | Q114: 7.494164403 | R114: 0.8206385221 | S114: 2024-02-15 | T114: 456.15351 | U114: 391.0329822 | V114: 1.166534617 | W114: 898 | X114: 2164.912351 | Y114: 0.4147973934 | AA114: 0.01652892562 | AB114: 0.01826319167 | AC114: -0.04547571007 | AD114: -0.02236604812 | AE114: -0.1621239678 | AF114: -0.156528536 | AG114: -0.03510044605 | AH114: -0.00714339871 | AI114: -0.04210285747 | AJ114: -0.1103758291 | AK114: -0.1392318421 | AL114: -0.181829108 | AM114: -0.1391752251 | AN114: -0.3044868467 | AO114: -0.06942689688 | AP114: -0.288293594 | AQ114: 0.06085559922 | AR114: -0.09697050666 | AW114: 0.1602737122 | AY114: 0.03599374022 | AZ114: -0.05160390516 | BA114: 0.03057581872 | BB114: -0.08734052993 | BC114: 6 | BD114: 6 | BE114: 3 | BF114: 9 | BG114: -1.34978005 | BH114: 0.01651571255 | BI114: -0.2092918 | BJ114: 2024-02-07 | BK114: 2024-06-17 | BT114: 0.9420968343 | BU114: 0.7985437363 | BV114: 0.756981281 | BW114: 0.8527950276 | BX114: 0.9240840793 | BY114: 0.8850490372 | BZ114: 0.6976986669 | CA114: 0.9240840793 | CB114: 0.7550164347 | CC114: 0.7550164347 | CM114: 0.1113986285 | CN114: 0.861 | CO114: 0.1100917431 | CP114: 0.864 | CQ114: 0.103625 | CR114: 0.829 | CS114: 0.1083717906 | CT114: 0.1113986285 | CU114: 0.103625
B115: VINO11<XBSP> | C115: VINO11 | D115: FII Vinc Cor | E115: =IFERROR(IF(H115="","",VLOOKUP(H115,'Base Gráfico Lâmina'!$H:$I,2,0)),"Carregando") -> 356395<BraNa> | F115: 356395 | G115: Vinci Offices Fundo de Investimento Imobiliário | H115: 12516185000170 | I115: Híbrido | J115: Vinci Real State Gestora de Rec Ltda | K115: Brl Dtvm | L115: 153812 | M115: 0.00303 | N115: 428211.9451 | O115: 2024-09-27 | P115: 5.17 | Q115: 7.966642932 | R115: 0.6489559083 | S115: 2023-10-02 | T115: 1602.15168 | U115: 1071.173639 | V115: 1.49569745 | W115: 5022 | X115: 4591.525896 | Y115: 1.09375404 | AA115: 0.02579365079 | AB115: 0.02752791685 | AC115: -0.1496710526 | AD115: -0.1265613907 | AE115: -0.2731750167 | AF115: -0.2675795849 | AG115: -0.1398487711 | AH115: -0.1118917237 | AI115: -0.232656808 | AJ115: -0.3009297797 | AK115: -0.2937947418 | AL115: -0.3363920076 | AM115: -0.2935804996 | AN115: -0.4588921212 | AO115: -0.3814795473 | AP115: -0.6003462444 | AQ115: -0.432191099 | AR115: -0.5900172049 | AS115: -0.3665053034 | AT115: -0.7284324188 | AW115: 0.2424788805 | AY115: 0.06833114323 | AZ115: -0.05604719764 | BA115: 0.05355932203 | BB115: -0.1496710526 | BC115: 6 | BD115: 6 | BE115: 5 | BF115: 7 | BG115: -1.425803056 | BH115: 0.02508823046 | BI115: -0.3711278335 | BJ115: 2023-10-02 | BK115: 2024-09-24 | BQ115: 1.162997658 | BR115: 0.974293928 | BS115: 1.030145471 | BT115: 0.9969858886 | BU115: 1.018545822 | BV115: 0.817201121 | BW115: 0.8632510386 | BX115: 0.8643616229 | BY115: 0.6994340113 | BZ115: 0.4825894008 | CA115: 0.8643616229 | CB115: 0.5583188656 | CC115: 0.5583188656 | CI115: 0.06075418994 | CJ115: 0.87 | CK115: 0.0939041859 | CL115: 1.18 | CM115: 0.07544483986 | CN115: 0.848 | CO115: 0.07829030893 | CP115: 0.74 | CQ115: 0.08619402985 | CR115: 0.693 | CS115: 0.0789175109 | CT115: 0.0939041859 | CU115: 0.06075418994
B116: VISC11<XBSP> | C116: VISC11 | D116: FII Vinci Sc | E116: =IFERROR(IF(H116="","",VLOOKUP(H116,'Base Gráfico Lâmina'!$H:$I,2,0)),"Carregando") -> 380555<BraNa> | F116: 380555 | G116: Vinci Shopping Centers Fundo de Investimento Imobiliário - F | H116: 17554274000125 | I116: Híbrido | J116: Vinci Real State Gestora de Rec Ltda | K116: Brl Dtvm | L116: 353755 | M116: 0.02224 | N116: 3142321.76 | O116: 2024-09-27 | P116: 109 | Q116: 118.3237928 | R116: 0.9212010316 | S116: 2024-05-20 | T116: 5385.44833 | U116: 7847.210134 | V116: 0.686288278 | W116: 12034 | X116: 11682.40637 | Y116: 1.030095993 | AA116: 0.0177404295 | AB116: 0.01947469556 | AC116: -0.02609006433 | AD116: -0.002980402379 | AE116: -0.05428482613 | AF116: -0.04868939431 | AG116: -0.0200058434 | AH116: 0.007951203938 | AI116: -0.03876167391 | AJ116: -0.1070346455 | AK116: -0.06443505314 | AL116: -0.107032319 | AM116: 0.01122521441 | AN116: -0.1540864072 | AO116: 0.1976813833 | AP116: -0.02118531381 | AQ116: 0.3986318302 | AR116: 0.2408057243 | AS116: 0.3575723575 | AT116: -0.00435475797 | AU116: 0.2814886045 | AV116: 0.0079540694 | AW116: 0.1080663179 | AY116: 0.02495253594 | AZ116: -0.05316017316 | BA116: 0.04985163205 | BB116: -0.03779358253 | BC116: 6 | BD116: 6 | BE116: 5 | BF116: 7 | BG116: -0.7869282819 | BH116: 0.01110097798 | BI116: -0.1049982638 | BJ116: 2024-05-20 | BK116: 2024-09-25 | BO116: 1.062460299 | BP116: 1.060867393 | BQ116: 1.144413306 | BR116: 0.8501829792 | BS116: 0.9658708372 | BT116: 0.8952459689 | BU116: 0.8857854719 | BV116: 0.8794161461 | BW116: 0.8509517875 | BX116: 1.038560808 | BY116: 0.9186622994 | BZ116: 0.8601467978 | CA116: 1.038560808 | CB116: 0.8282103377 | CC116: 0.8282103377 | CE116: 0.07073694391 | CF116: 7.3142 | CG116: 0.07231940169 | CH116: 7.7668 | CI116: 0.03149067876 | CJ116: 4.375 | CK116: 0.05000434065 | CL116: 5.76 | CM116: 0.08405571248 | CN116: 8.63 | CO116: 0.09936414539 | CP116: 10.47 | CQ116: 0.09621848739 | CR116: 11.45 | CS116: 0.07202710147 | CT116: 0.09936414539 | CU116: 0.03149067876
B117: WHGR11<XBSP> | C117: WHGR11 | D117: FII Whg Real | E117: =IFERROR(IF(H117="","",VLOOKUP(H117,'Base Gráfico Lâmina'!$H:$I,2,0)),"Carregando") -> 630764<BraNa> | F117: 630764 | G117: Whg Real Estate Fundo de Investimento Imobiliário FII | H117: 41256643000188 | I117: Híbrido | J117: Wealth High Governance Asset Manag Ltda | K117: Xp Investimentos Cctvm | L117: 13064 | M117: 0.00207 | N117: 292740.2291 | O117: 2024-09-27 | P117: 9.47 | Q117: 9.69 | R117: 0.9772961816 | S117: 2024-09-09 | T117: 799.06715 | U117: 567.7177941 | V117: 1.407507671 | W117: 10844 | X117: 3753.462151 | Y117: 2.889066031 | AA117: 0.009594882729 | AB117: 0.01132914878 | AC117: -0.02068252327 | AD117: 0.002427138686 | AE117: 0.05894199173 | AF117: 0.06453742355 | AG117: -0.009530874982 | AH117: 0.01842617236 | AI117: -0.00390885246 | AJ117: -0.07218182407 | AK117: 0.01142667321 | AL117: -0.03117059267 | AM117: 0.1117362716 | AN117: -0.05357535 | AO117: 0.2652963512 | AP117: 0.04642965407 | AW117: 0.1000796596 | AY117: 0.02308499475 | AZ117: -0.01836734694 | BA117: 0.03419689119 | BB117: -0.02068252327 | BC117: 9 | BD117: 3 | BE117: 10 | BF117: 2 | BG117: 0.06057362505 | BH117: 0.01034411104 | BI117: -0.03715170279 | BJ117: 2024-09-03 | BK117: 2024-09-25 | BV117: 1.016269521 | BW117: 0.8587222169 | BX117: 0.914350709 | BY117: 0.9734334752 | BZ117: 0.9774533545 | CA117: 1.016269521 | CB117: 0.9618052443 | CC117: 0.9618052443 | CO117: 0.141025641 | CP117: 1.21 | CQ117: 0.1240913811 | CR117: 1.195 | CS117: 0.1325585111 | CT117: 0.141025641 | CU117: 0.1240913811
B118: XPCI11<XBSP> | C118: XPCI11 | D118: FII Xp Cred | E118: =IFERROR(IF(H118="","",VLOOKUP(H118,'Base Gráfico Lâmina'!$H:$I,2,0)),"Carregando") -> 509159<BraNa> | F118: 509159 | G118: Xp Crédito Imobiliário - Fundo de Investimento Imobiliário | H118: 28516301000191 | I118: TVM | J118: Xp Vista Asset Management Ltda | K118: Xp Investimentos Cctvm | L118: 79104 | M118: 0.00537 | N118: 759036.381 | O118: 2024-09-27 | P118: 87.23 | Q118: 87.53 | R118: 0.9965726037 | S118: 2024-09-19 | T118: 1604.36214 | U118: 1945.096562 | V118: 0.8248239041 | W118: 6745 | X118: 5477.505976 | Y118: 1.231399843 | AA118: 0.001147710318 | AB118: 0.00288197637 | AC118: 0.001377568589 | AD118: 0.02448723054 | AE118: 0.09798873368 | AF118: 0.1035841655 | AG118: 0.001947439732 | AH118: 0.02990448707 | AI118: 0.04518522346 | AJ118: -0.02308774816 | AK118: 0.02361818385 | AL118: -0.01897908203 | AM118: 0.1341648933 | AN118: -0.03114672833 | AO118: 0.22289463 | AP118: 0.00402793287 | AQ118: 0.3250265383 | AR118: 0.1672004324 | AS118: 0.5723061229 | AT118: 0.2103790074 | AW118: 0.1011989961 | AY118: 0.02372685185 | AZ118: -0.02012592759 | BA118: 0.03693601545 | BB118: -0.01593978304 | BC118: 9 | BD118: 3 | BE118: 7 | BF118: 5 | BG118: 0.262392291 | BH118: 0.01046056988 | BI118: -0.04278396951 | BJ118: 2023-11-16 | BK118: 2023-12-13 | BL118: 1900-01-26 | BM118: 2023-12-22 | BQ118: 1.074390974 | BR118: 0.9207662306 | BS118: 0.9364545976 | BT118: 1.040697249 | BU118: 1.007332357 | BV118: 0.9702381356 | BW118: 0.8773707543 | BX118: 0.9273253779 | BY118: 0.920641295 | BZ118: 0.9585054713 | CA118: 0.9702381356 | CB118: 0.9879074385 | CC118: 0.9879074385 | CI118: 0.06919814958 | CJ118: 7.18 | CK118: 0.1189412918 | CL118: 10.92 | CM118: 0.1239565943 | CN118: 11.88 | CO118: 0.1357825493 | CP118: 10.94 | CQ118: 0.1221198157 | CR118: 10.6 | CS118: 0.1139996801 | CT118: 0.1357825493 | CU118: 0.06919814958
B119: XPIN11<XBSP> | C119: XPIN11 | D119: FII Xp Indl | E119: =IFERROR(IF(H119="","",VLOOKUP(H119,'Base Gráfico Lâmina'!$H:$I,2,0)),"Carregando") -> 479802<BraNa> | F119: 479802 | G119: Xp Industrial Fundo de Investimento Imobiliário | H119: 28516325000140 | I119: Outros | J119: Xp Vista Asset Management Ltda | K119: Vortx Dtvm Ltda | L119: 49151 | M119: 0.00374 | N119: 529059.7238 | O119: 2024-09-27 | P119: 73.99 | Q119: 79.06560343 | R119: 0.9358051643 | S119: 2023-10-02 | T119: 303.93917 | U119: 615.018743 | V119: 0.4941949713 | W119: 797 | X119: 1064.880478 | Y119: 0.7484408029 | AA119: 0.01356164383 | AB119: 0.01529590989 | AC119: -0.044255802 | AD119: -0.02114614005 | AE119: -0.009726514324 | AF119: -0.004131082504 | AG119: -0.04364314546 | AH119: -0.01568609812 | AI119: -0.003358937929 | AJ119: -0.07163190954 | AK119: -0.01936867464 | AL119: -0.06196594052 | AM119: -0.03873526776 | AN119: -0.2040468894 | AO119: 0.09448667838 | AP119: -0.1243800187 | AQ119: 0.05882309329 | AR119: -0.09900301259 | AS119: -0.08003822213 | AT119: -0.4419653376 | AU119: 0.3062008995 | AV119: 0.03266636435 | AW119: 0.1376041453 | AY119: 0.02999638598 | AZ119: -0.03152173913 | BA119: 0.01774789587 | BB119: -0.05099089754 | BC119: 6 | BD119: 6 | BE119: 5 | BF119: 7 | BG119: -0.9205848251 | BH119: 0.01422575414 | BI119: -0.09795727 | BJ119: 2023-10-02 | BK119: 2024-06-19 | BO119: 0.9637677912 | BP119: 1.04100125 | BQ119: 1.583262368 | BR119: 1.069614943 | BS119: 1.06254084 | BT119: 0.9017833952 | BU119: 0.8544304881 | BV119: 0.6777674952 | BW119: 0.7105705938 | BX119: 0.7814861699 | BY119: 0.781145744 | BZ119: 0.7031469733 | CA119: 0.7814861699 | CB119: 0.8997561319 | CC119: 0.8997561319 | CG119: 0.07720051169 | CH119: 8.61 | CI119: 0.042 | CJ119: 7.56 | CK119: 0.06400679117 | CL119: 7.54 | CM119: 0.07944273104 | CN119: 7.47 | CO119: 0.1053914928 | CP119: 7.78 | CQ119: 0.08836053939 | CR119: 7.47 | CS119: 0.07606701102 | CT119: 0.1053914928 | CU119: 0.042
B120: XPML11<XBSP> | C120: XPML11 | D120: FII Xp Malls | E120: =IFERROR(IF(H120="","",VLOOKUP(H120,'Base Gráfico Lâmina'!$H:$I,2,0)),"Carregando") -> 464971<BraNa> | F120: 464971 | G120: Xp Malls Fundo de Investimento Imobiliário - FII | H120: 28757546000100 | I120: Shoppings | J120: Xp Vista Asset Management Ltda | K120: Xp Investimentos Cctvm | L120: 527538 | M120: 0.04221 | N120: 5965176.196 | O120: 2024-09-27 | P120: 107.83 | Q120: 112.5287097 | R120: 0.9582443472 | S120: 2024-05-17 | T120: 59114.18758 | U120: 13870.82689 | V120: 4.261763775 | W120: 29968 | X120: 17460.76096 | Y120: 1.716305496 | AA120: 0.002137546468 | AB120: 0.00387181252 | AC120: -0.02925460139 | AD120: -0.006144939442 | AE120: -0.007038466082 | AF120: -0.001443034262 | AG120: -0.02968777649 | AH120: -0.001730729153 | AI120: -0.01328045907 | AJ120: -0.08155343068 | AK120: -0.02317242911 | AL120: -0.06576969499 | AM120: 0.07891049865 | AN120: -0.08640112296 | AO120: 0.2667270778 | AP120: 0.04786038071 | AQ120: 0.488462042 | AR120: 0.3306359361 | AS120: 0.4147683009 | AT120: 0.05284118541 | AU120: 0.3925593435 | AV120: 0.1190248084 | AW120: 0.1078203186 | AY120: 0.03862973761 | AZ120: -0.02638762511 | BA120: 0.06328022993 | BB120: -0.02925460139 | BC120: 6 | BD120: 6 | BE120: 8 | BF120: 4 | BG120: -0.2125376919 | BH120: 0.01117036424 | BI120: -0.06216680997 | BJ120: 2024-05-17 | BK120: 2024-06-13 | BO120: 1.052017981 | BP120: 1.072636918 | BQ120: 1.320071024 | BR120: 0.9315241458 | BS120: 1.04287174 | BT120: 0.9836775856 | BU120: 0.9775031512 | BV120: 0.924471976 | BW120: 0.9478682631 | BX120: 0.9175322473 | BY120: 1.047567149 | BZ120: 0.9047024219 | CA120: 1.047567149 | CB120: 0.8636223684 | CC120: 0.8636223684 | CE120: 0.0554687279 | CF120: 5.555747787 | CG120: 0.06562224105 | CH120: 7.074077585 | CI120: 0.02288359556 | CJ120: 3.135052592 | CK120: 0.04658874527 | CL120: 5.438304235 | CM120: 0.08548727748 | CN120: 8.5 | CO120: 0.1044105351 | CP120: 9.99 | CQ120: 0.09816896302 | CR120: 10.83 | CS120: 0.06837572648 | CT120: 0.1044105351 | CU120: 0.02288359556
B121: XPSF11<XBSP> | C121: XPSF11 | D121: FII Xp Selec | E121: =IFERROR(IF(H121="","",VLOOKUP(H121,'Base Gráfico Lâmina'!$H:$I,2,0)),"Carregando") -> 508306<BraNa> | F121: 508306 | G121: Xp Selection Fundo de Fundos de Investimento Imobiliário - F | H121: 30983020000190 | I121: TVM | J121: Xp Vista Asset Management Ltda | K121: Xp Investimentos Cctvm | L121: 62978 | M121: 0.00221 | N121: 311775.408 | O121: 2024-09-27 | P121: 7.2 | Q121: 7.999035698 | R121: 0.9001084971 | S121: 2024-03-01 | T121: 678.22373 | U121: 567.0359163 | V121: 1.196086016 | W121: 3419 | X121: 3543.470119 | Y121: 0.9648733825 | AA121: 0.006993006993 | AB121: 0.008727273045 | AC121: -0.03743315508 | AD121: -0.01432349313 | AE121: -0.06104335813 | AF121: -0.05544792631 | AG121: -0.03230630105 | AH121: -0.004349253705 | AI121: -0.057347893 | AJ121: -0.1256208646 | AK121: -0.09020133965 | AL121: -0.1327986055 | AM121: -0.02969128717 | AN121: -0.1950029088 | AO121: 0.1690224587 | AP121: -0.04984423843 | AQ121: 0.233570883 | AR121: 0.07574477713 | AS121: 0.1697778012 | AT121: -0.1921493143 | AW121: 0.1127023288 | AY121: 0.0202020202 | AZ121: -0.02190721649 | BA121: 0.06461932182 | BB121: -0.03743315508 | BC121: 2 | BD121: 10 | BE121: 3 | BF121: 9 | BG121: -1.077807283 | BH121: 0.01162667742 | BI121: -0.1061422564 | BJ121: 2024-03-01 | BK121: 2024-09-26 | BR121: 0.9737591051 | BS121: 0.9768900919 | BT121: 1.013130364 | BU121: 0.9105902391 | BV121: 0.8340131734 | BW121: 0.9012295589 | BX121: 0.9172036076 | BY121: 0.9520402383 | BZ121: 0.8680829726 | CA121: 0.9520402383 | CB121: 0.9118133222 | CC121: 0.9118133222 | CK121: 0.09167184587 | CL121: 0.885 | CM121: 0.1040342298 | CN121: 0.851 | CO121: 0.1210953077 | CP121: 0.911 | CQ121: 0.106884058 | CR121: 0.885 | CS121: 0.1059213603 | CT121: 0.1210953077 | CU121: 0.09167184587
B122: ZAVI11<XBSP> | C122: ZAVI11 | D122: FII Zavit R | E122: =IFERROR(IF(H122="","",VLOOKUP(H122,'Base Gráfico Lâmina'!$H:$I,2,0)),"Carregando") -> 600288<BraNa> | F122: 600288 | G122: Zavit Real Estate Fund Fundo de Investimento Imobiliário | H122: 40575940000123 | I122: Híbrido | J122: Zavit Consultoria Financeira Ltda | K122: Vortx Dtvm Ltda | L122: 4192 | M122: 0.00091 | N122: 128091.5627 | O122: 2024-09-27 | P122: 109.17 | Q122: 128.7930042 | R122: 0.8476392071 | S122: 2024-02-06 | T122: 115.46949 | U122: 427.2357492 | V122: 0.270271133 | W122: 370 | X122: 546.3545817 | Y122: 0.6772158822 | AA122: 9.160864829e-05 | AB122: 0.0018258747 | AC122: -0.08812228533 | AD122: -0.06501262338 | AE122: -0.04524492007 | AF122: -0.03964948825 | AG122: -0.01599268483 | AH122: 0.01196436251 | AI122: 0.001602371345 | AJ122: -0.06667060027 | AK122: -0.1317447157 | AL122: -0.1743419815 | AM122: -0.0250344547 | AN122: -0.1903460763 | AW122: 0.3449405358 | AY122: 0.1784508441 | AZ122: -0.06736217286 | BA122: 0.2002979146 | BB122: -0.1097686988 | BC122: 6 | BD122: 6 | BE122: 6 | BF122: 6 | BG122: -0.1940735551 | BH122: 0.03629534685 | BI122: -0.2314219842 | BJ122: 2024-02-06 | BK122: 2024-07-10 | BW122: 1.009792988 | BX122: 0.9239755442 | BY122: 0.9251444594 | BZ122: 0.8446162703 | CA122: 1.009792988 | CB122: 0.8364251689 | CC122: 0.8364251689 | CO122: 0.104890435 | CP122: 13.508 | CQ122: 0.1137067938 | CR122: 14.31 | CS122: 0.1092986144 | CT122: 0.1137067938 | CU122: 0.104890435
E123: =IFERROR(IF(H123="","",VLOOKUP(H123,'Base Gráfico Lâmina'!$H:$I,2,0)),"Carregando") ->  | H123: =IFERROR(VLOOKUP(G123,#REF!,2,FALSE),"") ->  | I123: =IFERROR(VLOOKUP(G123,#REF!,3,FALSE),"") ->  | J123: =IFERROR(VLOOKUP(G123,#REF!,4,FALSE),"") ->  | K123: =IFERROR(VLOOKUP(G123,#REF!,5,FALSE),"") -> 
E124: =IFERROR(IF(H124="","",VLOOKUP(H124,'Base Gráfico Lâmina'!$H:$I,2,0)),"Carregando") ->  | H124: =IFERROR(VLOOKUP(G124,#REF!,2,FALSE),"") ->  | I124: =IFERROR(VLOOKUP(G124,#REF!,3,FALSE),"") ->  | J124: =IFERROR(VLOOKUP(G124,#REF!,4,FALSE),"") ->  | K124: =IFERROR(VLOOKUP(G124,#REF!,5,FALSE),"") -> 
E125: =IFERROR(IF(H125="","",VLOOKUP(H125,'Base Gráfico Lâmina'!$H:$I,2,0)),"Carregando") ->  | H125: =IFERROR(VLOOKUP(G125,#REF!,2,FALSE),"") ->  | I125: =IFERROR(VLOOKUP(G125,#REF!,3,FALSE),"") ->  | J125: =IFERROR(VLOOKUP(G125,#REF!,4,FALSE),"") ->  | K125: =IFERROR(VLOOKUP(G125,#REF!,5,FALSE),"") -> 
E126: =IFERROR(IF(H126="","",VLOOKUP(H126,'Base Gráfico Lâmina'!$H:$I,2,0)),"Carregando") ->  | H126: =IFERROR(VLOOKUP(G126,#REF!,2,FALSE),"") ->  | I126: =IFERROR(VLOOKUP(G126,#REF!,3,FALSE),"") ->  | J126: =IFERROR(VLOOKUP(G126,#REF!,4,FALSE),"") ->  | K126: =IFERROR(VLOOKUP(G126,#REF!,5,FALSE),"") -> 
E127: =IFERROR(IF(H127="","",VLOOKUP(H127,'Base Gráfico Lâmina'!$H:$I,2,0)),"Carregando") ->  | H127: =IFERROR(VLOOKUP(G127,#REF!,2,FALSE),"") ->  | I127: =IFERROR(VLOOKUP(G127,#REF!,3,FALSE),"") ->  | J127: =IFERROR(VLOOKUP(G127,#REF!,4,FALSE),"") ->  | K127: =IFERROR(VLOOKUP(G127,#REF!,5,FALSE),"") -> 
E128: =IFERROR(IF(H128="","",VLOOKUP(H128,'Base Gráfico Lâmina'!$H:$I,2,0)),"Carregando") ->  | H128: =IFERROR(VLOOKUP(G128,#REF!,2,FALSE),"") ->  | I128: =IFERROR(VLOOKUP(G128,#REF!,3,FALSE),"") ->  | J128: =IFERROR(VLOOKUP(G128,#REF!,4,FALSE),"") ->  | K128: =IFERROR(VLOOKUP(G128,#REF!,5,FALSE),"") -> 
E129: =IFERROR(IF(H129="","",VLOOKUP(H129,'Base Gráfico Lâmina'!$H:$I,2,0)),"Carregando") ->  | H129: =IFERROR(VLOOKUP(G129,#REF!,2,FALSE),"") ->  | I129: =IFERROR(VLOOKUP(G129,#REF!,3,FALSE),"") ->  | J129: =IFERROR(VLOOKUP(G129,#REF!,4,FALSE),"") ->  | K129: =IFERROR(VLOOKUP(G129,#REF!,5,FALSE),"") -> 
E130: =IFERROR(IF(H130="","",VLOOKUP(H130,'Base Gráfico Lâmina'!$H:$I,2,0)),"Carregando") ->  | H130: =IFERROR(VLOOKUP(G130,#REF!,2,FALSE),"") ->  | I130: =IFERROR(VLOOKUP(G130,#REF!,3,FALSE),"") ->  | J130: =IFERROR(VLOOKUP(G130,#REF!,4,FALSE),"") ->  | K130: =IFERROR(VLOOKUP(G130,#REF!,5,FALSE),"") -> 
E131: =IFERROR(IF(H131="","",VLOOKUP(H131,'Base Gráfico Lâmina'!$H:$I,2,0)),"Carregando") ->  | H131: =IFERROR(VLOOKUP(G131,#REF!,2,FALSE),"") ->  | I131: =IFERROR(VLOOKUP(G131,#REF!,3,FALSE),"") ->  | J131: =IFERROR(VLOOKUP(G131,#REF!,4,FALSE),"") ->  | K131: =IFERROR(VLOOKUP(G131,#REF!,5,FALSE),"") -> 
E132: =IFERROR(IF(H132="","",VLOOKUP(H132,'Base Gráfico Lâmina'!$H:$I,2,0)),"Carregando") ->  | H132: =IFERROR(VLOOKUP(G132,#REF!,2,FALSE),"") ->  | I132: =IFERROR(VLOOKUP(G132,#REF!,3,FALSE),"") ->  | J132: =IFERROR(VLOOKUP(G132,#REF!,4,FALSE),"") ->  | K132: =IFERROR(VLOOKUP(G132,#REF!,5,FALSE),"") -> 
E133: =IFERROR(IF(H133="","",VLOOKUP(H133,'Base Gráfico Lâmina'!$H:$I,2,0)),"Carregando") ->  | H133: =IFERROR(VLOOKUP(G133,#REF!,2,FALSE),"") ->  | I133: =IFERROR(VLOOKUP(G133,#REF!,3,FALSE),"") ->  | J133: =IFERROR(VLOOKUP(G133,#REF!,4,FALSE),"") ->  | K133: =IFERROR(VLOOKUP(G133,#REF!,5,FALSE),"") -> 
E134: =IFERROR(IF(H134="","",VLOOKUP(H134,'Base Gráfico Lâmina'!$H:$I,2,0)),"Carregando") ->  | H134: =IFERROR(VLOOKUP(G134,#REF!,2,FALSE),"") ->  | I134: =IFERROR(VLOOKUP(G134,#REF!,3,FALSE),"") ->  | J134: =IFERROR(VLOOKUP(G134,#REF!,4,FALSE),"") ->  | K134: =IFERROR(VLOOKUP(G134,#REF!,5,FALSE),"") -> 
E135: =IFERROR(IF(H135="","",VLOOKUP(H135,'Base Gráfico Lâmina'!$H:$I,2,0)),"Carregando") ->  | H135: =IFERROR(VLOOKUP(G135,#REF!,2,FALSE),"") ->  | I135: =IFERROR(VLOOKUP(G135,#REF!,3,FALSE),"") ->  | J135: =IFERROR(VLOOKUP(G135,#REF!,4,FALSE),"") ->  | K135: =IFERROR(VLOOKUP(G135,#REF!,5,FALSE),"") -> 
E136: =IFERROR(IF(H136="","",VLOOKUP(H136,'Base Gráfico Lâmina'!$H:$I,2,0)),"Carregando") ->  | H136: =IFERROR(VLOOKUP(G136,#REF!,2,FALSE),"") ->  | I136: =IFERROR(VLOOKUP(G136,#REF!,3,FALSE),"") ->  | J136: =IFERROR(VLOOKUP(G136,#REF!,4,FALSE),"") ->  | K136: =IFERROR(VLOOKUP(G136,#REF!,5,FALSE),"") ->  | R136: =IFERROR(P136/Q136,"") ->  | V136: =IFERROR(T136/U136,"") ->  | Y136: =IFERROR(W136/X136,"") ->  | AB136: =IF(AA136="","",AA136-AA$5) ->  | AD136: =IF(AC136="","",AC136-AC$5) ->  | AF136: =IF(AE136="","",AE136-AE$5) ->  | AH136: =IF(AG136="","",AG136-AG$5) ->  | AJ136: =IF(AI136="","",AI136-AI$5) ->  | AL136: =IF(AK136="","",AK136-AK$5) ->  | AN136: =IF(AM136="","",AM136-AM$5) ->  | AP136: =IF(AO136="","",AO136-AO$5) ->  | AR136: =IF(AQ136="","",AQ136-AQ$5) ->  | AT136: =IF(AS136="","",AS136-AS$5) ->  | AV136: =IF(AU136="","",AU136-AU$5) ->  | CA136: =IF(B136="","",IF(MAX(BO136:BZ136)=0,"-x-",MAX(BV136:BZ136))) ->  | CB136: =IF(B136="","",IFERROR(BZ136/CA136,"-x-")) ->  | CC136: =IF(B136="","",IFERROR(BZ136/CA136,"-x-")) -> 
E137: =IFERROR(IF(H137="","",VLOOKUP(H137,'Base Gráfico Lâmina'!$H:$I,2,0)),"Carregando") ->  | H137: =IFERROR(VLOOKUP(G137,#REF!,2,FALSE),"") ->  | I137: =IFERROR(VLOOKUP(G137,#REF!,3,FALSE),"") ->  | J137: =IFERROR(VLOOKUP(G137,#REF!,4,FALSE),"") ->  | K137: =IFERROR(VLOOKUP(G137,#REF!,5,FALSE),"") ->  | CS137: =IFERROR(AVERAGE(CE137,CG137,CI137,CK137,CM137,CO137,CQ137),"") ->  | CT137: =IF(MAX(CE137,CG137,CI137,CK137,CM137,CO137,CQ137)=0,"",MAX(CE137,CG137,CI137,CK137,CM137,CO137,CQ137)) ->  | CU137: =IF(SUM(CE137:CR137)<>0,MIN(CE137,CG137,CI137,CK137,CM137,CO137,CQ137),"") -> 
E138: =IFERROR(IF(H138="","",VLOOKUP(H138,'Base Gráfico Lâmina'!$H:$I,2,0)),"Carregando") ->  | H138: =IFERROR(VLOOKUP(G138,#REF!,2,FALSE),"") ->  | I138: =IFERROR(VLOOKUP(G138,#REF!,3,FALSE),"") ->  | J138: =IFERROR(VLOOKUP(G138,#REF!,4,FALSE),"") ->  | K138: =IFERROR(VLOOKUP(G138,#REF!,5,FALSE),"") -> 
E139: =IFERROR(IF(H139="","",VLOOKUP(H139,'Base Gráfico Lâmina'!$H:$I,2,0)),"Carregando") ->  | H139: =IFERROR(VLOOKUP(G139,#REF!,2,FALSE),"") ->  | I139: =IFERROR(VLOOKUP(G139,#REF!,3,FALSE),"") ->  | J139: =IFERROR(VLOOKUP(G139,#REF!,4,FALSE),"") ->  | K139: =IFERROR(VLOOKUP(G139,#REF!,5,FALSE),"") -> 
E140: =IFERROR(IF(H140="","",VLOOKUP(H140,'Base Gráfico Lâmina'!$H:$I,2,0)),"Carregando") ->  | H140: =IFERROR(VLOOKUP(G140,#REF!,2,FALSE),"") ->  | I140: =IFERROR(VLOOKUP(G140,#REF!,3,FALSE),"") ->  | J140: =IFERROR(VLOOKUP(G140,#REF!,4,FALSE),"") ->  | K140: =IFERROR(VLOOKUP(G140,#REF!,5,FALSE),"") -> 
E141: =IFERROR(IF(H141="","",VLOOKUP(H141,'Base Gráfico Lâmina'!$H:$I,2,0)),"Carregando") ->  | H141: =IFERROR(VLOOKUP(G141,#REF!,2,FALSE),"") ->  | I141: =IFERROR(VLOOKUP(G141,#REF!,3,FALSE),"") ->  | J141: =IFERROR(VLOOKUP(G141,#REF!,4,FALSE),"") ->  | K141: =IFERROR(VLOOKUP(G141,#REF!,5,FALSE),"") -> 
E142: =IFERROR(IF(H142="","",VLOOKUP(H142,'Base Gráfico Lâmina'!$H:$I,2,0)),"Carregando") ->  | H142: =IFERROR(VLOOKUP(G142,#REF!,2,FALSE),"") ->  | I142: =IFERROR(VLOOKUP(G142,#REF!,3,FALSE),"") ->  | J142: =IFERROR(VLOOKUP(G142,#REF!,4,FALSE),"") ->  | K142: =IFERROR(VLOOKUP(G142,#REF!,5,FALSE),"") -> 
E143: =IFERROR(IF(H143="","",VLOOKUP(H143,'Base Gráfico Lâmina'!$H:$I,2,0)),"Carregando") ->  | H143: =IFERROR(VLOOKUP(G143,#REF!,2,FALSE),"") ->  | I143: =IFERROR(VLOOKUP(G143,#REF!,3,FALSE),"") ->  | J143: =IFERROR(VLOOKUP(G143,#REF!,4,FALSE),"") ->  | K143: =IFERROR(VLOOKUP(G143,#REF!,5,FALSE),"") -> 
E144: =IFERROR(IF(H144="","",VLOOKUP(H144,'Base Gráfico Lâmina'!$H:$I,2,0)),"Carregando") ->  | H144: =IFERROR(VLOOKUP(G144,#REF!,2,FALSE),"") ->  | I144: =IFERROR(VLOOKUP(G144,#REF!,3,FALSE),"") ->  | J144: =IFERROR(VLOOKUP(G144,#REF!,4,FALSE),"") ->  | K144: =IFERROR(VLOOKUP(G144,#REF!,5,FALSE),"") -> 
E145: =IFERROR(IF(H145="","",VLOOKUP(H145,'Base Gráfico Lâmina'!$H:$I,2,0)),"Carregando") ->  | H145: =IFERROR(VLOOKUP(G145,#REF!,2,FALSE),"") ->  | I145: =IFERROR(VLOOKUP(G145,#REF!,3,FALSE),"") ->  | J145: =IFERROR(VLOOKUP(G145,#REF!,4,FALSE),"") ->  | K145: =IFERROR(VLOOKUP(G145,#REF!,5,FALSE),"") -> 
E146: =IFERROR(IF(H146="","",VLOOKUP(H146,'Base Gráfico Lâmina'!$H:$I,2,0)),"Carregando") ->  | H146: =IFERROR(VLOOKUP(G146,#REF!,2,FALSE),"") ->  | I146: =IFERROR(VLOOKUP(G146,#REF!,3,FALSE),"") ->  | J146: =IFERROR(VLOOKUP(G146,#REF!,4,FALSE),"") ->  | K146: =IFERROR(VLOOKUP(G146,#REF!,5,FALSE),"") -> 
E147: =IFERROR(IF(H147="","",VLOOKUP(H147,'Base Gráfico Lâmina'!$H:$I,2,0)),"Carregando") ->  | H147: =IFERROR(VLOOKUP(G147,#REF!,2,FALSE),"") ->  | I147: =IFERROR(VLOOKUP(G147,#REF!,3,FALSE),"") ->  | J147: =IFERROR(VLOOKUP(G147,#REF!,4,FALSE),"") ->  | K147: =IFERROR(VLOOKUP(G147,#REF!,5,FALSE),"") -> 
E148: =IFERROR(IF(H148="","",VLOOKUP(H148,'Base Gráfico Lâmina'!$H:$I,2,0)),"Carregando") ->  | H148: =IFERROR(VLOOKUP(G148,#REF!,2,FALSE),"") ->  | I148: =IFERROR(VLOOKUP(G148,#REF!,3,FALSE),"") ->  | J148: =IFERROR(VLOOKUP(G148,#REF!,4,FALSE),"") ->  | K148: =IFERROR(VLOOKUP(G148,#REF!,5,FALSE),"") -> 
E149: =IFERROR(IF(H149="","",VLOOKUP(H149,'Base Gráfico Lâmina'!$H:$I,2,0)),"Carregando") ->  | H149: =IFERROR(VLOOKUP(G149,#REF!,2,FALSE),"") ->  | I149: =IFERROR(VLOOKUP(G149,#REF!,3,FALSE),"") ->  | J149: =IFERROR(VLOOKUP(G149,#REF!,4,FALSE),"") ->  | K149: =IFERROR(VLOOKUP(G149,#REF!,5,FALSE),"") -> 
E150: =IFERROR(IF(H150="","",VLOOKUP(H150,'Base Gráfico Lâmina'!$H:$I,2,0)),"Carregando") ->  | H150: =IFERROR(VLOOKUP(G150,#REF!,2,FALSE),"") ->  | I150: =IFERROR(VLOOKUP(G150,#REF!,3,FALSE),"") ->  | J150: =IFERROR(VLOOKUP(G150,#REF!,4,FALSE),"") ->  | K150: =IFERROR(VLOOKUP(G150,#REF!,5,FALSE),"") -> 
E151: =IFERROR(IF(H151="","",VLOOKUP(H151,'Base Gráfico Lâmina'!$H:$I,2,0)),"Carregando") ->  | H151: =IFERROR(VLOOKUP(G151,#REF!,2,FALSE),"") ->  | I151: =IFERROR(VLOOKUP(G151,#REF!,3,FALSE),"") ->  | J151: =IFERROR(VLOOKUP(G151,#REF!,4,FALSE),"") ->  | K151: =IFERROR(VLOOKUP(G151,#REF!,5,FALSE),"") -> 
E152: =IFERROR(IF(H152="","",VLOOKUP(H152,'Base Gráfico Lâmina'!$H:$I,2,0)),"Carregando") ->  | H152: =IFERROR(VLOOKUP(G152,#REF!,2,FALSE),"") ->  | I152: =IFERROR(VLOOKUP(G152,#REF!,3,FALSE),"") ->  | J152: =IFERROR(VLOOKUP(G152,#REF!,4,FALSE),"") ->  | K152: =IFERROR(VLOOKUP(G152,#REF!,5,FALSE),"") -> 
E153: =IFERROR(IF(H153="","",VLOOKUP(H153,'Base Gráfico Lâmina'!$H:$I,2,0)),"Carregando") ->  | H153: =IFERROR(VLOOKUP(G153,#REF!,2,FALSE),"") ->  | I153: =IFERROR(VLOOKUP(G153,#REF!,3,FALSE),"") ->  | J153: =IFERROR(VLOOKUP(G153,#REF!,4,FALSE),"") ->  | K153: =IFERROR(VLOOKUP(G153,#REF!,5,FALSE),"") -> 
E154: =IFERROR(IF(H154="","",VLOOKUP(H154,'Base Gráfico Lâmina'!$H:$I,2,0)),"Carregando") ->  | H154: =IFERROR(VLOOKUP(G154,#REF!,2,FALSE),"") ->  | I154: =IFERROR(VLOOKUP(G154,#REF!,3,FALSE),"") ->  | J154: =IFERROR(VLOOKUP(G154,#REF!,4,FALSE),"") ->  | K154: =IFERROR(VLOOKUP(G154,#REF!,5,FALSE),"") -> 
E155: =IFERROR(IF(H155="","",VLOOKUP(H155,'Base Gráfico Lâmina'!$H:$I,2,0)),"Carregando") ->  | H155: =IFERROR(VLOOKUP(G155,#REF!,2,FALSE),"") ->  | I155: =IFERROR(VLOOKUP(G155,#REF!,3,FALSE),"") ->  | J155: =IFERROR(VLOOKUP(G155,#REF!,4,FALSE),"") ->  | K155: =IFERROR(VLOOKUP(G155,#REF!,5,FALSE),"") -> 
E156: =IFERROR(IF(H156="","",VLOOKUP(H156,'Base Gráfico Lâmina'!$H:$I,2,0)),"Carregando") ->  | H156: =IFERROR(VLOOKUP(G156,#REF!,2,FALSE),"") ->  | I156: =IFERROR(VLOOKUP(G156,#REF!,3,FALSE),"") ->  | J156: =IFERROR(VLOOKUP(G156,#REF!,4,FALSE),"") ->  | K156: =IFERROR(VLOOKUP(G156,#REF!,5,FALSE),"") -> 
E157: =IFERROR(IF(H157="","",VLOOKUP(H157,'Base Gráfico Lâmina'!$H:$I,2,0)),"Carregando") ->  | H157: =IFERROR(VLOOKUP(G157,#REF!,2,FALSE),"") ->  | I157: =IFERROR(VLOOKUP(G157,#REF!,3,FALSE),"") ->  | J157: =IFERROR(VLOOKUP(G157,#REF!,4,FALSE),"") ->  | K157: =IFERROR(VLOOKUP(G157,#REF!,5,FALSE),"") -> 
E158: =IFERROR(IF(H158="","",VLOOKUP(H158,'Base Gráfico Lâmina'!$H:$I,2,0)),"Carregando") ->  | H158: =IFERROR(VLOOKUP(G158,#REF!,2,FALSE),"") ->  | I158: =IFERROR(VLOOKUP(G158,#REF!,3,FALSE),"") ->  | J158: =IFERROR(VLOOKUP(G158,#REF!,4,FALSE),"") ->  | K158: =IFERROR(VLOOKUP(G158,#REF!,5,FALSE),"") -> 
E159: =IFERROR(IF(H159="","",VLOOKUP(H159,'Base Gráfico Lâmina'!$H:$I,2,0)),"Carregando") ->  | H159: =IFERROR(VLOOKUP(G159,#REF!,2,FALSE),"") ->  | I159: =IFERROR(VLOOKUP(G159,#REF!,3,FALSE),"") ->  | J159: =IFERROR(VLOOKUP(G159,#REF!,4,FALSE),"") ->  | K159: =IFERROR(VLOOKUP(G159,#REF!,5,FALSE),"") -> 
E160: =IFERROR(IF(H160="","",VLOOKUP(H160,'Base Gráfico Lâmina'!$H:$I,2,0)),"Carregando") ->  | H160: =IFERROR(VLOOKUP(G160,#REF!,2,FALSE),"") ->  | I160: =IFERROR(VLOOKUP(G160,#REF!,3,FALSE),"") ->  | J160: =IFERROR(VLOOKUP(G160,#REF!,4,FALSE),"") ->  | K160: =IFERROR(VLOOKUP(G160,#REF!,5,FALSE),"") -> 
E161: =IFERROR(IF(H161="","",VLOOKUP(H161,'Base Gráfico Lâmina'!$H:$I,2,0)),"Carregando") ->  | H161: =IFERROR(VLOOKUP(G161,#REF!,2,FALSE),"") ->  | I161: =IFERROR(VLOOKUP(G161,#REF!,3,FALSE),"") ->  | J161: =IFERROR(VLOOKUP(G161,#REF!,4,FALSE),"") ->  | K161: =IFERROR(VLOOKUP(G161,#REF!,5,FALSE),"") -> 
E162: =IFERROR(IF(H162="","",VLOOKUP(H162,'Base Gráfico Lâmina'!$H:$I,2,0)),"Carregando") ->  | H162: =IFERROR(VLOOKUP(G162,#REF!,2,FALSE),"") ->  | I162: =IFERROR(VLOOKUP(G162,#REF!,3,FALSE),"") ->  | J162: =IFERROR(VLOOKUP(G162,#REF!,4,FALSE),"") ->  | K162: =IFERROR(VLOOKUP(G162,#REF!,5,FALSE),"") -> 
E163: =IFERROR(IF(H163="","",VLOOKUP(H163,'Base Gráfico Lâmina'!$H:$I,2,0)),"Carregando") ->  | H163: =IFERROR(VLOOKUP(G163,#REF!,2,FALSE),"") ->  | I163: =IFERROR(VLOOKUP(G163,#REF!,3,FALSE),"") ->  | J163: =IFERROR(VLOOKUP(G163,#REF!,4,FALSE),"") ->  | K163: =IFERROR(VLOOKUP(G163,#REF!,5,FALSE),"") -> 
E164: =IFERROR(IF(H164="","",VLOOKUP(H164,'Base Gráfico Lâmina'!$H:$I,2,0)),"Carregando") ->  | H164: =IFERROR(VLOOKUP(G164,#REF!,2,FALSE),"") ->  | I164: =IFERROR(VLOOKUP(G164,#REF!,3,FALSE),"") ->  | J164: =IFERROR(VLOOKUP(G164,#REF!,4,FALSE),"") ->  | K164: =IFERROR(VLOOKUP(G164,#REF!,5,FALSE),"") -> 
E165: =IFERROR(IF(H165="","",VLOOKUP(H165,'Base Gráfico Lâmina'!$H:$I,2,0)),"Carregando") ->  | H165: =IFERROR(VLOOKUP(G165,#REF!,2,FALSE),"") ->  | I165: =IFERROR(VLOOKUP(G165,#REF!,3,FALSE),"") ->  | J165: =IFERROR(VLOOKUP(G165,#REF!,4,FALSE),"") ->  | K165: =IFERROR(VLOOKUP(G165,#REF!,5,FALSE),"") -> 
E166: =IFERROR(IF(H166="","",VLOOKUP(H166,'Base Gráfico Lâmina'!$H:$I,2,0)),"Carregando") ->  | H166: =IFERROR(VLOOKUP(G166,#REF!,2,FALSE),"") ->  | I166: =IFERROR(VLOOKUP(G166,#REF!,3,FALSE),"") ->  | J166: =IFERROR(VLOOKUP(G166,#REF!,4,FALSE),"") ->  | K166: =IFERROR(VLOOKUP(G166,#REF!,5,FALSE),"") -> 
E167: =IFERROR(IF(H167="","",VLOOKUP(H167,'Base Gráfico Lâmina'!$H:$I,2,0)),"Carregando") ->  | H167: =IFERROR(VLOOKUP(G167,#REF!,2,FALSE),"") ->  | I167: =IFERROR(VLOOKUP(G167,#REF!,3,FALSE),"") ->  | J167: =IFERROR(VLOOKUP(G167,#REF!,4,FALSE),"") ->  | K167: =IFERROR(VLOOKUP(G167,#REF!,5,FALSE),"") -> 
E168: =IFERROR(IF(H168="","",VLOOKUP(H168,'Base Gráfico Lâmina'!$H:$I,2,0)),"Carregando") ->  | H168: =IFERROR(VLOOKUP(G168,#REF!,2,FALSE),"") ->  | I168: =IFERROR(VLOOKUP(G168,#REF!,3,FALSE),"") ->  | J168: =IFERROR(VLOOKUP(G168,#REF!,4,FALSE),"") ->  | K168: =IFERROR(VLOOKUP(G168,#REF!,5,FALSE),"") ->  | CA168: =IF(B168="","",IF(MAX(BO168:BZ168)=0,"-x-",MAX(BV168:BZ168))) ->  | CB168: =IF(B168="","",IFERROR(BZ168/CA168,"-x-")) ->  | CC168: =IF(B168="","",IFERROR(BZ168/CA168,"-x-")) -> 
E169: =IFERROR(IF(H169="","",VLOOKUP(H169,'Base Gráfico Lâmina'!$H:$I,2,0)),"Carregando") ->  | H169: =IFERROR(VLOOKUP(G169,#REF!,2,FALSE),"") ->  | I169: =IFERROR(VLOOKUP(G169,#REF!,3,FALSE),"") ->  | J169: =IFERROR(VLOOKUP(G169,#REF!,4,FALSE),"") ->  | K169: =IFERROR(VLOOKUP(G169,#REF!,5,FALSE),"") -> 
E170: =IFERROR(IF(H170="","",VLOOKUP(H170,'Base Gráfico Lâmina'!$H:$I,2,0)),"Carregando") ->  | H170: =IFERROR(VLOOKUP(G170,#REF!,2,FALSE),"") ->  | I170: =IFERROR(VLOOKUP(G170,#REF!,3,FALSE),"") ->  | J170: =IFERROR(VLOOKUP(G170,#REF!,4,FALSE),"") ->  | K170: =IFERROR(VLOOKUP(G170,#REF!,5,FALSE),"") -> 
E171: =IFERROR(IF(H171="","",VLOOKUP(H171,'Base Gráfico Lâmina'!$H:$I,2,0)),"Carregando") ->  | H171: =IFERROR(VLOOKUP(G171,#REF!,2,FALSE),"") ->  | I171: =IFERROR(VLOOKUP(G171,#REF!,3,FALSE),"") ->  | J171: =IFERROR(VLOOKUP(G171,#REF!,4,FALSE),"") ->  | K171: =IFERROR(VLOOKUP(G171,#REF!,5,FALSE),"") -> 
E172: =IFERROR(IF(H172="","",VLOOKUP(H172,'Base Gráfico Lâmina'!$H:$I,2,0)),"Carregando") ->  | H172: =IFERROR(VLOOKUP(G172,#REF!,2,FALSE),"") ->  | I172: =IFERROR(VLOOKUP(G172,#REF!,3,FALSE),"") ->  | J172: =IFERROR(VLOOKUP(G172,#REF!,4,FALSE),"") ->  | K172: =IFERROR(VLOOKUP(G172,#REF!,5,FALSE),"") -> 
E173: =IFERROR(IF(H173="","",VLOOKUP(H173,'Base Gráfico Lâmina'!$H:$I,2,0)),"Carregando") ->  | H173: =IFERROR(VLOOKUP(G173,#REF!,2,FALSE),"") ->  | I173: =IFERROR(VLOOKUP(G173,#REF!,3,FALSE),"") ->  | J173: =IFERROR(VLOOKUP(G173,#REF!,4,FALSE),"") ->  | K173: =IFERROR(VLOOKUP(G173,#REF!,5,FALSE),"") -> 
E174: =IFERROR(IF(H174="","",VLOOKUP(H174,'Base Gráfico Lâmina'!$H:$I,2,0)),"Carregando") ->  | H174: =IFERROR(VLOOKUP(G174,#REF!,2,FALSE),"") ->  | I174: =IFERROR(VLOOKUP(G174,#REF!,3,FALSE),"") ->  | J174: =IFERROR(VLOOKUP(G174,#REF!,4,FALSE),"") ->  | K174: =IFERROR(VLOOKUP(G174,#REF!,5,FALSE),"") -> 
E175: =IFERROR(IF(H175="","",VLOOKUP(H175,'Base Gráfico Lâmina'!$H:$I,2,0)),"Carregando") ->  | H175: =IFERROR(VLOOKUP(G175,#REF!,2,FALSE),"") ->  | I175: =IFERROR(VLOOKUP(G175,#REF!,3,FALSE),"") ->  | J175: =IFERROR(VLOOKUP(G175,#REF!,4,FALSE),"") ->  | K175: =IFERROR(VLOOKUP(G175,#REF!,5,FALSE),"") -> 
E176: =IFERROR(IF(H176="","",VLOOKUP(H176,'Base Gráfico Lâmina'!$H:$I,2,0)),"Carregando") ->  | H176: =IFERROR(VLOOKUP(G176,#REF!,2,FALSE),"") ->  | I176: =IFERROR(VLOOKUP(G176,#REF!,3,FALSE),"") ->  | J176: =IFERROR(VLOOKUP(G176,#REF!,4,FALSE),"") ->  | K176: =IFERROR(VLOOKUP(G176,#REF!,5,FALSE),"") -> 
E177: =IFERROR(IF(H177="","",VLOOKUP(H177,'Base Gráfico Lâmina'!$H:$I,2,0)),"Carregando") ->  | H177: =IFERROR(VLOOKUP(G177,#REF!,2,FALSE),"") ->  | I177: =IFERROR(VLOOKUP(G177,#REF!,3,FALSE),"") ->  | J177: =IFERROR(VLOOKUP(G177,#REF!,4,FALSE),"") ->  | K177: =IFERROR(VLOOKUP(G177,#REF!,5,FALSE),"") -> 
E178: =IFERROR(IF(H178="","",VLOOKUP(H178,'Base Gráfico Lâmina'!$H:$I,2,0)),"Carregando") ->  | H178: =IFERROR(VLOOKUP(G178,#REF!,2,FALSE),"") ->  | I178: =IFERROR(VLOOKUP(G178,#REF!,3,FALSE),"") ->  | J178: =IFERROR(VLOOKUP(G178,#REF!,4,FALSE),"") ->  | K178: =IFERROR(VLOOKUP(G178,#REF!,5,FALSE),"") -> 
E179: =IFERROR(IF(H179="","",VLOOKUP(H179,'Base Gráfico Lâmina'!$H:$I,2,0)),"Carregando") ->  | H179: =IFERROR(VLOOKUP(G179,#REF!,2,FALSE),"") ->  | I179: =IFERROR(VLOOKUP(G179,#REF!,3,FALSE),"") ->  | J179: =IFERROR(VLOOKUP(G179,#REF!,4,FALSE),"") ->  | K179: =IFERROR(VLOOKUP(G179,#REF!,5,FALSE),"") -> 
E180: =IFERROR(IF(H180="","",VLOOKUP(H180,'Base Gráfico Lâmina'!$H:$I,2,0)),"Carregando") ->  | H180: =IFERROR(VLOOKUP(G180,#REF!,2,FALSE),"") ->  | I180: =IFERROR(VLOOKUP(G180,#REF!,3,FALSE),"") ->  | J180: =IFERROR(VLOOKUP(G180,#REF!,4,FALSE),"") ->  | K180: =IFERROR(VLOOKUP(G180,#REF!,5,FALSE),"") -> 
E181: =IFERROR(IF(H181="","",VLOOKUP(H181,'Base Gráfico Lâmina'!$H:$I,2,0)),"Carregando") ->  | H181: =IFERROR(VLOOKUP(G181,#REF!,2,FALSE),"") ->  | I181: =IFERROR(VLOOKUP(G181,#REF!,3,FALSE),"") ->  | J181: =IFERROR(VLOOKUP(G181,#REF!,4,FALSE),"") ->  | K181: =IFERROR(VLOOKUP(G181,#REF!,5,FALSE),"") -> 
E182: =IFERROR(IF(H182="","",VLOOKUP(H182,'Base Gráfico Lâmina'!$H:$I,2,0)),"Carregando") ->  | H182: =IFERROR(VLOOKUP(G182,#REF!,2,FALSE),"") ->  | I182: =IFERROR(VLOOKUP(G182,#REF!,3,FALSE),"") ->  | J182: =IFERROR(VLOOKUP(G182,#REF!,4,FALSE),"") ->  | K182: =IFERROR(VLOOKUP(G182,#REF!,5,FALSE),"") -> 
E183: =IFERROR(IF(H183="","",VLOOKUP(H183,'Base Gráfico Lâmina'!$H:$I,2,0)),"Carregando") ->  | H183: =IFERROR(VLOOKUP(G183,#REF!,2,FALSE),"") ->  | I183: =IFERROR(VLOOKUP(G183,#REF!,3,FALSE),"") ->  | J183: =IFERROR(VLOOKUP(G183,#REF!,4,FALSE),"") ->  | K183: =IFERROR(VLOOKUP(G183,#REF!,5,FALSE),"") -> 
E184: =IFERROR(IF(H184="","",VLOOKUP(H184,'Base Gráfico Lâmina'!$H:$I,2,0)),"Carregando") ->  | H184: =IFERROR(VLOOKUP(G184,#REF!,2,FALSE),"") ->  | I184: =IFERROR(VLOOKUP(G184,#REF!,3,FALSE),"") ->  | J184: =IFERROR(VLOOKUP(G184,#REF!,4,FALSE),"") ->  | K184: =IFERROR(VLOOKUP(G184,#REF!,5,FALSE),"") -> 
E185: =IFERROR(IF(H185="","",VLOOKUP(H185,'Base Gráfico Lâmina'!$H:$I,2,0)),"Carregando") ->  | H185: =IFERROR(VLOOKUP(G185,#REF!,2,FALSE),"") ->  | I185: =IFERROR(VLOOKUP(G185,#REF!,3,FALSE),"") ->  | J185: =IFERROR(VLOOKUP(G185,#REF!,4,FALSE),"") ->  | K185: =IFERROR(VLOOKUP(G185,#REF!,5,FALSE),"") -> 
E186: =IFERROR(IF(H186="","",VLOOKUP(H186,'Base Gráfico Lâmina'!$H:$I,2,0)),"Carregando") ->  | H186: =IFERROR(VLOOKUP(G186,#REF!,2,FALSE),"") ->  | I186: =IFERROR(VLOOKUP(G186,#REF!,3,FALSE),"") ->  | J186: =IFERROR(VLOOKUP(G186,#REF!,4,FALSE),"") ->  | K186: =IFERROR(VLOOKUP(G186,#REF!,5,FALSE),"") -> 
E187: =IFERROR(IF(H187="","",VLOOKUP(H187,'Base Gráfico Lâmina'!$H:$I,2,0)),"Carregando") ->  | H187: =IFERROR(VLOOKUP(G187,#REF!,2,FALSE),"") ->  | I187: =IFERROR(VLOOKUP(G187,#REF!,3,FALSE),"") ->  | J187: =IFERROR(VLOOKUP(G187,#REF!,4,FALSE),"") ->  | K187: =IFERROR(VLOOKUP(G187,#REF!,5,FALSE),"") -> 
E188: =IFERROR(IF(H188="","",VLOOKUP(H188,'Base Gráfico Lâmina'!$H:$I,2,0)),"Carregando") ->  | H188: =IFERROR(VLOOKUP(G188,#REF!,2,FALSE),"") ->  | I188: =IFERROR(VLOOKUP(G188,#REF!,3,FALSE),"") ->  | J188: =IFERROR(VLOOKUP(G188,#REF!,4,FALSE),"") ->  | K188: =IFERROR(VLOOKUP(G188,#REF!,5,FALSE),"") -> 
E189: =IFERROR(IF(H189="","",VLOOKUP(H189,'Base Gráfico Lâmina'!$H:$I,2,0)),"Carregando") ->  | H189: =IFERROR(VLOOKUP(G189,#REF!,2,FALSE),"") ->  | I189: =IFERROR(VLOOKUP(G189,#REF!,3,FALSE),"") ->  | J189: =IFERROR(VLOOKUP(G189,#REF!,4,FALSE),"") ->  | K189: =IFERROR(VLOOKUP(G189,#REF!,5,FALSE),"") -> 
E190: =IFERROR(IF(H190="","",VLOOKUP(H190,'Base Gráfico Lâmina'!$H:$I,2,0)),"Carregando") ->  | H190: =IFERROR(VLOOKUP(G190,#REF!,2,FALSE),"") ->  | I190: =IFERROR(VLOOKUP(G190,#REF!,3,FALSE),"") ->  | J190: =IFERROR(VLOOKUP(G190,#REF!,4,FALSE),"") ->  | K190: =IFERROR(VLOOKUP(G190,#REF!,5,FALSE),"") -> 
E191: =IFERROR(IF(H191="","",VLOOKUP(H191,'Base Gráfico Lâmina'!$H:$I,2,0)),"Carregando") ->  | H191: =IFERROR(VLOOKUP(G191,#REF!,2,FALSE),"") ->  | I191: =IFERROR(VLOOKUP(G191,#REF!,3,FALSE),"") ->  | J191: =IFERROR(VLOOKUP(G191,#REF!,4,FALSE),"") ->  | K191: =IFERROR(VLOOKUP(G191,#REF!,5,FALSE),"") -> 
E192: =IFERROR(IF(H192="","",VLOOKUP(H192,'Base Gráfico Lâmina'!$H:$I,2,0)),"Carregando") ->  | H192: =IFERROR(VLOOKUP(G192,#REF!,2,FALSE),"") ->  | I192: =IFERROR(VLOOKUP(G192,#REF!,3,FALSE),"") ->  | J192: =IFERROR(VLOOKUP(G192,#REF!,4,FALSE),"") ->  | K192: =IFERROR(VLOOKUP(G192,#REF!,5,FALSE),"") -> 
E193: =IFERROR(IF(H193="","",VLOOKUP(H193,'Base Gráfico Lâmina'!$H:$I,2,0)),"Carregando") ->  | H193: =IFERROR(VLOOKUP(G193,#REF!,2,FALSE),"") ->  | I193: =IFERROR(VLOOKUP(G193,#REF!,3,FALSE),"") ->  | J193: =IFERROR(VLOOKUP(G193,#REF!,4,FALSE),"") ->  | K193: =IFERROR(VLOOKUP(G193,#REF!,5,FALSE),"") -> 
E194: =IFERROR(IF(H194="","",VLOOKUP(H194,'Base Gráfico Lâmina'!$H:$I,2,0)),"Carregando") ->  | H194: =IFERROR(VLOOKUP(G194,#REF!,2,FALSE),"") ->  | I194: =IFERROR(VLOOKUP(G194,#REF!,3,FALSE),"") ->  | J194: =IFERROR(VLOOKUP(G194,#REF!,4,FALSE),"") ->  | K194: =IFERROR(VLOOKUP(G194,#REF!,5,FALSE),"") -> 
E195: =IFERROR(IF(H195="","",VLOOKUP(H195,'Base Gráfico Lâmina'!$H:$I,2,0)),"Carregando") ->  | H195: =IFERROR(VLOOKUP(G195,#REF!,2,FALSE),"") ->  | I195: =IFERROR(VLOOKUP(G195,#REF!,3,FALSE),"") ->  | J195: =IFERROR(VLOOKUP(G195,#REF!,4,FALSE),"") ->  | K195: =IFERROR(VLOOKUP(G195,#REF!,5,FALSE),"") -> 
E196: =IFERROR(IF(H196="","",VLOOKUP(H196,'Base Gráfico Lâmina'!$H:$I,2,0)),"Carregando") ->  | H196: =IFERROR(VLOOKUP(G196,#REF!,2,FALSE),"") ->  | I196: =IFERROR(VLOOKUP(G196,#REF!,3,FALSE),"") ->  | J196: =IFERROR(VLOOKUP(G196,#REF!,4,FALSE),"") ->  | K196: =IFERROR(VLOOKUP(G196,#REF!,5,FALSE),"") -> 
E197: =IFERROR(IF(H197="","",VLOOKUP(H197,'Base Gráfico Lâmina'!$H:$I,2,0)),"Carregando") ->  | H197: =IFERROR(VLOOKUP(G197,#REF!,2,FALSE),"") ->  | I197: =IFERROR(VLOOKUP(G197,#REF!,3,FALSE),"") ->  | J197: =IFERROR(VLOOKUP(G197,#REF!,4,FALSE),"") ->  | K197: =IFERROR(VLOOKUP(G197,#REF!,5,FALSE),"") -> 
E198: =IFERROR(IF(H198="","",VLOOKUP(H198,'Base Gráfico Lâmina'!$H:$I,2,0)),"Carregando") ->  | H198: =IFERROR(VLOOKUP(G198,#REF!,2,FALSE),"") ->  | I198: =IFERROR(VLOOKUP(G198,#REF!,3,FALSE),"") ->  | J198: =IFERROR(VLOOKUP(G198,#REF!,4,FALSE),"") ->  | K198: =IFERROR(VLOOKUP(G198,#REF!,5,FALSE),"") -> 
E199: =IFERROR(IF(H199="","",VLOOKUP(H199,'Base Gráfico Lâmina'!$H:$I,2,0)),"Carregando") -> 
E200: =IFERROR(IF(H200="","",VLOOKUP(H200,'Base Gráfico Lâmina'!$H:$I,2,0)),"Carregando") ->  | CA200: =IF(B200="","",IF(MAX(BO200:BZ200)=0,"-x-",MAX(BV200:BZ200))) ->  | CB200: =IF(B200="","",IFERROR(BZ200/CA200,"-x-")) -> 

Sheet Análise Histórica
B2: Fundo: | C2: =_xll.ECONOMATICA(C3,"name") -> Patria Renda Urbana FII Resp Ltda-Unica | D2: ← Não Modificar
B3: Código: | C3: ='Lâmina Individual'!B7 -> HGRU11 | D3: ← Não Modificar
B4: Data Inicial: | C4: =IF('Lâmina Individual'!X37="DESDE O INÍCIO",_xll.ECONOMATICA($C$3,"Series Start Date"),'Lâmina Individual'!X37) -> 12M | D4: ← Não Modificar
B5: Data Último Balanço: | C5: ='Lâmina Individual'!E2 -> 2024-09-27 | D5: ← Não Modificar
B6: Período: | C6: =IF(C7="M","1M",IF(C7="Q","1Q","1Y")) -> 1M | D6: ← Não Modificar
B7: Intervalo: | C7: ='Lâmina Individual'!Z37 -> M | D7: ← Não Modificar
B9: Múltiplos | J9: Retornos | O9: Dividendos
B11: =PROPER(_xll.ECONOMATICA($C$3,"CLOSE",,$C$5,$C$4,$C$7,,,"TRUE","TRUE","Cotação (R$)",)) -> Data | C11: Cotação (R$) | D11: =_xll.ECONOMATICA($C$3,"MarketCapitaliz",,$C$5,$C$4,$C$7,,,"FALSE","TRUE","Valor de Mercado (R$)",) -> Valor de Mercado (R$) | E11: =_xll.ECONOMATICA($C$3,"Stock Eq Par",,$C$5,$C$4,$C$7,,,"FALSE","TRUE","Patrimônio Líquido (R$)") -> Patrimônio Líquido (R$) | F11: =_xll.ECONOMATICA($C$3,"Num of Shares",,$C$5,$C$4,$C$7,,,"false","true","Nº de Cotas") -> Nº de Cotas | G11: =_xll.ECONOMATICA($C$3,"P/BV",,$C$5,$C$4,$C$7,,,"FALSE","TRUE","P/VPA",) -> P/VPA | H11: =_xll.ECONOMATICA($C$3,"BVperShare",,$C$5,$C$4,$C$7,,,"FALSE","TRUE","VPA (R$)") -> VPA (R$) | J11: =_xll.ECONOMATICA($C$3,"return",,$C$5,$C$4,$C$7,,"decimal","FALSE","TRUE","Retorno") -> Retorno | K11: =_xll.ECONOMATICA("IFIX","return",,$C$5,$C$4,$C$7,,"decimal","FALSE","TRUE","Retorno") -> Retorno | L11: Δ | M11: =_xll.ECONOMATICA($C$3,"PREMIUM",,$C$5,$C$4,$C$7,,"decimal","FALSE","TRUE","% CDI") -> % CDI | O11: =_xll.ECONOMATICA($C$3,"Divid per Share",$C$6,$C$5,$C$4,$C$7,,,"FALSE","TRUE","Dividendos Pagos (R$)") -> Dividendos Pagos (R$) | P11: =_xll.ECONOMATICA($C$3,"Div Yld (start)",$C$6,$C$5,$C$4,$C$7,,"decimal","FALSE","TRUE","Dividendos Yield (%)") -> Dividendos Yield (%) | Q11: =_xll.ECONOMATICA("CDI Acumulado","return",$C$6,$C$5,$C$4,$C$7,,"decimal","FALSE","TRUE","CDI") -> CDI | R11: Div Yield vs CDI
C12: HGRU11 | D12: HGRU11 | E12: HGRU11 | F12: HGRU11 | G12: HGRU11 | H12: HGRU11 | J12: HGRU11 | K12: IFIX | L12: =CONCATENATE(J12,"-",K12) -> HGRU11-IFIX | M12: HGRU11 | O12: HGRU11 | P12: HGRU11 | Q12: CDI Acumulado | R12: %CDI
B13: 2023-09-30 | C13: 125.4337831 | D13: 2533648944 | E13: 2269285057 | F13: 18406458 | G13: 1.116496553 | H13: 123.2874384
B14: 2023-10-31 | C14: 117.8248322 | D14: 2379955019 | E14: 2272478761 | F14: 18406458 | G14: 1.047294725 | H14: 123.4609484 | J14: -0.06066109699 | K14: -0.01974975771 | L14: =IF(J14="","",J14-K14) -> -0.04091133927 | M14: -6.080875101 | O14: 0.85 | P14: 0.006175081729 | Q14: 0.009975718294 | R14: =IF(P14="","",P14/Q14) -> 0.6190112378
B15: 2023-11-30 | C15: 123.3743864 | D15: 2475668601 | E15: 2276269694 | F15: 18406458 | G15: 1.087598982 | H15: 123.6669051 | J15: 0.04710003893 | K15: 0.006610260798 | L15: =IF(J15="","",J15-K15) -> 0.04048977813 | M15: 5.141974906 | O15: 0.85 | P15: 0.006573859242 | Q15: 0.00915991225 | R15: =IF(P15="","",P15/Q15) -> 0.7176770981
B16: 2023-12-31 | C16: 129.2361698 | D16: 2534569267 | E16: 2336914152 | F16: 18406458 | G16: 1.084579536 | H16: 126.9616432 | J16: 0.04751215862 | K16: 0.04245787896 | L16: 0.005054279658 | M16: 5.311416994 | O16: 0.85 | P16: 0.006319702602 | Q16: 0.008945288739 | R16: 0.7064839142
B17: 2024-01-31 | C17: 131.0569263 | D17: 2570277795 | E17: 2335306038 | F17: 18406458 | G17: 1.100617115 | H17: 126.8742763 | J17: 0.0140885984 | K17: 0.006667814208 | L17: 0.007420784193 | M17: 1.457397862 | O17: 2.3 | P17: 0.01670297749 | Q17: 0.009666954211 | R17: 1.727842826
B18: 2024-02-29 | C18: 129.1778047 | D18: 2518003454 | E18: 2335963870 | F18: 18406458 | G18: 1.077929109 | H18: 126.9100155 | J18: -0.0143382088 | K18: 0.007946578831 | L18: -0.02228478764 | M18: -1.791809748 | O18: 0.85 | P18: 0.006087081066 | Q18: 0.00800208215 | R18: 0.7606871501
B19: 2024-03-31 | C19: 129.5958866 | D19: 2494811317 | E19: 2324071245 | F19: 18406458 | G19: 1.073465937 | H19: 126.2639039 | J19: 0.003236484001 | K19: 0.01433035714 | L19: -0.01109387314 | M19: 0.3891516907 | O19: 0.85 | P19: 0.006213450292 | Q19: 0.008316767158 | R19: 0.7470992243
B20: 2024-04-30 | C20: 129.5098335 | D20: 2493154736 | E20: 2318783130 | F20: 18406458 | G20: 1.075199618 | H20: 125.9766073 | J20: -0.0006640106258 | K20: -0.007734401362 | L20: 0.007070390736 | M20: -0.07482460383 | O20: 0.85 | P20: 0.00627121145 | Q20: 0.008874228419 | R20: 0.7066768123
B21: 2024-05-31 | C21: 124.9394642 | D21: 2390078571 | E21: 2320451163 | F21: 18406458 | G21: 1.030005979 | H21: 126.0672294 | J21: -0.0352897474 | K21: 0.0001626357643 | L21: -0.03545238316 | M21: -4.239349221 | O21: 0.85 | P21: 0.006275378368 | Q21: 0.008324331297 | R21: 0.753859757
B22: 2024-06-30 | C22: 125.5593189 | D22: 2363205143 | E22: 2310631067 | F22: 18406458 | G22: 1.022753124 | H22: 125.5337158 | J22: 0.004961240309 | K22: -0.01035082221 | L22: 0.01531206252 | M22: 0.6293363961 | O22: 0.85 | P22: 0.006546014632 | Q22: 0.007883288397 | R22: 0.8303659973
B23: 2024-07-31 | C23: 125.8559291 | D23: 2347743718 | E23: 2311830222 | F23: 18406458 | G23: 1.01553466 | H23: 125.5988644 | J23: 0.002362311339 | K23: 0.005213110151 | L23: -0.002850798812 | M23: 0.2604209167 | O23: 1.25 | P23: 0.009735960745 | Q23: 0.009071127501 | R23: 1.073291137
B24: 2024-08-31 | C24: 126.74 | D24: 2332834487 | E24: 2311202538 | F24: 18406458 | G24: 1.009359608 | H24: 125.5647631 | J24: 0.007024467244 | K24: 0.00855033613 | L24: -0.001525868885 | M24: 0.809734445 | O24: 0.85 | P24: 0.006664053312 | Q24: 0.008675025852 | R24: 0.7681882943
B25: 2024-09-30 | C25: 122.3 | D25: 2251109813 | F25: 18406458 | G25: 0.973999369 | J25: -0.03503234969 | K25: -0.02487660415 | L25: -0.01015574554 | M25: -4.408460886 | O25: 0.85 | P25: 0.006706643522 | Q25: 0.007946616881 | R25: 0.8439621065

Sheet Rankings Lâmina Geral
E1: Planilha Auxiliar Não Modificar
C3: ='Lâmina Geral'!$P$20 -> Negócios Médio | F3: Descrecente | I3: Dados para o Gráfico
B4: Nº | C4: Ticker | D4: =_xll.ECONOMATICA(C5:C200,"ticker") -> Código | E4: Valor | F4: Maior Valor | G4: Código | I4: Série (%) | J4: Série ($) | K4: Série (1,2)
B5: =IFERROR(_xlfn.RANK.EQ(E5,$E$5:$E$599)+COUNTIF($E$5:E5,E5)-1,"") -> 62 | C5: =IF('FII Guide'!B8="","",'FII Guide'!B8) -> AFHI11<XBSP> | D5: AFHI11 | E5: =IFERROR(INDEX(IF($C$3="Participação IFIX %",'FII Guide'!M:M, IF($C$3="Mkt Cap",'FII Guide'!N:N, IF($C$3="Volume",'FII Guide'!T:T, IF($C$3="Volume Médio",'FII Guide'!U:U, IF($C$3="Negócios Médio",'FII Guide'!X:X, IF($C$3="Div. Yield %",'FII Guide'!CQ:CQ, IF($C$3="Div. Yield R$",'FII Guide'!CR:CR, IF($C$3="P/VPA Atual",'FII Guide'!BZ:BZ, IF($C$3="% Mês",'FII Guide'!AC:AC, IF($C$3="% Ano",'FII Guide'!AE:AE, IF($C$3="% 12M",'FII Guide'!AM:AM, IF($C$3="Negócios",'FII Guide'!W:W,"")))))))))))),MATCH(C5,'FII Guide'!B:B,0)),"") -> 2317.549801 | F5: =IFERROR(VLOOKUP(ROW()-4,$B$3:$E$200,4,FALSE),"") -> 34848.251 | G5: =IFERROR(VLOOKUP(ROW()-4,$B$3:$E$200,3,FALSE),"") -> MXRF11 | I5: =IF($C$3="Participação IFIX %",F5, IF($C$3="Div. Yield %",F5, IF($C$3="% Mês",F5, IF($C$3="% Ano",F5, IF($C$3="% 12M",F5,NA()))))) ->  | J5: =IF($C$3="Mkt Cap",F5, IF($C$3="Div. Yield R$",F5,NA())) ->  | K5: =IF($C$3="Volume",F5, IF($C$3="Volume Médio",F5, IF($C$3="Negócios Médio",F5, IF($C$3="P/VPA Atual",F5, IF($C$3="Negócios",F5,NA()))))) -> 34848.251
B6: =IFERROR(_xlfn.RANK.EQ(E6,$E$5:$E$599)+COUNTIF($E$5:E6,E6)-1,"") -> 110 | C6: =IF('FII Guide'!B9=0,"",'FII Guide'!B9) -> AJFI11<XBSP> | D6: AJFI11 | E6: =IFERROR(INDEX(IF($C$3="Participação IFIX %",'FII Guide'!M:M, IF($C$3="Mkt Cap",'FII Guide'!N:N, IF($C$3="Volume",'FII Guide'!T:T, IF($C$3="Volume Médio",'FII Guide'!U:U, IF($C$3="Negócios Médio",'FII Guide'!X:X, IF($C$3="Div. Yield %",'FII Guide'!CQ:CQ, IF($C$3="Div. Yield R$",'FII Guide'!CR:CR, IF($C$3="P/VPA Atual",'FII Guide'!BZ:BZ, IF($C$3="% Mês",'FII Guide'!AC:AC, IF($C$3="% Ano",'FII Guide'!AE:AE, IF($C$3="% 12M",'FII Guide'!AM:AM, IF($C$3="Negócios",'FII Guide'!W:W,"")))))))))))),MATCH(C6,'FII Guide'!B:B,0)),"") -> 0 | F6: =IFERROR(VLOOKUP(ROW()-4,$B$3:$E$200,4,FALSE),"") -> 30824.41833 | G6: =IFERROR(VLOOKUP(ROW()-4,$B$3:$E$200,3,FALSE),"") -> CPTS11 | I6: =IF($C$3="Participação IFIX %",F6, IF($C$3="Div. Yield %",F6, IF($C$3="% Mês",F6, IF($C$3="% Ano",F6, IF($C$3="% 12M",F6,NA()))))) ->  | K6: =IF($C$3="Volume",F6, IF($C$3="Volume Médio",F6, IF($C$3="Negócios Médio",F6, IF($C$3="P/VPA Atual",F6, IF($C$3="Negócios",F6,NA()))))) -> 30824.41833
B7: =IFERROR(_xlfn.RANK.EQ(E7,$E$5:$E$599)+COUNTIF($E$5:E7,E7)-1,"") -> 59 | C7: =IF('FII Guide'!B10=0,"",'FII Guide'!B10) -> ALZR11<XBSP> | D7: ALZR11 | E7: =IFERROR(INDEX(IF($C$3="Participação IFIX %",'FII Guide'!M:M, IF($C$3="Mkt Cap",'FII Guide'!N:N, IF($C$3="Volume",'FII Guide'!T:T, IF($C$3="Volume Médio",'FII Guide'!U:U, IF($C$3="Negócios Médio",'FII Guide'!X:X, IF($C$3="Div. Yield %",'FII Guide'!CQ:CQ, IF($C$3="Div. Yield R$",'FII Guide'!CR:CR, IF($C$3="P/VPA Atual",'FII Guide'!BZ:BZ, IF($C$3="% Mês",'FII Guide'!AC:AC, IF($C$3="% Ano",'FII Guide'!AE:AE, IF($C$3="% 12M",'FII Guide'!AM:AM, IF($C$3="Negócios",'FII Guide'!W:W,"")))))))))))),MATCH(C7,'FII Guide'!B:B,0)),"") -> 2406.549801 | F7: 20543.21116 | G7: GARE11 | K7: 20543.21116
B8: =IFERROR(_xlfn.RANK.EQ(E8,$E$5:$E$599)+COUNTIF($E$5:E8,E8)-1,"") -> 101 | C8: =IF('FII Guide'!B11=0,"",'FII Guide'!B11) -> AIEC11<XBSP> | D8: AIEC11 | E8: =IFERROR(INDEX(IF($C$3="Participação IFIX %",'FII Guide'!M:M, IF($C$3="Mkt Cap",'FII Guide'!N:N, IF($C$3="Volume",'FII Guide'!T:T, IF($C$3="Volume Médio",'FII Guide'!U:U, IF($C$3="Negócios Médio",'FII Guide'!X:X, IF($C$3="Div. Yield %",'FII Guide'!CQ:CQ, IF($C$3="Div. Yield R$",'FII Guide'!CR:CR, IF($C$3="P/VPA Atual",'FII Guide'!BZ:BZ, IF($C$3="% Mês",'FII Guide'!AC:AC, IF($C$3="% Ano",'FII Guide'!AE:AE, IF($C$3="% 12M",'FII Guide'!AM:AM, IF($C$3="Negócios",'FII Guide'!W:W,"")))))))))))),MATCH(C8,'FII Guide'!B:B,0)),"") -> 818.4262948 | F8: 20213.23506 | G8: VGIR11 | K8: 20213.23506
B9: =IFERROR(_xlfn.RANK.EQ(E9,$E$5:$E$599)+COUNTIF($E$5:E9,E9)-1,"") -> 95 | C9: =IF('FII Guide'!B12=0,"",'FII Guide'!B12) -> BCRI11<XBSP> | D9: BCRI11 | E9: =IFERROR(INDEX(IF($C$3="Participação IFIX %",'FII Guide'!M:M, IF($C$3="Mkt Cap",'FII Guide'!N:N, IF($C$3="Volume",'FII Guide'!T:T, IF($C$3="Volume Médio",'FII Guide'!U:U, IF($C$3="Negócios Médio",'FII Guide'!X:X, IF($C$3="Div. Yield %",'FII Guide'!CQ:CQ, IF($C$3="Div. Yield R$",'FII Guide'!CR:CR, IF($C$3="P/VPA Atual",'FII Guide'!BZ:BZ, IF($C$3="% Mês",'FII Guide'!AC:AC, IF($C$3="% Ano",'FII Guide'!AE:AE, IF($C$3="% 12M",'FII Guide'!AM:AM, IF($C$3="Negócios",'FII Guide'!W:W,"")))))))))))),MATCH(C9,'FII Guide'!B:B,0)),"") -> 986.1633466 | F9: 18017.54582 | G9: VGHF11 | K9: 18017.54582
B10: =IFERROR(_xlfn.RANK.EQ(E10,$E$5:$E$599)+COUNTIF($E$5:E10,E10)-1,"") -> 94 | C10: =IF('FII Guide'!B13=0,"",'FII Guide'!B13) -> BLMG11<XBSP> | D10: BLMG11 | E10: =IFERROR(INDEX(IF($C$3="Participação IFIX %",'FII Guide'!M:M, IF($C$3="Mkt Cap",'FII Guide'!N:N, IF($C$3="Volume",'FII Guide'!T:T, IF($C$3="Volume Médio",'FII Guide'!U:U, IF($C$3="Negócios Médio",'FII Guide'!X:X, IF($C$3="Div. Yield %",'FII Guide'!CQ:CQ, IF($C$3="Div. Yield R$",'FII Guide'!CR:CR, IF($C$3="P/VPA Atual",'FII Guide'!BZ:BZ, IF($C$3="% Mês",'FII Guide'!AC:AC, IF($C$3="% Ano",'FII Guide'!AE:AE, IF($C$3="% 12M",'FII Guide'!AM:AM, IF($C$3="Negócios",'FII Guide'!W:W,"")))))))))))),MATCH(C10,'FII Guide'!B:B,0)),"") -> 986.501992 | F10: 17460.76096 | G10: XPML11 | K10: 17460.76096
B11: =IFERROR(_xlfn.RANK.EQ(E11,$E$5:$E$599)+COUNTIF($E$5:E11,E11)-1,"") -> 90 | C11: =IF('FII Guide'!B14=0,"",'FII Guide'!B14) -> BCIA11<XBSP> | D11: BCIA11 | E11: =IFERROR(INDEX(IF($C$3="Participação IFIX %",'FII Guide'!M:M, IF($C$3="Mkt Cap",'FII Guide'!N:N, IF($C$3="Volume",'FII Guide'!T:T, IF($C$3="Volume Médio",'FII Guide'!U:U, IF($C$3="Negócios Médio",'FII Guide'!X:X, IF($C$3="Div. Yield %",'FII Guide'!CQ:CQ, IF($C$3="Div. Yield R$",'FII Guide'!CR:CR, IF($C$3="P/VPA Atual",'FII Guide'!BZ:BZ, IF($C$3="% Mês",'FII Guide'!AC:AC, IF($C$3="% Ano",'FII Guide'!AE:AE, IF($C$3="% 12M",'FII Guide'!AM:AM, IF($C$3="Negócios",'FII Guide'!W:W,"")))))))))))),MATCH(C11,'FII Guide'!B:B,0)),"") -> 1099.593625 | F11: 14774.1753 | G11: KNCR11 | K11: 14774.1753
B12: =IFERROR(_xlfn.RANK.EQ(E12,$E$5:$E$599)+COUNTIF($E$5:E12,E12)-1,"") -> 97 | C12: =IF('FII Guide'!B15=0,"",'FII Guide'!B15) -> FATN11<XBSP> | D12: FATN11 | E12: =IFERROR(INDEX(IF($C$3="Participação IFIX %",'FII Guide'!M:M, IF($C$3="Mkt Cap",'FII Guide'!N:N, IF($C$3="Volume",'FII Guide'!T:T, IF($C$3="Volume Médio",'FII Guide'!U:U, IF($C$3="Negócios Médio",'FII Guide'!X:X, IF($C$3="Div. Yield %",'FII Guide'!CQ:CQ, IF($C$3="Div. Yield R$",'FII Guide'!CR:CR, IF($C$3="P/VPA Atual",'FII Guide'!BZ:BZ, IF($C$3="% Mês",'FII Guide'!AC:AC, IF($C$3="% Ano",'FII Guide'!AE:AE, IF($C$3="% 12M",'FII Guide'!AM:AM, IF($C$3="Negócios",'FII Guide'!W:W,"")))))))))))),MATCH(C12,'FII Guide'!B:B,0)),"") -> 927.5258964 | F12: 14116.37849 | G12: KNSC11 | K12: 14116.37849
